Workbook

Sheet 0_Einleitung
A1: ERHEBUNG IN DEN OÖ. ALTEN- UND PFLEGEHEIMEN (Einleitung) | P1: =IF(M1="","","x") -> 
E2: zum Stichtag | G2: 2025-12-31 | P2: =IF(M2="","","x") -> 
A3: =IF(AND('1_allg. Strukturdaten'!A4="",'1a_Langzeitpflege'!A4="",'1b_Kurzzeitpflege'!A4="",'2_Personal'!A4="",'4a_Darstellung_MPPB,AnteilDGKP'!A4="",'4_Pflegepersonalbedarf 2025'!A5="",'5_Betreuung und Pflege'!A4="")=FALSE,"Tabellenblätter nicht vollständig oder korrekt ausgefüllt! Bitte Eingaben auf den einzelnen Tabellenblättern prüfen!","") -> Tabellenblätter nicht vollständig oder korrekt ausgefüllt! Bitte Eingaben auf den einzelnen Tabellenblättern prüfen! | L3: =IF(A3="","Sie haben die Tabellenblätter vollständig ausgefüllt - Vielen Dank!","") -> 
A4: Sehr geehrte Damen und Herren!
A6: Zur Erstellung der Grundlage für eine bedarfsorientierte Sozialplanung, zur Überprüfung der Erfüllung der Vorgaben der Oö. Alten- und Pflegeheimverordnung sowie zur Erfüllung der Berichtspflicht an den Bund ist umfangreiches aktuelles Datenmaterial über die Situation in den Oö. Alten- und Pflegeheimen erforderlich. Aus diesem Grund erfolgt jährlich eine Erhebung bestimmter Daten, die vor allem zur Beurteilung der Strukturqualität von Bedeutung sind.
A7: Die gesamte Erhebung (Excel-Files) steht auf der Homepage des Landes unter dem Link
A8: https://www.land-oberoesterreich.gv.at/196490.htm
A9: zum Download bereit, die Dokumente werden nicht per E-Mail versendet.
A10: Neuerungen:
A11: Blatt 1_: Die Definitionen der leer stehenden Plätze wurden adaptiert.
A12: Blatt 2_: Pflegelehre: Die Abfrage wurde geändert von Jahreswert auf Stichtagswert. Eine Frage zum Thema zugelassener Lehrbetrieb für Pflegelehre wurde ergänzt.
A14: Wichtige HINWEISE:
A15: Eine gemischte Verwendung einer 2-Personen-Wohneinheit gleichzeitig für LZP und KZP ist untersagt.
A16: Es sind in Blatt 2_Personal auch jene Mitarbeiter:innen anzugeben, die sich zum Stichtag in Langzeitkrankenstand befunden haben (weil es hier um die beschäftigten Personen geht). In Blatt 4 hingegen sind zum jeweiligen Monatsletzten nur jene Mitarbeiter:innen anzugeben, die tatsächlich für die Berechnung des MPPB herangezogen werden dürfen, also keine MA in Langzeitkrankenstand, Altersteilzeit-Freizeitphase oder Sabbatical (weil es hier um die tatsächliche Verfügbarkeit des Pflegepersonals geht). Die Definition, ab wann Mitarbeiter herauszurechnen sind, finden Sie im Kommentar im Blatt 4_ Zelle L2.
A17: Im Bereich der Kurzzeitpflege wird nicht zwischen fixen und variablen Plätzen unterschieden. Maßgeblich ist die Anzahl jener Kurzzeitpflegeplätze, welche am Stichtag tatsächlich für die Kurzzeitpflege zur Verfügung stehen oder freigehalten werden. Wichtig dabei ist, dass zum Stichtag nicht mehr Kurzzeitpflegegäste im Haus sein können, als Kurzzeitpflegeplätze vorgehalten werden. In einem derartigen Fall muss die Anzahl der Plätze, die für Kurzzeitpflege verwendet oder freigehalten werden, entsprechend erhöht und gleichzeitig die Plätze der Langzeitpflege verringert werden. Um Daten über die Verteilung auf die einzelnen Monate zu erhalten, ist im Tabellenblatt 4_Pflegepersonalbedarf 2025 (Zeile 139 bzw. 285) anzugeben, wie viele KZP-Gäste zum jeweiligen Monatsletzten im Heim betreut wurden.
A18: Bitte unbedingt beachten:
A19: In den Kommentarfeldern einzelner Zellen (gekennzeichnet durch rotes Dreieck am rechten oberen Rand) finden Sie hilfreiche Definitionen, Erklärungen und Ausfüllbeispiele! Bitte unbedingt vor dem Ausfüllen lesen!
A20: Um diese wertvollen Informationen auch jenen Personen zur Verfügung stellen zu können, welche nicht direkt in den Excel-Datenblättern arbeiten, sondern Ausdrucke in Papierform verwenden, empfehlen wir folgende Vorgehensweise: Ein Klick auf den Reiter "Überprüfen" oben in der Befehlszeile, dann "alle Kommentare anzeigen" auswählen und Dokument ausdrucken.
A21: Bitte achten Sie darauf, dass Sie in der Kosten-Leistungs-Rechnung (KLR) (IST 2025) dieselben Angaben verwenden, wie in der APH-Erhebung 2025. Dies betrifft überwiegend die Platzanzahl und die Bewohntage.
A22: Hinweise zum Ausfüllen:
A23: 1) Allgemeine Hinweise
A24: Die APH-Erhebung selbst ist aus Gründen der Übersichtlichkeit in mehrere Tabellenblätter gegliedert. Die Tabellenblätter "1_..." bis "5_..." (ausgenommen 4a_...) sind auszufüllen.
A25: Die meisten Angaben sind | C25: zum Stichtag 31.12.2025 | E25: (in der Überschrift hellblau gekennzeichnet) zu machen.
A26: Jene Daten, die | B26: für das Jahr 2025 (zeitraumbezogen) | E26: anzugeben sind, sind grün gekennzeichnet.
A27: Datenbereiche, die im Vergleich zum Vorjahr verändert bzw. neu eingeführt wurden, sind lila gekennzeichnet.
A29: Im Sinne der Benutzerfreundlichkeit wurden Vollständigkeits- und nach Möglichkeit Plausibilitätskontrollen eingebaut, die im oberen Bereich jedes Tabellenblattes aufscheinen. Das Tabellenblatt "0_Einleitung" enthält in Zeile 3 eine Vollständigkeitskontrolle hinsichtlich der gesamten Dateneingabe. Um den Aufwand des Ausfüllens so gering wie möglich zu halten, wurden die erforderlichen Rechenschritte bzw. die Vollständigkeits- bzw. Plausibilitätsprüfungen mit Formeln hinterlegt. Damit diese Formeln nicht irrtümlich gelöscht werden können, wurde das Arbeitsblatt mit einem Blattschutz versehen. Nur die zur Eingabe vorgesehenen Felder (Zellen) sind zur Dateneingabe freigeschaltet. Es handelt sich hierbei um jene Felder, die mit gelber Farbe hinterlegt sind. Diese können (neben dem Anklicken mit der Maus) auch mit der Tabulatortaste der Reihe nach annavigiert werden.
A30: Als zusätzliche Ausfüllhilfe wurden an den relevanten Textstellen Kommentarfelder (erkennbar an einem roten Dreieck am rechten oberen Rand der betreffenden Zelle) eingefügt. Stellt man den Cursor auf diese Zelle so erhält man nützliche Informationen bzw. Hilfestellungen. Bei Unklarheiten, die nicht durch entsprechende Kommentare abgeklärt sind, ersuchen wir um diesbezügliche Rückmeldung, um die APH-Erhebung weiter optimieren zu können. Um die einzelnen Tabellenblätter vollständig auszufüllen, ist es erforderlich, auch bei Nichtzutreffen der jeweiligen Fragestellungen die betreffende Zelle (mit "Nein" oder "0") auszufüllen.
A31: 2) Zeitpunkt bzw. Zeitdauer, auf die sich die Abfrage bezieht
A32: Die APH-Erhebung stellt grundsätzlich eine "Zeitpunktabfrage" dar, da ein Großteil der Abfragen auf den 31. Dezember 2025 abstellt. Bei der Beurteilung des Erfüllungsgrades des Mindestpflegepersonalbedarfs erfolgt jedoch eine Abfrage der Monatswerte zum jeweiligen Monatsletzten. Halbjahres- und Jahresdurchschnitt werden in weiterer Folge automatisch berechnet. Weitere Bereiche, bei denen das Kalenderjahr 2025 als Betrachtungszeitraum heranzuziehen ist, sind in den einzelnen Tabellenblättern grün gekennzeichnet.
A34: 3) Tabellenblatt "4_Pflegepersonalbedarf 2025"
A35: Mit der APH-Erhebung zum 31.12.2024 wurde zusätzlich die Tabelle "Pflegepersonalbedarf_2025" zum Download zur Verfügung gestellt, mit dem Auftrag, diese monatlich auszufüllen. Diese Aufzeichnungen können nun in das Tabellenblatt 4_Pflegepersonalbedarf 2025 kopiert werden. Dazu steht in diesem Tabellenblatt 4_Pflegepersonalbedarf 2025 (Spalte R oben) ein Feld mit Makros zur Verfügung, welches automatisch alle Daten der ausgewählten Tabelle "Pflegepersonalbedarf 2025" in die APH-Erhebung kopiert - und das in weniger als einer Minute. Drücken Sie auf das Feld "Kopieren aus Datei", wählen dann die befüllte gespeicherte Datei aus, aus welcher kopiert werden soll und drücken auf "Öffnen". Nun sucht sich das Programm automatisch die notwendigen Daten und kopiert sie in die Erhebung. Dabei blitzen einzelne Felder nacheinander auf. Sollten im zu kopierenden Formular Zellen unausgefüllt sein, bitte die Daten in der APH-Erhebung ergänzen, sodass keine Fehlermeldung mehr auftritt. Die Makros lassen sich erst dann ausführen, wenn die APH-Erhebung vorher in einem Laufwerk auf Ihrem Rechner gespeichert wurde, bei speichern am Desktop funktioniert es nicht, auch nicht aus einem Mail-Anhang heraus. Sollten die Makros trotz Ausführung nach Anleitung nicht funktionieren, so bitte die gelben Felder der gespeicherten Datei in Blatt 4 der APH-Erhebung kopieren. Zusätzlich ist - wie bereits in Zeile 17 erwähnt - in den Zeilen 139 und 285 anzugeben, wie viele KZP-Gäste zum jeweiligen Monatsletzten im Heim betreut wurden, sofern dies noch nicht erfolgt ist. Bitte achten Sie in den Zeilen 10 und 11 auf die korrekte Angabe der Wochenstunden!
A37: 4) Tabellenblatt "6_Kennzahlen"
A38: In diesem Tabellenblatt sind keine Eingaben zu machen. Es dient zur Darstellung von Kennzahlen, die aus den Angaben in den Blättern "1_..." bis "5_..." errechnet werden und die bereits eine erste Auswertung für die Heime liefern sollen. Um einen Vergleich bzw. eine Entwicklung darstellen zu können, werden im jeweiligen Bereich die OÖ-Durchschnittswerte aus den Ergebnissen der APH-Erhebung von 31.12.2018 bis 31.12.2024 angegeben. Die Ergebnisse aus der APH-Erhebung per 31.12.2025 finden Sie im Rahmen der Erhebung per 31.12.2026 in einer neuen Spalte in Blatt 6_.
A40: 5) Tabellenblatt "7_Definitionen" Dieses Tabellenblatt beinhaltet gesammelt wichtige Definitionen, Literatur- und Quellennachweise zum Tabellenblatt 5, welche auch in den jeweiligen Kommentaren zu finden sind. Die Themen, zu denen Definitionen zu finden sind, sind in den Tabellenblättern zusätzlich mit einem grünen Punkt markiert.
A42: 6) Frist für die Rücksendung
A43: Es wird ersucht, die vollständig ausgefüllte und plausibilisierte APH-Erhebung bis spätestens 15. Jänner 2026 gesammelt durch den regionalen Träger Sozialer Hilfe ausschließlich per E-Mail an die Abteilung Soziales beim Amt der Oö. Landesregierung zu retournieren.
A45: An: | C45: so.post@ooe.gv.at
A46: Betreff: | C46: <Bezeichnung des Bezirkes> - APH-Erhebung per 31122025
A47: Bezeichnung der Beilagen: | C47: <Bezeichnung des Heimes> - APH-Erhebung per 31122025
A49: Für Rückfragen wenden Sie sich bitte an: Anita Pröll, Tel. 0732 / 7720 - 14920 oder Heike Wiesinger, Tel. 0732 / 7720 - 15235
A51: 7) Pflegepersonalbedarfsberechnung 2026
A52: Für die im Jahr 2026 anfallende laufende Pflegepersonalbedarfsberechnung, die auch im Rahmen der APH-Erhebung per 31.12.2026 abgefragt werden wird, wird das zusätzliche Datenblatt Pflegepersonalbedarf_2026.xlsx auf der Homepage unter dem in Zeile 8 angeführten Link bereitgestellt. Um eine rückwirkende Erfassung zu vermeiden, sollte dieses Datenblatt laufend monatlich mit den Daten des jeweils Monatsletzten 2026 befüllt werden. Auf Wunsch der Sozialhilfeverbände können im Jahr 2026 das Verblistern von Medikamenten durch Externe sowie die ausbezahlten Mehr- bzw. Überstunden in Form von fiktiven PE bei der jeweiligen Berufsgruppe im Pflegepersonalbedarfsberechnungsblatt dargestellt und somit angerechnet werden. Während die Mehr-/Überstunden in Form von fiktiven PE bei jeder Berufsgruppe individuell in den bestehenden Zellen ergänzt werden können, wurden für die Verblisterung je Halbjahr 2 Zeilen eingefügt – einerseits pauschal für die Berufsgruppen DGKP sowie PFA und andererseits pauschal für die Berufsgruppen FSB A, FSB BA, DSB A, DSB BA, DSB F sowie PA. Die Entscheidung über diese Vorgehensweise obliegt ausschließlich dem zuständigen Regionalen Träger Sozialer Hilfe.
A53: Ende Juni 2026 wird wieder eine Halbjahreserhebung zum Pflegepersonalbedarf in allen oö. Alten- und Pflegeheimen erfolgen. Dazu wird auch dieses Formular verwendet.

Sheet 1_allg. Strukturdaten
A2: ERHEBUNG IN DEN OÖ. ALTEN- UND PFLEGEHEIMEN (Strukturdaten)
D3: ='0_Einleitung'!$E$2 -> zum Stichtag | F3: ='0_Einleitung'!$G$2 -> 2025-12-31
A4: =IF(P63>0,"Tabellenblatt nicht vollständig oder korrekt ausgefüllt! Bitte Eingaben prüfen!","") -> Tabellenblatt nicht vollständig oder korrekt ausgefüllt! Bitte Eingaben prüfen! | L4: =IF(A4="","Sie haben dieses Tabellenblatt vollständig ausgefüllt - Vielen Dank!","") -> 
A5: Stammdaten | C5: =$D$3 -> zum Stichtag | D5: =$F$3 -> 2025-12-31
P6: =IF(M6="","","x") -> 
A7: Einrichtung (Bitte in Drop-Down-Liste auswählen) | D7: Bitte auswählen… | G7: sortiert nach Bezirk | M7: =IF(OR(D7="",D7="Bitte auswählen…")=FALSE,"","Eingabe unvollständig") -> Eingabe unvollständig | P7: x
A8: Adresse | D8: =VLOOKUP(Datenblatt!J6,'1_allg. Strukturdaten'!$B$74:$S$207,14,FALSE) ->  | M8: =IF(D8="","Eingabe unvollständig","") -> 
A9: Telefonnummer | D9: =VLOOKUP(Datenblatt!J6,'1_allg. Strukturdaten'!$B$74:$S$207,15,FALSE) ->  | M9: =IF(D9="","Eingabe unvollständig","") -> 
A10: E-Mail | D10: =VLOOKUP(Datenblatt!J6,'1_allg. Strukturdaten'!$B$74:$S$207,16,FALSE) ->  | F10: Homepage | G10: =VLOOKUP(Datenblatt!J6,'1_allg. Strukturdaten'!$B$74:$R$207,17,FALSE) ->  | M10: =IF(OR(D10="",G10="")=TRUE,"Eingabe unvollständig","") -> 
A12: Ansprechperson für diesen Fragebogen
A13: Name | M13: =IF(D13="","Eingabe unvollständig","") -> Eingabe unvollständig | P13: x
A14: Telefonnummer | G14: E-Mail | M14: =IF(OR(D14="",H14="")=TRUE,"Eingabe unvollständig","") -> Eingabe unvollständig | P14: x
A16: Leitung | E16: Heimleitung | G16: Leitung des Betreuungs- und Pflegedienstes
A17: Name | M17: =IF(OR(D17="",G17="")=TRUE,"Eingabe unvollständig","") -> Eingabe unvollständig | P17: x
A18: Ausbildung nach Oö. HVO abgeschlossen | M18: =IF(OR(E18="",H18="")=TRUE,"Eingabe unvollständig","") -> Eingabe unvollständig | P18: x
A19: wenn nein, wann erfolgt voraussichtlich der Abschluss | M19: =IF(AND(E18="Nein",E19=""),"Eingabe unvollständig",IF(AND(H18="Nein",H19=""),"Eingabe unvollständig","")) -> 
A22: Qualitätsmanagement | C22: =$D$3 -> zum Stichtag | D22: =$F$3 -> 2025-12-31 | K22: =IF(I22="","","x") -> 
K23: =IF(I23="","","x") -> 
A24: Ist im Heim eines der folgenden Qualitätsmanagementsysteme im Einsatz bzw. in Planung? | F24: E-Qalin | G24: QAP-C | H24: EFQM | I24: anderes QM-System | M24: =IF(AND(I25="im Einsatz",I26=""),"Bitte System angeben!","")&IF(AND(I25="in Planung",I26=""),"Bitte System angeben!","") -> 
M25: =IF(AND(F25="im Einsatz",OR(G25="im Einsatz",H25="im Einsatz",I25="im Einsatz")),"Eingabe nicht plausibel",IF(OR(F25="",G25="",H25="",I25=""),"Eingabe unvollständig",""))&IF(AND(F25="in Planung",OR(G25="in Planung",H25="in Planung",I25="in Planung")),"Eingabe nicht plausibel","") -> Eingabe unvollständig | P25: x
A26: Datum der letzten Selbstbewertung | H26: Welches andere QM-System? | M26: =IF(AND(OR(F25="im Einsatz",G25="im Einsatz",I25="im Einsatz"),C26=""),"Bitte Datum angeben!","") -> 
A29: Wohnstruktur und Plätze | C29: =$D$3 -> zum Stichtag | D29: =$F$3 -> 2025-12-31
A31: Wieviele Plätze stehen im Heim maximal zur Verfügung? | E31: =VLOOKUP(Datenblatt!J6,'1_allg. Strukturdaten'!$B$74:$S$207,18,FALSE) ->  | M31: =IF(SUM(E32:E34)<>E31,"Die Angaben zu den verfügbaren Plätzen in den Blättern 1a und 1b stimmen nicht mit den maximal verfügbaren Plätze überein!","") -> 
A32: davon maximale Plätze in 2-Personen-Wohneinheiten | E32: ='1a_Langzeitpflege'!H8+'1b_Kurzzeitpflege'!G9 -> 0 | F32: Plätze
A33: Oase (Mehr-Personen-Wohneinheit mit speziellem Konzept) | E33: ='1a_Langzeitpflege'!H9 -> 0 | F33: Plätze
A34: und in 1-Personen-Wohneinheiten | E34: ='1a_Langzeitpflege'!H7+'1b_Kurzzeitpflege'!G8 -> 0 | F34: Plätze
A36: Wie viele Wohnbereiche gibt es im Heim? | F36: Gibt es geschoßübergreifende Wohnbereiche? | M36: =IF(OR(D36="",I36=""),"Eingabe unvollständig","") -> Eingabe unvollständig | P36: =IF(M36="","","x") -> x
M37: =IF(D38<D36,"Der Wert in D38 kann nicht kleiner sein als der Wert in D36!","") -> 
A38: Wie viele Wohngruppen gibt es im Heim? | M38: =IF(D38="","Eingabe unvollständig","") -> Eingabe unvollständig | P38: x
A40: Wie viele Wohngruppen davon sind ausschließlich für Menschen mit Demenz? | M40: =IF(E40="","Eingabe unvollständig","") -> Eingabe unvollständig | P40: =IF(M40="","","x") -> x
P41: =IF(M41="","","x") -> 
A43: freie Plätze | C43: ='1_allg. Strukturdaten'!$D$3 -> zum Stichtag | D43: ='1_allg. Strukturdaten'!$F$3 -> 2025-12-31
C44: Für die Prüfung ist eine Eingabe in 1a_ und 1b_ notwendig.
A45: Am Stichtag wohnen | C45: ='1a_Langzeitpflege'!L24+'1b_Kurzzeitpflege'!L47 -> 0 | D45: Heimbewohner:innen im Heim (LZP und KZP) | M45: =IF(M47="Fehler! F47 kann nicht größer als C47 sein!","Fehlermeldungen in Spalte M erlöschen nach Eingabe in 1a_ und 1b_","") -> 
A47: Zum Stichtag stehen im Heim | C47: =E31-C45 ->  | D47: Plätze leer, davon sind aber bereits | G47: Plätze verplant. | M47: =IF(F47="","Eingabe unvollständig",IF(F47>C47,"Fehler! F47 kann nicht größer als C47 sein!","")) -> Eingabe unvollständig | P47: x
A49: Von den restlichen | C49: =C47-F47 ->  | D49: leer stehenden Plätzen waren | G49: noch nie vergeben, | M49: =IF(AND(C47=F47,F49=""),"bitte 0 eintragen",IF(F49="","Eingabe unvollständig",IF(F49>C49,"F49 kann nicht größer sein als C49",""))) -> 
G50: Plätze wegen Pflegepersonalmangel nicht vergeben und | M50: =IF(AND(C47=F47,F50=""),"bitte 0 eintragen",IF(F50="","Eingabe unvollständig",IF((F49+F50)>C49,"Summe F49+F50 kann nicht größer sein als C49",""))) -> 
B51: =C49-F49-F50 ->  | C51: Plätze wegen | G51: nicht vergeben. | M51: =IF(AND(C47=F47,D51=""),"",IF(AND(B51<>0,D51=""),"bitte Grund angeben",IF((F49+F50+B51)>C49,"Summe F49+F50+B51 kann nicht größer sein als C49",""))) -> 
A53: Besteht am Stichtag ein heiminterner Aufnahmestopp? | M53: =IF(E53="","Eingabe unvollständig","") -> Eingabe unvollständig | P53: x
A56: Nachtdienst | K56: =IF(I56="","","x") -> 
K57: =IF(I57="","","x") -> 
A58: Anzahl der zur gleichen Zeit für den wachenden Nachtdienst eingeteilten Personen | M58: =IF(G58="","Eingabe unvollständig","") -> Eingabe unvollständig | P58: x
A59: Gab es für jene Nächte, in denen weder DGKP noch PFA im Nachtdienst eingeteilt waren, eine Rufbereitschaft mit DGKP oder PFA (im Bezirk)? | M59: =IF(I59="","Eingabe unvollständig","") -> Eingabe unvollständig | P59: x
A60: Gibt es im Heim einen Spätdienst (Tagdienst bis mind. 20 Uhr)? | M60: =IF(G60="","Eingabe unvollständig","") -> Eingabe unvollständig | P60: x
A61: Wenn ja: Bis wann (Uhrzeit) bzw. mit welcher Qualifikation? | F61: Uhrzeit | H61: Qualifikation | M61: =IF(G60="Ja",IF(OR(G61="",I61=""),"Eingabe unvollständig",""),"") ->  | P61: =IF(M61="","","x") -> 
K63: =IF(I63="","","x") ->  | P63: =COUNTIF(P7:P60,"x") -> 14
B68: Auswahltabelle:
C69: Code neu | D69: Trägergruppe | E69: Bezirk | F69: Region | G69: Planungsraum | H69: Größengruppe | I69: PDL-Statistik | J69: Gemeinde Kennzahl | K69: Gemeinde | L69: Kurzbezeichnung | M69: Name des Heimes | N69: HB LZP Vorjahr | O69: Adresse | P69: Telefon | Q69: E-Mail | R69: Homepage | S69: max. verfügbare Plätze
A71: Spalte | B71: 1 | C71: 2 | D71: 3 | E71: 4 | F71: 5 | G71: 6 | H71: 7 | I71: 8 | J71: 9 | K71: 10 | L71: 11 | M71: 12 | N71: 13 | O71: 14 | P71: 15 | Q71: 16 | R71: 17 | S71: 18
J72: Standortgemeinde | L72: Kurzbezeichnung | M72: Name des Heimes
B73: =L73 -> Bitte auswählen… | L73: Bitte auswählen… | T73: Größengruppen
A74: 1 | B74: =L74 -> SZ Spallerhof | C74: 010101 | D74: 2 | E74: =VALUE(MID(C74,1,2)) -> 1 | F74: =IF(OR(E74=6,E74=11,E74=13,E74=16),1,IF(OR(E74=4,E74=14,E74=8,E74=12),2,IF(OR(E74=1,E74=3,E74=18,E74=5,E74=10),3,IF(OR(E74=2,E74=15,E74=7,E74=17,E74=9),4)))) -> 3 | G74: =IF(OR(E74=1,E74=10),1,IF(OR(E74=5,E74=8,E74=3,E74=18),2,IF(OR(E74=2,E74=15,E74=9),3,IF(OR(E74=7,E74=17),4,IF(OR(E74=4,E74=14,E74=12),5,IF(OR(E74=6,E74=11),8,IF(E74=13,6,IF(E74=16,7,)))))))) -> 1 | H74: =IF($E$31<60,"S",IF($E$31<90,"M",IF($E$31<120,"L","XL"))) ->  | I74: 1 | J74: 40101 | K74: Linz | L74: SZ Spallerhof | M74: Seniorenzentrum Spallerhof | N74: 221 | O74: 4030 Linz, Glimpfingerstraße 10-12 | P74: 0732/3400-0 | Q74: szl.szs@szl.linz.at | R74: www.seniorenzentren.linz.at | S74: 245 | T74: S | U74: bis 59 max. verfügbare Plätze
A75: 2 | B75: SZ Kleinmünchen | C75: 010102 | D75: 2 | E75: 1 | F75: 3 | G75: 1 | H75: =IF($E$31<60,"S",IF($E$31<90,"M",IF($E$31<120,"L","XL"))) ->  | I75: 1 | J75: 40101 | K75: Linz | L75: SZ Kleinmünchen | M75: Seniorenzentrum Kleinmünchen | N75: 119 | O75: 4030 Linz, Dauphinestraße 94 | P75: 0732/3408-30501 | Q75: szl.szk@szl.linz.at | R75: www.seniorenzentren.linz.at | S75: 128 | T75: M | U75: 60-89
A76: 3 | B76: SZ Franz Hillinger | C76: 010103 | D76: 2 | E76: 1 | F76: 3 | G76: 1 | I76: 1 | J76: 40101 | K76: Linz | L76: SZ Franz Hillinger | M76: Seniorenzentrum Franz Hillinger | N76: 127 | O76: 4040 Linz, Kaarstraße 15-17 | P76: 0732/3408-20501 | Q76: szl.szh@szl.linz.at | R76: www.seniorenzentren.linz.at | S76: 130 | T76: L | U76: 90-119
A77: 4 | B77: SZ Franckviertel | C77: 010104 | D77: 2 | E77: 1 | F77: 3 | G77: 1 | I77: 1 | J77: 40101 | K77: Linz | L77: SZ Franckviertel | M77: Seniorenzentrum Franckviertel | N77: 116 | O77: 4020 Linz, Ing. Stern-Straße 15-17 | P77: 0732/3408-40500 | Q77: szl.szf@szl.linz.at | R77: www.seniorenzentren.linz.at | S77: 120 | T77: XL | U77: 120 und mehr
A78: 5 | B78: SZ Dornach/Auhof | C78: 010105 | D78: 2 | E78: 1 | F78: 3 | G78: 1 | I78: 1 | J78: 40101 | K78: Linz | L78: SZ Dornach/Auhof | M78: Seniorenzentrum Dornach/Auhof | N78: 113 | O78: 4040 Linz, Sombartstraße 1-5 | P78: 0732/3408-25500 | Q78: szl.szd@szl.linz.at | R78: www.seniorenzentren.linz.at | S78: 120
A79: 6 | B79: SZ Neue Heimat | C79: 010106 | D79: 2 | E79: 1 | F79: 3 | G79: 1 | I79: 1 | J79: 40101 | K79: Linz | L79: SZ Neue Heimat | M79: Seniorenzentrum Neue Heimat | N79: 110 | O79: 4030 Linz, Flötzerweg 95-97 | P79: 0732/3408-60500 | Q79: szl.szn@szl.linz.at | R79: www.seniorenzentren.linz.at | S79: 126
A80: 7 | B80: SZ Keferfeld/Oed | C80: 010107 | D80: 2 | E80: 1 | F80: 3 | G80: 1 | I80: 1 | J80: 40101 | K80: Linz | L80: SZ Keferfeld/Oed | M80: Seniorenzentrum Keferfeld/Oed | N80: 85 | O80: 4020 Linz, Meggauerstraße 1-3 | P80: 0732/3408 | Q80: szl.szo@szl.linz.at | R80: www.seniorenzentren.linz.at | S80: 87
A81: 8 | B81: SZ Ebelsberg | C81: 010108 | D81: 2 | E81: 1 | F81: 3 | G81: 1 | I81: 1 | J81: 40101 | K81: Linz | L81: SZ Ebelsberg | M81: Seniorenzentrum Ebelsberg | N81: 28 | O81: 4030 Linz, Sennweg 4 | P81: 0732/3408 | Q81: szl.szp@szl.linz.at | R81: www.seniorenzentren.linz.at | S81: 28
A82: 9 | B82: SZ Pichling | C82: 010109 | D82: 2 | E82: 1 | F82: 3 | G82: 1 | I82: 1 | J82: 40101 | K82: Linz | L82: SZ Pichling | M82: Seniorenzentrum Pichling | N82: 63 | O82: 4030 Linz, Falterweg 25 | P82: 0732/3408 | Q82: szl.szp@szl.linz.at | R82: www.seniorenzentren.linz.at | S82: 64
A83: 10 | B83: SZ Liebigstraße | C83: 010110 | D83: 2 | E83: 1 | F83: 3 | G83: 1 | I83: 1 | J83: 40101 | K83: Linz | L83: SZ Liebigstraße | M83: Seniorenzentrum Liebigstraße | N83: 109 | O83: 4020 Linz, Liebigstraße 26 | P83: 0732/3408-50500 | Q83: szl.szli@szl.linz.at | R83: www.seniorenzentren.linz.at | S83: 120
A84: 11 | B84: Rudigier Linz | C84: 014201 | D84: 4 | E84: 1 | F84: 3 | G84: 1 | I84: 42 | J84: 40101 | K84: Linz | L84: Rudigier Linz | M84: Rudigier Wohnen mit Pflege Linz | N84: 99 | O84: 4020 Linz, Stockhofstraße 6 | P84: 0732/664871-2261 | Q84: rudigier@linz.kreuzschwestern.at | R84: https://wohnen-mit-pflege.kreuzschwestern.at | S84: 100
A85: 12 | B85: SH Franziskusschwestern, Linz | C85: 014601 | D85: 4 | E85: 1 | F85: 3 | G85: 1 | I85: 46 | J85: 40101 | K85: Linz | L85: SH Franziskusschwestern, Linz | M85: Seniorenheim Franziskusschwestern | N85: 120 | O85: 4020 Linz, Losensteinerstraße 8 | P85: 0732/6795 | Q85: heim.franziskusschwestern@bblinz.at | R85: www.seniorenheim-franziskusschwestern.at | S85: 124
A86: 13 | B86: SWH Karl Borromäus, Linz | C86: 014701 | D86: 4 | E86: 1 | F86: 3 | G86: 1 | I86: 47 | J86: 40101 | K86: Linz | L86: SWH Karl Borromäus, Linz | M86: Seniorenwohnhaus Karl Borromäus | N86: 103 | O86: 4020 Linz, Bethlehemstrasse 56-58 | P86: 0732/7610-2511 | Q86: skb@caritas-ooe.at | R86: www.caritas-ooe.at | S86: 123
A87: 14 | B87: SWH St. Anna, Froschberg | C87: 014702 | D87: 4 | E87: 1 | F87: 3 | G87: 1 | I87: 47 | J87: 40101 | K87: Linz | L87: SWH St. Anna, Froschberg | M87: Seniorenwohnhaus St. Anna | N87: 86 | O87: 4020 Linz, Leondinger Str. 22 | P87: 0732/77 22 23 | Q87: st.anna@caritas-ooe.at | R87: www.caritas-oee.at | S87: 86
A88: 15 | B88: Haus für Senioren Linz | C88: 014901 | D88: 4 | E88: 1 | F88: 3 | G88: 1 | I88: 49 | J88: 40101 | K88: Linz | L88: Haus für Senioren Linz | M88: Haus für Senioren Linz | N88: 47 | O88: 4020 Linz, Körnerstr. 34 | P88: 0732774922-0 | Q88: hfs.linz@diakoniewerk.at | R88: www.diakoniewerk.at | S88: 49
A89: 16 | B89: Sonnenhof Freinberg | C89: 015001 | D89: 4 | E89: 1 | F89: 3 | G89: 1 | I89: 50 | J89: 40101 | K89: Linz | L89: Sonnenhof Freinberg | M89: Sonnenhof Freinberg | N89: 122 | O89: 4020 Linz Sonnenpromenade 50 | P89: 0732/771341 0 | Q89: sekretariat.freinberg@sonnenhof.org | R89: www.sonnenhof.org | S89: 128
A90: 17 | B90: Sonnenhof Lenaupark | C90: 015002 | D90: 4 | E90: 1 | F90: 3 | G90: 1 | I90: 50 | J90: 40101 | K90: Linz | L90: Sonnenhof Lenaupark | M90: Sonnenhof Lenaupark | N90: 124 | O90: 4020 Linz, Raimundstraße 23 | P90: 0732/69469 | Q90: sekretariat.lenaupark@sonnenhof.org | R90: www.sonnenhof.org | S90: 130
A91: 18 | B91: APH Tabor, Steyr | C91: 020201 | D91: 2 | E91: 2 | F91: 4 | G91: 3 | I91: 2 | J91: 40201 | K91: Steyr | L91: APH Tabor, Steyr | M91: Alten- und Pflegeheim Tabor | N91: 111 | O91: 4400 Steyr, G. Koller-Straße 2 | P91: 07252/81777-0 | Q91: apt.office@steyr.gv.at | R91: www.steyr.gv.at | S91: 125
A92: 19 | B92: APH Münichholz, Steyr | C92: 020202 | D92: 2 | E92: 2 | F92: 4 | G92: 3 | I92: 2 | J92: 40201 | K92: Steyr | L92: APH Münichholz, Steyr | M92: Alten- und Pflegeheim Münichholz | N92: 111 | O92: 4400 Steyr, Leharstraße 24 | P92: 07252/77333 | Q92: apm.office@steyr.gv.at | R92: www.steyr.gv.at | S92: 118
A93: 20 | B93: APH Ennsleite, Steyr | C93: 020203 | D93: 2 | E93: 2 | F93: 4 | G93: 3 | I93: 2 | J93: 40201 | K93: Steyr | L93: APH Ennsleite, Steyr | M93: Alten- und Pflegeheim Ennsleite | N93: 115 | O93: 4400 Steyr, Leopold Steinbrecherring 9a | P93: 07252/50 500 DW | Q93: ape.office@steyr.gv.at | R93: www.steyr.gv.at | S93: 130
A94: 21 | B94: Haus Leopold Spitzer | C94: 030301 | D94: 2 | E94: 3 | F94: 3 | G94: 2 | I94: 3 | J94: 40301 | K94: Wels | L94: Haus Leopold Spitzer | M94: Haus Leopold Spitzer | N94: 62 | O94: 4600 Wels, Hans-Sachs-Straße 22 | P94: 07242/417-7001 | Q94: senbls@wels.gv.at | R94: www.wels.gv.at | S94: 72
A95: 22 | B95: Haus Neustadt | C95: 030302 | D95: 2 | E95: 3 | F95: 3 | G95: 2 | I95: 3 | J95: 40301 | K95: Wels | L95: Haus Neustadt | M95: Haus Neustadt | N95: 96 | O95: 4600 Wels, Flurgasse 40 | P95: 07242/417-4901 | Q95: senbn@wels.gv.at | R95: www.wels.gv.at | S95: 130
A96: 23 | B96: Haus Vogelweide-Laahen | C96: 030303 | D96: 2 | E96: 3 | F96: 3 | G96: 2 | I96: 3 | J96: 40301 | K96: Wels | L96: Haus Vogelweide-Laahen | M96: Haus Vogelweide-Laahen | N96: 80 | O96: 4600 Wels, Oberfeldstraße 52 | P96: 07242/417-5000 | Q96: senbv@ wels.gv.at | R96: www.wels.gv.at | S96: 128
A97: 24 | B97: Haus Noitzmühle | C97: 030304 | D97: 2 | E97: 3 | F97: 3 | G97: 2 | I97: 3 | J97: 40301 | K97: Wels | L97: Haus Noitzmühle | M97: Haus Noitzmühle | N97: 63 | O97: 4600 Wels, Föhrenstraße 19 | P97: 07242/417-6000 | Q97: senbNO@wels.gv.at | R97: www.wels.gv.at | S97: 72
A98: 25 | B98: Bruderliebe Wels | C98: 034202 | D98: 4 | E98: 3 | F98: 3 | G98: 2 | I98: 42 | J98: 40301 | K98: Wels | L98: Bruderliebe Wels | M98: Bruderliebe Wohnen mit Pflege Wels | N98: 84 | O98: 4600 Wels, Herrengasse 12 | P98: 07242/46 254 | Q98: bewohnerservice@bruderliebe.kreuzschwestern.at | R98: www.wohnen-mit-pflege.kreuzschwestern.at | S98: 84
A99: 26 | B99: Haus für Senioren Wels | C99: 034902 | D99: 4 | E99: 3 | F99: 3 | G99: 2 | I99: 49 | J99: 40301 | K99: Wels | L99: Haus für Senioren Wels | M99: Haus für Senioren Wels | N99: 75 | O99: 4600 Wels, Dr. Schauer-Str. 5 | P99: 07242/46163 | Q99: seniorenarbeit.wels@diakoniewerk.at | R99: www.diakoniewerk.at | S99: 76
A100: 27 | B100: BSZ Altheim | C100: 040401 | D100: 1 | E100: 4 | F100: 2 | G100: 5 | I100: 4 | J100: 40401 | K100: Altheim | L100: BSZ Altheim | M100: Bezirksseniorenzentrum Altheim | N100: 59 | O100: 4950 Altheim, Rosenweg 19 | P100: 07723/42352-0 | Q100: sh-altheim.post@shvbr.at | R100: www.shvbr.at | S100: 66
A101: 28 | B101: BSZ Mattighofen | C101: 040402 | D101: 1 | E101: 4 | F101: 2 | G101: 5 | I101: 4 | J101: 40421 | K101: Mattighofen | L101: BSZ Mattighofen | M101: Bezirksseniorenzentrum Mattighofen | N101: 77 | O101: 5230, Mattighofen, Robert-Stolz-Straße 14 | P101: 07742/5501 | Q101: sh-mattighofen.post@shvbr.at | R101: www.shvbr.at | S101: 102
A102: 29 | B102: BSZ Ostermiething | C102: 040403 | D102: 1 | E102: 4 | F102: 2 | G102: 5 | I102: 4 | J102: 40428 | K102: Ostermiething | L102: BSZ Ostermiething | M102: Bezirksseniorenzentrum Ostermiething | N102: 54 | O102: 5121 Ostermiething, Weilhartstr. 59 | P102: 06278/ 6222 | Q102: sh-ostermiething.post@shvbr.at | R102: www.shvbr.at | S102: 99
A103: 30 | B103: BSZ Braunau | C103: 040404 | D103: 1 | E103: 4 | F103: 2 | G103: 5 | I103: 4 | J103: 40404 | K103: Braunau | L103: BSZ Braunau | M103: Bezirksseniorenzentrum Braunau | N103: 172 | O103: 5280 Braunau am Inn, Haselbacher Gehweg 9 | P103: 07722/629 02 | Q103: sh-braunau.post@shvbr.at | R103: www.shvbr.at | S103: 190
A104: 31 | B104: BSZ Eggelsberg | C104: 040405 | D104: 1 | E104: 4 | F104: 2 | G104: 5 | I104: 4 | J104: 40406 | K104: Eggelsberg | L104: BSZ Eggelsberg | M104: Bezirksseniorenzentrum Eggelsberg | N104: 48 | O104: 5142 Eggelsberg, Weidenweg 1 | P104: 07748/32-777 | Q104: sh-eggelsberg.post@shvbr.at | R104: www.shvbr.at | S104: 80
A105: 32 | B105: FraDomo Maria Schmolln | C105: 044001 | D105: 4 | E105: 4 | F105: 2 | G105: 5 | I105: 40 | J105: 40420 | K105: Maria Schmolln | L105: FraDomo Maria Schmolln | M105: FraDomo Maria Schmolln - Wohnen, Begleitung & Pflege | N105: 79 | O105: 5241 Maria Schmolln, 16 | P105: 07743/2204 | Q105: office.mariaschmolln@fradomo.at | R105: www.mariarast.at | S105: 80
A106: 33 | B106: =L106 -> Haus für Senioren Mauerkirchen | C106: 044903 | D106: 4 | E106: =VALUE(MID(C106,1,2)) -> 4 | F106: =IF(OR(E106=6,E106=11,E106=13,E106=16),1,IF(OR(E106=4,E106=14,E106=8,E106=12),2,IF(OR(E106=1,E106=3,E106=18,E106=5,E106=10),3,IF(OR(E106=2,E106=15,E106=7,E106=17,E106=9),4)))) -> 2 | G106: =IF(OR(E106=1,E106=10),1,IF(OR(E106=5,E106=8,E106=3,E106=18),2,IF(OR(E106=2,E106=15,E106=9),3,IF(OR(E106=7,E106=17),4,IF(OR(E106=4,E106=14,E106=12),5,IF(OR(E106=6,E106=11),8,IF(E106=13,6,IF(E106=16,7,)))))))) -> 5 | I106: 49 | J106: 40422 | K106: Mauerkirchen | L106: Haus für Senioren Mauerkirchen | M106: Haus für Senioren Mauerkirchen | N106: 80 | O106: 5270 Mauerkirchen, Bahnhofstraße 49 | P106: 07724/5048 | Q106: seniorenarbeit.braunau@diakoniewerk.at | R106: www.diakoniewerk.at | S106: 80
A107: 34 | B107: BAPH Eferding | C107: 050501 | D107: 1 | E107: 5 | F107: 3 | G107: 2 | I107: 5 | J107: 40503 | K107: Eferding | L107: BAPH Eferding | M107: Bezirksalten- und Pflegeheim Eferding | N107: 101 | O107: 4070 Eferding, Bräuhausstraße 7 | P107: 07272/75982 | Q107: baph-eferding.post@shvef.at | R107: www.shv-gr-ef.at | S107: 122
A108: 35 | B108: BAPH Hartkirchen | C108: 050502 | D108: 1 | E108: 5 | F108: 3 | G108: 2 | I108: 5 | J108: 40506 | K108: Hartkirchen | L108: BAPH Hartkirchen | M108: Bezirksalten- und Pflegeheim Hartkirchen | N108: 48 | O108: 4081 Hartkirchen, Achleitnerstraße 1 | P108: 07273/60024-300 | Q108: baph-hartkirchen.post@shvef.at | R108: www.shv-gr-ef.at | S108: 74
A109: 36 | B109: BSH Freistadt | C109: 060601 | D109: 1 | E109: 6 | F109: 1 | G109: 8 | I109: 6 | J109: 40601 | K109: Freistadt | L109: BSH Freistadt | M109: Bezirksseniorenheim Freistadt | N109: 99 | O109: 4240 Freistadt, Kaspar-Schwarz-Straße 22 | P109: 07942/75711-3000 | Q109: bsh-freistadt.post@shvfr.at | R109: www.shvfr.at | S109: 120
A110: 37 | B110: BSH Lasberg | C110: 060602 | D110: 1 | E110: 6 | F110: 1 | G110: 8 | I110: 6 | J110: 40609 | K110: Lasberg | L110: BSH Lasberg | M110: Bezirksseniorenheim Lasberg | N110: 73 | O110: 4291 Lasberg, Oswalderstraße 19 | P110: 07947/20680-0 | Q110: bsh-lasberg.post@shvfr.at | R110: www.shvfr.at | S110: 77
A111: 38 | B111: BSH Pregarten | C111: 060603 | D111: 1 | E111: 6 | F111: 1 | G111: 8 | I111: 6 | J111: 40614 | K111: Pregarten | L111: BSH Pregarten | M111: Bezirksseniorenheim Pregarten | N111: 71 | O111: 4230 Pregarten, Bindergasse 6 | P111: 07236/6495 | Q111: bsh-pregarten.post@shvfr.at | R111: www.shvfr.at | S111: 78
A112: 39 | B112: BSH Unterweißenbach | C112: 060604 | D112: 1 | E112: 6 | F112: 1 | G112: 8 | I112: 6 | J112: 40621 | K112: Unterweißenbach | L112: BSH Unterweißenbach | M112: Bezirksseniorenheim Unterweißenbach | N112: 71 | O112: 4273 Unterweißenbach, Markt 3 | P112: 07956/20545 | Q112: bsh-unterweissenbach.post@shvfr.at | R112: www.shvfr.at | S112: 75
A113: 40 | B113: FraDomo Rainbach | C113: 064002 | D113: 4 | E113: 6 | F113: 1 | G113: 8 | I113: 40 | J113: 40615 | K113: Rainbach | L113: FraDomo Rainbach | M113: FraDomo Rainbach - Wohnen, Begleitung & Pflege | N113: 74 | O113: 4261 Rainbach, Summerauerstraße 9 | P113: 07949/6791 | Q113: office.rainbach@fradomo.at | R113: https://seniorenhaeuser.at/st-elisabeth | S113: 84
A114: 41 | B114: Haus für Senioren Bad Zell | C114: 064904 | D114: 4 | E114: 6 | F114: 1 | G114: 8 | I114: 49 | J114: 40627 | K114: Bad Zell | L114: Haus für Senioren Bad Zell | M114: Haus für Senioren Bad Zell | N114: 42 | O114: 4283 Bad Zell, Sonnenweg 1 | P114: 07263/20062 61 | Q114: seniorenarbeit.freistadt@diakoniewerk.at | R114: www.diakoniewerk.at | S114: 50
A115: 42 | B115: BSH Scharnstein | C115: 070701 | D115: 1 | E115: 7 | F115: 4 | G115: 4 | I115: 7 | J115: 40719 | K115: Scharnstein | L115: BSH Scharnstein | M115: Bezirksseniorenheim Scharnstein | N115: 61 | O115: 4644 Scharnstein, Altenheimstraße 2 | P115: 07615/7251 | Q115: bsh-scharnstein.post@shvgm.at | R115: www.shvgm.at/seniorenheime/scharnstein | S115: 78
A116: 43 | B116: BSH Sarsteinerstiftung, Bad Ischl | C116: 070702 | D116: 1 | E116: 7 | F116: 4 | G116: 4 | I116: 7 | J116: 40703 | K116: Bad Ischl | L116: BSH Sarsteinerstiftung, Bad Ischl | M116: Bezirksseniorenheim Sarsteinerstiftung, Bad Ischl | N116: 82 | O116: 4820 Bad Ischl, Maria Theresien-Weg 5 | P116: 06132/23822 | Q116: bsh-sarsteinerstiftung.post@shvgm.at | R116: www.shvgm.at | S116: 100
A117: 44 | B117: BSH Bad Ischl | C117: 070703 | D117: 1 | E117: 7 | F117: 4 | G117: 4 | I117: 7 | J117: 40703 | K117: Bad Ischl | L117: BSH Bad Ischl | M117: Bezirksseniorenheim Bad Ischl | N117: 78 | O117: 4820 Bad Ischl, Maxquellgasse 2e | P117: 06132/25402 | Q117: bsh-badischl.post@shvgm.at | R117: www.shvgm.at | S117: 122
A118: 45 | B118: BSH Weinberghof, Gmunden | C118: 070704 | D118: 1 | E118: 7 | F118: 4 | G118: 4 | I118: 7 | J118: 40705 | K118: Gmunden | L118: BSH Weinberghof, Gmunden | M118: Bezirksseniorenheim Weinberghof, Gmunden | N118: 108 | O118: 4810 Gmunden, Georgstraße 30 | P118: 07612/769670 | Q118: bsh-weinberghof.post@shvgm.at | R118: www.shvgm.at | S118: 138
A119: 46 | B119: =L119 -> BSH Vorchdorf | C119: 070705 | D119: 1 | E119: =VALUE(MID(C119,1,2)) -> 7 | F119: =IF(OR(E119=6,E119=11,E119=13,E119=16),1,IF(OR(E119=4,E119=14,E119=8,E119=12),2,IF(OR(E119=1,E119=3,E119=18,E119=5,E119=10),3,IF(OR(E119=2,E119=15,E119=7,E119=17,E119=9),4)))) -> 4 | G119: =IF(OR(E119=1,E119=10),1,IF(OR(E119=5,E119=8,E119=3,E119=18),2,IF(OR(E119=2,E119=15,E119=9),3,IF(OR(E119=7,E119=17),4,IF(OR(E119=4,E119=14,E119=12),5,IF(OR(E119=6,E119=11),8,IF(E119=13,6,IF(E119=16,7,)))))))) -> 4 | I119: 7 | J119: 40720 | K119: Vorchdorf | L119: BSH Vorchdorf | M119: Bezirksseniorenheim Vorchdorf | N119: 54 | O119: 4655 Vorchdorf, Lambacher Straße 23 | P119: 07614/8241 | Q119: bsh-vorchdorf.post@shvgm.at | R119: www.shvgm.at | S119: 84
A120: 47 | B120: BSH Ebensee | C120: 070706 | D120: 1 | E120: 7 | F120: 4 | G120: 4 | I120: 7 | J120: 40704 | K120: Ebensee | L120: BSH Ebensee | M120: Bezirksseniorenheim Ebensee | N120: 66 | O120: 4802 Ebensee, Alte Saline 3 | P120: 06133/200 21 0 | Q120: bsh-ebensee.post@shvgm.at | R120: www.shvgm.at | S120: 93
A121: 48 | B121: =L121 -> BSH Laakirchen | C121: 070707 | D121: 1 | E121: =VALUE(MID(C121,1,2)) -> 7 | F121: =IF(OR(E121=6,E121=11,E121=13,E121=16),1,IF(OR(E121=4,E121=14,E121=8,E121=12),2,IF(OR(E121=1,E121=3,E121=18,E121=5,E121=10),3,IF(OR(E121=2,E121=15,E121=7,E121=17,E121=9),4)))) -> 4 | G121: =IF(OR(E121=1,E121=10),1,IF(OR(E121=5,E121=8,E121=3,E121=18),2,IF(OR(E121=2,E121=15,E121=9),3,IF(OR(E121=7,E121=17),4,IF(OR(E121=4,E121=14,E121=12),5,IF(OR(E121=6,E121=11),8,IF(E121=13,6,IF(E121=16,7,)))))))) -> 4 | I121: 7 | J121: 40711 | K121: Laakirchen | L121: BSH Laakirchen | M121: Bezirksseniorenheim Laakirchen | N121: 62 | O121: 4663 Laakirchen, Wolfstraße 3 | P121: 07613/2355 - 0 | Q121: bsh-laakirchen.post@shvgm.at | R121: www.shvgm.at | S121: 96
A122: 49 | B122: AWH Altmünster | C122: 072401 | D122: 3 | E122: 7 | F122: 4 | G122: 4 | I122: 24 | J122: 40701 | K122: Altmünster | L122: AWH Altmünster | M122: Altenwohnheim Altmünster | N122: 62 | O122: 4813 Altmünster, Harstubenweg 2 | P122: 07612/87591 | Q122: heimleitung.altenheim@altmuenster.ooe.gv.at | R122: www.altenwohnheim-altmuenster.at | S122: 92
A123: 50 | B123: Evang. APH Bad Goisern | C123: 074101 | D123: 4 | E123: 7 | F123: 4 | G123: 4 | I123: 41 | J123: 40702 | K123: Bad Goisern | L123: Evang. APH Bad Goisern | M123: Evang. Alten- und Pflegeheim Bad Goisern | N123: 92 | O123: 4822 Bad Goisern, Bahnhofstraße 1 | P123: 06135/8379 | Q123: office@altenheim-goisern.at | R123: www.altenheim-goisern.at | S123: 96
A124: 51 | B124: Haus St. Josef Gmunden | C124: 074401 | D124: 4 | E124: 7 | F124: 4 | G124: 4 | I124: 44 | J124: 40705 | K124: Gmunden | L124: Haus St. Josef Gmunden | M124: Haus St. Josef Gmunden | N124: 85 | O124: 4810 Gmunden, Herakhstraße 2 | P124: 07612/64195 | Q124: gmunden@stiftung-liebenau.at | R124: www.stiftung-liebenau.at | S124: 94
A125: 52 | B125: Brigittaheim Gosau | C125: 074501 | D125: 4 | E125: 7 | F125: 4 | G125: 4 | I125: 45 | J125: 40706 | K125: Gosau | L125: Brigittaheim Gosau | M125: Brigittaheim Gosau | N125: 34 | O125: 4824 Gosau, Brigitta Wallner-Weg 1 | P125: 06136/8110 | Q125: office@brigittaheim.at | R125: www.brigittaheim.at | S125: 37
A126: 53 | B126: BAPH Gaspoltshofen | C126: 080801 | D126: 1 | E126: 8 | F126: 2 | G126: 2 | I126: 8 | J126: 40806 | K126: Gaspoltshofen | L126: BAPH Gaspoltshofen | M126: Bezirksalten- und Pflegeheim Gaspoltshofen | N126: 87 | O126: 4673 Gaspoltshofen, Bahnhofweg 2 | P126: 07735/6561-0 | Q126: baph-gaspoltshofen@shvgr.at | R126: www.shv-gr-ef.at | S126: 116
A127: 54 | B127: BAPH Grieskirchen | C127: 080802 | D127: 1 | E127: 8 | F127: 2 | G127: 2 | I127: 8 | J127: 40808 | K127: Grieskirchen | L127: BAPH Grieskirchen | M127: Bezirksalten- und Pflegeheim Grieskirchen | N127: 83 | O127: 4710 Grieskirchen, Wagnleithnerstraße 36 | P127: 07248/62742 | Q127: baph-grieskirchen@shvgr.at | R127: www.shv-gr-ef.at | S127: 94
A128: 55 | B128: BAPH Peuerbach | C128: 080803 | D128: 1 | E128: 8 | F128: 2 | G128: 2 | I128: 8 | J128: 40819 | K128: Peuerbach | L128: BAPH Peuerbach | M128: Bezirksalten- und Pflegeheim Peuerbach | N128: 94 | O128: 4722 Peuerbach, Georg-von-Peuerbach-Straße 21 | P128: 07276/3111 | Q128: baph-peuerbach@shvgr.at | R128: www.shv-gr-ef.at | S128: 100
A129: 56 | B129: BAPH Kallham | C129: 080804 | D129: 1 | E129: 8 | F129: 2 | G129: 2 | I129: 8 | J129: 40812 | K129: Peuerbach | L129: BAPH Kallham | M129: Bezirksalten- und Pflegeheim Kallham | N129: 80 | O129: 4720 Kallham, Kirchenfeld 15 | P129: 07733/20798-0 | Q129: baph-kallham@shvgr.at | R129: www.shv-gr-ef.at | S129: 84
A130: 57 | B130: APH Waizenkirchen | C130: 083501 | D130: 3 | E130: 8 | F130: 2 | G130: 2 | I130: 35 | J130: 40831 | K130: Waizenkirchen | L130: APH Waizenkirchen | M130: Alten- und Pflegeheim der Marktgde. Waizenkirchen | N130: 69 | O130: 4730 Waizenkirchen, Klosterstraße 11 | P130: 07277/2224 | Q130: altenheim@waizenkirchen.ooe.gv.at | R130: www.waizenkirchen.at/Alten-_und_Pflegeheim | S130: 84
A131: 58 | B131: FraDomo Gallspach | C131: 084003 | D131: 4 | E131: 8 | F131: 2 | G131: 2 | I131: 40 | J131: 40805 | K131: Gallspach | L131: FraDomo Gallspach | M131: FraDomo Gallspach - Wohnen, Begleitung & Pflege | N131: 68 | O131: 4713 Gallspach, Schützenweg 6 | P131: 07248/684 03 | Q131: office.gallspach@fradomo.at | R131: www.seniorenhaeuser.at | S131: 87
A132: 59 | B132: APH St. Raphael Bad Schallerbach | C132: 084203 | D132: 4 | E132: 8 | F132: 2 | G132: 2 | I132: 42 | J132: 40802 | K132: Bad Schallerbach | L132: APH St. Raphael Bad Schallerbach | M132: St. Raphael Wohnen mit Pflege Bad Schallerbach | N132: 56 | O132: 4701 Bad Schallerbach, Linzer Straße 17 | P132: 07249/48400 | Q132: bewohnerservice@straphael.kreuzschwestern.at | R132: www.wohnen-mit-pflege.kreuzschwestern.at | S132: 78
A133: 60 | B133: BAPH Kirchdorf | C133: 090901 | D133: 1 | E133: 9 | F133: 4 | G133: 3 | I133: 9 | J133: 40905 | K133: Kirchdorf/Krems | L133: BAPH Kirchdorf | M133: Bezirksalten- und Pflegeheim Kirchdorf | N133: 81 | O133: 4560 Kirchdorf, Pernsteiner Straße 32 | P133: 07582/61600-0 | Q133: baph-kirchdorf.post@shvki.at | R133: www.shvki.at | S133: 123
A134: 61 | B134: BAPH Windischgarsten | C134: 090902 | D134: 1 | E134: 9 | F134: 4 | G134: 3 | I134: 9 | J134: 40923 | K134: Windischgarsten | L134: BAPH Windischgarsten | M134: Bezirksalten- und Pflegeheim Windischgarsten | N134: 75 | O134: 4580 Windischgarsten, Salzastraße 5 | P134: 07562/5422-0 | Q134: baph-windischgarsten.post@shvki.at | R134: www.shvki.at | S134: 100
A135: 62 | B135: BAPH Kremsmünster | C135: 090903 | D135: 1 | E135: 9 | F135: 4 | G135: 3 | I135: 9 | J135: 40907 | K135: Kremsmünster | L135: BAPH Kremsmünster | M135: Bezirksalten- und Pflegeheim Kremsmünster | N135: 56 | O135: 4550 Kremsmünster, Josef Assam Straße 3 | P135: 07583/5111 | Q135: baph-kremsmuenster.post@shvki.at | R135: www.shvki.at | S135: 78
A136: 63 | B136: BAPH Micheldorf | C136: 090904 | D136: 1 | E136: 9 | F136: 4 | G136: 3 | I136: 9 | J136: 40908 | K136: Micheldorf | L136: BAPH Micheldorf | M136: Bezirksalten- und Pflegeheim Micheldorf | N136: 80 | O136: 4563 Micheldorf, Heiligenkreuzer Straße 7 | P136: 07582/62600 | Q136: baph-micheldorf.post@shvki.at | R136: www.shviki.at | S136: 98
A137: 64 | B137: =L137 -> APH Grünburg | C137: 092001 | D137: 3 | E137: =VALUE(MID(C137,1,2)) -> 9 | F137: =IF(OR(E137=6,E137=11,E137=13,E137=16),1,IF(OR(E137=4,E137=14,E137=8,E137=12),2,IF(OR(E137=1,E137=3,E137=18,E137=5,E137=10),3,IF(OR(E137=2,E137=15,E137=7,E137=17,E137=9),4)))) -> 4 | G137: =IF(OR(E137=1,E137=10),1,IF(OR(E137=5,E137=8,E137=3,E137=18),2,IF(OR(E137=2,E137=15,E137=9),3,IF(OR(E137=7,E137=17),4,IF(OR(E137=4,E137=14,E137=12),5,IF(OR(E137=6,E137=11),8,IF(E137=13,6,IF(E137=16,7,)))))))) -> 3 | I137: 20 | J137: 40902 | K137: Grünburg | L137: APH Grünburg | M137: Alten- und Pflegeheim Grünburg | N137: 68 | O137: 4594 Grünburg, Messererstr. 12 | P137: 07257/7273 401 | Q137: heimleitung@altenheim-gruenburg.at | R137: www.altenheim-gruenburg.at | S137: 71
A138: 65 | B138: APH Ried im Traunkreis | C138: 092301 | D138: 3 | E138: 9 | F138: 4 | G138: 3 | I138: 23 | J138: 40913 | K138: Ried i. Traunkreis | L138: APH Ried im Traunkreis | M138: Alten- und Pflegeheim Ried im Traunkreis | N138: 72 | O138: 4551 Ried im Traunkreis, Hauptstraße 42 | P138: 07588/7216 | Q138: gah@altenheim.ried-traunkreis.at | R138: www.altenheim.ried-traunkreis.at | S138: 78
A139: 66 | B139: ZBP Enns | C139: 101001 | D139: 1 | E139: 10 | F139: 3 | G139: 1 | I139: 10 | J139: 41005 | K139: Enns | L139: ZBP Enns | M139: Zentrum Betreuung und Pflege Enns | N139: 84 | O139: 4470 Enns, Eichbergstraße 6 b | P139: 072238/2833 | Q139: enns.post@shvll.at | R139: www.shvll.at | S139: 138
A140: 67 | B140: ZBP Traun | C140: 101002 | D140: 1 | E140: 10 | F140: 3 | G140: 1 | H140: =IF($E$31<60,"S",IF($E$31<90,"M",IF($E$31<120,"L","XL"))) ->  | I140: 10 | J140: 41021 | K140: Traun | L140: ZBP Traun | M140: Zentrum Betreuung und Pflege Traun | N140: 90 | O140: 4050 Traun, Traunstadlweg 17 | P140: 07229/61 821 | Q140: Traun.Post@SHVLL.at | R140: www.shvll.at | S140: 128
A141: 68 | B141: ZBP Leonding | C141: 101003 | D141: 1 | E141: 10 | F141: 3 | G141: 1 | I141: 10 | J141: 41012 | K141: Leonding | L141: ZBP Leonding | M141: Zentrum Betreuung und Pflege Leonding | N141: 133 | O141: 4060 Leonding, Ruflingerstraße 12 | P141: 0732/677 808 | Q141: Leonding.post@shvll.at | R141: www.shvll.at | S141: 150
A142: 69 | B142: ZBP Haid | C142: 101004 | D142: 1 | E142: 10 | F142: 3 | G142: 1 | I142: 10 | J142: 41002 | K142: Haid | L142: ZBP Haid | M142: Zentrum Betreuung und Pflege Haid | N142: 104 | O142: 4053 Haid, Salzburger Straße 24 | P142: 07229/80402 | Q142: haid.post@shvll.at | R142: www.shvll.at | S142: 116
A143: 70 | B143: ZBP Hart | C143: 101005 | D143: 1 | E143: 10 | F143: 3 | G143: 1 | I143: 10 | J143: 41012 | K143: Leonding | L143: ZBP Hart | M143: Zentrum Betreuung und Pflege Hart | N143: 88 | O143: 4060 Leonding, Waggerlstraße 2 | P143: 0732/67 00 37 | Q143: hart.post@shvll.at | R143: www.shvll.at | S143: 95
A144: 71 | B144: ZBP Neuhofen/Krems | C144: 101006 | D144: 1 | E144: 10 | F144: 3 | G144: 1 | I144: 10 | J144: 41014 | K144: Neuhofen/Krems | L144: ZBP Neuhofen/Krems | M144: Zentrum Betreuung und Pflege Neuhofen/Krems | N144: 47 | O144: 4501 Neuhofen/Krems, Römerweg 7 | P144: 07227/5808 | Q144: neuhofen.post@shvll.at | R144: www.shvll.at | S144: 101
A145: 72 | B145: ZBP Hörsching | C145: 101007 | D145: 1 | E145: 10 | F145: 3 | G145: 1 | I145: 10 | J145: 41007 | K145: Hörsching | L145: ZBP Hörsching | M145: Zentrum Betreuung und Pflege Hörsching | N145: 82 | O145: 4063 Hörching, Rupert-Willenstorfer-Straße 7 | P145: 07221/73626 | Q145: hoersching-post@shvll.at | R145: www.shvll.at | S145: 99
A146: 73 | B146: ZBP St. Florian | C146: 101008 | D146: 1 | E146: 10 | F146: 3 | G146: 1 | I146: 10 | J146: 41013 | K146: St. Florian | L146: ZBP St. Florian | M146: Zentrum Betreuung und Pflege St. Florian | N146: 86 | O146: 4490 St. Florian, Linzer Str. 17 | P146: 07224/82 83 -0 | Q146: st-florian.post@shvll.at | R146: www.shvll.at | S146: 90
A147: 74 | B147: ZBP Dionysen, Traun | C147: 101009 | D147: 1 | E147: 10 | F147: 3 | G147: 1 | I147: 10 | J147: 41021 | K147: Traun | L147: ZBP Dionysen, Traun | M147: Zentrum Betreuung und Pflege Dionysen, Traun | N147: 114 | O147: 4050 Traun, Wilhelm Anger Straße 21 | P147: 07229/73401 | Q147: dionysen.post@shvll.at | R147: www.shvll.at | S147: 125
A148: 75 | B148: SWPH Netzwerk Pasching | C148: 103601 | D148: 3 | E148: 10 | F148: 3 | G148: 1 | I148: 36 | J148: 41017 | K148: Pasching | L148: SWPH Netzwerk Pasching | M148: Seniorenwohn- und Pflegeheim Netzwerk Pasching | N148: 78 | O148: 4061 Pasching, Netzwerkplatz 1 | P148: 07229/66260-0 | Q148: office@netzwerk-pasching.at | R148: www.netzwerk-pasching.at | S148: 81
A149: 76 | B149: SENIORium Perg | C149: 111101 | D149: 1 | E149: 11 | F149: 1 | G149: 8 | I149: 11 | J149: 41116 | K149: Perg | L149: SENIORium Perg | M149: SENIORium Perg | N149: 88 | O149: 4320 Perg, Severinweg 5 | P149: 07262/57671 | Q149: baph-perg.post@shvpe.at | R149: www.shvpe.at | S149: 102
A150: 77 | B150: SENIORium Mauthausen | C150: 111102 | D150: 1 | E150: 11 | F150: 1 | G150: 8 | I150: 11 | J150: 41111 | K150: Mauthausen | L150: SENIORium Mauthausen | M150: SENIORium Mauthausen | N150: 59 | O150: 4310 Mauthausen, Höhenweg 29 | P150: 07238/2138-0 | Q150: baph-mauthausen.post@shvpe.at | R150: www.shvpe.at | S150: 127
A151: 78 | B151: SENIORium Grein | C151: 111103 | D151: 1 | E151: 11 | F151: 1 | G151: 8 | I151: 11 | J151: 41105 | K151: Grein | L151: SENIORium Grein | M151: SENIORium Grein | N151: 64 | O151: 4360 Grein, Greinburgstraße 26 | P151: 07268/7811-0 | Q151: baph-grein.post@shvpe.at | R151: www.shvpe.at | S151: 96
A152: 79 | B152: SENIORium Bad Kreuzen | C152: 111104 | D152: 1 | E152: 11 | F152: 1 | G152: 8 | I152: 11 | J152: 41108 | K152: Bad Kreuzen | L152: SENIORium Bad Kreuzen | M152: SENIORium Bad Kreuzen | N152: 87 | O152: 4362 Bad Kreuzen 150 | P152: 07266/20010 | Q152: baph-badkreuzen.post@shvpe.at | R152: www.shvpe.at | S152: 98
A153: 80 | B153: SENIORium Baumgartenberg | C153: 111105 | D153: 1 | E153: 11 | F153: 1 | G153: 8 | I153: 11 | J153: 41103 | K153: Baumgartenberg | L153: SENIORium Baumgartenberg | M153: SENIORium Baumgartenberg | N153: 61 | O153: 4342 Baumgartenberg, Klostergarten 1 | P153: 07269/60118 | Q153: baph-baumgartenberg.post@shvpe.at | R153: www.shvpe.at | S153: 76
A154: 81 | B154: SENIORium Schwertberg | C154: 111106 | D154: 1 | E154: 11 | F154: 1 | G154: 8 | I154: 11 | J154: 41124 | K154: Schwertberg | L154: SENIORium Schwertberg | M154: SENIORium Schwertberg | N154: 36 | O154: 4311 Schwertberg, Heimstätteweg 4 | P154: 07262/62770 - 11 | Q154: baph-schwertberg.post@shvpe.at | R154: www.shvpe.at | S154: 38
A155: 82 | B155: SZ Agevita St. Georgen/Gusen | C155: 113201 | D155: 3 | E155: 11 | F155: 1 | G155: 8 | I155: 32 | J155: 41120 | K155: St. Georgen/Gusen | L155: SZ Agevita St. Georgen/Gusen | M155: Seniorenzentrum AGEVITA St. Georgen an der Gusen | N155: 71 | O155: 4222 St. Georgen an der Gusen, Gusentalstraße 35 | P155: 07237/5155 | Q155: pojar-simionca@st-georgen-gusen.at | R155: https://seniorenzentrum-agevita.at/ | S155: 83
A156: 83 | B156: PH Ried im Innkreis | C156: 121201 | D156: 1 | E156: 12 | F156: 2 | G156: 5 | I156: 12 | J156: 41225 | K156: Ried/Innkreis | L156: PH Ried im Innkreis | M156: Pflegeheim Ried im Innkreis | N156: 181 | O156: 4910 Ried im Innkreis, Rieplstraße 1, Riedholzstraße 17 | P156: 07752/89 646; 07752/ 83 586 | Q156: ph-ried.post@shvri.at | R156: www.shvri.at | S156: 256
A157: 84 | B157: PH Obernberg am Inn | C157: 121202 | D157: 1 | E157: 12 | F157: 2 | G157: 5 | I157: 12 | J157: 41219 | K157: Obernberg/Inn | L157: PH Obernberg am Inn | M157: Pflegeheim Obernberg am Inn | N157: 80 | O157: 4982 Obernberg am Inn, Kirchenplatz 6 | P157: 07758/2012 | Q157: ph-obernberg.post@shvri.at | R157: www.shvri.at | S157: 101
A158: 85 | B158: PH Eberschwang | C158: 121203 | D158: 1 | E158: 12 | F158: 2 | G158: 5 | I158: 12 | J158: 41204 | K158: Eberschwang | L158: PH Eberschwang | M158: Pflegeheim Eberschwang | N158: 73 | O158: 4906 Eberschwang, Maierhof 160 | P158: 07753/31032 | Q158: ph-eberschwang.post@shvri.at | R158: www.shvri.at | S158: 84
A159: 86 | B159: SWH Mehrnbach | C159: 122101 | D159: 3 | E159: 12 | F159: 2 | G159: 5 | I159: 21 | J159: 41214 | K159: Mehrnbach | L159: SWH Mehrnbach | M159: Seniorenwohnheim Mehrnbach | N159: 61 | O159: 4941 Mehrnbach 43 | P159: 07752/82201 | Q159: post@swh-mehrnbach.at | R159: www.swh-mehrnbach.at | S159: 75
A160: 87 | B160: BAPH Lembach | C160: 131302 | D160: 1 | E160: 13 | F160: 1 | G160: 6 | I160: 13 | J160: 41318 | K160: Lembach | L160: BAPH Lembach | M160: Bezirksalten- und Pflegeheim Lembach | N160: 87 | O160: 4132 Lembach i./M., Lederergasse 14 | P160: 07286/73 93 511 | Q160: baph-lembach.post@shvro.at | R160: www.shvro.at | S160: 113
A161: 88 | B161: BAPH Haslach | C161: 131303 | D161: 1 | E161: 13 | F161: 1 | G161: 6 | I161: 13 | J161: 41309 | K161: Haslach a. d. Mühl | L161: BAPH Haslach | M161: Bezirksalten- und Pflegeheim Haslach | N161: 86 | O161: 4170 Haslach, Am Bach 17 | P161: 07289/72306 | Q161: baph-haslach.post@shvro.at | R161: www.shvro.at | S161: 100
A162: 89 | B162: BAPH Kleinzell i.M. | C162: 131304 | D162: 1 | E162: 13 | F162: 1 | G162: 6 | I162: 13 | J162: 41316 | K162: Kleinzell/Mühlkreis | L162: BAPH Kleinzell i.M. | M162: Bezirksalten- und Pflegeheim Kleinzell im Mühlkreis | N162: 78 | O162: 4115 Kleinzell i.M, Weigelsdorf 14 | P162: 07282/5701 0 | Q162: baph-kleinzell-post@shvro.at | R162: www.shvro.at | S162: 98
A163: 90 | B163: BAPH Aigen-Schlägl | C163: 131305 | D163: 1 | E163: 13 | F163: 1 | G163: 6 | I163: 13 | J163: 41303 | K163: Aigen im Mkr. | L163: BAPH Aigen-Schlägl | M163: Bezirksalten- und Pflegeheim Aigen-Schlägl | N163: 57 | O163: 4160 Aigen-Schlägl, Hauptstraße 19 | P163: 07281/20 005 | Q163: baph-aigen-schlaegl.post@shvro.at | R163: www.shvro.at | S163: 60
A164: 91 | B164: BAPH Ulrichsberg | C164: 131306 | D164: 1 | E164: 13 | F164: 1 | G164: 6 | I164: 13 | J164: 41342 | K164: Ulrichsberg | L164: BAPH Ulrichsberg | M164: Bezirksalten- und Pflegeheim Ulrichsberg | N164: 66 | O164: 4161 Ulrichsberg, Steinwände 6 | P164: 07288/72038 | Q164: baph-ulrichsberg.post@shvro.at | R164: www.shvro.at | S164: 73
A165: 92 | B165: BAPH Rohrbach-Berg | C165: 131307 | D165: 1 | E165: 13 | F165: 1 | G165: 6 | I165: 13 | J165: 41330 | K165: Rohrbach | L165: BAPH Rohrbach-Berg | M165: Bezirksalten- und Pflegeheim Rohrbach-Berg | N165: 73 | O165: 4150 Rohrbach-Berg, Am Teich 6 | P165: 07289/40161 | Q165: baph-rohrbach-berg.post@shvro.at | R165: www.shvro.at | S165: 90
A166: 93 | B166: BAPH Schärding | C166: 141401 | D166: 1 | E166: 14 | F166: 2 | G166: 5 | I166: 14 | J166: 41422 | K166: Schärding | L166: BAPH Schärding | M166: Bezirksalten- und Pflegeheim Schärding | N166: 86 | O166: 4780 Schärding, Ernst-Fuchsig-Straße 2 | P166: 07712/4601-0 | Q166: buero-schaerding@shv-schaerding.at | R166: www.shv-schaerding.at | S166: 90
A167: 94 | B167: BAPH Schärding Tummelplatz | C167: 141402 | D167: 1 | E167: =VALUE(MID(C167,1,2)) -> 14 | F167: =IF(OR(E167=6,E167=11,E167=13,E167=16),1,IF(OR(E167=4,E167=14,E167=8,E167=12),2,IF(OR(E167=1,E167=3,E167=18,E167=5,E167=10),3,IF(OR(E167=2,E167=15,E167=7,E167=17,E167=9),4)))) -> 2 | G167: =IF(OR(E167=1,E167=10),1,IF(OR(E167=5,E167=8,E167=3,E167=18),2,IF(OR(E167=2,E167=15,E167=9),3,IF(OR(E167=7,E167=17),4,IF(OR(E167=4,E167=14,E167=12),5,IF(OR(E167=6,E167=11),8,IF(E167=13,6,IF(E167=16,7,)))))))) -> 5 | I167: 14 | J167: 41422 | K167: Schärding | L167: BAPH Schärding Tummelplatz | M167: Bezirksalten- und Pflegeheim Schärding Zentrum Tummelplatz | N167: 47 | O167: 4780 Schärding/Inn, Tummelplatzstraße 7 | P167: 07712/20034-0 | Q167: buero-zetu@shv-schaerding.at | R167: www.shv-schaerding.at | S167: 122
A168: 95 | B168: BAPH Andorf | C168: 141403 | D168: 1 | E168: 14 | F168: 2 | G168: 5 | I168: 14 | J168: 41402 | K168: Andorf | L168: BAPH Andorf | M168: Bezirksalten- und Pflegeheim Andorf | N168: 67 | O168: 4770 Andorf, Sportplatzstr. 32 | P168: 07766/3999 | Q168: buero-andorf@shv-schaerding.at | R168: www.shv-schaerding.at | S168: 69
A169: 96 | B169: BAPH Zell/Pram | C169: 141404 | D169: 1 | E169: 14 | F169: 2 | G169: 5 | I169: 14 | J169: 41430 | K169: Zell/Pram | L169: BAPH Zell/Pram | M169: Bezirksalten- und Pflegeheim Zell/Pram | N169: 60 | O169: 4755 Zell an der Pram, Bgm. Felix-Meier-Str. 5 | P169: 07764/60333 | Q169: buero-zell@shv-schaerding.at | R169: www.shv-schaerding.at | S169: 63
A170: 97 | B170: =L170 -> BAPH Esternberg | C170: 141405 | D170: 1 | E170: =VALUE(MID(C170,1,2)) -> 14 | F170: =IF(OR(E170=6,E170=11,E170=13,E170=16),1,IF(OR(E170=4,E170=14,E170=8,E170=12),2,IF(OR(E170=1,E170=3,E170=18,E170=5,E170=10),3,IF(OR(E170=2,E170=15,E170=7,E170=17,E170=9),4)))) -> 2 | G170: =IF(OR(E170=1,E170=10),1,IF(OR(E170=5,E170=8,E170=3,E170=18),2,IF(OR(E170=2,E170=15,E170=9),3,IF(OR(E170=7,E170=17),4,IF(OR(E170=4,E170=14,E170=12),5,IF(OR(E170=6,E170=11),8,IF(E170=13,6,IF(E170=16,7,)))))))) -> 5 | I170: 14 | J170: 41409 | K170: Esternberg | L170: BAPH Esternberg | M170: Bezirksalten- und Pflegeheim Esternberg | N170: 116 | O170: 4092 Esternberg, Am Weinberg 3 | P170: 07714/50980 | Q170: buero-esternberg@shv-schaerding.at | R170: www.shv-schaerding.at | S170: 125
A171: 98 | B171: SWH St. Bernhard | C171: 144703 | D171: 4 | E171: 14 | F171: 2 | G171: 5 | I171: 47 | J171: 41407 | K171: Engelhartszell | L171: SWH St. Bernhard | M171: Seniorenwohnhaus St. Bernhard, Engelhartszell | N171: 24 | O171: 4090 Engelhartszell, Stiftstraße 8/3 | P171: 07717/7840 8555 | Q171: st.bernhard@caritas-ooe.at | R171: www.caritas.at | S171: 30
A172: 99 | B172: BAPH Weyer | C172: 151501 | D172: 1 | E172: 15 | F172: 4 | G172: 3 | I172: 15 | J172: 41520 | K172: Weyer | L172: BAPH Weyer | M172: Bezirksalten- und Pflegeheim Weyer | N172: 82 | O172: 3335 Weyer, Am Kreuzberg 1 | P172: 07355/8601 | Q172: baph-weyer.post@shvse.at | R172: www.shvse.at | S172: 90
A173: 100 | B173: BSWH Bad Hall | C173: 151502 | D173: 1 | E173: 15 | F173: 4 | G173: 3 | I173: 15 | J173: 41503 | K173: Bad Hall | L173: BSWH Bad Hall | M173: Bezirksseniorenwohnheim Bad Hall | N173: 95 | O173: 4540 Bad Hall, Adlwangerstraße 8a | P173: 07258/5211-0 | Q173: bswh-badhall.POST@shvse.at | R173: www.shvse.at | S173: 118
A174: 101 | B174: BAPH Garsten | C174: 151503 | D174: 1 | E174: 15 | F174: 4 | G174: 3 | I174: 15 | J174: 41506 | K174: Garsten | L174: BAPH Garsten | M174: Bezirksalten- und Pflegeheim Garsten | N174: 55 | O174: 4451 Garsten, Marian-Rittinger Straße 11 | P174: 07252/45406 | Q174: baph-garsten.POST@shvse.at | R174: www.shvse.at | S174: 62
A175: 102 | B175: BAPH Sierning | C175: 151504 | D175: 1 | E175: 15 | F175: 4 | G175: 3 | I175: 15 | J175: 41516 | K175: Sierning | L175: BAPH Sierning | M175: Bezirksalten- und Pflegeheim Sierning | N175: 50 | O175: 4522 Sierning, Mitterweg 36 | P175: 07259/6012-0 | Q175: baph-sierning.post@shvse.at | R175: www.shvse.at | S175: 62
A176: 103 | B176: BAPH Wolfern | C176: 151505 | D176: 1 | E176: 15 | F176: 4 | G176: 3 | I176: 15 | J176: 41521 | K176: Wolfern | L176: BAPH Wolfern | M176: Bezirksalten- und Pflegeheim Wolfern | N176: 57 | O176: 4493 Wolfern, Schulstraße 14 | P176: 07253/8251 | Q176: baph-wolfern.Post@shvse.at | R176: www.shvse.at | S176: 64
A177: 104 | B177: BAPH Ternberg | C177: 151506 | D177: 1 | E177: 15 | F177: 4 | G177: 3 | I177: 15 | J177: 41517 | K177: Ternberg | L177: BAPH Ternberg | M177: Bezirksalten- und Pflegeheim Ternberg | N177: 55 | O177: 4452 Ternberg, Schulstraße 4 | P177: 07256/81101 | Q177: baph-ternberg.POst@shvse.at | R177: www.shvse.at | S177: 64
A178: 105 | B178: APH St. Josef Sierning | C178: 154304 | D178: 4 | E178: 15 | F178: 4 | G178: 3 | I178: 43 | J178: 41516 | K178: Sierning | L178: APH St. Josef Sierning | M178: St. Josef Wohnen mit Pflege Sierning | N178: 60 | O178: 4522 Sierning, Wallernstrasse 2 | P178: 07259/2333 | Q178: office@stjosef.kreuzschwestern.at | R178: www.stjosef.kreuzschwestern.at | S178: 64
A179: 106 | B179: SWH Schloss Hall | C179: 154704 | D179: 4 | E179: 15 | F179: 4 | G179: 3 | I179: 47 | J179: 41503 | K179: Bad Hall | L179: SWH Schloss Hall | M179: Seniorenwohnhaus Schloss Hall | N179: 85 | O179: 4540 Bad Hall, Linzer Straße 1 | P179: 07248/2574-0 | Q179: schloss.hall@caritas-ooe.at | R179: www.caritas-ooe.at | S179: 108
A180: 107 | B180: BSH Engerwitzdorf | C180: 161601 | D180: 1 | E180: 16 | F180: 1 | G180: 7 | I180: 16 | J180: 41605 | K180: Engerwitzdorf | L180: BSH Engerwitzdorf | M180: Bezirksseniorenheim Engerwitzdorf | N180: 84 | O180: 4209 Engerwitzdorf, Trefflinger Allee 8 | P180: 07235/50430 | Q180: bsh-engerwitzdorf.post@shvuu.at | R180: www.shvuu.at | S180: 117
A181: 108 | B181: BSH Bad Leonfelden | C181: 161602 | D181: 1 | E181: 16 | F181: 1 | G181: 7 | I181: 16 | J181: 41603 | K181: Bad Leonfelden | L181: BSH Bad Leonfelden | M181: Bezirksseniorenheim Bad Leonfelden | N181: 87 | O181: 4190 Bad Leonfelden, Adalbert-Stifter-Straße 13 | P181: 07213/20060-0 | Q181: bsh-leonfelden.post@shvuu.at | R181: www.shvuu.at | S181: 93
A182: 109 | B182: BSH Walding | C182: 161603 | D182: 1 | E182: 16 | F182: 1 | G182: 7 | I182: 16 | J182: 41626 | K182: Walding | L182: BSH Walding | M182: Bezirksseniorenheim Walding | N182: 52 | O182: 4111 Walding, Reiterstr. 12 | P182: 0723/83573-0 | Q182: bsh-walding.post@shvuu.at | R182: www.shvuu.at | S182: 70
A183: 110 | B183: BSH Gramastetten | C183: 161604 | D183: 1 | E183: 16 | F183: 1 | G183: 7 | I183: 16 | J183: 41609 | K183: Gramastetten | L183: BSH Gramastetten | M183: Bezirksseniorenhaus Gramastetten | N183: 57 | O183: 4201 Gramastetten Marktstraße 2 | P183: 07239/70240 | Q183: bsh-gramastetten.post@shvuu.at | R183: www.shvuu.at | S183: 96
A184: 111 | B184: BSH Hellmonsödt | C184: 161605 | D184: 1 | E184: 16 | F184: 1 | G184: 7 | I184: 16 | J184: 41611 | K184: Hellmonsödt | L184: BSH Hellmonsödt | M184: Bezirksseniorenhaus Hellmonsödt | N184: 81 | O184: 4202 Hellmonsödt, Wasserwald 1 | P184: 07215/38364 | Q184: bsh-hellmonsoedt.post@shvuu.at | R184: www.shvuu.at | S184: 96
A185: 112 | B185: FraDomo Feldkirchen | C185: 164005 | D185: 4 | E185: 16 | F185: 1 | G185: 7 | I185: 40 | J185: 41606 | K185: Feldkirchen | L185: FraDomo Feldkirchen | M185: FraDomo Feldkirchen an der Donau - Wohnen, Begleitung & Pflege | N185: 64 | O185: 4101 Feldkirchen, Franziskanerinnenweg 1 | P185: 07233/6495-0 | Q185: office.feldkirchen@fradomo.at | R185: www.seniorenhaeuser.at | S185: 90
A186: 113 | B186: Haus Elisabeth, Gallneukirchen | C186: 164905 | D186: 4 | E186: 16 | F186: 1 | G186: 7 | I186: 49 | J186: 41607 | K186: Gallneukirchen | L186: Haus Elisabeth, Gallneukirchen | M186: Haus Elisabeth, Gallneukirchen | N186: 39 | O186: 4210 Gallneukirchen, Gaisbacher Straße 11 | P186: 07235/63251701 | Q186: gerda.diesenreither@diakoniewerk.at | R186: www.diakoniewerk.at | S186: 40
A187: 114 | B187: Haus Abendfrieden, Gallneukirchen | C187: 164906 | D187: 4 | E187: 16 | F187: 1 | G187: 7 | I187: 49 | J187: 41607 | K187: Gallneukirchen | L187: Haus Abendfrieden, Gallneukirchen | M187: Haus Abendfrieden, Gallneukirchen | N187: 22 | O187: 4210 Gallneukirchen, Franz Jäger Zeile 1 | P187: 07235/50136 | Q187: gerda.diesenreither@diakoniewerk.at | R187: www.diakoniewerk.at | S187: 24
A188: 115 | B188: BAPH Pfaffing | C188: 171701 | D188: 1 | E188: 17 | F188: 4 | G188: 4 | I188: 17 | J188: 41723 | K188: Pfaffing | L188: BAPH Pfaffing | M188: Bezirksalten- und Pflegeheim Pfaffing | N188: 27 | O188: 4870 Pfaffing, Pfaffing 11 | P188: 07682/2254 | Q188: baph-pfaffing.post@shvvb.at | R188: www.shvvb.at | S188: 50
A189: 116 | B189: BAPH Attnang-Puchheim | C189: 171702 | D189: 1 | E189: 17 | F189: 4 | G189: 4 | I189: 17 | J189: 41703 | K189: Attnang-Puchheim | L189: BAPH Attnang-Puchheim | M189: Bezirksalten- und Pflegeheim Attnang-Puchheim | N189: 178 | O189: 4800 Attnang-Puchheim, Mitterweg 61-63 | P189: 07674/62711-200 | Q189: baph-attnang.post@shvvb.at | R189: www.shvvb.at | S189: 224
A190: 117 | B190: BAPH Neukirchen a.d. Vöckla | C190: 171703 | D190: 1 | E190: 17 | F190: 4 | G190: 4 | I190: 17 | J190: 41716 | K190: Neukirchen/V. | L190: BAPH Neukirchen a.d. Vöckla | M190: Bezirksalten- und Pflegeheim Neukirchen an der Vöckla | N190: 44 | O190: 4872 Neukirchen an der Vöckla, Dr.-Böhm-Weg 2 | P190: 07682/39750 | Q190: baph-neukirchen.post@shvvb.at | R190: www.shvvb.at | S190: 48
A191: 118 | B191: =L191 -> BAPH St. Georgen im Attergau | C191: 171704 | D191: 1 | E191: =VALUE(MID(C191,1,2)) -> 17 | F191: =IF(OR(E191=6,E191=11,E191=13,E191=16),1,IF(OR(E191=4,E191=14,E191=8,E191=12),2,IF(OR(E191=1,E191=3,E191=18,E191=5,E191=10),3,IF(OR(E191=2,E191=15,E191=7,E191=17,E191=9),4)))) -> 4 | G191: =IF(OR(E191=1,E191=10),1,IF(OR(E191=5,E191=8,E191=3,E191=18),2,IF(OR(E191=2,E191=15,E191=9),3,IF(OR(E191=7,E191=17),4,IF(OR(E191=4,E191=14,E191=12),5,IF(OR(E191=6,E191=11),8,IF(E191=13,6,IF(E191=16,7,)))))))) -> 4 | I191: 17 | J191: 41734 | K191: St. Georgen/Attergau | L191: BAPH St. Georgen im Attergau | M191: Bezirksalten- und Pflegeheim St. Georgen im Attergau | N191: 42 | O191: 4880 St. Georgen im Attergau, Jakitschgasse 14 | P191: 07667/6061 | Q191: baph-st-georgen.post@shvvb.at | R191: www.shvvb.at | S191: 62
A192: 126 | B192: BAPH Vöcklamarkt | C192: 171705 | D192: 1 | E192: =VALUE(MID(C192,1,2)) -> 17 | F192: =IF(OR(E192=6,E192=11,E192=13,E192=16),1,IF(OR(E192=4,E192=14,E192=8,E192=12),2,IF(OR(E192=1,E192=3,E192=18,E192=5,E192=10),3,IF(OR(E192=2,E192=15,E192=7,E192=17,E192=9),4)))) -> 4 | G192: =IF(OR(E192=1,E192=10),1,IF(OR(E192=5,E192=8,E192=3,E192=18),2,IF(OR(E192=2,E192=15,E192=9),3,IF(OR(E192=7,E192=17),4,IF(OR(E192=4,E192=14,E192=12),5,IF(OR(E192=6,E192=11),8,IF(E192=13,6,IF(E192=16,7,)))))))) -> 4 | I192: 17 | J192: 41747 | K192: Vöcklamarkt | L192: BAPH Vöcklamarkt | M192: Bezirksalten- und Pflegeheim Vöcklamarkt | N192: 60 | O192: 4870 Vöcklamarkt, Herrnwiesweg 5 | P192: 07682/6219 | Q192: baph-voecklamarkt.post@shvvb.at | R192: www.shvvb.at | S192: 61
A193: 119 | B193: AH Frankenburg | C193: 172501 | D193: 3 | E193: 17 | F193: 4 | G193: 4 | I193: 25 | J193: 41709 | K193: Frankenburg | L193: AH Frankenburg | M193: Altenheim Frankenburg am Hausruck | N193: 77 | O193: 4873 Frankenburg am Hausruck, Badstraße 10 | P193: 07683/8553 | Q193: office@altenheim-frankenburg.at | R193: www.altenheim-frankenburg.at | S193: 78
A194: 120 | B194: APH Frankenmarkt | C194: 172601 | D194: 3 | E194: 17 | F194: 4 | G194: 4 | I194: 26 | J194: 41710 | K194: Frankenmarkt | L194: APH Frankenmarkt | M194: Alten- und Pflegeheim Frankenmarkt | N194: 63 | O194: 4890 Frankenmarkt, Feldweg 14 | P194: 07684/6506 | Q194: office@altenheim-frankenmarkt.at | R194: www.altenheim-frankenmarkt.at | S194: 81
A195: 121 | B195: APH Lenzing | C195: 172801 | D195: 3 | E195: 17 | F195: 4 | G195: 4 | I195: 28 | J195: 41713 | K195: Lenzing | L195: APH Lenzing | M195: Alten- und Pflegeheim Lenzing | N195: 56 | O195: 4860 Lenzing, Franz-Auracher-Straße 4 | P195: 07672/92976 | Q195: aph@lenzing.or.at | R195: www.lenzing.ooe.gv.at | S195: 81
A196: 122 | B196: SWH Mondsee | C196: 172901 | D196: 3 | E196: 17 | F196: 4 | G196: 4 | I196: 29 | J196: 41715 | K196: Mondsee | L196: SWH Mondsee | M196: Seniorenwohnheim Mondsee | N196: 63 | O196: 5310 Mondsee, Abt Haberl-Straße 2 | P196: 06232/2506-10 | Q196: office@swh-mondsee.at | R196: www.swh-mondsee.at | S196: 67
A197: 123 | B197: APH Schwanenstadt | C197: 173801 | D197: 3 | E197: 17 | F197: 4 | G197: 4 | I197: 38 | J197: 41738 | K197: Schwanenstadt | L197: APH Schwanenstadt | M197: Alten- und Pflegeheim Schwanenstadt | N197: 77 | O197: 4690 Schwanenstadt, Rainerpark 2 | P197: 07673/2393 | Q197: heimleitung.sh@schwanenstadt.ooe.gv.at | R197: www.schwanenstadt.at/Seniorenheim | S197: 81
A198: 124 | B198: SH Timelkam | C198: 173301 | D198: 3 | E198: 17 | F198: 4 | G198: 4 | I198: 33 | J198: 41743 | K198: Timelkam | L198: SH Timelkam | M198: Seniorenheim der Marktgemeinde Timelkam | N198: 77 | O198: 4850 Timelkam, Ziehrerstraße 5 | P198: 07672/95424 | Q198: heimleitung@timelkam.at | R198: www.timelkam.at | S198: 80
A199: 125 | B199: SH Vöcklabruck | C199: 173901 | D199: 3 | E199: 17 | F199: 4 | G199: 4 | I199: 39 | J199: 41746 | K199: Vöcklabruck | L199: SH Vöcklabruck | M199: Seniorenheim der Stadt Vöcklabruck | N199: 96 | O199: 4840 Vöcklabruck, Am Pfarrerfeld 1 | P199: 07672/27922 | Q199: office-seniorenheim@voecklabruck.at | R199: www.voecklabruck.at/seniorenheim | S199: 99
A200: 127 | B200: FraDomo Vöcklabruck | C200: 174004 | D200: 4 | E200: 17 | F200: 4 | G200: 4 | I200: 40 | J200: 41746 | K200: Vöcklabruck | L200: FraDomo Vöcklabruck | M200: FraDomo Vöcklabruck - Wohnen, Begleitung & Pflege | N200: 98 | O200: 4840 Vöcklabruck, Salzburger Straße 20 | P200: 07672/27732 | Q200: office.voecklabruck@fradomo.at | R200: http://seniorenhaeuser.at/st-klara/lebensraum/ | S200: 120
A201: 128 | B201: FraDomo Ottnang | C201: 174006 | D201: 4 | E201: 17 | F201: 4 | G201: 4 | I201: 40 | J201: 41722 | K201: Ottnang am Hausruck | L201: FraDomo Ottnang | M201: FraDomo Ottnang - Wohnen, Begleitung & Pflege | N201: 67 | O201: 4901 Ottnang, Marktplatz 1 | P201: 07676/20763 510 | Q201: office.ottnang@fradomo.at | R201: https://seniorenhaeuser.at/haus-barbara/lebensraum/ | S201: 72
A202: 129 | B202: =L202 -> BAPH Lambach | C202: 181801 | D202: 1 | E202: =VALUE(MID(C202,1,2)) -> 18 | F202: =IF(OR(E202=6,E202=11,E202=13,E202=16),1,IF(OR(E202=4,E202=14,E202=8,E202=12),2,IF(OR(E202=1,E202=3,E202=18,E202=5,E202=10),3,IF(OR(E202=2,E202=15,E202=7,E202=17,E202=9),4)))) -> 3 | G202: =IF(OR(E202=1,E202=10),1,IF(OR(E202=5,E202=8,E202=3,E202=18),2,IF(OR(E202=2,E202=15,E202=9),3,IF(OR(E202=7,E202=17),4,IF(OR(E202=4,E202=14,E202=12),5,IF(OR(E202=6,E202=11),8,IF(E202=13,6,IF(E202=16,7,)))))))) -> 2 | I202: 18 | J202: 41811 | K202: Lambach | L202: BAPH Lambach | M202: Bezirksalten- und Pflegeheim Lambach | N202: 86 | O202: 4650 Lambach, Lenaustraße 2 | P202: 07245/24 575 | Q202: baph-lambach.post@shvwl.at | R202: www.altenheim-lambach.at | S202: 125
A203: 130 | B203: BAPH Marchtrenk | C203: 181802 | D203: 1 | E203: 18 | F203: 3 | G203: 2 | I203: 18 | J203: 41812 | K203: Marchtrenk | L203: BAPH Marchtrenk | M203: Bezirksalten- und Pflegeheim Marchtrenk | N203: 114 | O203: 4614 Marchtrenk, Augartenstraße 2 | P203: 07243/52284 | Q203: baph-marchtrenk.Post@shvwl.at | R203: www.altenheim-marchtrenk.at | S203: 126
A204: 131 | B204: BAPH Thalheim | C204: 181803 | D204: 1 | E204: 18 | F204: 3 | G204: 2 | I204: 18 | J204: 41823 | K204: Thalheim bei Wels | L204: BAPH Thalheim | M204: Bezirksalten- und Pflegeheim Thalheim | N204: 73 | O204: 4600 Thalheim bei Wels, Ascheter Straße 38 | P204: 07242/36080 | Q204: baph-thalheim.post@shvwl.at | R204: www.altenheim-thalheim.at | S204: 102
A205: 132 | B205: SZ Sonnleiten, Eberstalzell | C205: 181901 | D205: 3 | E205: 18 | F205: 3 | G205: 2 | H205: =IF($E$31<60,"S",IF($E$31<90,"M",IF($E$31<120,"L","XL"))) ->  | I205: 19 | J205: 41805 | K205: Eberstalzell | L205: SZ Sonnleiten, Eberstalzell | M205: Sozialzentrum Sonnleiten, Eberstalzell | N205: 62 | O205: 4653 Eberstalzell, Sonnleiten 2 | P205: 07241/5554 13 | Q205: heimleitung@sozialzentrum-sonnleiten.at | R205: www.sozialzentrum-sonnleiten.at | S205: 68
A206: 133 | B206: SWPH Gunskirchen | C206: 182701 | D206: 3 | E206: 18 | F206: 3 | G206: 2 | I206: 27 | J206: 41808 | K206: Gunskirchen | L206: SWPH Gunskirchen | M206: Seniorenwohn- und Pflegeheim Gunskirchen | N206: 74 | O206: 4623 Gunskirchen, Welser Straße 7 | P206: 07246/8994-0 | Q206: seniorenhaus@gunskirchen.ooe.gv.at | R206: www.gunskirchen.com | S206: 77
A207: 134 | B207: SZ Kloster Nazareth, Stadl-Paura | C207: 184402 | D207: 4 | E207: 18 | F207: 3 | G207: 2 | I207: 44 | J207: 41820 | K207: Stadl-Paura | L207: SZ Kloster Nazareth, Stadl-Paura | M207: Sozialzentrum Kloster Nazareth | N207: 76 | O207: 4651 Stadl-Paura, Am Bräuberg 1 | P207: 07245/28975 | Q207: stefanie.freisler@stiftung-liebenau.at | R207: www.stiftung-liebenau.at | S207: 80
N208: =SUM(N74:N207) -> 10639 | S208: =SUM(S74:S207) -> 12773

Sheet 1a_Langzeitpflege
A2: ERHEBUNG IN DEN OÖ. ALTEN- UND PFLEGEHEIMEN (Langzeitpflege)
F3: ='0_Einleitung'!$E$2 -> zum Stichtag | G3: ='0_Einleitung'!$G$2 -> 2025-12-31
A4: =IF(Q97>0,"Tabellenblatt nicht vollständig oder korrekt ausgefüllt! Bitte Eingaben prüfen!","") -> Tabellenblatt nicht vollständig oder korrekt ausgefüllt! Bitte Eingaben prüfen! | L4: =IF(A4="","Sie haben dieses Tabellenblatt vollständig ausgefüllt - Vielen Dank!","") -> 
A5: Bewohnerzimmer und Plätze, die für Langzeitpflege zur Verfügung stehen | H5: ='1_allg. Strukturdaten'!$D$3 -> zum Stichtag | I5: ='1_allg. Strukturdaten'!$F$3 -> 2025-12-31
C7: 1-Personen-Wohneinheiten (Zimmer) mit insgesamt | H7: =B7*1 -> 0 | I7: Plätzen | N7: =IF(B7="","Eingabe unvollständig","") -> Eingabe unvollständig | Q7: =IF(N7="","","x") -> x
C8: 2-Personen-Wohneinheiten (Zimmer) mit insgesamt | H8: =B8*2 -> 0 | I8: Plätzen | N8: =IF(B8="","Eingabe unvollständig","") -> Eingabe unvollständig | Q8: x
B9: 0 | C9: Oase (Mehr-Personen-Wohneinheit mit speziellem Konzept) | H9: =B9*6 -> 0 | I9: Plätzen | N9: =IF(B9="","Eingabe unvollständig","") -> 
B10: =SUM(B7:B9) -> 0 | C10: Zimmer mit | H10: =SUM(H7:H9) -> 0 | I10: Plätzen
A13: Bewohnerinnen und Bewohner in der Langzeitpflege | G13: ='1_allg. Strukturdaten'!$D$3 -> zum Stichtag | H13: ='1_allg. Strukturdaten'!$F$3 -> 2025-12-31
A14: Altersstruktur der Bewohner:innen nach Kostentragung und Geschlecht:
C15: unter 60 Jahre | D15: 60 bis unter 65 Jahre | E15: 65 bis unter 70 Jahre | F15: 70 bis unter 75 Jahre | G15: 75 bis unter 80 Jahre | H15: 80 bis unter 85 Jahre | I15: 85 bis unter 90 Jahre | J15: 90 Jahre und älter | N15: =IF(L17>L16,"Anzahl Männer SH ist größer als Anzahl Frauen SH","") -> 
A16: mit Sozialhilfe-bezug | B16: weiblich | K16: Frauen SH | L16: =SUM(C16:J16) -> 0 | N16: =IF(OR(C16="",D16="",E16="",F16="",G16="",H16="",I16="",J16="")=TRUE,"Eingabe unvollständig","") -> Eingabe unvollständig | Q16: x
B17: männlich | K17: Männer SH | L17: =SUM(C17:J17) -> 0 | N17: =IF(OR(C17="",D17="",E17="",F17="",G17="",H17="",I17="",J17="")=TRUE,"Eingabe unvollständig","") -> Eingabe unvollständig | Q17: x
A18: Selbstzahler: innen | B18: weiblich | K18: Frauen SZ | L18: =SUM(C18:J18) -> 0 | N18: =IF(OR(C18="",D18="",E18="",F18="",G18="",H18="",I18="",J18="")=TRUE,"Eingabe unvollständig","") -> Eingabe unvollständig | Q18: x
B19: männlich | K19: Männer SZ | L19: =SUM(C19:J19) -> 0 | N19: =IF(OR(C19="",D19="",E19="",F19="",G19="",H19="",I19="",J19="")=TRUE,"Eingabe unvollständig","") -> Eingabe unvollständig | Q19: x
B20: Summe SH | C20: =C16+C17 -> 0 | D20: =D16+D17 -> 0 | E20: 0 | F20: 0 | G20: 0 | H20: 0 | I20: 0 | J20: 0 | K20: Summe SH | L20: =L16+L17 -> 0 | N20: =IF(L20<L21,"Es scheinen mehr SZ als SH auf, bitte überprüfen!","") -> 
B21: Summe SZ | C21: =C18+C19 -> 0 | D21: =D18+D19 -> 0 | E21: =E18+E19 -> 0 | F21: 0 | G21: 0 | H21: 0 | I21: 0 | J21: 0 | K21: Summe SZ | L21: =L18+L19 -> 0
B22: Summe Frauen | C22: =C16+C18 -> 0 | D22: =D16+D18 -> 0 | E22: =E16+E18 -> 0 | F22: 0 | G22: 0 | H22: 0 | I22: 0 | J22: 0 | K22: Frauen | L22: 0 | N22: =IF(L22<L23,"Es scheinen mehr Männer als Frauen auf, bitte überprüfen!","") -> 
B23: Summe Männer | C23: =C17+C19 -> 0 | D23: =D17+D19 -> 0 | E23: 0 | F23: 0 | G23: 0 | H23: 0 | I23: 0 | J23: 0 | K23: Männer | L23: =SUM(C23:J23) -> 0
B24: Gesamtsumme | C24: =SUM(C16:C19) -> 0 | D24: =SUM(D16:D19) -> 0 | E24: =SUM(E16:E19) -> 0 | F24: 0 | G24: 0 | H24: 0 | I24: 0 | J24: 0 | K24: Gesamt | L24: =SUM(C24:J24) -> 0 | N24: =IF(H10<L24,"Es wurden mehr HB als LZP-Plätze angegeben, bitte überprüfen!","") -> 
A26: Das Durchschnittsalter aller Heimbewohnerinnen und -bewohner beträgt zum Stichtag | H26: Jahre. | N26: =IF(G26="","Eingabe unvollständig","") -> Eingabe unvollständig | Q26: x
A29: Pflegebedarf (Pflegegeldeinstufung) der Bewohnerinnen und Bewohner | I29: =$F$3 -> zum Stichtag | J29: =$G$3 -> 2025-12-31
A30: tatsächliche Einstufungen aller Langzeitpflegebewohnerinnen und -bewohner laut gültigem Bescheid (bei PG aus dem Ausland nach österr. Kriterien einstufen; z.B. Pflegegrad 5 Deutschland entspricht St. 7 Öst., daher bei St. 7 eintragen)
C32: kein PG | D32: Stufe 1 | E32: Stufe 2 | F32: Stufe 3 | G32: Stufe 4 | H32: Stufe 5 | I32: Stufe 6 | J32: Stufe 7 | K32: Gesamt
A33: mit Sozialhilfebezug | K33: =SUM(C33:J33) -> 0 | N33: =IF(OR(C33="",D33="",E33="",F33="",G33="",H33="",I33="",J33="")=TRUE,"Eingabe unvollständig",IF(K33<>L20,"Summe SH-Bezug stimmt nicht mit L20 überein!","")) -> Eingabe unvollständig | Q33: x
A34: Selbstzahler:innen | K34: =SUM(C34:J34) -> 0 | N34: =IF(OR(C34="",D34="",E34="",F34="",G34="",H34="",I34="",J34="")=TRUE,"Eingabe unvollständig",IF(K34<>L21,"Summe Selbstzahler stimmt nicht mit L21 überein!","")) -> Eingabe unvollständig | Q34: x
A35: Summe tatsächliche PG-Einst. | C35: =SUM(C33:C34) -> 0 | D35: 0 | E35: 0 | F35: 0 | G35: 0 | H35: 0 | I35: 0 | J35: 0 | K35: 0 | N35: =IF(L24<>K35,"Summe Bewohner stimmt nicht mit L24 überein","") -> 
A36: Summe inkl. offene PG-Verf. | C36: =B41-C41+E49 -> 0 | D36: =B42-$C42+F49 -> 0 | E36: =B43-C43+G49 -> 0 | F36: =B44-C44+H49 -> 0 | G36: =B45-C45+I49 -> 0 | H36: =B46-C46+J49 -> 0 | I36: =B47-C47+K49 -> 0 | J36: =B48+L49 -> 0 | K36: =SUM(C36:J36) -> 0 | N36: =IF(L24<>K36,"Summe Bewohner stimmt nicht mit L24 überein","") -> 
A39: alle Bewohner:innen (Langzeitpflege) | E39: erwartete Einstufung
A40: derzeitige PG-Stufe | B40: Heimbew. ohne PG bzw. lt. PG-Bescheid | C40: Anzahl offene PG-Verfahren | E40: 0 | F40: 1 | G40: 2 | H40: 3 | I40: 4 | J40: 5 | K40: 6 | L40: 7
A41: kein PG | B41: =C35 -> 0 | M41: =SUM(F41:L41) -> 0 | N41: =IF(C41="","Eingabe unvollständig",IF(B41<C41,"Wert in Spalte C kann nicht größer sein als Wert in Spalte B",IF(C41<>M41,"Summe erwartete Einstufungen stimmt nicht mit Wert in Spalte C überein",""))) -> Eingabe unvollständig | Q41: x
A42: 1 | B42: =D35 -> 0 | M42: 0 | N42: Eingabe unvollständig | Q42: x
A43: 2 | B43: =E35 -> 0 | M43: 0 | N43: Eingabe unvollständig | Q43: x
A44: 3 | B44: =F35 -> 0 | M44: 0 | N44: Eingabe unvollständig | Q44: x
A45: 4 | B45: =G35 -> 0 | M45: 0 | N45: Eingabe unvollständig | Q45: x
A46: 5 | B46: =H35 -> 0 | M46: 0 | N46: =IF(C46="","Eingabe unvollständig",IF(B46<C46,"Wert in Spalte C kann nicht größer sein als Wert in Spalte B",IF(C46<>M46,"Summe erwartete Einstufungen stimmt nicht mit Wert in Spalte C überein",""))) -> Eingabe unvollständig | Q46: x
A47: 6 | B47: =I35 -> 0 | M47: 0 | N47: =IF(C47="","Eingabe unvollständig",IF(B47<C47,"Wert in Spalte C kann nicht größer sein als Wert in Spalte B",IF(C47<>M47,"L47 stimmt nicht mit Wert in Spalte C überein",""))) -> Eingabe unvollständig | Q47: x
A48: 7 | B48: =J35 -> 0
B49: =SUM(B41:B48) -> 0 | C49: =SUM(C41:C47) -> 0 | E49: =SUM(E41:E48) -> 0 | F49: 0 | G49: 0 | H49: 0 | I49: 0 | J49: 0 | K49: 0 | L49: =SUM(L41:L48) -> 0
K50: Kontrollsumme | L50: =SUM(E49:L49) -> 0 | N50: =IF(C49<>L50,"Kontrollsumme stimmt nicht mit C49 überein","") -> 
A53: Anzahl aller Bewohnerinnen und Bewohner (Langzeitpflege) nach Herkunftsbezirk | J53: =$F$3 -> zum Stichtag | K53: =$G$3 -> 2025-12-31
A55: Braunau | C55: Eferding | E55: Freistadt | G55: Gmunden | I55: Grieskirchen | K55: Kirchdorf | N55: =IF(OR(B55="",D55="",F55="",H55="",J55="",L55="")=TRUE,"Eingabe unvollständig","") -> Eingabe unvollständig | Q55: x
A56: Linz-Land | C56: Perg | E56: Ried i.I. | G56: Rohrbach | I56: Schärding | K56: Steyr-Land | N56: =IF(OR(B56="",D56="",F56="",H56="",J56="",L56="")=TRUE,"Eingabe unvollständig","") -> Eingabe unvollständig | Q56: x
A57: Urfahr-Umg. | C57: Vöcklabruck | E57: Wels-Land | G57: Linz | I57: Steyr | K57: Wels | N57: =IF(OR(B57="",D57="",F57="",H57="",J57="",L57="")=TRUE,"Eingabe unvollständig","") -> Eingabe unvollständig | Q57: x
B58: andere Bundesländer | N58: =IF(C58="","Eingabe unvollständig","") -> Eingabe unvollständig | Q58: x
B59: Ausland | N59: =IF(C59="","Eingabe unvollständig","") -> Eingabe unvollständig | Q59: x
K60: Gesamt | L60: =SUM(B55:B57)+SUM(D55:D57)+SUM(F55:F57)+SUM(H55:H57)+SUM(J55:J57)+SUM(L55:L57)+SUM(C58:C59) -> 0 | N60: =IF(L60<>L24,"Summe Bewohner stimmt nicht mit L24 überein","") -> 
B61: Bewohnerinnen bzw. Bewohner kommen aus der Standortgemeinde. | N61: =IF(A61="","Eingabe unvollständig",IF(MAX(Datenblatt!DP6:EH6)<'1a_Langzeitpflege'!A61,"Angabe zu hoch, bitte überprüfen!","")) -> Eingabe unvollständig | Q61: x
A64: Statistische Angaben | C64: im Jahr | D64: ='1_allg. Strukturdaten'!F3 -> 2025-12-31 | E64: (Begriffsbestimmungen lt. § 24 Oö. HVO)
A66: Anzahl aller Bewohntage (BT) in der Langzeitpflege | G66: darin enthalten sind | J66: Krankenhaustage (aller HB in der LZP) | N66: =IF(OR(F66="",I66="")=TRUE,"Eingabe unvollständig","") -> Eingabe unvollständig | Q66: x
A67: davon Bewohntage von Heimbewohner:innen (HB) mit Sozialhilfe(SH)-Bezug | N67: =IF(F67="","Eingabe unvollständig","") -> Eingabe unvollständig | Q67: x
A68: davon Bewohntage von Selbstzahler:innen (SZ) | F68: =F66-F67 -> 0 | N68: =IF(F67<F68,"Bewohntage SZ sind höher als BT SH, bitte überprüfen!","") -> 
F70: Aufgrund der angegeben LZP-Plätze und Bewohntage ergibt sich eine Auslastung von | G70: =IF(H10=0,"",F66/(H10*365)) ->  | H70: in der Langzeitpflege.
F71: =IF(OR(H10=0,G70>1)=TRUE,"","Das bedeutet es waren ständig") ->  | G71: =IF(G70>1,"",H10-(F66/365)) ->  | H71: =IF(OR(H10=0,G70>1)=TRUE,"","LZP-Plätze nicht bewohnt.") -> 
F72: =IF(H10=0,"",IF(G70<0.98,"Begründung für die geringe Auslastung (weniger als 98%):",IF(G70>1,"Begründung für die Auslastung über 100%:",""))) ->  | N72: =IF(AND(G72="",OR(G70<0.98,G70>1))=TRUE,"Bitte Begründung für die Auslastung angeben","") -> Bitte Begründung für die Auslastung angeben | Q72: =IF(N72="","","x") -> x
F73: =IF(H10=0,"",IF(OR(G70<0.98,G70>1)=TRUE,"","Eine Begründung ist bei dieser Auslastung nicht erforderlich.")) -> 
F74: =(H10+'1b_Kurzzeitpflege'!G10)*365 -> 0 | G74: =IF(F66>F74,"Summe Bewohntage (F66) ist größer als Plätze LZP+KZP mal 365 Tage - bitte überprüfen!","") -> 
A75: Summe der betreuten Personen im Jahr | D75: =G3-1 -> 2025-12-30 | H75: Summe HB 31.12.2025 + alle Austritte 2025 | I75: =L60+D86 -> 0 | J75: =IF(AND(I75<>"",D86="")=TRUE,"Für die Prüfung ist eine Eingabe in D86 notwendig!","") -> Für die Prüfung ist eine Eingabe in D86 notwendig! | N75: =IF(E75="","Eingabe unvollständig","") -> Eingabe unvollständig | Q75: x
A76: davon betreute Personen mit SH-Bezug | H76: Abweichung zur Angabe in E75 | I76: =E75-I75 -> 0 | N76: =IF(E76="","Eingabe unvollständig","") -> Eingabe unvollständig | Q76: x
A77: betreute Personen, die 2025 immer Selbstzahler waren | E77: =E75-E76 -> 0 | H77: Begründung für die Abweichung | N77: =IF(AND(I77="",I76<>0)=TRUE,"Bitte Begründung für die Abweichung angeben","") -> 
G78: =IF(I76<>0,"Bitte überprüfen, ob Doppel-","") ->  | N78: =IF(E77>E76,"betreute Personen SH ist geringer als betreute Pers. SZ, bitte überprüfen!","") -> 
A79: Eintritte/Übernahmen in die Langzeitpflege im Jahr | E79: =G3-1 -> 2025-12-30 | G79: =IF(I76<>0,"nennungen vorliegen oder irrtümlich Kurzzeitpflegegäste/Zimmerwechsel mitgezählt wurden!","") ->  | N79: =IF(E76<=L20,"betreute Personen mit SH (E76) ist kleiner oder gleich HB SH zum Stichtag (L20), bitte überprüfen!","") -> betreute Personen mit SH (E76) ist kleiner oder gleich HB SH zum Stichtag (L20), bitte überprüfen! | Q79: x
A80: Anzahl der in die LZP eingetretenen/übernommenen Bewohner:innen mit SH-Bezug: | N80: =IF(F80="","Eingabe unvollständig","") -> Eingabe unvollständig | Q80: x
A81: Anzahl der in die LZP eingetretenen/übernommenen Bewohner:innen (Selbstzahler): | I81: Plausibilisierung der Ein- und Austritte in der LZP: | N81: =IF(F81="","Eingabe unvollständig","") -> Eingabe unvollständig | Q81: x
E82: Summe Neueintritte | F82: =F80+F81 -> 0 | I82: Am 31.12.2024 wurden | J82: =IF('1_allg. Strukturdaten'!D7="","0",VLOOKUP(Datenblatt!J6,'1_allg. Strukturdaten'!$B$74:$N$207,13,FALSE)) ->  | K82: HB in der LZP angegeben. | N82: =IF(E77<0,"Die Zahl in E75 muss größer sein, als die Zahl in E76","") -> 
I83: Addiert man die angegebenen | J83: =F82 -> 0 | K83: Eintritte und
I84: zieht die angegebenen | J84: =D86 -> 0 | K84: Austritte ab,
A85: Ausgetretene Bewohner:innen im Jahr | D85: =G3-1 -> 2025-12-30 | I85: ergeben sich für 31.12.2025 | J85: =J82+J83-J84 ->  | K85: HB in der LZP.
C86: Anzahl aller ausgetretenen Bewohner:innen | I86: In L24 werden am 31.12.2025 | J86: =L24 -> 0 | K86: HB angegeben, | N86: =IF(D86="","Eingabe unvollständig","") -> Eingabe unvollständig | Q86: x
C87: davon sind verstorben | I87: dadurch ergibt sich eine Abweichung von | J87: =J85-J86 ->  | K87: HB in der LZP. | N87: =IF(D87="","Eingabe unvollständig","") -> Eingabe unvollständig | Q87: x
C88: davon wiederum sind im Heim verstorben | L88: =IF(OR(J87<-2,J87>2),"Bitte überprüfen Sie daher die Anzahl der Ein- und Austritte und begründen Sie die Abweichung:","") ->  | N88: =IF(D88="","Eingabe unvollständig","") -> Eingabe unvollständig | Q88: x
C89: in ein anderes oö. APH sind übersiedelt | N89: =IF(AND(L90="",G89=""),"Bitte Begründung für die Abweichung in J87 angeben!","") -> 
D90: davon waren | F90: immer Selbstzahler:innen | L90: =IF(L88="","Hier (G89) ist nur ein Eintrag erforderlich, wenn dazu aufgefordert wird.","") ->  | N90: =IF(D89="","Eingabe unvollständig","") -> Eingabe unvollständig | Q90: x
C91: Differenz Sonstiges: | D91: =D86-D87-D89 -> 0 | N91: =IF(E90="","Eingabe unvollständig","") -> Eingabe unvollständig | Q91: x
N92: =IF(OR(D89="",E90="")=TRUE,"Eingabe unvollständig",IF(E90>D89,"E90 kann nicht größer sein als D89!","")) -> Eingabe unvollständig | Q92: x
A93: Verweildauer im Heim | B93: weniger als 1 Monat * | C93: 1 bis 3 Monate * | D93: 4 bis 6 Monate * | E93: 7 bis 12 Monate * | F93: 1 bis 5 Jahre * | G93: 6 bis 10 Jahre * | H93: länger * | I93: Summe | N93: =IF((D87+D89)>D86,"Summe verstorbene (D87) und übersiedelte HB (D89) kann nicht höher sein als alle ausgetretenen HB (D86)!","") -> 
A94: Verstorbene | I94: =SUM(B94:H94) -> 0 | N94: =IF(OR(B94="",C94="",D94="",E94="",F94="",G94="",H94="")=TRUE,"Eingabe unvollständig",IF(D87<>I94,"Summe der Verstorbenen stimmt nicht mit D87 überein, bitte überprüfen!","")) -> Eingabe unvollständig | Q94: x
B95: * maßgeblich für die Zuordnung ist das Datum des Todes (siehe Ausfüllbeispiel im Kommentarfeld) | N95: =IF(AND(E77=0,E90>0),"Wenn es bei den Austritten in E90 Selbstzahler:innen gab, müssen diese auch in E77 aufscheinen.","") -> 
Q97: =COUNTIF(Q1:Q96,"x") -> 37
M109: =IF(AND(G107="Ja",I108="")=TRUE,"Eingabe unvollständig","") -> 

Sheet 1b_Kurzzeitpflege
Q1: =IF(N1="","","x") -> 
A2: ERHEBUNG IN DEN OÖ. ALTEN- UND PFLEGEHEIMEN (Kurzzeitpflege) | Q2: =IF(N2="","","x") -> 
E3: ='0_Einleitung'!$E$2 -> zum Stichtag | G3: ='0_Einleitung'!$G$2 -> 2025-12-31 | Q3: =IF(N3="","","x") -> 
A4: =IF(Q100>0,"Tabellenblatt nicht vollständig oder korrekt ausgefüllt! Bitte Eingaben prüfen!","") -> Tabellenblatt nicht vollständig oder korrekt ausgefüllt! Bitte Eingaben prüfen! | M4: =IF(A4="","Sie haben dieses Tabellenblatt vollständig ausgefüllt - Vielen Dank!","") ->  | Q4: =IF(N4="","","x") -> 
A5: Bewohnerzimmer und Plätze, die für Kurzzeitpflege zur Verfügung stehen | H5: =$E$3 -> zum Stichtag | I5: =$G$3 -> 2025-12-31 | Q5: =IF(N5="","","x") -> 
B7: Die KZP-Plätze befinden sich zum Stichtag in
C8: 1-Personen-Wohneinheiten (Zimmer) mit insgesamt | G8: =B8*1 -> 0 | H8: Plätzen | N8: =IF(B8="","Eingabe unvollständig","") -> Eingabe unvollständig | Q8: =IF(N8="","","x") -> x
C9: 2-Personen-Wohneinheiten (Zimmer) mit insgesamt | G9: =B9*2 -> 0 | H9: Plätzen | N9: =IF(B9="","Eingabe unvollständig","") -> Eingabe unvollständig | Q9: =IF(N9="","","x") -> x
B10: =SUM(B8:B9) -> 0 | C10: Zimmer | G10: =SUM(G8:G9) -> 0 | H10: Plätze | Q10: =IF(N10="","","x") -> 
Q11: =IF(N11="","","x") -> 
A13: Kurzzeitpflegegäste | C13: im Monat | D13: 2025-12-01
A14: Altersstruktur der KZP-Gäste nach Kostentragung und Geschlecht (bei SH-Bezug sind nur die personenbezogenen SH-Zuzahlungen relevant, eine pauschale Förderung ist hier unerheblich):
C15: unter 60 Jahre | D15: 60 bis unter 65 Jahre | E15: 65 bis unter 70 Jahre | F15: 70 bis unter 75 Jahre | G15: 75 bis unter 80 Jahre | H15: 80 bis unter 85 Jahre | I15: 85 bis unter 90 Jahre | J15: 90 Jahre und älter
A16: mit Sozialhilfe-bezug | B16: weiblich | K16: Frauen SH | L16: =SUM(C16:J16) -> 0 | N16: =IF(OR(C16="",D16="",E16="",F16="",G16="",H16="",I16="",J16="")=TRUE,"Eingabe unvollständig","") -> Eingabe unvollständig | Q16: =IF(N16="","","x") -> x
B17: männlich | K17: Männer SH | L17: =SUM(C17:J17) -> 0 | N17: =IF(OR(C17="",D17="",E17="",F17="",G17="",H17="",I17="",J17="")=TRUE,"Eingabe unvollständig","") -> Eingabe unvollständig | Q17: =IF(N17="","","x") -> x
A18: Selbstzahler: innen | B18: weiblich | K18: Frauen SZ | L18: 0 | N18: Eingabe unvollständig | Q18: =IF(N18="","","x") -> x
B19: männlich | K19: Männer SZ | L19: 0 | N19: Eingabe unvollständig | Q19: =IF(N19="","","x") -> x
B20: Summe SH | C20: =SUM(C16,C17) -> 0 | D20: =SUM(D16,D17) -> 0 | E20: 0 | F20: 0 | G20: 0 | H20: 0 | I20: 0 | J20: 0 | K20: Summe SH | L20: =L16+L17 -> 0
B21: Summe SZ | C21: =SUM(C18:C19) -> 0 | D21: =SUM(D18:D19) -> 0 | E21: 0 | F21: 0 | G21: 0 | H21: 0 | I21: 0 | J21: 0 | K21: Summe SZ | L21: =L18+L19 -> 0
B22: Summe Frauen | C22: =SUM(C16,C18) -> 0 | D22: =SUM(D16,D18) -> 0 | E22: 0 | F22: 0 | G22: 0 | H22: 0 | I22: 0 | J22: 0 | K22: Frauen | L22: =SUM(C22:J22) -> 0
B23: Summe Männer | C23: =SUM(C17,C19) -> 0 | D23: =SUM(D17,D19) -> 0 | E23: 0 | F23: 0 | G23: 0 | H23: 0 | I23: 0 | J23: 0 | K23: Männer | L23: =SUM(C23:J23) -> 0
B24: Gesamtsumme | C24: =SUM(C16:C19) -> 0 | D24: =SUM(D16:D19) -> 0 | E24: 0 | F24: 0 | G24: 0 | H24: 0 | I24: 0 | J24: 0 | K24: Gesamt | L24: =SUM(C24:J24) -> 0 | Q24: =IF(N24="","","x") -> 
A27: Pflegebedarf (Pflegegeldeinstufung) der Kurzzeitpflegegäste | F27: im Monat | G27: =D13 -> 2025-12-01
A29: KZP-Gäste ohne Pflegegeld bzw. tatsächliche Einstufung laut gültigem Bescheid (bei PG aus dem Ausland nach österr. Kriterien einstufen; z.B. Pflegegrad 5 Deutschland entspricht St. 7 Öst., daher bei St. 7 eintragen)
C31: kein PG | D31: Stufe 1 | E31: Stufe 2 | F31: Stufe 3 | G31: Stufe 4 | H31: Stufe 5 | I31: Stufe 6 | J31: Stufe 7 | K31: Gesamt
A32: mit Sozialhilfeunterstützung | K32: =SUM(C32:J32) -> 0 | N32: =IF(OR(C32="",D32="",E32="",F32="",G32="",H32="",I32="",J32="")=TRUE,"Eingabe unvollständig",IF(K32<>L20,"Summe SH-Bezug stimmt nicht mit L20 überein!","")) -> Eingabe unvollständig | Q32: =IF(N32="","","x") -> x
A33: Selbstzahler:innen | K33: =SUM(C33:J33) -> 0 | N33: =IF(OR(C33="",D33="",E33="",F33="",G33="",H33="",I33="",J33="")=TRUE,"Eingabe unvollständig",IF(K33<>L21,"Summe Selbstzahler stimmt nicht mit L21 überein!","")) -> Eingabe unvollständig | Q33: =IF(N33="","","x") -> x
A34: Summe tatsächliche PG-Einst. | C34: =SUM(C32:C33) -> 0 | D34: 0 | E34: 0 | F34: 0 | G34: 0 | H34: 0 | I34: 0 | J34: 0 | K34: =SUM(C34:J34) -> 0 | N34: =IF(L24<>K34,"Summe Bewohner stimmt nicht mit Summe nach Alter (L24) überein","") ->  | Q34: =IF(N34="","","x") -> 
A36: Kurzzeitpflegegäste | C36: =$E$3 -> zum Stichtag | D36: =$G$3 -> 2025-12-31
A37: Altersstruktur der KZP-Gäste nach Kostentragung und Geschlecht:
C38: unter 60 Jahre | D38: 60 bis unter 65 Jahre | E38: 65 bis unter 70 Jahre | F38: 70 bis unter 75 Jahre | G38: 75 bis unter 80 Jahre | H38: 80 bis unter 85 Jahre | I38: 85 bis unter 90 Jahre | J38: 90 Jahre und älter
A39: mit Sozialhilfe-bezug | B39: weiblich | K39: Frauen SH | L39: =SUM(C39:J39) -> 0 | N39: =IF(OR(C39="",D39="",E39="",F39="",G39="",H39="",I39="",J39="")=TRUE,"Eingabe unvollständig","") -> Eingabe unvollständig | Q39: =IF(N39="","","x") -> x
B40: männlich | K40: Männer SH | L40: =SUM(C40:J40) -> 0 | N40: =IF(OR(C40="",D40="",E40="",F40="",G40="",H40="",I40="",J40="")=TRUE,"Eingabe unvollständig","") -> Eingabe unvollständig | Q40: =IF(N40="","","x") -> x
A41: Selbstzahler: innen | B41: weiblich | K41: Frauen SZ | L41: 0 | N41: Eingabe unvollständig | Q41: =IF(N41="","","x") -> x
B42: männlich | K42: Männer SZ | L42: 0 | N42: Eingabe unvollständig | Q42: =IF(N42="","","x") -> x
B43: Summe SH | C43: =SUM(C39,C40) -> 0 | D43: =SUM(D39,D40) -> 0 | E43: 0 | F43: 0 | G43: 0 | H43: 0 | I43: 0 | J43: 0 | K43: Summe SH | L43: =L39+L40 -> 0 | Q43: =IF(N43="","","x") -> 
B44: Summe SZ | C44: =SUM(C41,C42) -> 0 | D44: =SUM(D41,D42) -> 0 | E44: 0 | F44: 0 | G44: 0 | H44: 0 | I44: 0 | J44: 0 | K44: Summe SZ | L44: =L41+L42 -> 0
B45: Summe Frauen | C45: =SUM(C39,C41) -> 0 | D45: =SUM(D39,D41) -> 0 | E45: 0 | F45: 0 | G45: 0 | H45: 0 | I45: 0 | J45: 0 | K45: Frauen | L45: 0
B46: Summe Männer | C46: =SUM(C40,C42) -> 0 | D46: =SUM(D40,D42) -> 0 | E46: 0 | F46: 0 | G46: 0 | H46: 0 | I46: 0 | J46: 0 | K46: Männer | L46: =SUM(C46:J46) -> 0
B47: Gesamtsumme | C47: =SUM(C39:C42) -> 0 | D47: =SUM(D39:D42) -> 0 | E47: 0 | F47: 0 | G47: 0 | H47: 0 | I47: 0 | J47: 0 | K47: Gesamt | L47: =SUM(C47:J47) -> 0 | N47: =IF(L47>G10,"Summe KZP-Gäste zum Stichtag ist größer als verfügbare Plätze (G10) - bitte überprüfen!","") -> 
A49: Das Durchschnittsalter aller KZP-Gäste beträgt zum Stichtag | G49: Jahre. | N49: =IF(F49="","Eingabe unvollständig","") -> Eingabe unvollständig | Q49: =IF(N49="","","x") -> x
A52: Pflegebedarf (Pflegegeldeinstufung) der Kurzzeitpflegegäste | F52: =$E$3 -> zum Stichtag | G52: =$G$3 -> 2025-12-31
A54: KZP-Gäste ohne Pflegegeld bzw. tatsächliche Einstufung laut gültigem Bescheid (bei PG aus dem Ausland nach österr. Kriterien einstufen; z.B. Pflegegrad 5 Deutschland enstpricht St. 7 Öst., daher bei St. 7 eintragen)
C56: kein PG | D56: Stufe 1 | E56: Stufe 2 | F56: Stufe 3 | G56: Stufe 4 | H56: Stufe 5 | I56: Stufe 6 | J56: Stufe 7 | K56: Gesamt
A57: mit Sozialhilfeunterstützung | K57: =SUM(C57:J57) -> 0 | N57: =IF(OR(C57="",D57="",E57="",F57="",G57="",H57="",I57="",J57="")=TRUE,"Eingabe unvollständig",IF(K57<>L43,"Summe SH-Bezug stimmt nicht mit L43 überein!","")) -> Eingabe unvollständig | Q57: =IF(N57="","","x") -> x
A58: Selbstzahler:innen | K58: =SUM(C58:J58) -> 0 | N58: =IF(OR(C58="",D58="",E58="",F58="",G58="",H58="",I58="",J58="")=TRUE,"Eingabe unvollständig",IF(K58<>L44,"Summe Selbstzahler stimmt nicht mit L44 überein!","")) -> Eingabe unvollständig | Q58: =IF(N58="","","x") -> x
A59: Summe tatsächliche PG-Einst. | C59: =SUM(C57:C58) -> 0 | D59: 0 | E59: 0 | F59: 0 | G59: 0 | H59: 0 | I59: 0 | J59: 0 | K59: =SUM(C59:J59) -> 0 | N59: =IF(L47<>K59,"Summe Bewohner nach tats. PG stimmt nicht mit Summe nach Alter (L47) überein","") ->  | Q59: =IF(N59="","","x") -> 
A60: Summe inkl. erwarteten PG-Einst. | C60: =B65-C65+E73 -> 0 | D60: =B66-$C66+F73 -> 0 | E60: =B67-C67+G73 -> 0 | F60: =B68-C68+H73 -> 0 | G60: =B69-C69+I73 -> 0 | H60: =B70-C70+J73 -> 0 | I60: =B71-C71+K73 -> 0 | J60: =B72+L73 -> 0 | K60: =SUM(C60:J60) -> 0 | N60: =IF(L47<>K60,"Summe Bewohner nach erw. PG stimmt nicht mit Summe nach Alter (L47) überein","") ->  | Q60: =IF(N60="","","x") -> 
A63: alle KZP-Gäste | E63: erwartete Einstufung
A64: derzeitige PG-Stufe | B64: KZP-Gäste ohne PG bzw. lt. PG-Bescheid | C64: Anzahl offene Verfahren | E64: 0 | F64: 1 | G64: 2 | H64: 3 | I64: 4 | J64: 5 | K64: 6 | L64: 7
A65: kein PG | B65: =C59 -> 0 | M65: =SUM(F65:L65) -> 0 | N65: =IF(C65="","Eingabe unvollständig",IF(B65<C65,"Wert in Spalte C kann nicht größer sein als Wert in Spalte B",IF(C65<>M65,"Summe erwartete Einstufungen stimmt nicht mit Wert in Spalte C überein",""))) -> Eingabe unvollständig | Q65: =IF(N65="","","x") -> x
A66: 1 | B66: =D59 -> 0 | M66: 0 | N66: Eingabe unvollständig | Q66: x
A67: 2 | B67: =E59 -> 0 | M67: 0 | N67: Eingabe unvollständig | Q67: x
A68: 3 | B68: =F59 -> 0 | M68: 0 | N68: Eingabe unvollständig | Q68: x
A69: 4 | B69: =G59 -> 0 | M69: 0 | N69: Eingabe unvollständig | Q69: x
A70: 5 | B70: =H59 -> 0 | M70: 0 | N70: =IF(C70="","Eingabe unvollständig",IF(B70<C70,"Wert in Spalte C kann nicht größer sein als Wert in Spalte B",IF(C70<>M70,"Summe erwartete Einstufungen stimmt nicht mit Wert in Spalte C überein",""))) -> Eingabe unvollständig | Q70: x
A71: 6 | B71: =I59 -> 0 | M71: 0 | N71: =IF(C71="","Eingabe unvollständig",IF(B71<C71,"Wert in Spalte C kann nicht größer sein als Wert in Spalte B",IF(C71<>M71,"L74 stimmt nicht mit Wert in Spalte C überein",""))) -> Eingabe unvollständig | Q71: x
A72: 7 | B72: =J59 -> 0
B73: =SUM(B65:B72) -> 0 | C73: =SUM(C65:C71) -> 0 | E73: =SUM(E65:E72) -> 0 | F73: 0 | G73: 0 | H73: 0 | I73: 0 | J73: 0 | K73: 0 | L73: 0 | Q73: =IF(N73="","","x") -> 
K74: Kontrollsumme | L74: =SUM(E73:L73) -> 0 | N74: =IF(C73<>L74,"Kontrollsumme stimmt nicht mit C73 überein","") -> 
A78: Statistische Angaben | C78: ='1a_Langzeitpflege'!C64 -> im Jahr | D78: =$G$3 -> 2025-12-31
E79: =E80+'1a_Langzeitpflege'!F66 -> 0 | F79: BT KZP+LZP
A80: Anzahl der KZP-Bewohntage (inkl. Selbstzahler): | F80: Bewohntage | N80: =IF(E80="","Eingabe unvollständig","") -> Eingabe unvollständig | Q80: =IF(N80="","","x") -> x
F81: =IF(E79>('1_allg. Strukturdaten'!E31*365),"Summe Bewohntage KZP+LZP ist größer als max. verfügbare Plätze mal 365 Tage - bitte überprüfen!","") ->  | N81: =IF(G86=0,"",IF(E80<=G86,"Bewohntage müssen höher sein als Aufenthalte G86","")) ->  | Q81: =IF(N81="","","x") -> 
A82: Anzahl der Verrechnungstage mit den SH-Trägern: | F82: Verrechnungstage | N82: =IF(E82="","Eingabe unvollständig","") -> Eingabe unvollständig | Q82: =IF(N82="","","x") -> x
N83: =IF(E82=0,"",IF(E82<=E80,"Die Verrechnungstage können nicht höher sein als die Bewohntage","")) -> 
A84: Anzahl der KZP-Aufenthalte von Gästen mit SH-Unterstützung | H84: Aufenthalte | I84: von | K84: Personen | N84: =IF(OR(G84="",J84="")=TRUE,"Eingabe unvollständig",IF(J84>G84,"Anzahl Personen kann nicht größer sein als Aufenthalte","")) -> Eingabe unvollständig | Q84: =IF(N84="","","x") -> x
A85: Anzahl der KZP-Aufenthalte von Gästen ohne SH-Unterstützung (Selbstzahler:innen) | H85: Aufenthalte | I85: von | K85: Personen | N85: =IF(OR(G85="",J85="")=TRUE,"Eingabe unvollständig",IF(J85>G85,"Anzahl Personen kann nicht größer sein als Aufenthalte","")) -> Eingabe unvollständig | Q85: =IF(N85="","","x") -> x
A86: Summe aller KZP-Aufenthalte | G86: =SUM(G84:G85) -> 0 | H86: Aufenthalte | I86: von | J86: =SUM(J84:J85) -> 0 | K86: Personen
N87: =IF(E88>J86,"Es können nicht mehr Personen aufgenommen werden, als in J86 angegeben wurden!","") ->  | Q87: =IF(N86="","","x") -> 
A88: Von den in Kurzzeitpflege betreuten Personen wurden | F88: Personen direkt im Anschluss an die KZP als Dauerbewohner:innen aufgenommen. | N88: =IF(E88="","Eingabe unvollständig","") -> Eingabe unvollständig | Q88: =IF(N88="","","x") -> x
A89: Von den in Kurzzeitpflege betreuten Personen sind | F89: Personen während ihres KZP-Aufenthaltes verstorben. | N89: =IF(E89="","Eingabe unvollständig","") -> Eingabe unvollständig | Q89: =IF(N89="","","x") -> x
N90: =IF(E88>('1a_Langzeitpflege'!F82),"Fehler! Es wurden lt. Blatt 1a_ F82 weniger Personen in die LZP aufgenommen als in E88 angegeben!","") -> 
A91: Anzahl der KZP-Gäste nach Herkunftsbezirk
A92: Braunau | C92: Eferding | E92: Freistadt | G92: Gmunden | I92: Grieskirchen | K92: Kirchdorf | N92: =IF(OR(B92="",D92="",F92="",H92="",J92="",L92="")=TRUE,"Eingabe unvollständig","") -> Eingabe unvollständig | Q92: =IF(N92="","","x") -> x
A93: Linz-Land | C93: Perg | E93: Ried i.I. | G93: Rohrbach | I93: Schärding | K93: Steyr-Land | N93: =IF(OR(B93="",D93="",F93="",H93="",J93="",L93="")=TRUE,"Eingabe unvollständig","") -> Eingabe unvollständig | Q93: x
A94: Urfahr-Umg. | C94: Vöcklabruck | E94: Wels-Land | G94: Linz | I94: Steyr | K94: Wels | N94: =IF(OR(B94="",D94="",F94="",H94="",J94="",L94="")=TRUE,"Eingabe unvollständig","") -> Eingabe unvollständig | Q94: x
B95: andere Bundesländer | N95: =IF(C95="","Eingabe unvollständig","") -> Eingabe unvollständig | Q95: x
B96: Ausland | N96: =IF(C96="","Eingabe unvollständig","") -> Eingabe unvollständig | Q96: x
K97: Gesamt | L97: =SUM(B92:B94)+SUM(D92:D94)+SUM(F92:F94)+SUM(H92:H94)+SUM(J92:J94)+SUM(L92:L94)+SUM(C95:C96) -> 0 | N97: =IF(L97<>J86,"Anzahl stimmt nicht mit J86 überein","") -> 
C98: KZP-Gäste kommen aus der Standortgemeinde. | N98: =IF(B98="","Eingabe unvollständig",IF(MAX(Datenblatt!DD12:DU12)<B98,"Angabe höher als im eigenen Bezirk, bitte überprüfen!","")) -> Eingabe unvollständig | Q98: x
Q100: =COUNTIF(Q1:Q99,"x") -> 34

Sheet 2_Personal
A2: ERHEBUNG IN DEN OÖ. ALTEN- UND PFLEGEHEIMEN beschäftigtes/geleastes Personal
B3: ='0_Einleitung'!$E$2 -> zum Stichtag | C3: ='0_Einleitung'!$G$2 -> 2025-12-31
A4: =IF(L102>0,"Tabellenblatt nicht vollständig oder korrekt ausgefüllt! Bitte Eingaben prüfen!","") -> Tabellenblatt nicht vollständig oder korrekt ausgefüllt! Bitte Eingaben prüfen! | H4: =IF(A4="","Sie haben dieses Tabellenblatt vollständig ausgefüllt - Vielen Dank!","") -> 
A5: Personal (ohne Stiftungsteilnehmerinnen und -teilnehmer) | C5: =$B$3 -> zum Stichtag | D5: =$C$3 -> 2025-12-31
A6: Hier sind all jene Mitarbeiter:innen anzugeben, mit denen ein aufrechtes Dienstverhältnis bzw. ein Leasingvertrag besteht. (auch Personal in Langzeitkrankenstand, Sabbatical, Karenz u.ä.)
A7: Betreuung und Pflege | C7: fix angestelltes Personal | E7: Leasingpersonal / Honorarkräfte | G7: Gesamt
A8: Personal, das bei der Berechnung des Mindestpflegepersonalbedarfs (MPPB) berücksichtigt werden darf: | C8: Personen | D8: PE | E8: Personen | F8: PE | G8: Personen | H8: PE
A9: 1. Leitung des Betreuungs- und Pflegedienstes | G9: =C9+E9 -> 0 | H9: =D9+F9 -> 0 | I9: =IF(OR(C9="",D9="",E9="",F9="")=TRUE,"Eingabe unvollständig",IF(OR(C9<D9,E9<F9)=TRUE,"Anzahl PE kann nicht größer sein als Personenanzahl","")) -> Eingabe unvollständig | L9: =IF(I9="","","x") -> x
A10: 2. Angehörige des gehobenen Dienstes (DGKP) | G10: =C10+E10 -> 0 | H10: =D10+F10 -> 0 | I10: =IF(OR(C10="",D10="",E10="",F10="")=TRUE,"Eingabe unvollständig",IF(OR(C10<D10,E10<F10)=TRUE,"Anzahl PE kann nicht größer sein als Personenanzahl","")) -> Eingabe unvollständig | L10: x
A11: 3. Pflegefachassistent:innen (PFA) | G11: =C11+E11 -> 0 | H11: =D11+F11 -> 0 | I11: Eingabe unvollständig | L11: x
A12: 4. Fach-Sozialbetreuer:innen "A" (FSB "A") | G12: 0 | H12: 0 | I12: Eingabe unvollständig | L12: x
A13: 5. Fach-Sozialbetreuer:innen "BA" (FSB "BA") | G13: =C13+E13 -> 0 | H13: 0 | I13: Eingabe unvollständig | L13: x
A14: 6. Diplom-Sozialbetreuer:innen "A" (DSB "A") | G14: =C14+E14 -> 0 | H14: 0 | I14: =IF(OR(C14="",D14="",E14="",F14="")=TRUE,"Eingabe unvollständig",IF(OR(C14<D14,E14<F14)=TRUE,"Anzahl PE kann nicht größer sein als Personenanzahl","")) -> Eingabe unvollständig | L14: =IF(I14="","","x") -> x
A15: 7. Diplom-Sozialbetreuer:innen "BA" (DSB "BA") | G15: 0 | H15: 0 | I15: =IF(OR(C15="",D15="",E15="",F15="")=TRUE,"Eingabe unvollständig",IF(OR(C15<D15,E15<F15)=TRUE,"Anzahl PE kann nicht größer sein als Personenanzahl","")) -> Eingabe unvollständig | L15: =IF(I15="","","x") -> x
A16: 8. Diplom-Sozialbetreuer:innen "F" (DSB "F") | G16: 0 | H16: 0 | I16: =IF(OR(C16="",D16="",E16="",F16="")=TRUE,"Eingabe unvollständig",IF(OR(C16<D16,E16<F16)=TRUE,"Anzahl PE kann nicht größer sein als Personenanzahl","")) -> Eingabe unvollständig | L16: =IF(I16="","","x") -> x
A17: 9. Pflegeassistent:innen PA | G17: =C17+E17 -> 0 | H17: =D17+F17 -> 0 | I17: Eingabe unvollständig | L17: x
A18: 10. Heimhelfer:innen HH und Altenbetreuer:innen AB | G18: 0 | H18: 0 | I18: =IF(OR(C18="",D18="",E18="",F18="")=TRUE,"Eingabe unvollständig",IF(OR(C18<D18,E18<F18)=TRUE,"Anzahl PE kann nicht größer sein als Personenanzahl","")) -> Eingabe unvollständig | L18: x
A19: 11. Fach-Sozialbetreuer:innen "BB" (FSB "BB") | G19: 0 | H19: 0 | I19: =IF(OR(C19="",D19="",E19="",F19="")=TRUE,"Eingabe unvollständig",IF(OR(C19<D19,E19<F19)=TRUE,"Anzahl PE kann nicht größer sein als Personenanzahl","")) -> Eingabe unvollständig | L19: =IF(I19="","","x") -> x
A20: 12. Diplom-Sozialbetreuer:innen "BB" (DSB "BB") | G20: =C20+E20 -> 0 | H20: =D20+F20 -> 0 | I20: =IF(OR(C20="",D20="",E20="",F20="")=TRUE,"Eingabe unvollständig",IF(OR(C20<D20,E20<F20)=TRUE,"Anzahl PE kann nicht größer sein als Personenanzahl","")) -> Eingabe unvollständig | L20: x
A21: 13. Stützpersonal | G21: 0 | H21: 0 | I21: =IF(OR(C21="",D21="",E21="",F21="")=TRUE,"Eingabe unvollständig",IF(OR(C21<D21,E21<F21)=TRUE,"Anzahl PE kann nicht größer sein als Personenanzahl","")) -> Eingabe unvollständig | L21: x
B22: Summe 1.-13. | C22: =SUM(C9:C21) -> 0 | D22: 0 | E22: 0 | F22: 0 | G22: 0 | H22: 0
B23: davon männlich: | G23: =C23+E23 -> 0 | H23: =D23+F23 -> 0 | I23: Eingabe unvollständig | L23: x
B24: davon weiblich: | C24: =C22-C23 -> 0 | D24: =D22-D23 -> 0 | E24: =E22-E23 -> 0 | F24: =F22-F23 -> 0 | G24: =C24+E24 -> 0 | H24: =D24+F24 -> 0
A25: Personal, das bei der Berechnung des Mindestpflegepersonalbedarfs (MPPB) NICHT berücksichtigt werden darf:
A26: 14. Therapeut:innen | G26: 0 | H26: =D26+F26 -> 0 | I26: Eingabe unvollständig | L26: x
A27: 15. Hilfskräfte | G27: =C27+E27 -> 0 | H27: =D27+F27 -> 0 | I27: =IF(OR(C27="",D27="",E27="",F27="")=TRUE,"Eingabe unvollständig",IF(OR(C27<D27,E27<F27)=TRUE,"Anzahl PE kann nicht größer sein als Personenanzahl","")) -> Eingabe unvollständig | L27: =IF(I27="","","x") -> x
B28: Summe 14.-15. | C28: =SUM(C26:C27) -> 0 | D28: 0 | E28: 0 | F28: 0 | G28: 0 | H28: 0
B29: davon männlich: | G29: =C29+E29 -> 0 | H29: =D29+F29 -> 0 | I29: Eingabe unvollständig | L29: x
B30: davon weiblich: | C30: =C28-C29 -> 0 | D30: =D28-D29 -> 0 | E30: =E28-E29 -> 0 | F30: =F28-F29 -> 0 | G30: =C30+E30 -> 0 | H30: =D30+F30 -> 0
A31: Verwaltungs- und Funktionspersonal (ohne Lehrlinge, diese werden in Zeile 93 erfasst)
A32: 16. Heimleitung | G32: =C32+E32 -> 0 | H32: 0 | I32: Eingabe unvollständig | L32: x
A33: 17. Verwaltung | G33: 0 | H33: 0 | I33: Eingabe unvollständig | L33: x
A34: 18. Küche | G34: 0 | H34: 0 | I34: Eingabe unvollständig | L34: x
A35: 19. Reinigung | G35: 0 | H35: 0 | I35: Eingabe unvollständig | L35: x
A36: 20. Wäscherei | G36: 0 | H36: 0 | I36: Eingabe unvollständig | L36: x
A37: 21. Haustechnik | G37: 0 | H37: 0 | I37: Eingabe unvollständig | L37: x
B38: Summe 16.-21. | C38: =SUM(C32:C37) -> 0 | D38: 0 | E38: 0 | F38: 0 | G38: 0 | H38: 0
B39: davon männlich: | G39: =C39+E39 -> 0 | H39: =D39+F39 -> 0 | I39: Eingabe unvollständig | L39: x
B40: davon weiblich: | C40: =C38-C39 -> 0 | D40: =D38-D39 -> 0 | E40: =E38-E39 -> 0 | F40: =F38-F39 -> 0 | G40: =C40+E40 -> 0 | H40: =D40+F40 -> 0
B41: Gesamtsumme | C41: =C38+C28+C22 -> 0 | D41: 0 | E41: 0 | F41: 0 | G41: 0 | H41: 0
B42: davon männlich: | C42: 0 | D42: 0 | E42: 0 | F42: 0 | G42: 0 | H42: 0
B43: davon weiblich: | C43: 0 | D43: 0 | E43: 0 | F43: 0 | G43: 0 | H43: 0
C45: fix angestelltes Personal | E45: Leasingpersonal / Honorarkräfte
B46: Personal gesamt (in Personen) | C46: männlich | D46: weiblich | E46: männlich | F46: weiblich | G46: gesamt
B47: Summe | C47: =C42 -> 0 | D47: =C43 -> 0 | E47: =E42 -> 0 | F47: =E43 -> 0 | G47: =SUM(C47:F47) -> 0
A50: Überstunden, Krankenstände und Urlaube | B50: ='1a_Langzeitpflege'!$C$64 -> im Jahr | C50: ='1b_Kurzzeitpflege'!$D$78 -> 2025-12-31 | D50: im Bereich des Pflegepersonals Pkt. 1.-13.
A51: betrifft nur Pflegepersonal Pkt. 1. bis 13.!
A52: Anzahl der ins Jahr 2026 übertragenen Über- bzw. Mehrstunden (Summe in Stunden) | G52: Durchschnitt je beschäft. MA (1.-13.) | I52: =IF(C52="","Eingabe unvollständig","") -> Eingabe unvollständig | L52: x
A53: Anzahl der im Jahr 2025 ausbezahlten Über- bzw. Mehrstunden (Summe in Stunden) | D53: Summe | E53: =C52+C53 -> 0 | G53: =IF(E53=0,"",E53/C22) ->  | H53: Stunden | I53: =IF(C53="","Eingabe unvollständig","") -> Eingabe unvollständig | L53: x
A54: Anzahl der Krankenstandstage | G54: =IF(C54="","",C54/C22) ->  | H54: Tage | I54: =IF(C54="","Eingabe unvollständig",IF(C54-INT(C54)<>0,"Bitte nur ganze Tage angeben!","")) -> Eingabe unvollständig | L54: x
A55: Resturlaub in Tagen | G55: =IF(C55="","",C55/C22) ->  | H55: Tage | I55: =IF(C55="","Eingabe unvollständig",IF(C55-INT(C55)<>0,"Bitte nur ganze Tage angeben!","")) -> Eingabe unvollständig | L55: x
A58: Fluktuation (ohne Leasingpersonal) | B58: ='1a_Langzeitpflege'!$C$64 -> im Jahr | C58: ='1b_Kurzzeitpflege'!$D$78 -> 2025-12-31
C60: Anzahl der Personen
A61: Begründung Dienstverhältnis aufgrund (gekommen von ...) | C61: DGKP inkl. LBPD | D61: PFA | E61: FSB & DSB | F61: PA | G61: HH | H61: Stützpers.
A62: einem Heim des selbenTrägers | I62: =IF(OR(C62="",D62="",E62="",F62="",G62="",H62="")=TRUE,"Eingabe unvollständig","") -> Eingabe unvollständig | L62: x | M62: =SUM(C62:H62) -> 0
A63: einem Heim eines anderen Trägers | I63: =IF(OR(C63="",D63="",E63="",F63="",G63="",H63="")=TRUE,"Eingabe unvollständig","") -> Eingabe unvollständig | L63: x | M63: =SUM(C63:H63) -> 0
A64: den Mobilen Diensten | I64: =IF(OR(C64="",D64="",E64="",F64="",G64="",H64="")=TRUE,"Eingabe unvollständig","") -> Eingabe unvollständig | L64: x | M64: 0
A65: einer Einrichtung d. Gesundheitsbereichs (z.B. Krankenanstalt, Praxis, Kuranstalt, Institut) | I65: Eingabe unvollständig | L65: x | M65: 0
A66: einer Einrichtung für Menschen mit Beeinträchtigungen | I66: Eingabe unvollständig | L66: x | M66: 0
A67: Sonstigem (z.B. anderes Berufsfeld, Privatfirmen, Anwerbung aus dem Ausland, etc.) | I67: Eingabe unvollständig | L67: x | M67: 0
A68: direkt nach Beendigung einer Ausbildung | I68: Eingabe unvollständig | L68: x | M68: 0
A69: Wiedereinsteiger:innen | I69: Eingabe unvollständig | L69: x | M69: 0
A70: von Karenz* zurückgekommen | I70: Eingabe unvollständig | L70: x | M70: 0
C71: Anzahl der Personen
A72: Auflösung/Ende Dienstverhältnis wegen Wechsel ... | C72: DGKP inkl. LBPD | D72: PFA | E72: FSB & DSB | F72: PA | G72: HH | H72: Stützpers.
A73: in ein Heim des selben Trägers | I73: Eingabe unvollständig | L73: =IF(I73="","","x") -> x | M73: =SUM(C73:H73) -> 0
A74: in ein Heim eines anderen Trägers | I74: Eingabe unvollständig | L74: x | M74: =SUM(C74:H74) -> 0
A75: zu den Mobilen Diensten | I75: Eingabe unvollständig | L75: x | M75: 0
A76: einer Einrichtung d. Gesundheitsbereichs (z.B. Krankenanstalt, Praxis, Kuranstalt, Institut) | I76: Eingabe unvollständig | L76: x | M76: 0
A77: einer Einrichtung für Menschen mit Beeinträchtigungen | I77: Eingabe unvollständig | L77: x | M77: 0
A78: zu Sonstigem (z.B. anderes Berufsfeld, Privatfirmen etc.) | I78: Eingabe unvollständig | L78: x | M78: 0
A79: wegen einer Ausbildung | I79: Eingabe unvollständig | L79: x | M79: 0
A80: wegen Ende der Befristung des Dienstverhältnisses | I80: Eingabe unvollständig | L80: x | M80: 0
A81: weiterer Berufsweg unbekannt bzw. sonstige Gründe (z.B. Tod) | I81: Eingabe unvollständig | L81: x | M81: 0
A82: Pensionierung | I82: Eingabe unvollständig | L82: x | M82: 0
A83: ganzjährig in Karenz* | I83: Eingabe unvollständig | L83: x | M83: 0
A84: in Karenz* gegangen | I84: Eingabe unvollständig | L84: x | M84: 0
A85: (*Karenz aufgrund der Geburt eines Kindes oder Bildungskarenz)
A88: Zusätzlich tätige Personen | B88: ='1a_Langzeitpflege'!$C$64 -> im Jahr | C88: ='1b_Kurzzeitpflege'!$D$78 -> 2025-12-31
A90: Sonstige Personen | B90: Anz. d. Personen
A91: Zivildiener | I91: =IF(B91="","Eingabe unvollständig","") -> Eingabe unvollständig | L91: x
A92: Lehrlinge | I92: =IF(B92="","Eingabe unvollständig","") -> Eingabe unvollständig | L92: =IF(I92="","","x") -> x
A93: Freiwilliges soziales Jahr | I93: Eingabe unvollständig | L93: x
A94: Freiwillige / Ehrenamtliche | I94: Eingabe unvollständig | L94: x
B95: =SUM(B91:B94) -> 0
A97: Pflegelehre | B97: =$B$3 -> zum Stichtag | C97: =$C$3 -> 2025-12-31
A99: Anzahl der Pflegelehrlinge im APH | I99: =IF(C99="","Eingabe unvollständig","") -> Eingabe unvollständig | L99: x
A100: Ist das APH als Lehrbetrieb für die Pflegelehre nach § 3a BAG zugelassen? | I100: =IF(C100="","Eingabe unvollständig","") -> Eingabe unvollständig | L100: x
L102: =COUNTIF(L1:L101,"x") -> 55

Sheet 4_Pflegepersonalbedarf 2025
A2: ERHEBUNG IN DEN OÖ. ALTEN- UND PFLEGEHEIMEN Mindestpflegepersonalbedarf MPPB Pflegepersonal in Langzeit-Krankenstand ist hier abzuziehen!
I3: =J6 -> 2025-12-31
A5: =IF(Y301>0,"Tabellenblatt nicht vollständig oder korrekt ausgefüllt! Bitte Eingaben prüfen!","") -> Tabellenblatt nicht vollständig oder korrekt ausgefüllt! Bitte Eingaben prüfen! | Q5: =IF(A5="","Sie haben dieses Tabellenblatt vollständig ausgefüllt - Vielen Dank!","") -> 
A6: PFLEGEBEDARF aller Heimbewohnerinnen und -bewohner inkl. Kurzzeitpflegegäste | I6: ='1a_Langzeitpflege'!$C$64 -> im Jahr | J6: ='1a_Langzeitpflege'!$D$64 -> 2025-12-31 | K6: zum jeweiligen Stichtag
A8: 1. | B8: Halbjahr | C8: =I3 -> 2025-12-31
D9: =IF(D10=40,"wenn weniger als 40-Std-Woche, dann bitte Wert in D10 bzw. D11 ändern!","") -> wenn weniger als 40-Std-Woche, dann bitte Wert in D10 bzw. D11 ändern!
A10: Wochenstunden einer vollbeschäftigten Pflegekraft lt. Dienstvertrag: | D10: 40 | E10: Std. | F10: Berücksichtigung des 40tels (außer FSB A) | H10: Nein | R10: =IF(D10="","Eingabe unvollständig","") ->  | Y10: =IF(R10="","","x") -> 
A11: Wochenstunden einer vollbeschäftigten FSB A lt. Dienstvertrag: | D11: 40 | E11: Std. | F11: Berücksichtigung der Bonuswoche der FSB A | H11: Nein | R11: =IF(D11="","Eingabe unvollständig","") -> 
D13: 31.1. | E13: =I3 -> 2025-12-31 | F13: 28.2. | G13: =I3 -> 2025-12-31 | H13: 31.3. | I13: =I3 -> 2025-12-31 | J13: 30.4. | K13: =I3 -> 2025-12-31 | L13: 31.5. | M13: =I3 -> 2025-12-31 | N13: 30.6. | O13: =I3 -> 2025-12-31 | P13: Durchschnitt 1. HJ
B14: Schlüssel | C14: PG-Stufe | D14: Personal- bedarf lt. PG-Bescheid | E14: Personal- bedarf nach erwarteter PG-Einstufung | F14: Personal- bedarf lt. PG-Bescheid | G14: Personal- bedarf nach erwarteter PG-Einstufung | H14: Personal- bedarf lt. PG-Bescheid | I14: Personal- bedarf nach erwarteter PG-Einstufung | J14: Personal- bedarf lt. PG-Bescheid | K14: Personal- bedarf nach erwarteter PG-Einstufung | L14: Personal- bedarf lt. PG-Bescheid | M14: Personal- bedarf nach erwarteter PG-Einstufung | N14: Personal- bedarf lt. PG-Bescheid | O14: Personal- bedarf nach erwarteter PG-Einstufung | P14: Personal- bedarf lt. PG-Bescheid | Q14: Personal- bedarf nach erwarteter PG-Einstufung
B15: 24 | C15: kein PG | D15: =$B34/$B15*40/$D$10 -> 0 | E15: =($B34-$C34+E$42)/$B15*40/$D$10 -> 0 | F15: =$B47/$B15*40/$D$10 -> 0 | G15: =($B47-$C47+E$55)/$B15*40/$D$10 -> 0 | H15: =$B60/$B15*40/$D$10 -> 0 | I15: =($B60-$C60+$E68)/$B15*40/$D$10 -> 0 | J15: =$B73/$B15*40/$D$10 -> 0 | K15: =($B73-$C73+E$81)/$B15*40/$D$10 -> 0 | L15: =$B86/$B15*40/$D$10 -> 0 | M15: =($B86-$C86+E$94)/$B15*40/$D$10 -> 0 | N15: =$B99/$B15*40/$D$10 -> 0 | O15: =($B99-$C99+E$107)/$B15*40/$D$10 -> 0 | P15: =(D15+F15+H15+J15+L15+N15)/$Z$21 ->  | Q15: =(E15+G15+I15+K15+M15+O15)/$Z$21 ->  | Z15: =IF(D23<>0,1,0) -> 0
B16: 12 | C16: 1 | D16: 0 | E16: =($B35-$C35+F$42)/$B16*40/$D$10 -> 0 | F16: 0 | G16: =($B48-$C48+F$55)/$B16*40/$D$10 -> 0 | H16: 0 | I16: =($B61-$C61+$F68)/$B16*40/$D$10 -> 0 | J16: 0 | K16: =($B74-$C74+F$81)/$B16*40/$D$10 -> 0 | L16: 0 | M16: =($B87-$C87+F$94)/$B16*40/$D$10 -> 0 | N16: 0 | O16: =($B100-$C100+F$107)/$B16*40/$D$10 -> 0 | P16: =(D16+F16+H16+J16+L16+N16)/$Z$21 ->  | Q16: =(E16+G16+I16+K16+M16+O16)/$Z$21 ->  | Z16: =IF(F23<>0,1,0) -> 0
B17: 7.5 | C17: 2 | D17: 0 | E17: =($B36-$C36+G$42)/$B17*40/$D$10 -> 0 | F17: 0 | G17: =($B49-$C49+G$55)/$B17*40/$D$10 -> 0 | H17: 0 | I17: =($B62-$C62+$G68)/$B17*40/$D$10 -> 0 | J17: 0 | K17: =($B75-$C75+G$81)/$B17*40/$D$10 -> 0 | L17: 0 | M17: =($B88-$C88+G$94)/$B17*40/$D$10 -> 0 | N17: 0 | O17: =($B101-$C101+G$107)/$B17*40/$D$10 -> 0 | P17: =(D17+F17+H17+J17+L17+N17)/$Z$21 ->  | Z17: =IF(H23<>0,1,0) -> 0
B18: 4 | C18: 3 | D18: 0 | E18: =($B37-$C37+H$42)/$B18*40/$D$10 -> 0 | F18: 0 | G18: =($B50-$C50+H$55)/$B18*40/$D$10 -> 0 | H18: 0 | I18: =($B63-$C63+$H68)/$B18*40/$D$10 -> 0 | J18: 0 | K18: =($B76-$C76+H$81)/$B18*40/$D$10 -> 0 | L18: 0 | M18: =($B89-$C89+H$94)/$B18*40/$D$10 -> 0 | N18: 0 | O18: =($B102-$C102+H$107)/$B18*40/$D$10 -> 0 | Z18: =IF(J23<>0,1,0) -> 0
B19: 2.5 | C19: 4 | D19: 0 | E19: =($B38-$C38+I$42)/$B19*40/$D$10 -> 0 | F19: 0 | G19: =($B51-$C51+I$55)/$B19*40/$D$10 -> 0 | H19: 0 | I19: =($B64-$C64+$I68)/$B19*40/$D$10 -> 0 | J19: 0 | K19: =($B77-$C77+I$81)/$B19*40/$D$10 -> 0 | L19: 0 | M19: =($B90-$C90+I$94)/$B19*40/$D$10 -> 0 | N19: 0 | O19: =($B103-$C103+I$107)/$B19*40/$D$10 -> 0 | Z19: =IF(L23<>0,1,0) -> 0
B20: 2 | C20: 5 | D20: 0 | E20: =($B39-$C39+J$42)/$B20*40/$D$10 -> 0 | F20: 0 | G20: =($B52-$C52+J$55)/$B20*40/$D$10 -> 0 | H20: 0 | I20: =($B65-$C65+$J68)/$B20*40/$D$10 -> 0 | J20: 0 | K20: =($B78-$C78+J$81)/$B20*40/$D$10 -> 0 | L20: 0 | M20: =($B91-$C91+J$94)/$B20*40/$D$10 -> 0 | N20: 0 | O20: =($B104-$C104+J$107)/$B20*40/$D$10 -> 0 | Z20: =IF(N23<>0,1,0) -> 0
B21: 1.5 | C21: 6 | D21: 0 | E21: =($B40-$C40+K$42)/$B21*40/$D$10 -> 0 | F21: 0 | G21: =($B53-$C53+K$55)/$B21*40/$D$10 -> 0 | H21: 0 | I21: =($B66-$C66+$K68)/$B21*40/$D$10 -> 0 | J21: 0 | K21: =($B79-$C79+K$81)/$B21*40/$D$10 -> 0 | L21: 0 | M21: =($B92-$C92+K$94)/$B21*40/$D$10 -> 0 | N21: 0 | O21: =($B105-$C105+K$107)/$B21*40/$D$10 -> 0 | Z21: =SUM(Z15:Z20) -> 0
B22: 1.5 | C22: 7 | D22: 0 | E22: =($B41-$C41+L$42)/$B22*40/$D$10 -> 0 | F22: 0 | G22: =($B54-$C54+L$55)/$B22*40/$D$10 -> 0 | H22: 0 | I22: =($B67-$C67+$L68)/$B22*40/$D$10 -> 0 | J22: 0 | K22: =($B80-$C80+L$81)/$B22*40/$D$10 -> 0 | L22: 0 | M22: =($B93-$C93+L$94)/$B22*40/$D$10 -> 0 | N22: 0 | O22: =($B106-$C106+L$107)/$B22*40/$D$10 -> 0
C23: MPPB | D23: =SUM(D15:D22) -> 0 | E23: 0 | F23: 0 | G23: 0 | H23: 0 | I23: 0 | J23: 0 | K23: 0 | L23: 0 | M23: 0 | N23: 0 | O23: 0 | P23: =(D23+F23+H23+J23+L23+N23)/$Z$21 ->  | Q23: =(E23+G23+I23+K23+M23+O23)/$Z$21 -> 
C24: anrechenb. Pflegepersonal / Erfüllungsgrad: | D24: =E129 -> 0 | E24: =D24/E23 ->  | F24: =G129 -> 0 | G24: =F24/G23 ->  | H24: =I129 -> 0 | I24: =H24/I23 ->  | J24: =K129 -> 0 | K24: =J24/K23 ->  | L24: =M129 -> 0 | M24: =L24/M23 ->  | N24: =O129 -> 0 | O24: =N24/O23 ->  | P24: =(D24+F24+H24+J24+L24+N24)/$Z$21 ->  | Q24: =P24/Q23 -> 
C25: Bewohneranzahl / offene Verfahren: | D25: =B42 -> 0 | E25: =C42 -> 0 | F25: =B55 -> 0 | G25: =C55 -> 0 | H25: =B68 -> 0 | I25: =C68 -> 0 | J25: =B81 -> 0 | K25: =C81 -> 0 | L25: =B94 -> 0 | M25: =C94 -> 0 | N25: =B107 -> 0 | O25: =C107 -> 0
O26: Pflegeintensität (Verhältnis Pflegepersonaleinheit-SOLL zu HB) | P26: 1 : | Q26: =((B42+B55+B68+B81+B94+B107)/$Z$21)/Q23 -> 
O27: (diese Kennzahl ist der Indikator für den durchschnittlichen Pflegebedarf aller HB,
O28: die Berechnung einer durchschnittlichen Pflegegeld-Stufe ist nicht zulässig!)
B30: bitte Pflegegeld-Angaben (Summe LZP + KZP) zum Stichtag eintragen!
A31: =D13 -> 31.1. | Y31: =IF(R31="","","x") -> 
A32: derzeitige PG-Stufe | B32: Personen ohne PG bzw. lt. PG-Bescheid | C32: Anzahl offene Verfahren | E32: erwartete Einstufung
E33: 0 | F33: 1 | G33: 2 | H33: 3 | I33: 4 | J33: 5 | K33: 6 | L33: 7
A34: 0 | R34: =IF(OR(B34="",C34="")=TRUE,"Eingabe unvollständig",IF(B34<C34,"Wert in Spalte C kann nicht größer sein als jener in Spalte B","")) -> Eingabe unvollständig | Y34: =IF(R34="","","x") -> x
A35: 1 | R35: =IF(OR(B35="",C35="")=TRUE,"Eingabe unvollständig",IF(B35<C35,"Wert in Spalte C kann nicht größer sein als jener in Spalte B","")) -> Eingabe unvollständig | Y35: x
A36: 2 | R36: Eingabe unvollständig | Y36: x
A37: 3 | R37: Eingabe unvollständig | Y37: x
A38: 4 | R38: Eingabe unvollständig | Y38: x
A39: 5 | R39: Eingabe unvollständig | Y39: x
A40: 6 | R40: Eingabe unvollständig | Y40: x
A41: 7 | M41: Summe | R41: =IF(B41="","Eingabe unvollständig","") -> Eingabe unvollständig | Y41: x
B42: =SUM(B34:B41) -> 0 | C42: =SUM(C34:C41) -> 0 | E42: =SUM(E34:E41) -> 0 | F42: 0 | G42: 0 | H42: 0 | I42: 0 | J42: 0 | K42: 0 | L42: 0 | M42: =SUM(E42:L42) -> 0 | R42: =IF(C42<>M42,"Summe in C42 muss gleich hoch sein wie Summe in M42","") -> 
A44: =F13 -> 28.2.
A45: derzeitige PG-Stufe | B45: Personen ohne PG bzw. lt. PG-Bescheid | C45: Anzahl offene Verfahren | E45: erwartete Einstufung
E46: 0 | F46: 1 | G46: 2 | H46: 3 | I46: 4 | J46: 5 | K46: 6 | L46: 7
A47: 0 | R47: =IF(OR(B47="",C47="")=TRUE,"Eingabe unvollständig",IF(B47<C47,"Wert in Spalte C kann nicht größer sein als jener in Spalte B","")) -> Eingabe unvollständig | Y47: =IF(R47="","","x") -> x
A48: 1 | R48: Eingabe unvollständig | Y48: x
A49: 2 | R49: Eingabe unvollständig | Y49: x
A50: 3 | R50: Eingabe unvollständig | Y50: x
A51: 4 | R51: Eingabe unvollständig | Y51: x
A52: 5 | R52: Eingabe unvollständig | Y52: x
A53: 6 | R53: Eingabe unvollständig | Y53: x
A54: 7 | M54: Summe | R54: =IF(B54="","Eingabe unvollständig","") -> Eingabe unvollständig | Y54: x
B55: =SUM(B47:B54) -> 0 | C55: =SUM(C47:C54) -> 0 | E55: =SUM(E47:E54) -> 0 | F55: 0 | G55: 0 | H55: 0 | I55: 0 | J55: 0 | K55: 0 | L55: 0 | M55: =SUM(E55:L55) -> 0 | R55: =IF(C55<>M55,"Summe in C55 muss gleich hoch sein wie Summe in M55","") -> 
A57: =H13 -> 31.3.
A58: derzeitige PG-Stufe | B58: Personen ohne PG bzw. lt. PG-Bescheid | C58: Anzahl offene Verfahren | E58: erwartete Einstufung
E59: 0 | F59: 1 | G59: 2 | H59: 3 | I59: 4 | J59: 5 | K59: 6 | L59: 7
A60: 0 | R60: =IF(OR(B60="",C60="")=TRUE,"Eingabe unvollständig",IF(B60<C60,"Wert in Spalte C kann nicht größer sein als jener in Spalte B","")) -> Eingabe unvollständig | Y60: =IF(R60="","","x") -> x
A61: 1 | R61: Eingabe unvollständig | Y61: x
A62: 2 | R62: Eingabe unvollständig | Y62: x
A63: 3 | R63: Eingabe unvollständig | Y63: x
A64: 4 | R64: Eingabe unvollständig | Y64: x
A65: 5 | R65: Eingabe unvollständig | Y65: x
A66: 6 | R66: Eingabe unvollständig | Y66: x
A67: 7 | M67: Summe | R67: =IF(B67="","Eingabe unvollständig","") -> Eingabe unvollständig | Y67: =IF(R67="","","x") -> x
B68: =SUM(B60:B67) -> 0 | C68: =SUM(C60:C67) -> 0 | E68: =SUM(E60:E67) -> 0 | F68: 0 | G68: 0 | H68: 0 | I68: 0 | J68: 0 | K68: 0 | L68: 0 | M68: =SUM(E68:L68) -> 0 | R68: =IF(C68<>M68,"Summe in C68 muss gleich hoch sein wie Summe in M68","") -> 
A70: =J13 -> 30.4.
A71: derzeitige PG-Stufe | B71: Personen ohne PG bzw. lt. PG-Bescheid | C71: Anzahl offene Verfahren | E71: erwartete Einstufung
E72: 0 | F72: 1 | G72: 2 | H72: 3 | I72: 4 | J72: 5 | K72: 6 | L72: 7
A73: 0 | R73: =IF(OR(B73="",C73="")=TRUE,"Eingabe unvollständig",IF(B73<C73,"Wert in Spalte C kann nicht größer sein als jener in Spalte B","")) -> Eingabe unvollständig | Y73: x
A74: 1 | R74: Eingabe unvollständig | Y74: x
A75: 2 | R75: Eingabe unvollständig | Y75: x
A76: 3 | R76: Eingabe unvollständig | Y76: x
A77: 4 | R77: Eingabe unvollständig | Y77: x
A78: 5 | R78: Eingabe unvollständig | Y78: x
A79: 6 | R79: Eingabe unvollständig | Y79: x
A80: 7 | M80: Summe | R80: =IF(B80="","Eingabe unvollständig","") -> Eingabe unvollständig | Y80: x
B81: =SUM(B73:B80) -> 0 | C81: =SUM(C73:C80) -> 0 | E81: =SUM(E73:E80) -> 0 | F81: 0 | G81: 0 | H81: 0 | I81: 0 | J81: 0 | K81: 0 | L81: 0 | M81: =SUM(E81:L81) -> 0 | R81: =IF(C81<>M81,"Summe in C81 muss gleich hoch sein wie Summe in M81","") -> 
A83: =L13 -> 31.5.
A84: derzeitige PG-Stufe | B84: Personen ohne PG bzw. lt. PG-Bescheid | C84: Anzahl offene Verfahren | E84: erwartete Einstufung
E85: 0 | F85: 1 | G85: 2 | H85: 3 | I85: 4 | J85: 5 | K85: 6 | L85: 7
A86: 0 | R86: =IF(OR(B86="",C86="")=TRUE,"Eingabe unvollständig",IF(B86<C86,"Wert in Spalte C kann nicht größer sein als jener in Spalte B","")) -> Eingabe unvollständig | Y86: x
A87: 1 | R87: Eingabe unvollständig | Y87: x
A88: 2 | R88: Eingabe unvollständig | Y88: x
A89: 3 | R89: Eingabe unvollständig | Y89: x
A90: 4 | R90: Eingabe unvollständig | Y90: x
A91: 5 | R91: Eingabe unvollständig | Y91: x
A92: 6 | R92: Eingabe unvollständig | Y92: x
A93: 7 | M93: Summe | R93: =IF(B93="","Eingabe unvollständig","") -> Eingabe unvollständig | Y93: x
B94: =SUM(B86:B93) -> 0 | C94: =SUM(C86:C93) -> 0 | E94: =SUM(E86:E93) -> 0 | F94: 0 | G94: 0 | H94: 0 | I94: 0 | J94: 0 | K94: 0 | L94: 0 | M94: =SUM(E94:L94) -> 0 | R94: =IF(C94<>M94,"Summe in C94 muss gleich hoch sein wie Summe in M94","") -> 
A96: =N13 -> 30.6.
A97: derzeitige PG-Stufe | B97: Personen ohne PG bzw. lt. PG-Bescheid | C97: Anzahl offene Verfahren | E97: erwartete Einstufung
E98: 0 | F98: 1 | G98: 2 | H98: 3 | I98: 4 | J98: 5 | K98: 6 | L98: 7
A99: 0 | R99: =IF(OR(B99="",C99="")=TRUE,"Eingabe unvollständig",IF(B99<C99,"Wert in Spalte C kann nicht größer sein als jener in Spalte B","")) -> Eingabe unvollständig | Y99: x
A100: 1 | R100: Eingabe unvollständig | Y100: x
A101: 2 | R101: Eingabe unvollständig | Y101: x
A102: 3 | R102: Eingabe unvollständig | Y102: x
A103: 4 | R103: Eingabe unvollständig | Y103: x
A104: 5 | R104: Eingabe unvollständig | Y104: x
A105: 6 | R105: Eingabe unvollständig | Y105: x
A106: 7 | M106: Summe | R106: =IF(B106="","Eingabe unvollständig","") -> Eingabe unvollständig | Y106: x
B107: =SUM(B99:B106) -> 0 | C107: =SUM(C99:C106) -> 0 | E107: =SUM(E99:E106) -> 0 | F107: 0 | G107: 0 | H107: 0 | I107: 0 | J107: 0 | K107: 0 | L107: 0 | M107: =SUM(E107:L107) -> 0 | R107: =IF(C107<>M107,"Summe in C107 muss gleich hoch sein wie Summe in M107","") -> 
A109: BETREUUNGS- und PFLEGEPERSONAL (inkl. Leasingpersonal und Poolkräfte) am jeweiligen Stichtag | J109: =I3 -> 2025-12-31
A110: Pflegepersonal in Langzeit-Krankenstand ist hier nicht anzugeben, auch nicht Pflegepersonal in Altersteilzeit-Freizeitphase oder Sabbatical (jew. ab Beginn)!
A111: Werdende Mütter mit Eintritt in das sechste Schwangerschaftsmonat sind nur mehr zu 50 % ihres Beschäftigungsausmaßes zu berücksichtigen.
D112: bitte Personalangaben und KZP-Gäste zum Stichtag eintragen!
D113: =D13 -> 31.1. | E113: =I3 -> 2025-12-31 | F113: =F13 -> 28.2. | G113: =I3 -> 2025-12-31 | H113: =H13 -> 31.3. | I113: =I3 -> 2025-12-31 | J113: =J13 -> 30.4. | K113: =I3 -> 2025-12-31 | L113: =L13 -> 31.5. | M113: =I3 -> 2025-12-31 | N113: =N13 -> 30.6. | O113: =I3 -> 2025-12-31
D114: Personen | E114: PE | F114: Personen | G114: PE | H114: Personen | I114: PE | J114: Personen | K114: PE | L114: Personen | M114: PE | N114: Personen | O114: PE
A115: Leitung des Betr.- und Pflegedienstes | R115: =IF(OR(D115="",E115="",F115="",G115="",H115="",I115="",J115="",K115="",L115="",M115="",N115="",O115="")=TRUE,"Eingabe unvollständig","") -> Eingabe unvollständig | Y115: x
A116: Angehörige des gehobenen Dienstes DGKP | R116: =IF(OR(D116="",E116="",F116="",G116="",H116="",I116="",J116="",K116="",L116="",M116="",N116="",O116="")=TRUE,"Eingabe unvollständig","") -> Eingabe unvollständig | Y116: x
A117: Pflegefachassistent:innen PFA | R117: =IF(OR(D117="",E117="",F117="",G117="",H117="",I117="",J117="",K117="",L117="",M117="",N117="",O117="")=TRUE,"Eingabe unvollständig","") -> Eingabe unvollständig | Y117: x
A118: Fach-Sozialbetreuer:innen "A" | R118: =IF(OR(D118="",E118="",F118="",G118="",H118="",I118="",J118="",K118="",L118="",M118="",N118="",O118="")=TRUE,"Eingabe unvollständig","") -> Eingabe unvollständig | Y118: x
A119: Fach-Sozialbetreuer:innen "BA" | R119: Eingabe unvollständig | Y119: =IF(R119="","","x") -> x
A120: Diplom. Sozialbetreuer:innen "A" | R120: Eingabe unvollständig | Y120: =IF(R120="","","x") -> x
A121: Diplom. Sozialbetreuer:innen "BA" | R121: Eingabe unvollständig | Y121: =IF(R121="","","x") -> x
A122: Diplom. Sozialbetreuer:innen "F" | R122: Eingabe unvollständig | Y122: =IF(R122="","","x") -> x
A123: Pflegeassistent:innen PA | R123: Eingabe unvollständig | Y123: x
A124: Heimhelfer:innen HH und Altenbetreuer:innen AB | R124: Eingabe unvollständig | Y124: x
A125: Fach-Sozialbetreuer:innen "BB" | R125: Eingabe unvollständig | Y125: =IF(R125="","","x") -> x
A126: Diplom. Sozialbetreuer:innen "BB" | R126: Eingabe unvollständig | Y126: x
A127: Stützpersonal | R127: Eingabe unvollständig | Y127: x
A128: Summe Pflegepersonal | D128: =SUM(D115:D127) -> 0 | E128: 0 | F128: 0 | G128: 0 | H128: 0 | I128: 0 | J128: 0 | K128: 0 | L128: 0 | M128: 0 | N128: 0 | O128: 0 | P128: PE
A129: Summe anrechenbares Pflegepersonal | E129: =IF(AND($D$10=40,$H$10="Ja"),SUM(E130:E133)+(SUM(E119:E123)/$D$10*39.2),SUM(E130:E133)+SUM(E119:E123)) -> 0 | G129: =IF(AND($D$10=40,$H$10="Ja"),SUM(G130:G133)+(SUM(G119:G123)/$D$10*39.2),SUM(G130:G133)+SUM(G119:G123)) -> 0 | I129: =IF(AND($D$10=40,$H$10="Ja"),SUM(I130:I133)+(SUM(I119:I123)/$D$10*39.2),SUM(I130:I133)+SUM(I119:I123)) -> 0 | K129: =IF(AND($D$10=40,$H$10="Ja"),SUM(K130:K133)+(SUM(K119:K123)/$D$10*39.2),SUM(K130:K133)+SUM(K119:K123)) -> 0 | M129: =IF(AND($D$10=40,$H$10="Ja"),SUM(M130:M133)+(SUM(M119:M123)/$D$10*39.2),SUM(M130:M133)+SUM(M119:M123)) -> 0 | O129: =IF(AND($D$10=40,$H$10="Ja"),SUM(O130:O133)+(SUM(O119:O123)/$D$10*39.2),SUM(O130:O133)+SUM(O119:O123)) -> 0 | P129: PE | R129: =IF(D11="","Eintrag in D11 fehlt!","") -> 
A130: Summe anrechenbare DGKP/PFA | E130: =IF(AND($D$10=40,$H$10="Ja"),SUM(E116,E117)/$D$10*39.2,SUM(E116,E117)) -> 0 | G130: =IF(AND($D$10=40,$H$10="Ja"),SUM(G116,G117)/$D$10*39.2,SUM(G116,G117)) -> 0 | I130: =IF(AND($D$10=40,$H$10="Ja"),SUM(I116,I117)/$D$10*39.2,SUM(I116,I117)) -> 0 | K130: =IF(AND($D$10=40,$H$10="Ja"),SUM(K116,K117)/$D$10*39.2,SUM(K116,K117)) -> 0 | M130: =IF(AND($D$10=40,$H$10="Ja"),SUM(M116,M117)/$D$10*39.2,SUM(M116,M117)) -> 0 | O130: =IF(AND($D$10=40,$H$10="Ja"),SUM(O116,O117)/$D$10*39.2,SUM(O116,O117)) -> 0 | P130: PE
A131: Summe anrechenbare FSB "A" | E131: =IF(OR($D$11="40",$H$11="Ja"),(E118/$D$11*39),IF(OR($D$11="39",$H$11="Nein"),E118/$D$10*$D$11)) -> 0 | G131: =IF(OR($D$11="40",$H$11="Ja"),(G118/$D$11*39),IF(OR($D$11="39",$H$11="Nein"),G118/$D$10*$D$11)) -> 0 | I131: =IF(OR($D$11="40",$H$11="Ja"),(I118/$D$11*39),IF(OR($D$11="39",$H$11="Nein"),I118/$D$10*$D$11)) -> 0 | K131: =IF(OR($D$11="40",$H$11="Ja"),(K118/$D$11*39),IF(OR($D$11="39",$H$11="Nein"),K118/$D$10*$D$11)) -> 0 | M131: =IF(OR($D$11="40",$H$11="Ja"),(M118/$D$11*39),IF(OR($D$11="39",$H$11="Nein"),M118/$D$10*$D$11)) -> 0 | O131: =IF(OR($D$11="40",$H$11="Ja"),(O118/$D$11*39),IF(OR($D$11="39",$H$11="Nein"),O118/$D$10*$D$11)) -> 0 | P131: PE
A132: Summe anrechenbare HH, AB, FSB "BB", DSB "BB" | E132: =IF(AND($D$10=40,$H$10="Ja",SUM(E124:E126)>E144),E144,IF(AND($D$10=40,$H$10="Ja",SUM(E124:E126)<E144),(SUM(E124:E126)/$D$10*39.2),IF(SUM(E124:E126)>E144,E144,SUM(E124:E126)))) -> 0 | G132: =IF(AND($D$10=40,$H$10="Ja",SUM(G124:G126)>G144),G144,IF(AND($D$10=40,$H$10="Ja",SUM(G124:G126)<G144),(SUM(G124:G126)/$D$10*39.2),IF(SUM(G124:G126)>G144,G144,SUM(G124:G126)))) -> 0 | I132: =IF(AND($D$10=40,$H$10="Ja",SUM(I124:I126)>I144),I144,IF(AND($D$10=40,$H$10="Ja",SUM(I124:I126)<I144),(SUM(I124:I126)/$D$10*39.2),IF(SUM(I124:I126)>I144,I144,SUM(I124:I126)))) -> 0 | K132: =IF(AND($D$10=40,$H$10="Ja",SUM(K124:K126)>K144),K144,IF(AND($D$10=40,$H$10="Ja",SUM(K124:K126)<K144),(SUM(K124:K126)/$D$10*39.2),IF(SUM(K124:K126)>K144,K144,SUM(K124:K126)))) -> 0 | M132: =IF(AND($D$10=40,$H$10="Ja",SUM(M124:M126)>M144),M144,IF(AND($D$10=40,$H$10="Ja",SUM(M124:M126)<M144),(SUM(M124:M126)/$D$10*39.2),IF(SUM(M124:M126)>M144,M144,SUM(M124:M126)))) -> 0 | O132: =IF(AND($D$10=40,$H$10="Ja",SUM(O124:O126)>O144),O144,IF(AND($D$10=40,$H$10="Ja",SUM(O124:O126)<O144),(SUM(O124:O126)/$D$10*39.2),IF(SUM(O124:O126)>O144,O144,SUM(O124:O126)))) -> 0 | P132: PE
A133: Summe anrechenbares Stützpersonal | E133: =IF(AND($D$10=40,$H$10="Ja",(E127*0.9)>E145),E145,IF(AND($D$10=40,$H$10="Ja",(SUM(E127*0.9)<E145)),(E127*0.9/$D$10*39.2),IF(E127*0.9>E145,E145,E127*0.9))) -> 0 | G133: =IF(AND($D$10=40,$H$10="Ja",(G127*0.9)>G145),G145,IF(AND($D$10=40,$H$10="Ja",(SUM(G127*0.9)<G145)),(G127*0.9/$D$10*39.2),IF(G127*0.9>G145,G145,G127*0.9))) -> 0 | I133: =IF(AND($D$10=40,$H$10="Ja",(I127*0.9)>I145),I145,IF(AND($D$10=40,$H$10="Ja",(SUM(I127*0.9)<I145)),(I127*0.9/$D$10*39.2),IF(I127*0.9>I145,I145,I127*0.9))) -> 0 | K133: =IF(AND($D$10=40,$H$10="Ja",(K127*0.9)>K145),K145,IF(AND($D$10=40,$H$10="Ja",(SUM(K127*0.9)<K145)),(K127*0.9/$D$10*39.2),IF(K127*0.9>K145,K145,K127*0.9))) -> 0 | M133: =IF(AND($D$10=40,$H$10="Ja",(M127*0.9)>M145),M145,IF(AND($D$10=40,$H$10="Ja",(SUM(M127*0.9)<M145)),(M127*0.9/$D$10*39.2),IF(M127*0.9>M145,M145,M127*0.9))) -> 0 | O133: =IF(AND($D$10=40,$H$10="Ja",(O127*0.9)>O145),O145,IF(AND($D$10=40,$H$10="Ja",(SUM(O127*0.9)<O145)),(O127*0.9/$D$10*39.2),IF(O127*0.9>O145,O145,O127*0.9))) -> 0 | P133: PE
A134: Therapeut:innen | R134: =IF(OR(D134="",E134="",F134="",G134="",H134="",I134="",J134="",K134="",L134="",M134="",N134="",O134="")=TRUE,"Eingabe unvollständig","") -> Eingabe unvollständig | Y134: x
A135: Hilfskräfte | R135: =IF(OR(D135="",E135="",F135="",G135="",H135="",I135="",J135="",K135="",L135="",M135="",N135="",O135="")=TRUE,"Eingabe unvollständig","") -> Eingabe unvollständig | Y135: x
A136: Summe nicht anrechenbares Pflegepersonal (inkl. Überhang HH,... und Stützpersonal) | E136: =SUM(E134:E135)+(E128-E129) -> 0 | G136: =SUM(G134:G135)+(G128-G129) -> 0 | I136: =SUM(I134:I135)+(I128-I129) -> 0 | K136: =SUM(K134:K135)+(K128-K129) -> 0 | M136: =SUM(M134:M135)+(M128-M129) -> 0 | O136: =SUM(O134:O135)+(O128-O129) -> 0
Y137: =IF(R137="","","x") -> 
A138: Heimbewohner:innen | E138: =B42 -> 0 | G138: =B55 -> 0 | I138: =B68 -> 0 | K138: =B81 -> 0 | M138: =B94 -> 0 | O138: =B107 -> 0
A139: davon Kurzzeitpflege-Gäste | R139: =IF(OR(E139="",G139="",I139="",K139="",M139="",O139="")=TRUE,"Eingabe unvollständig","") -> Eingabe unvollständig | Y139: x
A140: Mindestpflegepersonalbedarf | E140: =E23 -> 0 | F140: PE | G140: =G23 -> 0 | H140: PE | I140: =I23 -> 0 | J140: PE | K140: =K23 -> 0 | L140: PE | M140: =M23 -> 0 | N140: PE | O140: =O23 -> 0 | P140: PE
A141: Mindestbedarf DGKP+PFA bei Anteil 20 % | E141: =E140*0.2 -> 0 | F141: PE | G141: =G140*0.2 -> 0 | H141: PE | I141: =I140*0.2 -> 0 | J141: PE | K141: =K140*0.2 -> 0 | L141: PE | M141: =M140*0.2 -> 0 | N141: PE | O141: =O140*0.2 -> 0 | P141: PE | U141: =IF(R141="","","x") -> 
A142: Mindestbedarf DGKP+PFA bei Anteil 25 % | E142: =E140*0.25 -> 0 | F142: PE | G142: =G140*0.25 -> 0 | H142: PE | I142: =I140*0.25 -> 0 | J142: PE | K142: =K140*0.25 -> 0 | L142: PE | M142: =M140*0.25 -> 0 | N142: PE | O142: =O140*0.25 -> 0 | P142: PE | Y142: =IF(R142="","","x") -> 
A143: Mindestbedarf FSB+DSB (ohne BB) und PA | E143: =E140*0.55 -> 0 | F143: PE | G143: =G140*0.55 -> 0 | H143: PE | I143: =I140*0.55 -> 0 | J143: PE | K143: =K140*0.55 -> 0 | L143: PE | M143: =M140*0.55 -> 0 | N143: PE | O143: =O140*0.55 -> 0 | P143: PE | Y143: =IF(R143="","","x") -> 
A144: Maximalbedarf HH+AB+FSB"BB"/DSB"BB" | E144: =E140*0.2 -> 0 | F144: PE | G144: =G140*0.2 -> 0 | H144: PE | I144: =I140*0.2 -> 0 | J144: PE | K144: =K140*0.2 -> 0 | L144: PE | M144: =M140*0.2 -> 0 | N144: PE | O144: =O140*0.2 -> 0 | P144: PE | Y144: =IF(R144="","","x") -> 
A145: Maximalbedarf Stützpersonal | E145: =E140*0.1 -> 0 | F145: PE | G145: =G140*0.1 -> 0 | H145: PE | I145: =I140*0.1 -> 0 | J145: PE | K145: =K140*0.1 -> 0 | L145: PE | M145: =M140*0.1 -> 0 | N145: PE | O145: =O140*0.1 -> 0 | P145: PE | Y145: =IF(R145="","","x") -> 
A146: ERFÜLLUNG MPPB | E146: =IF(E140=0,"0",E129/E140*100) -> 0 | F146: % | G146: =IF(G140=0,"0",G129/G140*100) -> 0 | H146: % | I146: =IF(I140=0,"0",I129/I140*100) -> 0 | J146: % | K146: =IF(K140=0,"0",K129/K140*100) -> 0 | L146: % | M146: =IF(M140=0,"0",M129/M140*100) -> 0 | N146: % | O146: =IF(O140=0,"0",O129/O140*100) -> 0 | P146: %
A147: Anteil anrechenbares DGKP+PFA am MPPB | E147: =IF(E129=0,"0",(E130/E140*100)) -> 0 | F147: % | G147: =IF(G129=0,"0",(G130/G140*100)) -> 0 | H147: % | I147: =IF(I129=0,"0",(I130/I140*100)) -> 0 | J147: % | K147: =IF(K129=0,"0",(K130/K140*100)) -> 0 | L147: % | M147: =IF(M129=0,"0",(M130/M140*100)) -> 0 | N147: % | O147: =IF(O129=0,"0",(O130/O140*100)) -> 0 | P147: %
A148: Anteil anrechenb. FSB "A" und "BA", DSB "A" und "BA", DSB "F" und PA am MPPB | C148: Anteil Pflegeassistent/innen | E148: =IF(E129=0,"0",(E131+E119+E120+E121+E122+E123)/E140*100) -> 0 | F148: % | G148: =IF(G129=0,"0",(G131+G119+G120+G121+G122+G123)/G140*100) -> 0 | H148: % | I148: =IF(I129=0,"0",(I131+I119+I120+I121+I122+I123)/I140*100) -> 0 | J148: % | K148: =IF(K129=0,"0",(K131+K119+K120+K121+K122+K123)/K140*100) -> 0 | L148: % | M148: =IF(M129=0,"0",(M131+M119+M120+M121+M122+M123)/M140*100) -> 0 | N148: % | O148: =IF(O129=0,"0",(O131+O119+O120+O121+O122+O123)/O140*100) -> 0 | P148: %
A149: Anteil anrechenb. HH, AB, FSB "BB"und DSB "BB" am MPPB | E149: =IF(E129=0,"0",E132/E140*100) -> 0 | F149: % | G149: =IF(G129=0,"0",G132/G140*100) -> 0 | H149: % | I149: =IF(I129=0,"0",I132/I140*100) -> 0 | J149: % | K149: =IF(K129=0,"0",K132/K140*100) -> 0 | L149: % | M149: =IF(M129=0,"0",M132/M140*100) -> 0 | N149: % | O149: =IF(O129=0,"0",O132/O140*100) -> 0 | P149: % | Y149: =IF(R149="","","x") -> 
A150: Anteil anrechenb. Stützpersonal am MPPB | E150: =IF(E129=0,"0",(E133/E140*100)) -> 0 | F150: % | G150: =IF(G129=0,"0",(G133/G140*100)) -> 0 | H150: % | I150: =IF(I129=0,"0",(I133/I140*100)) -> 0 | J150: % | K150: =IF(K129=0,"0",(K133/K140*100)) -> 0 | L150: % | M150: =IF(M129=0,"0",(M133/M140*100)) -> 0 | N150: % | O150: =IF(O129=0,"0",(O133/O140*100)) -> 0 | P150: %
A151: es fehlen insgesamt | E151: =IF(E140<E129,"0",E140-E129) -> 0 | F151: =IF(E151="","","PE") -> PE | G151: =IF(G140<G129,"0",G140-G129) -> 0 | H151: =IF(G151="","","PE") -> PE | I151: =IF(I140<I129,"0",I140-I129) -> 0 | J151: =IF(I151="","","PE") -> PE | K151: =IF(K140<K129,"0",K140-K129) -> 0 | L151: =IF(K151="","","PE") -> PE | M151: =IF(M140<M129,"0",M140-M129) -> 0 | N151: =IF(M151="","","PE") -> PE | O151: =IF(O140<O129,"0",O140-O129) -> 0 | P151: PE
A152: es fehlen an DGKP+PFA auf Anteil 20 % | E152: =IF(E141<E130,"0",E141-E130) -> 0 | F152: =IF(E152="","","PE") -> PE | G152: =IF(G141<G130,"0",G141-G130) -> 0 | H152: =IF(G152="","","PE") -> PE | I152: =IF(I141<I130,"0",I141-I130) -> 0 | J152: =IF(I152="","","PE") -> PE | K152: =IF(K141<K130,"0",K141-K130) -> 0 | L152: =IF(K152="","","PE") -> PE | M152: =IF(M141<M130,"0",M141-M130) -> 0 | N152: =IF(M152="","","PE") -> PE | O152: =IF(O141<O130,"0",O141-O130) -> 0 | P152: =IF(O152="","","PE") -> PE | U152: =IF(R152="","","x") -> 
A153: es fehlen an DGKP+PFA auf Anteil 25 % | E153: =IF(E142<E130,"0",E142-E130) -> 0 | F153: =IF(E153="","","PE") -> PE | G153: =IF(G142<G130,"0",G142-G130) -> 0 | H153: =IF(G153="","","PE") -> PE | I153: =IF(I142<I130,"0",I142-I130) -> 0 | J153: =IF(I153="","","PE") -> PE | K153: =IF(K142<K130,"0",K142-K130) -> 0 | L153: =IF(K153="","","PE") -> PE | M153: =IF(M142<M130,"0",M142-M130) -> 0 | N153: =IF(M153="","","PE") -> PE | O153: =IF(O142<O130,"0",O142-O130) -> 0 | P153: PE | Y153: =IF(R153="","","x") -> 
A154: es fehlen an FSB+DSB (ohne BB) und PA | E154: =IF(E143<SUM(E131,E119,E120:E123),"0",E143-(SUM(E131,E119,E120:E123))) -> 0 | F154: =IF(E154="","","PE") -> PE | G154: =IF(G143<SUM(G131,G119,G120:G123),"0",G143-(SUM(G131,G119,G120:G123))) -> 0 | H154: =IF(G154="","","PE") -> PE | I154: =IF(I143<SUM(I131,I119,I120:I123),"0",I143-(SUM(I131,I119,I120:I123))) -> 0 | J154: =IF(I154="","","PE") -> PE | K154: =IF(K143<SUM(K131,K119,K120:K123),"0",K143-(SUM(K131,K119,K120:K123))) -> 0 | L154: =IF(K154="","","PE") -> PE | M154: =IF(M143<SUM(M131,M119,M120:M123),"0",M143-(SUM(M131,M119,M120:M123))) -> 0 | N154: =IF(M154="","","PE") -> PE | O154: =IF(O143<SUM(O131,O119,O120:O123),"0",O143-(SUM(O131,O119,O120:O123))) -> 0 | P154: PE | Y154: =IF(R154="","","x") -> 
A157: 2. | B157: Halbjahr | C157: =I3 -> 2025-12-31
D159: 31.7. | E159: =C157 -> 2025-12-31 | F159: 31.8. | G159: =C157 -> 2025-12-31 | H159: 30.9. | I159: =C157 -> 2025-12-31 | J159: 31.10. | K159: =C157 -> 2025-12-31 | L159: 30.11. | M159: =C157 -> 2025-12-31 | N159: 31.12. | O159: =C157 -> 2025-12-31 | P159: Durchschnitt 2. HJ
B160: Schlüssel | C160: PG-Stufe | D160: Personal- bedarf lt. PG-Bescheid | E160: Personal- bedarf nach erwarteter PG-Einstufung | F160: Personal- bedarf lt. PG-Bescheid | G160: Personal- bedarf nach erwarteter PG-Einstufung | H160: Personal- bedarf lt. PG-Bescheid | I160: Personal- bedarf nach erwarteter PG-Einstufung | J160: Personal- bedarf lt. PG-Bescheid | K160: Personal- bedarf nach erwarteter PG-Einstufung | L160: Personal- bedarf lt. PG-Bescheid | M160: Personal- bedarf nach erwarteter PG-Einstufung | N160: Personal- bedarf lt. PG-Bescheid | O160: Personal- bedarf nach erwarteter PG-Einstufung | P160: Personal- bedarf lt. PG-Bescheid | Q160: Personal- bedarf nach erwarteter PG-Einstufung
B161: 24 | C161: kein PG | D161: =$B180/$B161*40/$D$10 -> 0 | E161: =($B180-$C180+E$188)/$B161*40/$D$10 -> 0 | F161: =$B193/$B161*40/$D$10 -> 0 | G161: =($B193-$C193+E$201)/$B161*40/$D$10 -> 0 | H161: =$B206/$B161*40/$D$10 -> 0 | I161: =($B206-$C206+E$214)/$B161*40/$D$10 -> 0 | J161: =$B219/$B161*40/$D$10 -> 0 | K161: =($B219-$C219+E$227)/$B161*40/$D$10 -> 0 | L161: =$B232/$B161*40/$D$10 -> 0 | M161: =($B232-$C232+E$240)/$B161*40/$D$10 -> 0 | N161: =$B245/$B161*40/$D$10 -> 0 | O161: =($B245-$C245+E$253)/$B161*40/$D$10 -> 0 | P161: =(D161+F161+H161+J161+L161+N161)/$Z$167 ->  | Q161: =(E161+G161+I161+K161+M161+O161)/$Z$167 ->  | Z161: =IF(D169<>0,1,0) -> 0
B162: 12 | C162: 1 | D162: 0 | E162: =($B181-$C181+F$188)/$B162*40/$D$10 -> 0 | F162: 0 | G162: =($B194-$C194+F$201)/$B162*40/$D$10 -> 0 | H162: 0 | I162: =($B207-$C207+F$214)/$B162*40/$D$10 -> 0 | J162: 0 | K162: =($B220-$C220+F$227)/$B162*40/$D$10 -> 0 | L162: 0 | M162: =($B233-$C233+F$240)/$B162*40/$D$10 -> 0 | N162: 0 | O162: =($B246-$C246+F$253)/$B162*40/$D$10 -> 0 | Z162: =IF(F169<>0,1,0) -> 0
B163: 7.5 | C163: 2 | D163: 0 | E163: =($B182-$C182+G$188)/$B163*40/$D$10 -> 0 | F163: 0 | G163: =($B195-$C195+G$201)/$B163*40/$D$10 -> 0 | H163: 0 | I163: =($B208-$C208+G$214)/$B163*40/$D$10 -> 0 | J163: 0 | K163: =($B221-$C221+G$227)/$B163*40/$D$10 -> 0 | L163: 0 | M163: =($B234-$C234+G$240)/$B163*40/$D$10 -> 0 | N163: 0 | O163: =($B247-$C247+G$253)/$B163*40/$D$10 -> 0 | Z163: =IF(H169<>0,1,0) -> 0
B164: 4 | C164: 3 | D164: 0 | E164: =($B183-$C183+H$188)/$B164*40/$D$10 -> 0 | F164: 0 | G164: =($B196-$C196+H$201)/$B164*40/$D$10 -> 0 | H164: 0 | I164: =($B209-$C209+H$214)/$B164*40/$D$10 -> 0 | J164: 0 | K164: =($B222-$C222+H$227)/$B164*40/$D$10 -> 0 | L164: 0 | M164: =($B235-$C235+H$240)/$B164*40/$D$10 -> 0 | N164: 0 | O164: =($B248-$C248+H$253)/$B164*40/$D$10 -> 0 | Z164: =IF(J169<>0,1,0) -> 0
B165: 2.5 | C165: 4 | D165: 0 | E165: =($B184-$C184+I$188)/$B165*40/$D$10 -> 0 | F165: 0 | G165: =($B197-$C197+I$201)/$B165*40/$D$10 -> 0 | H165: 0 | I165: =($B210-$C210+I$214)/$B165*40/$D$10 -> 0 | J165: 0 | K165: =($B223-$C223+I$227)/$B165*40/$D$10 -> 0 | L165: 0 | M165: =($B236-$C236+I$240)/$B165*40/$D$10 -> 0 | N165: 0 | O165: =($B249-$C249+I$253)/$B165*40/$D$10 -> 0 | Z165: =IF(L169<>0,1,0) -> 0
B166: 2 | C166: 5 | D166: 0 | E166: =($B185-$C185+J$188)/$B166*40/$D$10 -> 0 | F166: 0 | G166: =($B198-$C198+J$201)/$B166*40/$D$10 -> 0 | H166: 0 | I166: =($B211-$C211+J$214)/$B166*40/$D$10 -> 0 | J166: 0 | K166: =($B224-$C224+J$227)/$B166*40/$D$10 -> 0 | L166: 0 | M166: =($B237-$C237+J$240)/$B166*40/$D$10 -> 0 | N166: 0 | O166: =($B250-$C250+J$253)/$B166*40/$D$10 -> 0 | Z166: =IF(N169<>0,1,0) -> 0
B167: 1.5 | C167: 6 | D167: 0 | E167: =($B186-$C186+K$188)/$B167*40/$D$10 -> 0 | F167: 0 | G167: =($B199-$C199+K$201)/$B167*40/$D$10 -> 0 | H167: 0 | I167: =($B212-$C212+K$214)/$B167*40/$D$10 -> 0 | J167: 0 | K167: =($B225-$C225+K$227)/$B167*40/$D$10 -> 0 | L167: 0 | M167: =($B238-$C238+K$240)/$B167*40/$D$10 -> 0 | N167: 0 | O167: =($B251-$C251+K$253)/$B167*40/$D$10 -> 0 | Z167: =SUM(Z161:Z166) -> 0
B168: 1.5 | C168: 7 | D168: 0 | E168: =($B187-$C187+L$188)/$B168*40/$D$10 -> 0 | F168: 0 | G168: =($B200-$C200+L$201)/$B168*40/$D$10 -> 0 | H168: 0 | I168: =($B213-$C213+L$214)/$B168*40/$D$10 -> 0 | J168: 0 | K168: =($B226-$C226+L$227)/$B168*40/$D$10 -> 0 | L168: 0 | M168: =($B239-$C239+L$240)/$B168*40/$D$10 -> 0 | N168: 0 | O168: =($B252-$C252+L$253)/$B168*40/$D$10 -> 0
C169: MPPB | D169: =SUM(D161:D168) -> 0 | E169: 0 | F169: 0 | G169: 0 | H169: 0 | I169: 0 | J169: 0 | K169: 0 | L169: 0 | M169: 0 | N169: 0 | O169: 0
C170: anrechenb. Pflegepersonal / Erfüllungsgrad: | D170: =E275 -> 0 | E170: =D170/E169 ->  | F170: =G275 -> 0 | G170: =F170/G169 ->  | H170: =I275 -> 0 | I170: =H170/I169 ->  | J170: =K275 -> 0 | K170: =J170/K169 ->  | L170: =M275 -> 0 | M170: =L170/M169 ->  | N170: =O275 -> 0 | O170: =N170/O169 ->  | P170: =(D170+F170+H170+J170+L170+N170)/$Z$167 ->  | Q170: =P170/Q169 -> 
C171: Bewohneranzahl / offene Verfahren: | D171: =B188 -> 0 | E171: =C188 -> 0 | F171: =B201 -> 0 | G171: =C201 -> 0 | H171: =B214 -> 0 | I171: =C214 -> 0 | J171: =B227 -> 0 | K171: =C227 -> 0 | L171: =B240 -> 0 | M171: =C240 -> 0 | N171: =B253 -> 0 | O171: =C253 -> 0
O172: Pflegeintensität (Verhältnis Pflegepersonaleinheit-SOLL zu HB) | P172: 1 : | Q172: =((B188+B201+B214+B227+B240+B253)/Z167)/Q169 -> 
O173: (diese Kennzahl ist der Indikator für den durchschnittlichen Pflegebedarf aller HB,
O174: die Berechnung einer durchschnittlichen Pflegegeld-Stufe ist nicht zulässig!)
B176: bitte Pflegegeld-Angaben (Summe LZP + KZP) zum Stichtag eintragen!
A177: =D159 -> 31.7.
A178: derzeitige PG-Stufe | B178: Personen ohne PG bzw. lt. PG-Bescheid | C178: Anzahl offene Verfahren | D178: 4 | E178: erwartete Einstufung
E179: 0 | F179: 1 | G179: 2 | H179: 3 | I179: 4 | J179: 5 | K179: 6 | L179: 7
A180: 0 | R180: =IF(OR(B180="",C180="")=TRUE,"Eingabe unvollständig",IF(B180<C180,"Wert in Spalte C kann nicht größer sein als jener in Spalte B","")) -> Eingabe unvollständig | Y180: =IF(R180="","","x") -> x
A181: 1 | R181: =IF(OR(B181="",C181="")=TRUE,"Eingabe unvollständig",IF(B181<C181,"Wert in Spalte C kann nicht größer sein als jener in Spalte B","")) -> Eingabe unvollständig | Y181: x
A182: 2 | R182: Eingabe unvollständig | Y182: x
A183: 3 | R183: Eingabe unvollständig | Y183: x
A184: 4 | R184: Eingabe unvollständig | Y184: x
A185: 5 | R185: Eingabe unvollständig | Y185: x
A186: 6 | R186: Eingabe unvollständig | Y186: x
A187: 7 | M187: Summe | R187: =IF(B187="","Eingabe unvollständig","") -> Eingabe unvollständig | Y187: x
B188: =SUM(B180:B187) -> 0 | C188: =SUM(C180:C187) -> 0 | E188: =SUM(E180:E187) -> 0 | F188: 0 | G188: 0 | H188: 0 | I188: 0 | J188: 0 | K188: 0 | L188: 0 | M188: =SUM(E188:L188) -> 0 | R188: =IF(C188<>M188,"Summe in C188 muss gleich hoch sein wie Summe in M188","") -> 
A190: =F159 -> 31.8.
A191: derzeitige PG-Stufe | B191: Personen ohne PG bzw. lt. PG-Bescheid | C191: Anzahl offene Verfahren | E191: erwartete Einstufung
E192: 0 | F192: 1 | G192: 2 | H192: 3 | I192: 4 | J192: 5 | K192: 6 | L192: 7
A193: 0 | R193: =IF(OR(B193="",C193="")=TRUE,"Eingabe unvollständig",IF(B193<C193,"Wert in Spalte C kann nicht größer sein als jener in Spalte B","")) -> Eingabe unvollständig | Y193: =IF(R193="","","x") -> x
A194: 1 | R194: Eingabe unvollständig | Y194: x
A195: 2 | R195: Eingabe unvollständig | Y195: x
A196: 3 | R196: Eingabe unvollständig | Y196: x
A197: 4 | R197: Eingabe unvollständig | Y197: x
A198: 5 | R198: Eingabe unvollständig | Y198: x
A199: 6 | R199: Eingabe unvollständig | Y199: x
A200: 7 | M200: Summe | R200: =IF(B200="","Eingabe unvollständig","") -> Eingabe unvollständig | Y200: x
B201: =SUM(B193:B200) -> 0 | C201: =SUM(C193:C200) -> 0 | E201: =SUM(E193:E200) -> 0 | F201: 0 | G201: 0 | H201: 0 | I201: 0 | J201: 0 | K201: 0 | L201: 0 | M201: =SUM(E201:L201) -> 0 | R201: =IF(C201<>M201,"Summe in C201 muss gleich hoch sein wie Summe in M201","") -> 
A203: =H159 -> 30.9.
A204: derzeitige PG-Stufe | B204: Personen ohne PG bzw. lt. PG-Bescheid | C204: Anzahl offene Verfahren | E204: erwartete Einstufung
E205: 0 | F205: 1 | G205: 2 | H205: 3 | I205: 4 | J205: 5 | K205: 6 | L205: 7
A206: 0 | R206: =IF(OR(B206="",C206="")=TRUE,"Eingabe unvollständig",IF(B206<C206,"Wert in Spalte C kann nicht größer sein als jener in Spalte B","")) -> Eingabe unvollständig | Y206: =IF(R206="","","x") -> x
A207: 1 | R207: Eingabe unvollständig | Y207: x
A208: 2 | R208: Eingabe unvollständig | Y208: x
A209: 3 | R209: Eingabe unvollständig | Y209: x
A210: 4 | R210: Eingabe unvollständig | Y210: x
A211: 5 | R211: Eingabe unvollständig | Y211: x
A212: 6 | R212: Eingabe unvollständig | Y212: x
A213: 7 | M213: Summe | R213: =IF(B213="","Eingabe unvollständig","") -> Eingabe unvollständig | Y213: x
B214: =SUM(B206:B213) -> 0 | C214: =SUM(C206:C213) -> 0 | E214: =SUM(E206:E213) -> 0 | F214: 0 | G214: 0 | H214: 0 | I214: 0 | J214: 0 | K214: 0 | L214: 0 | M214: =SUM(E214:L214) -> 0 | R214: =IF(C214<>M214,"Summe in C214 muss gleich hoch sein wie Summe in M214","") -> 
A216: =J159 -> 31.10.
A217: derzeitige PG-Stufe | B217: Personen ohne PG bzw. lt. PG-Bescheid | C217: Anzahl offene Verfahren | E217: erwartete Einstufung
E218: 0 | F218: 1 | G218: 2 | H218: 3 | I218: 4 | J218: 5 | K218: 6 | L218: 7
... 81 more rows

Sheet 4a_Darstellung_MPPB,AnteilDGKP
A2: ERHEBUNG IN DEN OÖ. ALTEN- UND PFLEGEHEIMEN Darstellung Erfüllung MPPB und Anteil DGKP+PFA an MPPB nach Angabe der Daten in Blatt 4_Pflegepersonalbedarf
A3: (Langzeitkrankenstände u.ä. sind also abgezogen)
A4: =IF(N12>0,"Tabellenblatt nicht vollständig oder korrekt ausgefüllt! Bitte Eingaben prüfen!","") ->  | K4: =IF(A4="","Sie haben dieses Tabellenblatt vollständig ausgefüllt - Vielen Dank!","") -> Sie haben dieses Tabellenblatt vollständig ausgefüllt - Vielen Dank!
A6: Pflegeintensität IST/SOLL: | L6: Zeilen 4 bis 12 ausblenden!
C7: Verhältnis Pflegepersonal IST zu HB | D7: 1 : | E7: ='4_Pflegepersonalbedarf 2025'!O284/'4_Pflegepersonalbedarf 2025'!O275 -> 
C9: Verhältnis Pflegepersonal SOLL zu HB | D9: 1 : | E9: ='4_Pflegepersonalbedarf 2025'!O284/'4_Pflegepersonalbedarf 2025'!O286 -> 
E10: Die Kennzahl Pflegeintensität ist der Indikator für den durchschnittlichen Pflegebedarf
E11: aller HB, die Berechnung einer durchschnittlichen Pflegegeld-Stufe ist nicht zulässig!
N12: =COUNTIF(N1:N11,"x") -> 0
B14: Die Vorgaben sind erfüllt, wenn sich die Werte in jedem Monat über der roten Linie befinden.
B16: ='1_allg. Strukturdaten'!D7 -> Bitte auswählen…
A80: 31. Jän | B80: 28. Feb | C80: 31. Mar | D80: 30. Apr | E80: 31. Mai | F80: 30. Jun | G80: 31. Jul | H80: 31. Aug | I80: 30. Sept | J80: 31. Okt | K80: 30. Nov | L80: 31. Dez | M80: 1. HJ | N80: 2. HJ | O80: 2025
A81: ='4_Pflegepersonalbedarf 2025'!E146 -> 0 | B81: ='4_Pflegepersonalbedarf 2025'!G146 -> 0 | C81: ='4_Pflegepersonalbedarf 2025'!I146 -> 0 | D81: ='4_Pflegepersonalbedarf 2025'!K146 -> 0 | E81: ='4_Pflegepersonalbedarf 2025'!M146 -> 0 | F81: ='4_Pflegepersonalbedarf 2025'!O146 -> 0 | G81: ='4_Pflegepersonalbedarf 2025'!E292 -> 0 | H81: ='4_Pflegepersonalbedarf 2025'!G292 -> 0 | I81: ='4_Pflegepersonalbedarf 2025'!I292 -> 0 | J81: ='4_Pflegepersonalbedarf 2025'!K292 -> 0 | K81: ='4_Pflegepersonalbedarf 2025'!M292 -> 0 | L81: ='4_Pflegepersonalbedarf 2025'!O292 -> 0 | M81: ='4_Pflegepersonalbedarf 2025'!Q24*100 ->  | N81: ='4_Pflegepersonalbedarf 2025'!Q170*100 ->  | O81: =(M81+N81)/2 -> 
A82: ='4_Pflegepersonalbedarf 2025'!E147 -> 0 | B82: ='4_Pflegepersonalbedarf 2025'!G147 -> 0 | C82: ='4_Pflegepersonalbedarf 2025'!I147 -> 0 | D82: ='4_Pflegepersonalbedarf 2025'!K147 -> 0 | E82: ='4_Pflegepersonalbedarf 2025'!M147 -> 0 | F82: ='4_Pflegepersonalbedarf 2025'!O147 -> 0 | G82: ='4_Pflegepersonalbedarf 2025'!E293 -> 0 | H82: ='4_Pflegepersonalbedarf 2025'!G293 -> 0 | I82: ='4_Pflegepersonalbedarf 2025'!I293 -> 0 | J82: ='4_Pflegepersonalbedarf 2025'!K293 -> 0 | K82: ='4_Pflegepersonalbedarf 2025'!M293 -> 0 | L82: ='4_Pflegepersonalbedarf 2025'!O293 -> 0 | M82: =SUM(A82:F82)/6 -> 0 | N82: =SUM(G82:L82)/6 -> 0 | O82: =(M82+N82)/2 -> 0

Sheet 5_Betreuung und Pflege
A2: ERHEBUNG IN DEN OÖ. ALTEN- UND PFLEGEHEIMEN (Daten zur Betreuung und Pflege)
D3: ='0_Einleitung'!$E$2 -> zum Stichtag | E3: ='0_Einleitung'!$G$2 -> 2025-12-31
A4: =IF(K93>0,"Tabellenblatt nicht vollständig oder korrekt ausgefüllt! Bitte Eingaben prüfen!","") -> Tabellenblatt nicht vollständig oder korrekt ausgefüllt! Bitte Eingaben prüfen! | H4: =IF(A4="","Sie haben dieses Tabellenblatt vollständig ausgefüllt - Vielen Dank!","") -> 
A5: ='1_allg. Strukturdaten'!D7 -> Bitte auswählen… | E5: zu den mit einem grünen Punkt gekennzeichneten Bereichen finden Sie im Tabellenblatt 7_ Definitionen, Literatur und Quellennachweise!
A7: Schutz vor gesundheitlichen Schädigungen (ohne Kurzzeitpflege)
A9: MOBILITÄTSEINSCHRÄNKUNGEN
A11: Dekubitus (Bei HB mit mehreren Dekubitalgeschwüren bitte nur den höchsten Grad zählen!) | G11: zum Stichtag | H11: =$E$3 -> 2025-12-31
A13: Anzahl der Bewohner:innen mit Dekubitus Grad III | I13: =IF(F13="","Eingabe unvollständig","") -> Eingabe unvollständig | K13: =IF(I13="","","x") -> x
A14: Anzahl der Bewohner:innen mit Dekubitus Grad IV | I14: =IF(F14="","Eingabe unvollständig","") -> Eingabe unvollständig | K14: x
E15: Summe Grad III und IV | F15: =SUM(F13:F14) -> 0 | G15: =IF(F15=0,"0,00%",F15/'1a_Langzeitpflege'!$L$24) -> 0,00% | I15: =IF(AND(F15=0,(SUM(F18:F20)>0)),"Wenn hier die Summe 0 ergibt, dann bitte in F18 bis F20 ebenfalls '0' eintragen!","") -> 
A17: Anzahl der HB, bei denen der überwiegende Teil der Dekubitalgeschwüre (Grad III oder IV)
E18: im Heim entstanden ist/sind | I18: =IF(F18="","Eingabe unvollständig","") -> Eingabe unvollständig | K18: =IF(I18="","","x") -> x
E19: in einem Krankenhaus entstanden ist/sind | I19: =IF(F19="","Eingabe unvollständig","") -> Eingabe unvollständig | K19: =IF(I19="","","x") -> x
E20: wo anders (zu Hause,...) entstanden ist/sind | I20: =IF(F20="","Eingabe unvollständig","") -> Eingabe unvollständig | K20: =IF(I20="","","x") -> x
A22: Gibt es für die Einrichtung eine/n interne/n zertifizierte/n Wundmanager/in? | I22: =IF(F22="","Eingabe unvollständig","") -> Eingabe unvollständig | K22: =IF(I22="","","x") -> x
A23: Gibt es für die Einrichtung eine/n externe/n zertifizierte/n Wundmanager/in? | I23: Eingabe unvollständig | K23: x
I24: =IF((SUM(F18:F20)<>F15),"Die Summe von F18 bis F20 muss gleich hoch sein wie F15!","") -> 
A25: =IF(F15=0,"",IF(AND(G15>3%,F15>=3),"Die Schwellenwerte im Bereich Dekubitus wurden überschritten!",IF(AND(G15>2%,F18>=2),"Die Schwellenwerte im Bereich Dekubitus wurden überschritten!",""))) -> 
K26: =IF(I26="","","x") -> 
A27: Stürze | G27: im Jahr 2025
A29: Anzahl der Bewohner:innen, die im abgelaufenen Jahr zu Sturz gekommen sind | G29: =IF(F29=0,"0,00%",F29/'1a_Langzeitpflege'!E75) -> 0,00% | I29: =IF(F29="","Eingabe unvollständig","") -> Eingabe unvollständig | K29: x
I30: =IF(F29>'1a_Langzeitpflege'!E75,"Die Anzahl der gestürzten HB kann nicht höher sein als die Anzahl aller HB [1a_E75] im Berichtsjahr!","") ->  | K30: =IF(I30="","","x") -> 
A31: Anzahl aller Stürze in der Einrichtung (inkl. Außenanlagen) im abgelaufenen Jahr | G31: =IF(F31=0,"0",(F31/F29)) -> 0 | I31: =IF(F31="","Eingabe unvollständig","") -> Eingabe unvollständig | K31: =IF(I31="","","x") -> x
I32: =IF(OR(F29=0,F31=0),"",IF(F29>F31,"Die Anzahl der Stürze kann nicht niedriger sein als die Anzahl der gestürzten HB!","")) -> 
A33: Anzahl der Stürze, die eine ambulante oder stationäre Behandlung in einem Krankenhaus nach sich gezogen haben
G34: =IF(F31=0,"0,00%",F34/F31) -> 0,00% | I34: =IF(F34="","Eingabe unvollständig","") -> Eingabe unvollständig | K34: x
I35: =IF(AND(F34=0),"",IF(F34>F31,"Die Anzahl der Stürze, welche eine Behandlung in einem Krankenhaus nach sich gezogen haben, kann nicht höher sein als die Anzahl aller Stürze!","")) -> 
A37: =IF(OR(F29=0,F31=0),"",IF(OR(G29>60%,G31>5),"Die Anzahl der Stürze im Verhältnis zu allen Heimbewohner:innen übersteigt 60 % und/oder die durchschnittliche Sturzanzahl pro gestürztem/r HB beträgt mehr als 5!","")) -> 
A39: Freiheitsbe- bzw. -einschränkende Maßnahmen | G39: zum Stichtag | H39: =$E$3 -> 2025-12-31
A41: Anzahl der Bewohner:innen mit freiheitsbeschränkenden Maßnahmen | G41: =IF(F41=0,"0,00%",F41/'1a_Langzeitpflege'!L24) -> 0,00% | I41: =IF(F41="","Eingabe unvollständig","") -> Eingabe unvollständig | K41: =IF(I41="","","x") -> x
A43: =IF(OR(F41="",F41=0),"",IF(G41>20%,"Der Anteil an HB mit freiheitsbeschränkenden Maßnahmen ist höher als 20%!","")) -> 
A45: Anzahl der Bewohner:innen mit freiheitseinschränkenden Maßnahmen | G45: =IF(F45=0,"0,00%",F45/'1a_Langzeitpflege'!L24) -> 0,00% | I45: =IF(F45="","Eingabe unvollständig","") -> Eingabe unvollständig | K45: =IF(I45="","","x") -> x
A47: Summe aller Bewohner:innen mit freiheitsbe- und -einschränkenden Maßnahmen | F47: =SUM(F41,F45) -> 0 | G47: =IF(F47=0,"0,00%",F47/'1a_Langzeitpflege'!L24) -> 0,00%
A49: =IF(F47=0,"",IF(G47>25%,"Der Anteil an HB mit freiheitsbe- und -einschränkenden Maßnahmen ist höher als 25%!","")) -> 
A51: ERNÄHRUNG | G51: zum Stichtag | H51: =$E$3 -> 2025-12-31
A53: Ist in der Einrichtung ein Qualitätsstandard (SOP) für Ernährung inkl. Exsikkose vorhanden? | I53: =IF(G53="","Eingabe unvollständig","") -> Eingabe unvollständig | K53: =IF(I53="","","x") -> x
A55: Erfolgt in der Einrichtung eine individuelle Risikoeinschätzung zum Thema Ernährung? | I55: =IF(G55="","Eingabe unvollständig","") -> Eingabe unvollständig | K55: =IF(I55="","","x") -> x
A57: AUSSCHEIDUNG | G57: zum Stichtag | H57: =$E$3 -> 2025-12-31
A59: Anzahl der Bewohner:innen, die zum Stichtag über einen Dauerkatheter verfügen | F59: =F60+F62 -> 0 | G59: =IF(F59=0,"0,00%",F59/'1a_Langzeitpflege'!L24) -> 0,00% | K59: =IF(I59="","","x") -> 
E60: davon transurethrale Dauerkatheter | I60: =IF(F60="","Eingabe unvollständig","") -> Eingabe unvollständig | K60: =IF(I60="","","x") -> x
F61: davon voraussichtlicher Wechsel im Krankenhaus | I61: =IF(G61="","Eingabe unvollständig",IF(G61>F60,"Der Wert in G61 kann nicht größer sein als der Wert in F60!","")) -> Eingabe unvollständig | K61: =IF(I61="","","x") -> x
E62: davon suprapubische Dauerkatheter | I62: =IF(F62="","Eingabe unvollständig","") -> Eingabe unvollständig | K62: x
F63: davon voraussichtlicher Wechsel im Krankenhaus | I63: =IF(G63="","Eingabe unvollständig",IF(G63>F62,"Der Wert in G63 kann nicht größer sein als der Wert in F62!","")) -> Eingabe unvollständig | K63: x
I64: =IF(SUM(F60,F62)=F59,"","Die Summe der transurethralen und suprapubischen Dauerkatheter in F60 und F62 stimmt nicht mit der Anzahl an HB mit Dauerkathetern in F59 überein!") -> 
A65: SCHMERZEN | G65: zum Stichtag | H65: =$E$3 -> 2025-12-31
A67: Ist in der Einrichtung ein Qualitätsstandard (SOP) für den Umgang mit Schmerzen vorhanden? | I67: =IF(G67="","Eingabe unvollständig","") -> Eingabe unvollständig | K67: =IF(I67="","","x") -> x
A69: Erfolgt in der Einrichtung eine regelmäßige individuelle Schmerzeinschätzung der Heimbewohner:innen? | I69: =IF(G69="","Eingabe unvollständig","") -> Eingabe unvollständig | K69: =IF(I69="","","x") -> x
A71: Wenn ja: Welches Instrument/welche Methode zur Einschätzung von Schmerzen wird verwendet?
I72: =IF(AND(G69="Ja",E72="")=TRUE,"Eingabe unvollständig","") ->  | K72: =IF(I72="","","x") -> 
A74: Anzahl der Bewohner:innen, die eine Dauermedikation mit Suchtmitteln erhalten | G74: =IF(F74=0,"0,00%",F74/'1a_Langzeitpflege'!L24) -> 0,00% | I74: =IF(F74="","Eingabe unvollständig","") -> Eingabe unvollständig | K74: =IF(I74="","","x") -> x
B76: DAVON: Anzahl der Bewohner:innen, bei denen die Suchtmittel subcutan durch den
B77: Nachtdienst verabreicht werden | G77: =IF(F77=0,"0,00%",F77/F74) -> 0,00% | I77: =IF(F77="","Eingabe unvollständig","") -> Eingabe unvollständig | K77: =IF(I77="","","x") -> x
I78: =IF(F77<=F74,"","Die Anzahl der HB mit Suchtmitteln, die der Nachtdienst verabreicht, muss kleiner sein als die Anzahl aller HB mit einer Suchtmitteldauermedikation!") ->  | K78: =IF(I78="","","x") -> 
A80: Unterstützung bei spezifischen Bedarfslagen (ohne Kurzzeitpflege) | G80: zum Stichtag | H80: =$E$3 -> 2025-12-31
A82: Demenz | G82: zum Stichtag | H82: =$E$3 -> 2025-12-31
A84: Anzahl der Bewohner:innen mit medizinisch diagnostizierter Demenz (unabhängig von der Demenz-Stufe)
G85: =IF(F85=0,"0,00%",F85/'1a_Langzeitpflege'!L24) -> 0,00% | I85: =IF(F85="","Eingabe unvollständig","") -> Eingabe unvollständig | K85: =IF(I85="","","x") -> x
A87: Medikamentengebarung | G87: zum Stichtag | H87: =$E$3 -> 2025-12-31
A89: Verblisterung | G89: zum Stichtag | H89: =$E$3 -> 2025-12-31
A91: Wird der überwiegende Teil der Medikamente verblistert? | I91: =IF(F91="","Eingabe unvollständig","") -> Eingabe unvollständig | K91: =IF(I91="","","x") -> x
K93: =COUNTIF(K1:K92,"x") -> 24

Sheet 6_Kennzahlen
A2: ERHEBUNG IN DEN OÖ. ALTEN- UND PFLEGEHEIMEN KENNZAHLEN
C5: Erhebung 31.12.2025 | G5: OÖ-Durchschnitt
C6: ='1_allg. Strukturdaten'!D7 -> Bitte auswählen… | G6: Erhebung 31.12.2024 | H6: Erhebung 31.12.2023 | I6: Erhebung 31.12.2022 | J6: Erhebung 31.12.2021 | K6: Erhebung 31.12.2020 | L6: Erhebung 31.12.2019 | M6: Erhebung 31.12.2018
A8: Langzeitpflegeplätze
A10: Langzeitpflegeplätze in 1-Personen-Wohneinheiten
A11: an Gesamtplätzen in LZP | J11: 0.9356677524 | K11: 0.9346627756 | L11: 0.9295432459 | M11: 0.9181362239
A12: Plätze in 1-Personen-Wohneinheiten
A13: an Gesamtplätzen | D13: =('1a_Langzeitpflege'!H7+'1b_Kurzzeitpflege'!G8)/('1a_Langzeitpflege'!H10+'1b_Kurzzeitpflege'!G10) ->  | G13: 0.9394318804 | H13: 0.9397307451 | I13: 0.9367028814
A15: Bewohnerinnen und Bewohner
A17: Durchschnittsalter LZP | C17: ='1a_Langzeitpflege'!G26 -> 0 | D17: Jahre | G17: 84.78413603 | H17: 85.74247015 | I17: 84.67263158 | J17: 84.63646212 | K17: 84.82153283 | L17: 84.74742424 | M17: 84.81906716
A19: Neueintritte aus KZP in % der Gesamt-Neueintritte | D19: =IF('1b_Kurzzeitpflege'!E88="","0,00%",'1b_Kurzzeitpflege'!E88/('1a_Langzeitpflege'!F80+'1a_Langzeitpflege'!F81)) -> 0,00% | G19: 0.1525276633 | H19: 0.1776950044 | I19: 0.1609510745 | J19: 0.1747165057 | K19: 0.1746650426 | L19: 0.1815496478 | M19: 0.2095982143
A21: Anteile an Summe HB (LZP und KZP)
A22: HB mit PG-Stufen 0-2 | C22: =(('1a_Langzeitpflege'!C36+'1a_Langzeitpflege'!D36+'1a_Langzeitpflege'!E36)+('1b_Kurzzeitpflege'!C60+'1b_Kurzzeitpflege'!D60+'1b_Kurzzeitpflege'!E60))/('1b_Kurzzeitpflege'!K60+'1a_Langzeitpflege'!K36) ->  | G22: 0.0267428993 | H22: 0.02963101006 | I22: 0.03691243809 | J22: 0.03821713871 | K22: 0.04309402332 | L22: 0.04515745692 | M22: 0.05198598131
A23: HB mit PG-Stufe 3 | C23: =('1a_Langzeitpflege'!F36+'1b_Kurzzeitpflege'!F60)/('1a_Langzeitpflege'!K36+'1b_Kurzzeitpflege'!K60) ->  | G23: 0.1259682774 | H23: 0.1372530749 | I23: 0.1513877208 | J23: 0.1590413943 | K23: 0.1585276968 | L23: 0.1695951108 | M23: 0.1945927904
A24: HB mit PG-Stufen 4+5 | C24: =(('1a_Langzeitpflege'!G36+'1a_Langzeitpflege'!H36)+('1b_Kurzzeitpflege'!G60+'1b_Kurzzeitpflege'!H60))/('1a_Langzeitpflege'!K36+'1b_Kurzzeitpflege'!K60) ->  | G24: 0.672445592 | H24: 0.6675363399 | I24: 0.6483506214 | J24: 0.6398874365 | K24: 0.6372995627 | L24: 0.6318648672 | M24: 0.6040554072
A25: HB mit PG-Stufen 6+7 | C25: =(('1a_Langzeitpflege'!I36+'1a_Langzeitpflege'!J36)+('1b_Kurzzeitpflege'!I60+'1b_Kurzzeitpflege'!J60))/('1a_Langzeitpflege'!K36+'1b_Kurzzeitpflege'!K60) ->  | G25: 0.1748432313 | H25: 0.1655795751 | I25: 0.1633492197 | J25: 0.1628540305 | K25: 0.1610787172 | L25: 0.1533825651 | M25: 0.1493658211
A27: HB jünger als 75 Jahre (LZP) | D27: =SUM('1a_Langzeitpflege'!C24:F24)/'1a_Langzeitpflege'!L24 ->  | G27: 0.1153303882 | H27: 0.1224431548 | I27: 0.120408358 | J27: 0.1247801537 | K27: 0.1260543146 | L27: 0.1236247076 | M27: 0.1185861863
A28: HB, die aus der Standortgemeinde kommen (LZP) | D28: ='1a_Langzeitpflege'!A61/'1a_Langzeitpflege'!L60 ->  | G28: 0.5450700254 | H28: 0.5419084768 | I28: 0.5491842381 | J28: 0.554197908 | K28: 0.5460190935 | L28: 0.549683791 | M28: 0.5501579442
A29: Selbstzahler:innen (LZP) | C29: ='1a_Langzeitpflege'!K34/'1a_Langzeitpflege'!K35 ->  | G29: 0.01062129899 | H29: 0.01246313386 | I29: 0.01459784372 | J29: 0.01953161159 | K29: 0.01890814719 | L29: 0.02174478039 | M29: 0.02689319559
A31: Neueintritte im Jahr 2025 an Langzeitpflegeplätzen zum 31.12.2025 | E31: =('1a_Langzeitpflege'!F80+'1a_Langzeitpflege'!F81)/'1a_Langzeitpflege'!H10 ->  | G31: 0.3704686118 | H31: 0.3674422349 | I31: 0.3536831891 | J31: 0.3877850163 | K31: 0.3327658885 | L31: 0.3564139942 | M31: 0.362400906
A32: HB, deren Verweildauer im Heim weniger als 4 Monate betrug (LZP) | E32: =('1a_Langzeitpflege'!B94+'1a_Langzeitpflege'!C94)/'1a_Langzeitpflege'!I94 ->  | G32: 0.2176917761 | H32: 0.2207404001 | I32: 0.1957342813 | J32: 0.2078413901 | K32: 0.1788440567 | L32: 0.2126285578 | M32: 0.1908067991
A33: HB, die im Heim verstorben sind, an Gesamt-Verstorbenen (LZP) | E33: ='1a_Langzeitpflege'!D88/'1a_Langzeitpflege'!D87 ->  | G33: 0.7620363971 | H33: 0.7709818349 | I33: 0.7529437903 | J33: 0.7467141902 | K33: 0.741717524 | L33: 0.7168141593 | M33: 0.7246827867
A35: Pflegegeldanträge
A37: Neuanträge in % der Neu-Eingetretenen | J37: 0.1514069719 | K37: 0.1483556638 | L37: 0.1374687571 | M37: 0.1484375
A38: Erhöhungsanträge in % der Bewohnerzahl | J38: 0.2950292586 | K38: 0.2517388807 | L38: 0.2999937761 | M38: 0.3225687169
A39: Klagen in % aller Neu- und Erhöhungsanträge | J39: 0.02881898663 | K39: 0.0303030303 | L39: 0.03391705069 | M39: 0.03034412612
A40: Klagen in % der abgelehnten Neu- und Erhöhungsanträge | J40: 0.2722419929 | K40: 0.2787878788 | L40: 0.3188908146 | M40: 0.2663690476
A42: Pflegepersonal
A44: Anteile an MPPB-wirksamem Gesamt-Pflegepersonal (PE)
A45: Leitung des Betreuungs- und Pflegedienstes | D45: =('4_Pflegepersonalbedarf 2025'!O276-'4_Pflegepersonalbedarf 2025'!O262-'4_Pflegepersonalbedarf 2025'!O263)/'4_Pflegepersonalbedarf 2025'!O275 ->  | G45: 0.0006984863978 | H45: 0.0002744351265 | I45: 0.005420488638 | J45: 0.00603998321 | K45: 0.005117075807 | L45: 0.004645380354 | M45: 0.005046315229
A46: Angehörige des gehobenen Dienstes (DGKP) | D46: ='4_Pflegepersonalbedarf 2025'!O262/'4_Pflegepersonalbedarf 2025'!$O$275 ->  | G46: 0.2038186608 | H46: 0.2092345273 | I46: 0.2151027504 | J46: 0.2224874963 | K46: 0.2306681993 | L46: 0.234889583 | M46: 0.2303571061
A47: Pflegefachassistent:innen (PFA) | D47: ='4_Pflegepersonalbedarf 2025'!O263/'4_Pflegepersonalbedarf 2025'!$O$275 ->  | G47: 0.04283503116 | H47: 0.03547467367 | I47: 0.02579454648 | J47: 0.01524360709 | K47: 0.009023956014 | L47: 0.00321253362 | M47: 0.001620381844
A48: Fach-Sozialbetreuer:innen "A" und "BA" (FSB "A"/"BA") | D48: =('4_Pflegepersonalbedarf 2025'!O277+'4_Pflegepersonalbedarf 2025'!O265)/'4_Pflegepersonalbedarf 2025'!$O$275 ->  | G48: 0.5677953132 | H48: 0.58900382 | I48: 0.6172575315 | J48: 0.6331653849 | K48: 0.6533 | L48: 0.6654896056 | M48: 0.6819218154
A49: Diplom-Sozialbetreuer:innen "A" und "BA" (DSB "A"/"BA") | D49: =('4_Pflegepersonalbedarf 2025'!O266+'4_Pflegepersonalbedarf 2025'!O267)/'4_Pflegepersonalbedarf 2025'!$O$275 ->  | G49: 0.005285018243 | H49: 0.006482157998 | I49: 0.006835819582 | J49: 0.007284121195 | K49: 0.006913937483 | L49: 0.006276844064 | M49: 0.006505259348
A50: Diplom-Sozialbetreuer:innen "F" (DSB "F") | D50: ='4_Pflegepersonalbedarf 2025'!O268/'4_Pflegepersonalbedarf 2025'!$O$275 ->  | G50: 0.0005808928862 | H50: 0
A51: Pflegeassistent:innen (PA) | D51: ='4_Pflegepersonalbedarf 2025'!O269/'4_Pflegepersonalbedarf 2025'!$O$275 ->  | G51: 0.03769623503 | H51: 0.02938547049 | I51: 0.0231529578 | J51: 0.01574110631
A52: Altenbetreuer:innen | I52: 0 | J52: 0 | K52: 0.0003631151445 | L52: 0 | M52: 0.0001824343441
A53: Heimhelfer:innen | I53: 0.1064359056 | J53: 0.100038301 | K53: 0.08943843191 | L53: 0.08078353284 | M53: 0.0705083418
A54: Heimhelfer:innen und Altenbetreuer:innen | D54: =('4_Pflegepersonalbedarf 2025'!O278-'4_Pflegepersonalbedarf 2025'!O271-'4_Pflegepersonalbedarf 2025'!O272)/'4_Pflegepersonalbedarf 2025'!$O$275 ->  | G54: 0.119111955 | H54: 0.1116804754 | I54: 0.1064359056 | J54: =SUM(J52:J53) -> 0.100038301 | K54: 0.08980154705 | L54: 0.08078353284 | M54: 0.07069077614
A55: FSB "BB" und DSB "BB" | D55: =('4_Pflegepersonalbedarf 2025'!O271+'4_Pflegepersonalbedarf 2025'!O272)/'4_Pflegepersonalbedarf 2025'!$O$275 ->  | G55: 0 | H55: 0.000816671176
A56: Stützpersonal | D56: ='4_Pflegepersonalbedarf 2025'!O279/'4_Pflegepersonalbedarf 2025'!$O$275 ->  | G56: 0.02217840727 | H56: 0.01764775488
A57: HH in berufsbegleitender Ausbildung zu PA | K57: 0.000924037264 | L57: 0.0006729503678 | M57: 0.0002006777785
A58: PA in berufsbegleitender Ausbildung zu FSB "A" | K58: 0.004298241625 | L58: 0.004029430924 | M58: 0.003657668124
D59: =SUM(D45:D56) ->  | G59: 1 | H59: =SUM(H45:H56) -> 0.999999986 | I59: =SUM(I45:I53) -> 1 | J59: =SUM(J45:J53) -> 1 | K59: =SUM(K57:K58,K45:K53) -> 1.000046995 | L59: =SUM(L57:L58,L45:L53) -> 0.9999998608 | M59: =SUM(M57:M58,M45:M53) -> 1
A60: Leasingpersonal (Anteil an Gesamtpersonal) | D60: ='2_Personal'!F22/'4_Pflegepersonalbedarf 2025'!$O$275 ->  | G60: 0.009565616345 | H60: 0.01028363306 | I60: 0.007655169271 | J60: 0.007064740218 | K60: 0.008478738625 | L60: 0.006024213775 | M60: 0.004036359863
A61: Personen in berufsbegleitender Ausbildung an
A62: MPPB-wirksamem Gesamtpersonal | K62: 0.0107608558 | L62: 0.01086817543 | M62: 0.008807761042
A63: Personal in berufsbegl. Ausbildung an erforderlichem Pflegepersonal | K63: 0.01210563323 | L63: 0.01108668534 | M63: 0.008960296113
A64: Personen Nachtdienst in % an Gesamt-Plätzen | D64: ='1_allg. Strukturdaten'!G58/('1a_Langzeitpflege'!H10+'1b_Kurzzeitpflege'!G10) ->  | G64: 0.02277173488 | H64: 0.02293362555 | I64: 0.02282206658 | J64: 0.02320424487 | K64: 0.0228977497 | L64: 0.02219948044 | M64: 0.02217678515
A66: Anteile anrechenbares Pflegepersonal am MPPB zum Stichtag
A68: Anteil anrechenbare LBPD+DGKP+PFA am MPPB | D68: ='4_Pflegepersonalbedarf 2025'!O293/100 -> 0 | G68: 0.2675497 | H68: 0.2718483139 | I68: 0.2739466319 | J68: 0.2688039653 | K68: 0.2769166827 | L68: 0.2562661087
A69: Ant. anrechenb. FSB'A','BA',DSB'A','BA','F' u. PA am MPPB | D69: ='4_Pflegepersonalbedarf 2025'!O294/100 -> 0 | G69: 0.6606494765 | H69: 0.6933942391 | I69: 0.7198462992 | J69: =SUM(J74:J75) -> 0.7235748958 | K69: 0.7516117502 | L69: 0.7154453706
A70: Anteil anrechenb. HH, AB, FSB "BB"und DSB "BB" | D70: ='4_Pflegepersonalbedarf 2025'!O295/100 -> 0 | G70: 0.1294663575 | H70: 0.1248335262 | I70: 0.1183745534 | J70: =SUM(J76:J77) -> 0.1103112447 | K70: 0.1133853677 | L70: 0.09703614103
A71: Anteil anrechenb. Stützpersonal | D71: ='4_Pflegepersonalbedarf 2025'!O296/100 -> 0 | G71: 0.02398938328 | H71: 0.01958299127
A73: Anteil anrechenb. DGKP ohne PFA am MPPB | C73: =('4_Pflegepersonalbedarf 2025'!O276-'4_Pflegepersonalbedarf 2025'!O263)/'4_Pflegepersonalbedarf 2025'!O286 ->  | G73: 0.2212169779 | H73: 0.2324835205 | I73: 0.245258776 | J73: 0.2519949906 | K73: 0.2667092082 | L73: 0.2528676354 | M73: 0.249375235
A74: Anteil DSB'A'+'BA' und FSB'A'+'BA' am MPPB | I74: 0.6940963324 | J74: 0.7062173336 | K74: 0.7516117502 | L74: 0.7154453706
A75: Anteil PA am MPPB | I75: 0.02574996684 | J75: 0.01735756218
A76: Anteil AB/HH am MPPB | I76: 0.1183745534 | J76: 0.1103112447 | K76: 0.1026245119 | L76: 0.08616796561
A77: davon Anteil AB und HH/PA i.berufsbegl.Ausb. am MPPB | K77: 0.0107608558 | L77: 0.01086817543
A79: Mindestpflegepersonalbedarf / Pflegeintensität am Stichtag lt. Blatt 4_
A81: Erfüllung MPPB | C81: ='4_Pflegepersonalbedarf 2025'!O292/100 -> 0 | G81: 1.081654943 | H81: 2.109659017 | I81: 1.11184493 | J81: 1.102692366 | K81: 1.130934432 | L81: 1.0577
A82: am Stichtag fehlen insgesamt | C82: ='4_Pflegepersonalbedarf 2025'!O297 -> 0 | D82: PE | F82: gesamt OÖ | G82: 7.264242579 | H82: 1.695405856 | I82: 4.47 | J82: 5.452105522 | K82: 3.784456818 | L82: 16.83104884
A83: am Stichtag fehlen an DGKP/PFA auf 20 % | C83: ='4_Pflegepersonalbedarf 2025'!O298 -> 0 | D83: PE | F83: gesamt OÖ | G83: 3.590769231 | H83: 2.949230769 | I83: 5.053 | J83: 7.837 | K83: 8.394964912 | L83: 8.197157895
A84: am Stichtag fehlen an DGKP/PFA auf 25 % | C84: ='4_Pflegepersonalbedarf 2025'!O299 -> 0 | D84: PE | F84: gesamt OÖ | G84: 58.39931947 | H84: 49.97998978 | I84: 50.92 | J84: 55.61812479
A85: am Stichtag fehlen an FSB/DSB/PA | C85: ='4_Pflegepersonalbedarf 2025'!O300 -> 0 | D85: PE | F85: gesamt OÖ | G85: 23.91976406 | H85: 8.092073262
A86: Pflegeintensität IST | B86: 1 : | C86: ='4_Pflegepersonalbedarf 2025'!O284/'4_Pflegepersonalbedarf 2025'!O275 ->  | F86: 1 : | G86: 1.98750625 | H86: 1.963491946 | I86: 1.99 | J86: 2.018924554 | K86: 1.980809647 | L86: 2.135196499 | M86: 2.174294781
A87: Pflegeintensität SOLL | B87: 1 : | C87: ='4_Pflegepersonalbedarf 2025'!O284/'4_Pflegepersonalbedarf 2025'!O286 ->  | F87: 1 : | G87: 2.14979596 | H87: 2.178806543 | I87: 2.21 | J87: 2.226252694 | K87: 2.240165833 | L87: 2.258437916 | M87: 2.302872658
A89: Betreuungs- und Pflegepersonal (nicht MPPB-wirksam)
A91: Anteile am MPPB
A92: Hilfskräfte (inkl. Hauswirtschaftskräfte) | C92: ='4_Pflegepersonalbedarf 2025'!O281/'4_Pflegepersonalbedarf 2025'!O286 ->  | G92: 0.05595357446 | H92: 0.05475804539 | I92: 0.02226268862 | J92: 0.01786438448
A94: Funktionspersonal
A96: Anteile an Gesamt-Funktionspersonal (PE)
A97: Heimleitung | C97: ='2_Personal'!H32/'2_Personal'!$H$38 ->  | G97: 0.06152126232 | H97: 0.05921826433 | I97: 0.05950382298 | J97: 0.05469706896 | K97: 0.0572472823 | L97: 0.05730872832 | M97: 0.0591329922
A98: Verwaltung | C98: ='2_Personal'!H33/'2_Personal'!$H$38 ->  | G98: 0.08882236179 | H98: 0.08448991816 | I98: 0.08451737766 | J98: 0.07363274224 | K98: 0.07475711148 | L98: 0.07301792706 | M98: 0.07450490827
A99: Küche | C99: ='2_Personal'!H34/'2_Personal'!$H$38 ->  | G99: 0.4502339829 | H99: 0.4606792407 | I99: 0.4546908777 | J99: 0.4029455928 | K99: 0.4192491275 | L99: 0.4488820854 | M99: 0.456543781
A100: Reinigung | C100: ='2_Personal'!H35/'2_Personal'!$H$38 ->  | G100: 0.270452534 | H100: 0.266483752 | I100: 0.2754159202 | J100: 0.2537111709 | K100: 0.2578949722 | L100: 0.2507021805 | M100: 0.2556847303
A101: Wäscherei | C101: ='2_Personal'!H36/'2_Personal'!$H$38 ->  | G101: 0.04847701968 | H101: 0.04940299251 | I101: 0.05088666269 | J101: 0.04730952379 | K101: 0.04992296315 | L101: 0.05060505705 | M101: 0.05057595214
A102: Hauswirtschaftskräfte | J102: 0.0600066744 | K102: 0.07088568291 | L102: 0.04878384886 | M102: 0.0302002261
A103: Hilfskräfte | J103: 0.04036648164
A104: Haustechnik | C104: ='2_Personal'!H37/'2_Personal'!$H$38 ->  | G104: 0.08049283927 | H104: 0.0797258323 | I104: 0.07498533881 | J104: 0.06733074522 | K104: 0.0700428604 | L104: 0.07070017282 | M104: 0.07335741006
C105: =SUM(C97:C104) ->  | G105: 1 | H105: =SUM(H97:H104) -> 1 | I105: =SUM(I97:I104) -> 1 | J105: 1 | K105: 1 | L105: 1 | M105: 1
A106: Anteile an Langzeitpflegeplätzen
A107: Heimleitung | C107: ='2_Personal'!H32/'1a_Langzeitpflege'!$H$10 ->  | G107: 0.00994639242 | H107: 0.009870632493 | I107: 0.009731677223 | J107: 0.009889283355 | K107: 0.009815666311 | L107: 0.009673946958 | M107: 0.009903394683
A108: Verwaltung | C108: ='2_Personal'!H33/'1a_Langzeitpflege'!$H$10 ->  | G108: 0.01425407925 | H108: 0.01371334836 | I108: 0.01374905907 | J108: 0.01313074104 | K108: 0.01271042176 | L108: 0.0122144011 | M108: 0.01239973094
A109: Küche | C109: ='2_Personal'!H34/'1a_Langzeitpflege'!$H$10 ->  | G109: 0.08892936288 | H109: 0.09084801917 | I109: 0.08816417983 | J109: 0.08705554459 | K109: 0.08723445596 | L109: 0.08864946206 | M109: 0.08911513014
A110: Reinigung | C110: ='2_Personal'!H35/'1a_Langzeitpflege'!$H$10 ->  | G110: 0.06058139796 | H110: 0.06040442995 | I110: 0.06344496582 | J110: 0.06122903901 | K110: 0.0602193671 | L110: 0.05870271071 | M110: 0.06037940023
A111: Wäscherei | C111: ='2_Personal'!H36/'1a_Langzeitpflege'!$H$10 ->  | G111: 0.0151108509 | H111: 0.01452493802 | I111: 0.01470139494 | J111: 0.01495399827 | K111: 0.015060705 | L111: 0.01510631013 | M111: 0.015637164
A112: Hauswirtschaftskräfte | J112: 0.01871085006 | K112: 0.02217602996 | L112: 0.01656640238 | M112: 0.01468693587
A113: Hilfskräfte | J113: 0.01245028169
A114: Haustechnik | C114: ='2_Personal'!H37/'1a_Langzeitpflege'!$H$10 ->  | G114: 0.01311556354 | H114: 0.01307271248 | I114: 0.01217848391 | J114: 0.01232714656 | K114: 0.01197225178 | L114: 0.01188568158 | M114: 0.01233712009
A116: Beschäftigte
A118: männliche Beschäftigte | C118: ='2_Personal'!C47/('2_Personal'!$C$47+'2_Personal'!$D$47) ->  | G118: 0.130032886 | H118: 0.1268497058 | I118: 0.1276125587 | J118: 0.12738795 | K118: 0.1286161784 | L118: 0.1286457366 | M118: 0.1283695854
A119: weibliche Beschäftigte | C119: ='2_Personal'!D47/('2_Personal'!$C$47+'2_Personal'!$D$47) ->  | G119: 0.869967114 | H119: 0.8731502942 | I119: 0.8723874413 | J119: 0.87261205 | K119: 0.8713838216 | L119: 0.8713542634 | M119: 0.8716304146
A120: Teilzeitbeschäftigte | H120: 0.6835443038 | I120: 0.6894392782 | J120: 0.6736774431 | K120: 0.6966095449 | L120: 0.6971948727 | M120: 0.6874883807
A122: Überstunden, Mehrstunden
A124: übertragene Stunden pro Person | D124: ='2_Personal'!C52/'2_Personal'!C22 ->  | G124: 40.83945761 | H124: 42.84075987 | I124: 38.59556067 | J124: 34.69121954 | K124: 25.757082 | L124: 27.52402519 | M124: 27.02958098
A125: ausbezahlte Stunden pro Person | D125: ='2_Personal'!C53/'2_Personal'!C22 ->  | G125: 19.9195985 | H125: 20.47044389 | I125: 27.19061858 | J125: 15.42375454 | K125: 14.31469073 | L125: 14.13012723 | M125: 10.50220272
A127: Fluktuation Pflegepersonal (Auflösung Dienstverhältnis) (ohne Leasingpersonal)
A129: Anteile an Summe Personen
A130: in ein Heim des selben Trägers | D130: ='2_Personal'!M73/'2_Personal'!$C$22 ->  | G130: 0.009351620948 | H130: 0.005893416928 | I130: 0.007238747039 | J130: 0.009345794393 | K130: 0.01182125227 | L130: 0.008340935749 | M130: 0.01009578048
A131: in ein Heim eines anderen Trägers | D131: ='2_Personal'!M74/'2_Personal'!$C$22 ->  | G131: 0.02032418953 | H131: 0.02006269592 | I131: 0.0218478547 | J131: 0.01895861148 | K131: 0.01922577293 | L131: 0.02059168513 | M131: 0.0183794978
A132: zu den Mobilen Diensten | D132: ='2_Personal'!M75/'2_Personal'!$C$22 ->  | G132: 0.007356608479 | H132: 0.006269592476 | I132: 0.008291655699 | J132: 0.007743658211 | K132: 0.005455962588 | L132: 0.004300794995 | M132: 0.005565622573
A133: in eine Einrichtung des Gesundheitsbereiches (inkl. KA) | D133: ='2_Personal'!M76/'2_Personal'!$C$22 ->  | G133: 0.01995012469 | H133: 0.01956112853 | I133: 0.02026849171 | J133: 0.01668891856 | K133: 0.01623798389 | L133: 0.01589990877 | M133: 0.003494693244
A134: in eine Einrichtung für Menschen mit Beeinträchtigungen | D134: ='2_Personal'!M77/'2_Personal'!$C$22 ->  | G134: 0.005985037406 | H134: 0.006520376176 | I134: 0.007238747039 | J134: 0.007209612817 | K134: 0.002857885165 | L134: 0.005343411964 | M134: 0.003235827077
A135: zu Sonstigem (z.B. anderes Berufsfeld, Privatfirmen etc.) | D135: ='2_Personal'!M78/'2_Personal'!$C$22 ->  | G135: 0.01995012469 | H135: 0.01742946708 | I135: 0.02566464859 | J135: 0.01789052069 | K135: 0.01221096389 | L135: 0.01407532908 | M135: 0.01281387523
A136: weiterer Berufsweg unbekannt bzw. sonstige Gründe | D136: ='2_Personal'!M81/'2_Personal'!$C$22 ->  | G136: 0.03067331671 | H136: 0.02833855799 | I136: 0.02724401158 | J136: 0.02550066756 | K136: 0.02624058197 | L136: 0.0265867327 | M136: 0.02057986021
A138: BETREUUNG UND PFLEGE (ohne Kurzzeitpflege)
A139: Erhaltung und Förderung von Selbständigkeit
A141: HB mit einer schweren Bettlägrigkeit | J141: 0.0946959178 | K141: 0.0906478821 | L141: 0.07944208611 | M141: 0.07291044139
A142: Qualitätsstandard (SOP) Mobilitätserhaltung und -verbesserg. vorhanden | J142: 0.8409090909 | K142: 0.8409090909 | L142: 0.8333333333 | M142: 0.7985074627
A144: Schutz vor gesundheitlichen Schädigungen
P145: =IF(N145="","","x") -> 
A146: Dekubitus (Anteile an Summe HB der Langzeitpflege)
A147: Qualitätsstandard (SOP) Dekubitus vorhanden | J147: 0.9696969697 | K147: 0.9696969697 | L147: 0.9545454545 | M147: 0.9552238806
A148: Risikoeinschätzung Dekubitus wird durchgeführt | J148: 0.9166666667 | K148: 0.9090909091 | L148: 0.8863636364 | M148: 0.8880597015
A149: HB mit Dekubitusrisiko | J149: 0.1711561603 | K149: 0.1791639633 | L149: 0.1770770164 | M149: 0.1768120891
A150: HB mit Dekubitus Grad I | J150: 0.01129315931 | K150: 0.02493280193 | L150: 0.02616304254 | M150: 0.019
A151: HB mit Dekubitus Grad II | J151: 0.00647968157 | K151: 0.0185373992 | L151: 0.0167200901 | M151: 0.0155
A152: Dekubitalgeschwüre I und II im Heim entstanden | J152: 0.578125 | K152: 0.8038379531 | L152: 0.6767676768 | M152: 0.6576
A153: Dekubitalgeschwüre I und II im Krankenhaus entstanden | J153: 0.234375 | K153: 0.1194029851 | L153: 0.1919191919 | M153: 0.201
A154: Dekubitalgeschwüre I und II anderswo (z.B. zu Hause,..) entstanden | J154: 0.21875 | K154: 0.1087420043 | L154: 0.1353535354 | M154: 0.1563
A155: HB mit Dekubitus Grad III | D155: =IF('5_Betreuung und Pflege'!F13=0,"0,00%",'5_Betreuung und Pflege'!F13/'1a_Langzeitpflege'!L24) -> 0,00% | G155: 0.01156123696 | H155: 0.01303396442 | I155: 0.0144 | J155: 0.01129315931 | K155: 0.01056631755 | L155: 0.008489993936 | M155: 0.007854520618
A156: HB mit Dekubitus Grad IV | D156: =IF('5_Betreuung und Pflege'!F14=0,"0,00%",'5_Betreuung und Pflege'!F14/'1a_Langzeitpflege'!L24) -> 0,00% | G156: 0.006767553341 | H156: 0.006469412996 | I156: 0.006 | J156: 0.00647968157 | K156: 0.005653906757 | L156: 0.005024690288 | M156: 0.004098010757
A157: Summe HB mit Deku. Grad III und IV | D157: ='5_Betreuung und Pflege'!G15 -> 0,00% | G157: 0.0183287903 | H157: 0.01950337741 | I157: 0.0204 | J157: 0.01777284088 | K157: 0.0162202243 | L157: 0.01351468422 | M157: 0.01195253138
A158: Dekubitalgeschwüre III und IV im Heim entstanden | D158: =IF('5_Betreuung und Pflege'!F18=0,"0,00%",'5_Betreuung und Pflege'!F18/'5_Betreuung und Pflege'!F15) -> 0,00% | G158: 0.641025641 | H158: 0.6243902439 | I158: 0.5888 | J158: 0.578125 | K158: 0.5657142857 | L158: 0.5 | M158: 0.5071428571
A159: Dekubitalgeschwüre III und IV im Krankenhaus entstanden | D159: =IF('5_Betreuung und Pflege'!F19=0,"0,00%",'5_Betreuung und Pflege'!F19/'5_Betreuung und Pflege'!F15) -> 0,00% | G159: 0.1487179487 | H159: 0.1512195122 | I159: 0.1682 | J159: 0.234375 | K159: 0.24 | L159: 0.2692307692 | M159: 0.2357142857
A160: Dekubitalgeschw. III u. IV anderswo (z.B. zu Hause,..) entstanden | E160: =IF('5_Betreuung und Pflege'!F20=0,"0,00%",'5_Betreuung und Pflege'!F20/'5_Betreuung und Pflege'!F15) -> 0,00% | G160: 0.2102564103 | H160: 0.2243902439 | I160: 0.243 | J160: 0.21875 | K160: 0.2114285714 | L160: 0.2371794872 | M160: 0.2785714286
A162: Stürze
A163: Qualitätsstandard (SOP) Stürze vorhanden | J163: 0.9621212121 | K163: 0.9621212121 | L163: 0.9318181818 | M163: 0.9253731343
A164: Risikoeinschätzung Stürze wird durchgeführt | J164: 0.9166666667 | K164: 0.9015151515 | L164: 0.8484848485 | M164: 0.8507462687
A165: HB, bei denen ein Sturzrisiko eingeschätzt wurde | J165: 0.7360918263 | K165: 0.743535082 | L165: 0.6991250108 | M165: 0.6578161018
A166: gestürzte HB gemessen an allen HB | D166: ='5_Betreuung und Pflege'!G29 -> 0,00% | G166: 0.4437107956 | H166: 0.4242203052 | I166: 0.4334 | J166: 0.4203625145 | K166: 0.4015572149 | L166: 0.4087854654 | M166: 0.411550789
A167: durchschnittl. Sturzanzahl pro gestürztem HB | D167: ='5_Betreuung und Pflege'!G31 -> 0 | G167: 3.766964286 | H167: 3.851087127 | I167: 3.91 | J167: 3.958256881 | K167: 4.147012079 | L167: 4.30761035 | M167: 4.209525236
A168: Stürze mit ambulanter oder stationärer Behandlung
A169: im Verhältnis zu allen Stürzen des Jahres | D169: ='5_Betreuung und Pflege'!G34 -> 0,00% | G169: 0.1823101841 | H169: 0.1921202275 | I169: 0.1725 | J169: 0.1654498397 | K169: 0.1608860614 | L169: 0.1783682555 | M169: 0.1983491657
A171: Freiheitsbe- bzw. -einschränkende Maßnahmen
A172: HB sind in ihrer Freiheit beschränkt | D172: ='5_Betreuung und Pflege'!G41 -> 0,00% | G172: 0.1998308112 | H172: 0.1891351917 | I172: 0.1664 | J172: 0.1555123577 | K172: 0.1489480026 | L172: 0.135839903 | M172: 0.111243917
A173: HB sind in ihrer Freiheit eingeschränkt | D173: ='5_Betreuung und Pflege'!G45 -> 0,00% | G173: 0.05630228405 | H173: 0.04890115117 | I173: 0.0471 | J173: 0.05304082199 | K173: 0.05941236445 | L173: 0.04548211037 | M173: 0.04857850252
A176: Atmung
A177: HB mit Trachealkanüle, bei denen ein Absaugen notw. ist | J177: 0.001110802555 | K177: 0.001204930948 | L177: 0.00216581478 | M177: 0.001195253138
A179: Ernährungs- und Flüssigkeitszustand
A180: Qualitätsstandard (SOP) Ernährung inkl. Exsikkose vorhanden | E180: ='5_Betreuung und Pflege'!G53 -> 0 | G180: 0.9328358209 | H180: 0.9179104478 | I180: 0.8947 | J180: 0.9393939394 | K180: 0.9166666667 | L180: 0.8787878788 | M180: 0.8731343284
A181: Risikoeinschätzung zum Thema Ernährung wird durchgeführt | E181: ='5_Betreuung und Pflege'!G55 -> 0 | G181: 0.9701492537 | H181: 0.9179104478 | I181: 0.9098 | J181: 0.9090909091 | K181: 0.9015151515 | L181: 0.9090909091 | M181: 0.8358208955
A182: HB, die zum Stichtag über eine Magensonde (PEG) ernährt wurden | J182: 0.01536610201 | K182: 0.01529335434 | L182: 0.01516070346 | M182: 0.01724579527
A183: HB, die im Berichtsjahr über eine Magensonde ernährt wurden | J183: 0.01511156839 | K183: 0.01557016144 | L183: 0.01643119437 | M183: 0.01762603229
A184: HB, bei denen eine Magensonde wieder stillgelegt wurde | J184: 0.114893617 | K184: 0.04918032787 | L184: 0.07575757576 | M184: 0.07692307692
A186: Ausscheidung
A187: HB mit Inkontinenzversorgung über 24 Stunden | J187: 0.803202814 | K187: 0.791825007 | L187: 0.7751884259 | M187: 0.6991377102
A188: HB mit Dauerkatheter | D188: ='5_Betreuung und Pflege'!G59 -> 0,00% | G188: 0.06767553341 | H188: 0.06849966702 | I188: 0.0647 | J188: 0.06229750995
A190: Schmerzen
A191: Qualitätsstandard (SOP) Schmerzen vorh. | C191: ='5_Betreuung und Pflege'!G67 -> 0 | G191: 0.9328358209 | H191: 0.9402985075 | I191: 0.9173 | J191: 0.9015151515 | K191: 0.8939393939 | L191: 0.8484848485 | M191: 0.7835820896
A192: Schmerzeinschätzung wird durchgeführt | C192: ='5_Betreuung und Pflege'!G69 -> 0 | G192: 0.9701492537 | H192: 0.9402985075 | I192: 0.9173 | J192: 0.8787878788 | K192: 0.8409090909 | L192: 0.8484848485 | M192: 0.776119403
A193: HB mit einer Dauermedikation Schmerzmittel | J193: 0.2688039653 | K193: 0.3527667068 | L193: 0.357705969 | M193: 0.3646375822
A194: HB mit einer Dauermedikation Suchtmittel | D194: ='5_Betreuung und Pflege'!G74 -> 0,00% | G194: 0.2158097566 | H194: 0.2258586243 | I194: 0.2123 | J194: 0.2097565491 | K194: 0.2065993141 | L194: 0.2054925063 | M194: 0.1964483907
A195: davon: HB mit Suchtmittel subcutan im Nachtdienst | D195: ='5_Betreuung und Pflege'!G77 -> 0,00% | G195: 0.01698606272 | H195: 0.03117101938 | I195: 0.0184 | J195: 0.02471315093 | K195: 0.03633916555 | L195: 0.02487352445 | M195: 0.01390699696
A197: Unterstützung bei spezifischen Bedarfslagen
A199: Verhaltensauffälligkeiten
A200: HB mit herausforderndem Verhalten | J200: 0.2029991669 | K200: 0.1949207526 | L200: 0.2150220913 | M200: 0.2012294032
A201: davon: HB, bei denen auf Grund einer Suchterkrankung
A202: psychiatrische Pflegemaßnahmen erforderlich wären | J202: 0.1267669859 | K202: 0.1426533524 | L202: 0.1196615633 | M202: 0.1217649555
A204: Demenz
A205: HB mit medizinisch diagnostizierter Demenz | D205: =IF('5_Betreuung und Pflege'!F85=0,"0,00%",'5_Betreuung und Pflege'!F85/'1a_Langzeitpflege'!L24) -> 0,00% | G205: 0.5227934956 | H205: 0.532584911 | I205: 0.5201 | J205: 0.4939368694 | K205: 0.4974511076 | L205: 0.5193623841 | M205: 0.4898830359
A206: Qualitätsstandard (SOP) Demenz vorhanden | J206: 0.8333333333 | K206: 0.8106060606 | L206: 0.7575757576 | M206: 0.8059701493
A208: Medikamentengebarung
A210: überwiegende Verblisterung der Medikamente | D210: ='5_Betreuung und Pflege'!F91 -> 0 | G210: 0.2910447761 | H210: 0.276119403

Sheet 7_Definitionen
A1: ERHEBUNG IN DEN OÖ. ALTEN- UND PFLEGEHEIMEN Literatur- und Quellennachweis
A3: Qualitätsmanagementsystem
A5: Definition:
A6: Ein Qualitätsmanagementsystem muss aus einem Regelkreis (z.B. Deming) sowie einer nachvollziehbaren Selbstbewertung bestehen, die in regelmäßigen Abständen adaptiert werden müssen.
A8: weiterführende Informationen:
A9: https://goeg.at/Qualitaetsmanagement
A11: Qualitätsstandard
A13: Definition:
A14: Beschreibbare Regelmäßigkeiten bzw. Vorgaben hinsichtlich Ausstattung, Verfahren oder Verhalten.
A16: Quelle:
A17: § 2 Z. 12 Bundesgesetz zur Qualität von Gesundheitsleistungen (Gesundheitsqualitätsgesetz – GQG), BGBl. I Nr. 179/2004 i.d.g.F.
A19: weiterführende Informationen:
A20: https://www.sozialministerium.at/dam/sozialministeriumat/Anlagen/Themen/Gesundheit/Gesundheitssystem/Gesundheitssystem-und-Qualit%C3%A4tssicherung/Qualit%C3%A4tsstandards/Qualit%C3%A4tsstandards-gem%C3%A4%C3%9F-Gesundheitsqualit%C3%A4tsgesetz/methodenhandbuch_qualitaetsstandards__aktualisierung_2019.pdf
A22: SOP - Standard Operating Procedures / Handlungsanweisungen:
A24: Definition:
A25: Standard Operating Procedure (kurz SOP, auch Standard Operation Procedure genannt), auf Deutsch etwa Standardvorgehensweise oder standardisiertes Vorgehen, ist eine verbindliche textliche Beschreibung der Abläufe von Vorgängen einschließlich der Prüfung der Ergebnisse und deren Dokumentation insbesondere in Bereichen kritischer Vorgänge mit potentiellen Auswirkungen auf Umwelt, Gesundheit und Sicherheit.
A27: Risikoeinschätzung
A29: Definition:
A30: Risiko-Pflegediagnosen beschreiben mögliche Reaktionen, die unter Einwirkung bestimmter Faktoren mit hoher Wahrscheinlichkeit eintreten können, wenn prophylaktisch keine pflegerischen Maßnahmen getroffen werden.
A32: Quelle:
A33: POP – Praxis Orientierte Pflegediagnostik – Stefan, Allmer, 2. Auflage 2013, ISBN 978-3-7091-1284-7
A34: https://link.springer.com/book/10.1007/978-3-7091-1284-7
A36: Dekubitus
A38: Definition:
A39: Dekubitus ist eine lokal begrenzte Schädigung der Haut und /oder des darunterliegenden Gewebes, in der Regel über knöchernen Vorsprüngen, infolge von Druck oder von Druck in Kombination mit Scherkräften. Es gibt eine Reihe weiterer Faktoren, welche tatsächlich oder mutmaßlich mit Dekubitus assoziiert sind; deren Bedeutung ist aber noch zu klären.
A41: Kategorie/ Stufe/ Grad I: Nicht wegdrückbare Rötung
A42: Nicht wegdrückbare, umschriebene Rötung bei intakter Haut, gewöhnlich über einem knöchernen Vorsprung. Bei dunkel pigmentierter Haut ist ein Abblassen möglicherweise nicht sichtbar, die Farbe kann sich aber von der umgebenden Haut unterscheiden. Der Bereich kann schmerzempfindlich, verhärtet, weich, wärmer oder kälter sein als das umgebende Gewebe. Diese Symptome können auf eine (Dekubitus-) Gefährdung hinweisen.
A44: Kategorie/ Stufe/ Grad II: Teilverlust der Haut
A45: Teilzerstörung der Haut (bis in die Dermis/Lederhaut), die als flaches, offenes Ulcus mit einem rot bis rosafarbenen Wundbett ohne Beläge in Erscheinung tritt. Kann sich auch als intakte oder offene/rupturierte, serumgefüllte Blase darstellen. Manifestiert sich als glänzendes oder trockenes, flaches Ulcus ohne nekrotisches Gewebe oder Bluterguss. Diese Kategorie sollte nicht benutzt werden um Skin Tears (Gewebezerreißungen), verbands- oder pflasterbedingte Hautschädigungen, feuchtigkeitsbedingte Läsionen, Mazerationen oder Abschürfungen zu beschreiben. *Blutergüsse weisen auf eine tiefe Gewebsschädigung hin.
A47: Kategorie/ Stufe/ Grad III: Verlust der Haut
A48: Zerstörung aller Hautschichten. Subkutanes Fett kann sichtbar sein, jedoch keine Knochen, Muskeln oder Sehnen. Es kann ein Belag vorliegen, der jedoch nicht die Tiefe der Gewebsschädigung verschleiert. Es können Tunnel oder Unterminierungen vorliegen. Die Tiefe des Dekubitus der Kategorie/Stufe/Grad III variiert je nach anatomischer Lokalisation. Der Nasenrücken, das Ohr, der Hinterkopf und das Gehörknöchelchen haben kein subkutanes Gewebe, daher können Kategorie III Wunden dort auch sehr oberflächlich sein. Im Gegensatz dazu können an besonders adipösen Körperstellen extrem tiefe Kategorie III Wunden auftreten. Knochen und Sehnen sind nicht sichtbar oder tastbar.
A50: Kategorie/ Stufe/ Grad IV: vollständiger Haut oder Gewebeverlust
A51: Totaler Gewebsverlust mit freiliegenden Knochen, Sehnen oder Muskeln. Belag und Schorf können vorliegen. Tunnel oder Unterminierungen liegen oft vor. Die Tiefe des Kategorie IV Dekubitus hängt von der anatomischen Lokalisation ab. Der Nasenrücken, das Ohr, der Hinterkopf und der Knochenvorsprung am Fußknöchel haben kein subkutanes Gewebe, daher können Wunden dort auch sehr oberflächlich sein. Kategorie IV Wunden können sich in Muskeln oder unterstützende Strukturen ausbreiten (Fascien, Sehnen oder Gelenkkapseln) und können dabei leicht Osteomyelitis oder Ostitis verursachen. Knochen und Sehnen sind sichtbar oder tastbar.
A53: Autor:
A54: European Pressure Ulcer Advisory Panel (EPUAP) and National Pressure Ulcer Advisory Panel (NPUAP)
A56: Quelle:
A57: Österreichische Gesellschaft für Dekubitusprävention
A58: http://www.apupa.at/dekubitus
A60: weiterführende Informationen:
A61: Expertenstandard Dekubitusprophylaxe in der Pflege - in der aktuellen Fassung
A62: https://www.dnqp.de/de/expertenstandards-und-auditinstrumente
A64: Sturz
A66: Definition
A67: Im Expertenstandard des DNQP wird die folgende Definition zugrunde gelegt: "Ein Sturz ist ein Ereignis, bei dem eine Person unbeabsichtigt auf dem Boden oder auf einer tieferen Ebene aufkommt."
A69: Autor:
A70: Deutsches Netzwerk für Qualitätsentwicklung in der Pflege (DNQP); Büscher et al.
A72: Quelle:
A73: Expertenstandard Sturzprophylaxe in der Pflege, aktuelle Fassung
A74: https://www.dnqp.de/de/expertenstandards-und-auditinstrumente
A76: weiterführende Informationen:
A77: Evidenzbasierte Leitlinie Sturzprävention bei älteren und alten Menschen in Krankenhäusern und Langzeitpflegeeinrichtungen
A78: https://pflegewissenschaft.medunigraz.at/frontend/user_upload/OEs/institute/pflegewissenschaft/pdf/EBN_Sturzleitlinie.pdf
A80: Hinweis:
A81: Beinahestürze, bei denen ein Sturz so weit abgefangen wird, dass es nicht zu einer Berührung des Körpers mit dem Boden kommt, zählen nicht als Stürze.
A83: Freiheitsbe- und -einschränkende Maßnahmen
A85: Definition Freiheitsbeschränkung:
A86: Eine Freiheitsbeschränkung liegt vor, wenn eine Ortsveränderung einer betreuten oder gepflegten Person gegen oder ohne ihren Willen mit physischen Mitteln, insbesondere durch mechanische, elektronische oder medikamentöse Maßnahmen, oder durch deren Androhung unterbunden wird.
A88: Definition Freiheitseinschränkung:
A89: Eine Freiheitsbeschränkung liegt nicht vor, wenn der entscheidungsfähige Bewohner einer Unterbindung der Ortsveränderung, insbesondere im Rahmen eines Vertrages über die ärztliche Behandlung, zugestimmt hat.
A91: Quelle:
A92: § 3 Bundesgesetz über den Schutz der persönlichen Freiheit während des Aufenthalts in Heimen und anderen Pflege- und Betreuungseinrichtungen (Heimaufenthaltsgesetz – HeimAufG) BGBl. I Nr. 11/2004 i.d.g.F.
A94: Ernährung
A96: Definition:
A97: Im Rahmen des Alterungsprozesses kommt es zu Veränderungen, die sowohl die körperliche wie auch die soziale Ebene betreffen. Dazu gehören beispielsweise Veränderungen in der Leber- und Nierengesundheit sowie die schlechtere Aufnahme von vereinzelten Nährstoffen. Das kann dazu führen, dass es bei einer unausgewogenen Ernährung leichter zu Mangelzuständen kommen kann. Demnach ist die bedarfs- und bedürfnisgerechte Ernährung in Wohn- und Pflegeeinrichtungen ein wesentlicher Teil der Versorgung von Bewohnerinnen und Bewohnern, wobei die individuelle Betreuung ein wesentliches Kernelement darstellt.
A99: Autor:
A100: Bundesministerium Soziales, Gesundheit, Pflege und Konsumentenschutz
A102: Quelle:
A103: https://www.sozialministerium.at/Themen/Gesundheit/Ern%C3%A4hrung/Gemeinschaftsverpflegung.html
A104: Qualitätsstandard zu finden unter dem Reiter "Weiterführende Dokumente".
A106: weiterführende Informationen:
A107: Expertenstandard Ernährungsmanagement zur Sicherung und Förderung der oralen Ernährung in der Pflege - in der aktuellen Fassung
A108: https://www.dnqp.de/de/expertenstandards-und-auditinstrumente
A109: http://www.fitimalter-dge.de
A111: herausforderndes Verhalten - Demenz
A113: Definition:
A114: Der Begriff „herausforderndes Verhalten“ beschreibt wiederkehrende Verhaltensweisen, die vom sozialen Umfeld als unangepasst und als nicht situationsgerecht empfunden werden. Typischerweise zählen zu diesen Verhaltensweisen Agitation, Aggression, Reizbarkeit, Apathie, Depression, Ängstlichkeit, Wahnvorstellungen und Halluzinationen, Weglauftendenz, Enthemmung, Euphorie und ständiges Rufen. Dieses Verhalten endet zumeist erst im Endstadium einer Demenz.
A115: Zur kontrollierten Erfassung herausfordernden Verhaltens stehen verschiedene validierte Selbst- und Fremdeinschätzungsinstrumente zur Verfügung. Für den Umgang mit herausforderndem Verhalten gibt es "Rahmenempfehlungen zum Umgang mit herausforderndem Verhalten bei Menschen mit Demenz in der stationären Altenhilfe".
A117: Autor:
A118: Universitätsklinikum Freiburg; Härter et al.
A120: weiterführende Informationen:
A121: https://www.demenzstrategie.at
A123: Schmerzen
A125: Definition:
A126: Die Weltschmerzorganisation International Association for the Study of Pain (IASP) definiert Schmerz als „ein unangenehmes Sinnes- und Gefühlserlebnis, das mit aktueller oder potentieller Gewebeschädigung verknüpft ist oder mit Begriffen einer solchen Schädigung beschrieben wird." Akuter Schmerz ist ein Warnsignal und ein Symptom. Er zeigt an, dass der Körper geschädigt oder verletzt wurde. Darum ist er in der Regel auf den Ort der Schädigung begrenzt. Bei einem gebrochenen Bein schmerzt ausschließlich das Bein. Die Intensität des Schmerzes hängt meist vom Ausmaß der Verletzung ab. Ein Bruch schmerzt stärker als eine leichte Prellung. Entscheidend ist: Akuter Schmerz, der Warner und Schützer, verschwindet wieder, sobald die Ursache geheilt ist. Chronischer Schmerz kann ebenfalls die Folge einer Gewebeschädigung sein, etwa bei chronischen Erkrankungen und Entzündungen (Rheuma, Krebs). Von chronischem Schmerz sprechen Fachleute dann, wenn der Schmerz seit mindestens drei bis sechs Monaten besteht und den betroffenen Patienten physisch (Mobilitätsverlust und Funktionseinschränkung), psychisch-kognitiv (Befindlichkeit, Stimmung und Denken) und sozial beeinträchtigt.
A128: Autor:
A129: Deutsches Netzwerk für Qualitätsentwicklung in der Pflege (DNQP); Büscher et al.
A131: Quelle:
A132: Expertenstandard Schmerzmanagement in der Pflege - in der aktuellen Fassung
A133: https://www.dnqp.de/de/expertenstandards-und-auditinstrumente

Sheet Datenblatt
A2: Hauptdaten1 (Strukturdaten; Langzeitpflege)
A3: Code | B3: Träger | C3: Bezirk | D3: Region | E3: Planungsraum | F3: Größengruppe | G3: PDL-Statistik | H3: Gemeinde Kennzahl | I3: Gemeinde | J3: Kurzbezeichnung | K3: Adresse | L3: Telefon | M3: E-mail | N3: Homepage | O3: Heimleiter/in | P3: Ausbildung nach Oö. HVO abgeschlossen | Q3: wenn nein: wann vorauss. Abschluß mm.jj | R3: Leitung des Betreuungs- und Pflegedienstes | S3: Ausbildung nach Oö. HVO abgeschlossen | T3: wenn nein: wann vorauss. Abschluß mm.jj | U3: 1-Personen-Einheiten | V3: 2-Personen-Einheiten | W3: Oase | X3: gesamt | Y3: in 1-Personen-Einheiten | Z3: in 2-Personen-Einheiten | AA3: Oase | AB3: insgesamt | AC3: Frauen | AD3: Männer | AE3: insgesamt | AF3: Frauen | AG3: Männer | AH3: insgesamt | AI3: Frauen | AJ3: Männer | AK3: insgesamt | AL3: unter 60 Jahre | AM3: 60 bis unter 65 Jahre | AN3: 65 bis unter 70 Jahre | AO3: 70 bis unter 75 Jahre | AP3: 75 bis unter 80 Jahre | AQ3: 80 bis unter 85 Jahre | AR3: 85 bis unter 90 Jahre | AS3: 90 Jahre und älter | AT3: Summe | AU3: unter 60 Jahre | AV3: 60 bis unter 65 Jahre | AW3: 65 bis unter 70 Jahre | AX3: 70 bis unter 75 Jahre | AY3: 75 bis unter 80 Jahre | AZ3: 80 bis unter 85 Jahre | BA3: 85 bis unter 90 Jahre | BB3: 90 Jahre und älter | BC3: Summe | BD3: unter 60 Jahre | BE3: 60 bis unter 65 Jahre | BF3: 65 bis unter 70 Jahre | BG3: 70 bis unter 75 Jahre | BH3: 75 bis unter 80 Jahre | BI3: 80 bis unter 85 Jahre | BJ3: 85 bis unter 90 Jahre | BK3: 90 Jahre und älter | BL3: Summe | BM3: unter 60 Jahre | BN3: 60 bis unter 65 Jahre | BO3: 65 bis unter 70 Jahre | BP3: 70 bis unter 75 Jahre | BQ3: 75 bis unter 80 Jahre | BR3: 80 bis unter 85 Jahre | BS3: 85 bis unter 90 Jahre | BT3: 90 Jahre und älter | BU3: Summe | BV3: unter 60 Jahre | BW3: 60 bis unter 65 Jahre | BX3: 65 bis unter 70 Jahre | BY3: 70 bis unter 75 Jahre | BZ3: 75 bis unter 80 Jahre | CA3: 80 bis unter 85 Jahre | CB3: 85 bis unter 90 Jahre | CC3: 90 Jahre und älter | CD3: Summe | CE3: unter 60 Jahre | CF3: 60 bis unter 65 Jahre | CG3: 65 bis unter 70 Jahre | CH3: 70 bis unter 75 Jahre | CI3: 75 bis unter 80 Jahre | CJ3: 80 bis unter 85 Jahre | CK3: 85 bis unter 90 Jahre | CL3: 90 Jahre und älter | CM3: Summe | CN3: unter 60 Jahre | CO3: 60 bis unter 65 Jahre | CP3: 65 bis unter 70 Jahre | CQ3: 70 bis unter 75 Jahre | CR3: 75 bis unter 80 Jahre | CS3: 80 bis unter 85 Jahre | CT3: 85 bis unter 90 Jahre | CU3: 90 Jahre und älter | CV3: Summe | CW3: unter 60 Jahre | CX3: 60 bis unter 65 Jahre | CY3: 65 bis unter 70 Jahre | CZ3: 70 bis unter 75 Jahre | DA3: 75 bis unter 80 Jahre | DB3: 80 bis unter 85 Jahre | DC3: 85 bis unter 90 Jahre | DD3: 90 Jahre und älter | DE3: Summe | DF3: unter 60 Jahre | DG3: 60 bis unter 65 Jahre | DH3: 65 bis unter 70 Jahre | DI3: 70 bis unter 75 Jahre | DJ3: 75 bis unter 80 Jahre | DK3: 80 bis unter 85 Jahre | DL3: 85 bis unter 90 Jahre | DM3: 90 Jahre und älter | DN3: Summe | DO3: Durchschnittsalter HB LZP | DP3: Braunau | DQ3: Eferding | DR3: Freistadt | DS3: Gmunden | DT3: Grieskirchen | DU3: Kirchdorf | DV3: Linz-Land | DW3: Perg | DX3: Ried | DY3: Rohrbach | DZ3: Schärding | EA3: Steyr-Land | EB3: Urfahr-Umgebung | EC3: Vöcklabruck | ED3: Wels-Land | EE3: Linz | EF3: Steyr | EG3: Wels | EH3: andere Bundesländer | EI3: Ausland | EJ3: Standortgemeinde | EK3: Summe Bewohntage LZP | EL3: HB mit SH-Bezug | EM3: Selbstzahler:innen | EN3: davon Krankenhaustage | EO3: berechnete Auslastung aufgrund der Bewohntage | EP3: das bedeutet, es wären ständig .... LZP-Plätze nicht bewohnt gewesen | EQ3: Begründung für Auslastung unter 98% oder über 100% | ER3: betreute Personen LZP | ES3: davon SH | ET3: davon immer SZ | EU3: Summe HB 31.12.2025 + alle Austritte 2025 | EV3: Abweichung zur Angabe in E75 | EW3: Begründung | EX3: Anzahl mit SH-Bezug | EY3: Anzahl Selbstzahler:innen | EZ3: Summe Neueintritte | FA3: ausgetretene HB 2025 | FB3: in ein anderes Heim übersiedelt | FC3: davon immer Selbstzahler:innen | FD3: Todesfälle 2025 | FE3: Anteil Todesfälle 2025 an betreuten Personen LZP | FF3: DAVON: im Heim verstorben | FG3: Anteil der im Heim verstorbenen LZP an allen Todesfällen | FH3: Plausibilisierung Ein-/Austritte zum Vorjahr | FI3: bis 1 Monat | FJ3: 1 bis 3 Monate | FK3: 4 bis 6 Monate | FL3: 7 bis 12 Monate | FM3: 1 bis 5 Jahre | FN3: 6 bis 10 Jahre | FO3: länger | FP3: Summe
EK4: Bewohntage | ER4: betreute Personen LZP | EX4: Neueintritte | FA4: Austritte/Todesfälle
H5: Standortgemeinde | J5: Kurzbezeichnung | K5: Adressdaten | O5: Leitung | U5: Zimmer | Y5: LZP-Plätze | AC5: HB (Langzeitpflege) mit SH | AF5: HB (Langzeitpflege) Selbstzahler | AI5: HB (Langzeitpflege) gesamt | AL5: Altersstruktur der Bewohner (Langzeitpflege) mit SH-Bezug - weiblich | AU5: Altersstruktur der Bewohner (Langzeitpflege) mit SH-Bezug - männlich | BD5: Altersstruktur der Bewohner (Langzeitpflege) mit SH-Bezug gesamt | BM5: Altersstruktur der Bewohner (Langzeitpflege) Selbstzahlerinnen - weiblich | BV5: Altersstruktur der Bewohner (Langzeitpflege) Selbstzahler - männlich | CE5: Altersstruktur der Bewohner (Langzeitpflege) Selbstzahler:innen gesamt | CN5: Altersstruktur der Bewohner (Langzeitpflege) weiblich | CW5: Altersstruktur der Bewohner (Langzeitpflege) männlich | DF5: Altersstruktur der Bewohner (Langzeitpflege) Gesamt | DP5: BEWOHNER NACH HERKUNFTSBEZIRK (Langzeitpflege) | EK5: Statistische Angaben zum Jahr 2025 | FI5: Verweildauer der im Jahr 2025 Verstorbenen im Heim
A6: =VLOOKUP($J$6,'1_allg. Strukturdaten'!$B$74:$N$207,2,FALSE) ->  | B6: =VLOOKUP($J$6,'1_allg. Strukturdaten'!$B$74:$N$207,3,FALSE) ->  | C6: =VLOOKUP($J$6,'1_allg. Strukturdaten'!$B$74:$N$207,4,FALSE) ->  | D6: =VLOOKUP($J$6,'1_allg. Strukturdaten'!$B$74:$N$207,5,FALSE) ->  | E6: =VLOOKUP($J$6,'1_allg. Strukturdaten'!$B$74:$N$207,6,FALSE) ->  | F6: =VLOOKUP($J$6,'1_allg. Strukturdaten'!$B$74:$N$207,7,FALSE) ->  | G6: =VLOOKUP($J$6,'1_allg. Strukturdaten'!$B$74:$N$207,8,FALSE) ->  | H6: =VLOOKUP($J$6,'1_allg. Strukturdaten'!$B$74:$N$207,9,FALSE) ->  | I6: =VLOOKUP($J$6,'1_allg. Strukturdaten'!$B$74:$N$207,10,FALSE) ->  | J6: ='1_allg. Strukturdaten'!$D$7 -> Bitte auswählen… | K6: ='1_allg. Strukturdaten'!D8 ->  | L6: ='1_allg. Strukturdaten'!D9 ->  | M6: ='1_allg. Strukturdaten'!D10 ->  | N6: ='1_allg. Strukturdaten'!G10 ->  | O6: ='1_allg. Strukturdaten'!D17 -> 0 | P6: ='1_allg. Strukturdaten'!E18 -> 0 | Q6: =IF('1_allg. Strukturdaten'!E19="","",'1_allg. Strukturdaten'!E19) ->  | R6: ='1_allg. Strukturdaten'!G17 -> 0 | S6: ='1_allg. Strukturdaten'!H18 -> 0 | T6: =IF('1_allg. Strukturdaten'!H19="","",'1_allg. Strukturdaten'!H19) ->  | U6: ='1a_Langzeitpflege'!B7 -> 0 | V6: ='1a_Langzeitpflege'!B8 -> 0 | W6: ='1a_Langzeitpflege'!B9 -> 0 | X6: ='1a_Langzeitpflege'!B10 -> 0 | Y6: ='1a_Langzeitpflege'!H7 -> 0 | Z6: ='1a_Langzeitpflege'!H8 -> 0 | AA6: ='1a_Langzeitpflege'!H9 -> 0 | AB6: ='1a_Langzeitpflege'!H10 -> 0 | AC6: ='1a_Langzeitpflege'!L16 -> 0 | AD6: ='1a_Langzeitpflege'!L17 -> 0 | AE6: =AC6+AD6 -> 0 | AF6: ='1a_Langzeitpflege'!L18 -> 0 | AG6: ='1a_Langzeitpflege'!L19 -> 0 | AH6: =AF6+AG6 -> 0 | AI6: ='1a_Langzeitpflege'!L22 -> 0 | AJ6: ='1a_Langzeitpflege'!L23 -> 0 | AK6: =SUM(AI6:AJ6) -> 0 | AL6: ='1a_Langzeitpflege'!C16 -> 0 | AM6: ='1a_Langzeitpflege'!D16 -> 0 | AN6: ='1a_Langzeitpflege'!E16 -> 0 | AO6: ='1a_Langzeitpflege'!F16 -> 0 | AP6: ='1a_Langzeitpflege'!G16 -> 0 | AQ6: ='1a_Langzeitpflege'!H16 -> 0 | AR6: ='1a_Langzeitpflege'!I16 -> 0 | AS6: ='1a_Langzeitpflege'!J16 -> 0 | AT6: ='1a_Langzeitpflege'!L16 -> 0 | AU6: ='1a_Langzeitpflege'!C17 -> 0 | AV6: ='1a_Langzeitpflege'!D17 -> 0 | AW6: ='1a_Langzeitpflege'!E17 -> 0 | AX6: ='1a_Langzeitpflege'!F17 -> 0 | AY6: ='1a_Langzeitpflege'!G17 -> 0 | AZ6: ='1a_Langzeitpflege'!H17 -> 0 | BA6: ='1a_Langzeitpflege'!I17 -> 0 | BB6: ='1a_Langzeitpflege'!J17 -> 0 | BC6: ='1a_Langzeitpflege'!L17 -> 0 | BD6: ='1a_Langzeitpflege'!C20 -> 0 | BE6: ='1a_Langzeitpflege'!D20 -> 0 | BF6: ='1a_Langzeitpflege'!E20 -> 0 | BG6: ='1a_Langzeitpflege'!F20 -> 0 | BH6: ='1a_Langzeitpflege'!G20 -> 0 | BI6: ='1a_Langzeitpflege'!H20 -> 0 | BJ6: ='1a_Langzeitpflege'!I20 -> 0 | BK6: ='1a_Langzeitpflege'!J20 -> 0 | BL6: ='1a_Langzeitpflege'!L20 -> 0 | BM6: ='1a_Langzeitpflege'!C18 -> 0 | BN6: ='1a_Langzeitpflege'!D18 -> 0 | BO6: ='1a_Langzeitpflege'!E18 -> 0 | BP6: ='1a_Langzeitpflege'!F18 -> 0 | BQ6: ='1a_Langzeitpflege'!G18 -> 0 | BR6: ='1a_Langzeitpflege'!H18 -> 0 | BS6: ='1a_Langzeitpflege'!I18 -> 0 | BT6: ='1a_Langzeitpflege'!J18 -> 0 | BU6: ='1a_Langzeitpflege'!L18 -> 0 | BV6: ='1a_Langzeitpflege'!C19 -> 0 | BW6: ='1a_Langzeitpflege'!D19 -> 0 | BX6: ='1a_Langzeitpflege'!E19 -> 0 | BY6: ='1a_Langzeitpflege'!F19 -> 0 | BZ6: ='1a_Langzeitpflege'!G19 -> 0 | CA6: ='1a_Langzeitpflege'!H19 -> 0 | CB6: ='1a_Langzeitpflege'!I19 -> 0 | CC6: ='1a_Langzeitpflege'!J19 -> 0 | CD6: ='1a_Langzeitpflege'!L19 -> 0 | CE6: ='1a_Langzeitpflege'!C21 -> 0 | CF6: ='1a_Langzeitpflege'!D21 -> 0 | CG6: ='1a_Langzeitpflege'!E21 -> 0 | CH6: ='1a_Langzeitpflege'!F21 -> 0 | CI6: ='1a_Langzeitpflege'!G21 -> 0 | CJ6: ='1a_Langzeitpflege'!H21 -> 0 | CK6: ='1a_Langzeitpflege'!I21 -> 0 | CL6: ='1a_Langzeitpflege'!J21 -> 0 | CM6: ='1a_Langzeitpflege'!L21 -> 0 | CN6: ='1a_Langzeitpflege'!C22 -> 0 | CO6: ='1a_Langzeitpflege'!D22 -> 0 | CP6: ='1a_Langzeitpflege'!E22 -> 0 | CQ6: ='1a_Langzeitpflege'!F22 -> 0 | CR6: ='1a_Langzeitpflege'!G22 -> 0 | CS6: ='1a_Langzeitpflege'!H22 -> 0 | CT6: ='1a_Langzeitpflege'!I22 -> 0 | CU6: ='1a_Langzeitpflege'!J22 -> 0 | CV6: ='1a_Langzeitpflege'!L22 -> 0 | CW6: ='1a_Langzeitpflege'!C23 -> 0 | CX6: ='1a_Langzeitpflege'!D23 -> 0 | CY6: ='1a_Langzeitpflege'!E23 -> 0 | CZ6: ='1a_Langzeitpflege'!F23 -> 0 | DA6: ='1a_Langzeitpflege'!G23 -> 0 | DB6: ='1a_Langzeitpflege'!H23 -> 0 | DC6: ='1a_Langzeitpflege'!I23 -> 0 | DD6: ='1a_Langzeitpflege'!J23 -> 0 | DE6: ='1a_Langzeitpflege'!L23 -> 0 | DF6: ='1a_Langzeitpflege'!C24 -> 0 | DG6: ='1a_Langzeitpflege'!D24 -> 0 | DH6: ='1a_Langzeitpflege'!E24 -> 0 | DI6: ='1a_Langzeitpflege'!F24 -> 0 | DJ6: ='1a_Langzeitpflege'!G24 -> 0 | DK6: ='1a_Langzeitpflege'!H24 -> 0 | DL6: ='1a_Langzeitpflege'!I24 -> 0 | DM6: ='1a_Langzeitpflege'!J24 -> 0 | DN6: ='1a_Langzeitpflege'!L24 -> 0 | DO6: ='1a_Langzeitpflege'!G26 -> 0 | DP6: ='1a_Langzeitpflege'!B55 -> 0 | DQ6: ='1a_Langzeitpflege'!D55 -> 0 | DR6: ='1a_Langzeitpflege'!F55 -> 0 | DS6: ='1a_Langzeitpflege'!H55 -> 0 | DT6: ='1a_Langzeitpflege'!J55 -> 0 | DU6: ='1a_Langzeitpflege'!L55 -> 0 | DV6: ='1a_Langzeitpflege'!B56 -> 0 | DW6: ='1a_Langzeitpflege'!D56 -> 0 | DX6: ='1a_Langzeitpflege'!F56 -> 0 | DY6: ='1a_Langzeitpflege'!H56 -> 0 | DZ6: ='1a_Langzeitpflege'!J56 -> 0 | EA6: ='1a_Langzeitpflege'!L56 -> 0 | EB6: ='1a_Langzeitpflege'!B57 -> 0 | EC6: ='1a_Langzeitpflege'!D57 -> 0 | ED6: ='1a_Langzeitpflege'!F57 -> 0 | EE6: ='1a_Langzeitpflege'!H57 -> 0 | EF6: ='1a_Langzeitpflege'!J57 -> 0 | EG6: ='1a_Langzeitpflege'!L57 -> 0 | EH6: ='1a_Langzeitpflege'!C58 -> 0 | EI6: ='1a_Langzeitpflege'!C59 -> 0 | EJ6: ='1a_Langzeitpflege'!A61 -> 0 | EK6: ='1a_Langzeitpflege'!F66 -> 0 | EL6: ='1a_Langzeitpflege'!F67 -> 0 | EM6: ='1a_Langzeitpflege'!F68 -> 0 | EN6: ='1a_Langzeitpflege'!I66 -> 0 | EO6: ='1a_Langzeitpflege'!G70 ->  | EP6: ='1a_Langzeitpflege'!G71 ->  | EQ6: ='1a_Langzeitpflege'!G72 -> 0 | ER6: ='1a_Langzeitpflege'!E75 -> 0 | ES6: ='1a_Langzeitpflege'!E76 -> 0 | ET6: ='1a_Langzeitpflege'!E77 -> 0 | EU6: ='1a_Langzeitpflege'!I75 -> 0 | EV6: ='1a_Langzeitpflege'!I76 -> 0 | EW6: ='1a_Langzeitpflege'!I77 -> 0 | EX6: ='1a_Langzeitpflege'!F80 -> 0 | EY6: ='1a_Langzeitpflege'!F81 -> 0 | EZ6: ='1a_Langzeitpflege'!F82 -> 0 | FA6: ='1a_Langzeitpflege'!D86 -> 0 | FB6: ='1a_Langzeitpflege'!D89 -> 0 | FC6: ='1a_Langzeitpflege'!E90 -> 0 | FD6: ='1a_Langzeitpflege'!D87 -> 0 | FE6: =FD6/ER6 ->  | FF6: ='1a_Langzeitpflege'!D88 -> 0 | FG6: =FF6/FD6 ->  | FH6: ='1a_Langzeitpflege'!J87 ->  | FI6: ='1a_Langzeitpflege'!B94 -> 0 | FJ6: ='1a_Langzeitpflege'!C94 -> 0 | FK6: ='1a_Langzeitpflege'!D94 -> 0 | FL6: ='1a_Langzeitpflege'!E94 -> 0 | FM6: ='1a_Langzeitpflege'!F94 -> 0 | FN6: ='1a_Langzeitpflege'!G94 -> 0 | FO6: ='1a_Langzeitpflege'!H94 -> 0 | FP6: ='1a_Langzeitpflege'!I94 -> 0
A8: Hauptdaten2 (Kurzzeitpflege)
A9: Code | B9: Träger | C9: Bezirk | D9: Region | E9: Planungsraum | F9: Größengruppe | G9: PDL-Statistik | H9: Gemeinde Kennzahl | I9: Gemeinde | J9: Kurzbezeichnung | K9: 1-Personen-Einheiten | L9: 2-Personen-Einheiten | M9: gesamt | N9: in 1-Personen-Einheiten | O9: in 2-Personen-Einheiten | P9: insgesamt | Q9: Frauen | R9: Männer | S9: insgesamt | T9: Frauen | U9: Männer | V9: insgesamt | W9: Frauen | X9: Männer | Y9: insgesamt | Z9: unter 60 Jahre | AA9: 60 bis unter 65 Jahre | AB9: 65 bis unter 70 Jahre | AC9: 70 bis unter 75 Jahre | AD9: 75 bis unter 80 Jahre | AE9: 80 bis unter 85 Jahre | AF9: 85 bis unter 90 Jahre | AG9: 90 Jahre und älter | AH9: Summe | AI9: unter 60 Jahre | AJ9: 60 bis unter 65 Jahre | AK9: 65 bis unter 70 Jahre | AL9: 70 bis unter 75 Jahre | AM9: 75 bis unter 80 Jahre | AN9: 80 bis unter 85 Jahre | AO9: 85 bis unter 90 Jahre | AP9: 90 Jahre und älter | AQ9: Summe | AR9: unter 60 Jahre | AS9: 60 bis unter 65 Jahre | AT9: 65 bis unter 70 Jahre | AU9: 70 bis unter 75 Jahre | AV9: 75 bis unter 80 Jahre | AW9: 80 bis unter 85 Jahre | AX9: 85 bis unter 90 Jahre | AY9: 90 Jahre und älter | AZ9: Summe | BA9: unter 60 Jahre | BB9: 60 bis unter 65 Jahre | BC9: 65 bis unter 70 Jahre | BD9: 70 bis unter 75 Jahre | BE9: 75 bis unter 80 Jahre | BF9: 80 bis unter 85 Jahre | BG9: 85 bis unter 90 Jahre | BH9: 90 Jahre und älter | BI9: Summe | BJ9: unter 60 Jahre | BK9: 60 bis unter 65 Jahre | BL9: 65 bis unter 70 Jahre | BM9: 70 bis unter 75 Jahre | BN9: 75 bis unter 80 Jahre | BO9: 80 bis unter 85 Jahre | BP9: 85 bis unter 90 Jahre | BQ9: 90 Jahre und älter | BR9: Summe | BS9: unter 60 Jahre | BT9: 60 bis unter 65 Jahre | BU9: 65 bis unter 70 Jahre | BV9: 70 bis unter 75 Jahre | BW9: 75 bis unter 80 Jahre | BX9: 80 bis unter 85 Jahre | BY9: 85 bis unter 90 Jahre | BZ9: 90 Jahre und älter | CA9: Summe | CB9: unter 60 Jahre | CC9: 60 bis unter 65 Jahre | CD9: 65 bis unter 70 Jahre | CE9: 70 bis unter 75 Jahre | CF9: 75 bis unter 80 Jahre | CG9: 80 bis unter 85 Jahre | CH9: 85 bis unter 90 Jahre | CI9: 90 Jahre und älter | CJ9: Summe | CK9: unter 60 Jahre | CL9: 60 bis unter 65 Jahre | CM9: 65 bis unter 70 Jahre | CN9: 70 bis unter 75 Jahre | CO9: 75 bis unter 80 Jahre | CP9: 80 bis unter 85 Jahre | CQ9: 85 bis unter 90 Jahre | CR9: 90 Jahre und älter | CS9: Summe | CT9: unter 60 Jahre | CU9: 60 bis unter 65 Jahre | CV9: 65 bis unter 70 Jahre | CW9: 70 bis unter 75 Jahre | CX9: 75 bis unter 80 Jahre | CY9: 80 bis unter 85 Jahre | CZ9: 85 bis unter 90 Jahre | DA9: 90 Jahre und älter | DB9: Summe | DC9: Durchschnittsalter KZP-Gäste | DD9: Braunau | DE9: Eferding | DF9: Freistadt | DG9: Gmunden | DH9: Grieskirchen | DI9: Kirchdorf | DJ9: Linz-Land | DK9: Perg | DL9: Ried | DM9: Rohrbach | DN9: Schärding | DO9: Steyr-Land | DP9: Urfahr-Umgebung | DQ9: Vöcklabruck | DR9: Wels-Land | DS9: Linz | DT9: Steyr | DU9: Wels | DV9: andere Bundesländer | DW9: Ausland | DX9: Standortgemeinde | DY9: Bewohntage Kurzzeitpflege | DZ9: Verrechnungstage SH-Träger (ohne SZ) | EA9: Aufenthalte | EB9: Personen | EC9: Aufenthalte | ED9: Personen | EE9: Aufenthalte | EF9: Personen | EG9: direkt nach KZP als Dauerbewohner aufgenommen | EH9: während KZP-Aufenthalt verstorben | EJ9: Frauen | EK9: Männer | EL9: insgesamt | EM9: Frauen | EN9: Männer | EO9: insgesamt | EP9: Frauen | EQ9: Männer | ER9: insgesamt | ES9: unter 60 Jahre | ET9: 60 bis unter 65 Jahre | EU9: 65 bis unter 70 Jahre | EV9: 70 bis unter 75 Jahre | EW9: 75 bis unter 80 Jahre | EX9: 80 bis unter 85 Jahre | EY9: 85 bis unter 90 Jahre | EZ9: 90 Jahre und älter | FA9: Summe | FB9: unter 60 Jahre | FC9: 60 bis unter 65 Jahre | FD9: 65 bis unter 70 Jahre | FE9: 70 bis unter 75 Jahre | FF9: 75 bis unter 80 Jahre | FG9: 80 bis unter 85 Jahre | FH9: 85 bis unter 90 Jahre | FI9: 90 Jahre und älter | FJ9: Summe | FK9: unter 60 Jahre | FL9: 60 bis unter 65 Jahre | FM9: 65 bis unter 70 Jahre | FN9: 70 bis unter 75 Jahre | FO9: 75 bis unter 80 Jahre | FP9: 80 bis unter 85 Jahre | FQ9: 85 bis unter 90 Jahre | FR9: 90 Jahre und älter | FS9: Summe | FT9: unter 60 Jahre | FU9: 60 bis unter 65 Jahre | FV9: 65 bis unter 70 Jahre | FW9: 70 bis unter 75 Jahre | FX9: 75 bis unter 80 Jahre | FY9: 80 bis unter 85 Jahre | FZ9: 85 bis unter 90 Jahre | GA9: 90 Jahre und älter | GB9: Summe | GC9: unter 60 Jahre | GD9: 60 bis unter 65 Jahre | GE9: 65 bis unter 70 Jahre | GF9: 70 bis unter 75 Jahre | GG9: 75 bis unter 80 Jahre | GH9: 80 bis unter 85 Jahre | GI9: 85 bis unter 90 Jahre | GJ9: 90 Jahre und älter | GK9: Summe | GL9: unter 60 Jahre | GM9: 60 bis unter 65 Jahre | GN9: 65 bis unter 70 Jahre | GO9: 70 bis unter 75 Jahre | GP9: 75 bis unter 80 Jahre | GQ9: 80 bis unter 85 Jahre | GR9: 85 bis unter 90 Jahre | GS9: 90 Jahre und älter | GT9: Summe | GU9: unter 60 Jahre | GV9: 60 bis unter 65 Jahre | GW9: 65 bis unter 70 Jahre | GX9: 70 bis unter 75 Jahre | GY9: 75 bis unter 80 Jahre | GZ9: 80 bis unter 85 Jahre | HA9: 85 bis unter 90 Jahre | HB9: 90 Jahre und älter | HC9: Summe | HD9: unter 60 Jahre | HE9: 60 bis unter 65 Jahre | HF9: 65 bis unter 70 Jahre | HG9: 70 bis unter 75 Jahre | HH9: 75 bis unter 80 Jahre | HI9: 80 bis unter 85 Jahre | HJ9: 85 bis unter 90 Jahre | HK9: 90 Jahre und älter | HL9: Summe | HM9: unter 60 Jahre | HN9: 60 bis unter 65 Jahre | HO9: 65 bis unter 70 Jahre | HP9: 70 bis unter 75 Jahre | HQ9: 75 bis unter 80 Jahre | HR9: 80 bis unter 85 Jahre | HS9: 85 bis unter 90 Jahre | HT9: 90 Jahre und älter | HU9: Summe | HW9: 0 | HX9: 1 | HY9: 2 | HZ9: 3 | IA9: 4 | IB9: 5 | IC9: 6 | ID9: 7 | IE9: insgesamt | IF9: 0 | IG9: 1 | IH9: 2 | II9: 3 | IJ9: 4 | IK9: 5 | IL9: 6 | IM9: 7 | IN9: insgesamt | IO9: 0 | IP9: 1 | IQ9: 2 | IR9: 3 | IS9: 4 | IT9: 5 | IU9: 6 | IV9: 7 | IW9: insgesamt
K10: Zimmer | N10: Plätze | EA10: mit SH | EC10: SZ | EE10: gesamt | EG10: Personen
H11: Standortgemeinde | J11: Kurzbezeichnung | Q11: KZP-Gäste 31.12. mit SH | T11: KZP-Gäste 31.12. Selbstzahler | W11: KZP-Gäste 31.12. gesamt | Z11: Altersstruktur der KZP-Gäste 31.12. mit SH-Bezug - weiblich | AI11: Altersstruktur der KZP-Gäste 31.12. mit SH-Bezug - männlich | AR11: Altersstruktur der KZP-Gäste 31.12. mit SH-Bezug gesamt | BA11: Altersstruktur der KZP-Gäste 31.12. Selbstzahlerinnen - weiblich | BJ11: Altersstruktur der KZP-Gäste 31.12. Selbstzahler - männlich | BS11: Altersstruktur der KZP-Gäste 31.12. Selbstzahler:innen gesamt | CB11: Altersstruktur der KZP-Gäste 31.12. weiblich | CK11: Altersstruktur der KZP-Gäste 31.12. männlich | CT11: Altersstruktur der KZP-Gäste 31.12. Gesamt | DD11: KZP-Gäste NACH HERKUNFTSBEZIRK | DY11: Statistische Angaben zum Jahr 2025 | EJ11: KZP-Gäste Monat Dez. mit SH | EM11: KZP-Gäste Monat Dez. Selbstzahler | EP11: KZP-Gäste Monat Dez. gesamt | ES11: Altersstruktur der KZP-Gäste Monat Dez. mit SH-Bezug - weiblich | FB11: Altersstruktur der KZP-Gäste Monat Dez. mit SH-Bezug - männlich | FK11: Altersstruktur der KZP-Gäste Monat Dez. Selbstzahlerinnen - weiblich | FT11: Altersstruktur der KZP-Gäste Monat Dez. Selbstzahlerinnen - männlich | GC11: Altersstruktur der KZP-Gäste Monat Dez. mit SH-Bezug gesamt | GL11: Altersstruktur der KZP-Gäste Monat Dez. Selbstzahler:innen gesamt | GU11: Altersstruktur der KZP-Gäste Monat Dez. weiblich | HD11: Altersstruktur der KZP-Gäste Monat Dez. männlich | HM11: Altersstruktur der KZP-Gäste Monat Dez. Gesamt | HW11: Bewohner nach tatsächl. Pflegegeldstufenverteilung Monat Dez. Kurzzeitpflege - mit SH-Bezug | IF11: Bewohner nach tatsächl. Pflegegeldstufenverteilung Monat Dez. Kurzzeitpflege - Selbstzahler | IO11: Bewohner nach tatsächl. Pflegegeldstufenverteilung Monat Dez. Kurzzeitpflege - GESAMT
A12: =VLOOKUP($J$6,'1_allg. Strukturdaten'!$B$74:$N$207,2,FALSE) ->  | B12: =VLOOKUP($J$6,'1_allg. Strukturdaten'!$B$74:$N$207,3,FALSE) ->  | C12: =VLOOKUP($J$6,'1_allg. Strukturdaten'!$B$74:$N$207,4,FALSE) ->  | D12: =VLOOKUP($J$6,'1_allg. Strukturdaten'!$B$74:$N$207,5,FALSE) ->  | E12: =VLOOKUP($J$6,'1_allg. Strukturdaten'!$B$74:$N$207,6,FALSE) ->  | F12: =VLOOKUP($J$6,'1_allg. Strukturdaten'!$B$74:$N$207,7,FALSE) ->  | G12: =VLOOKUP($J$6,'1_allg. Strukturdaten'!$B$74:$N$207,8,FALSE) ->  | H12: =VLOOKUP($J$6,'1_allg. Strukturdaten'!$B$74:$N$207,9,FALSE) ->  | I12: =VLOOKUP($J$6,'1_allg. Strukturdaten'!$B$74:$N$207,10,FALSE) ->  | J12: ='1_allg. Strukturdaten'!$D$7 -> Bitte auswählen… | K12: ='1b_Kurzzeitpflege'!B8 -> 0 | L12: ='1b_Kurzzeitpflege'!B9 -> 0 | M12: ='1b_Kurzzeitpflege'!B10 -> 0 | N12: ='1b_Kurzzeitpflege'!G8 -> 0 | O12: ='1b_Kurzzeitpflege'!G9 -> 0 | P12: ='1b_Kurzzeitpflege'!G10 -> 0 | Q12: ='1b_Kurzzeitpflege'!L39 -> 0 | R12: ='1b_Kurzzeitpflege'!L40 -> 0 | S12: =Q12+R12 -> 0 | T12: ='1b_Kurzzeitpflege'!L41 -> 0 | U12: ='1b_Kurzzeitpflege'!L42 -> 0 | V12: =T12+U12 -> 0 | W12: ='1b_Kurzzeitpflege'!L45 -> 0 | X12: ='1b_Kurzzeitpflege'!L46 -> 0 | Y12: =W12+X12 -> 0 | Z12: ='1b_Kurzzeitpflege'!C39 -> 0 | AA12: ='1b_Kurzzeitpflege'!D39 -> 0 | AB12: ='1b_Kurzzeitpflege'!E39 -> 0 | AC12: ='1b_Kurzzeitpflege'!F39 -> 0 | AD12: ='1b_Kurzzeitpflege'!G39 -> 0 | AE12: ='1b_Kurzzeitpflege'!H39 -> 0 | AF12: ='1b_Kurzzeitpflege'!I39 -> 0 | AG12: ='1b_Kurzzeitpflege'!J39 -> 0 | AH12: ='1b_Kurzzeitpflege'!L39 -> 0 | AI12: ='1b_Kurzzeitpflege'!C40 -> 0 | AJ12: ='1b_Kurzzeitpflege'!D40 -> 0 | AK12: ='1b_Kurzzeitpflege'!E40 -> 0 | AL12: ='1b_Kurzzeitpflege'!F40 -> 0 | AM12: ='1b_Kurzzeitpflege'!G40 -> 0 | AN12: ='1b_Kurzzeitpflege'!H40 -> 0 | AO12: ='1b_Kurzzeitpflege'!I40 -> 0 | AP12: ='1b_Kurzzeitpflege'!J40 -> 0 | AQ12: ='1b_Kurzzeitpflege'!L40 -> 0 | AR12: ='1b_Kurzzeitpflege'!C43 -> 0 | AS12: ='1b_Kurzzeitpflege'!D43 -> 0 | AT12: ='1b_Kurzzeitpflege'!E43 -> 0 | AU12: ='1b_Kurzzeitpflege'!F43 -> 0 | AV12: ='1b_Kurzzeitpflege'!G43 -> 0 | AW12: ='1b_Kurzzeitpflege'!H43 -> 0 | AX12: ='1b_Kurzzeitpflege'!I43 -> 0 | AY12: ='1b_Kurzzeitpflege'!J43 -> 0 | AZ12: ='1b_Kurzzeitpflege'!L43 -> 0 | BA12: ='1b_Kurzzeitpflege'!C41 -> 0 | BB12: ='1b_Kurzzeitpflege'!D41 -> 0 | BC12: ='1b_Kurzzeitpflege'!E41 -> 0 | BD12: ='1b_Kurzzeitpflege'!F41 -> 0 | BE12: ='1b_Kurzzeitpflege'!G41 -> 0 | BF12: ='1b_Kurzzeitpflege'!H41 -> 0 | BG12: ='1b_Kurzzeitpflege'!I41 -> 0 | BH12: ='1b_Kurzzeitpflege'!J41 -> 0 | BI12: ='1b_Kurzzeitpflege'!L41 -> 0 | BJ12: ='1b_Kurzzeitpflege'!C42 -> 0 | BK12: ='1b_Kurzzeitpflege'!D42 -> 0 | BL12: ='1b_Kurzzeitpflege'!E42 -> 0 | BM12: ='1b_Kurzzeitpflege'!F42 -> 0 | BN12: ='1b_Kurzzeitpflege'!G42 -> 0 | BO12: ='1b_Kurzzeitpflege'!H42 -> 0 | BP12: ='1b_Kurzzeitpflege'!I42 -> 0 | BQ12: ='1b_Kurzzeitpflege'!J42 -> 0 | BR12: ='1b_Kurzzeitpflege'!L42 -> 0 | BS12: ='1b_Kurzzeitpflege'!C44 -> 0 | BT12: ='1b_Kurzzeitpflege'!D44 -> 0 | BU12: ='1b_Kurzzeitpflege'!E44 -> 0 | BV12: ='1b_Kurzzeitpflege'!F44 -> 0 | BW12: ='1b_Kurzzeitpflege'!G44 -> 0 | BX12: ='1b_Kurzzeitpflege'!H44 -> 0 | BY12: ='1b_Kurzzeitpflege'!I44 -> 0 | BZ12: ='1b_Kurzzeitpflege'!J44 -> 0 | CA12: ='1b_Kurzzeitpflege'!L44 -> 0 | CB12: ='1b_Kurzzeitpflege'!C45 -> 0 | CC12: ='1b_Kurzzeitpflege'!D45 -> 0 | CD12: ='1b_Kurzzeitpflege'!E45 -> 0 | CE12: ='1b_Kurzzeitpflege'!F45 -> 0 | CF12: ='1b_Kurzzeitpflege'!G45 -> 0 | CG12: ='1b_Kurzzeitpflege'!H45 -> 0 | CH12: ='1b_Kurzzeitpflege'!I45 -> 0 | CI12: ='1b_Kurzzeitpflege'!J45 -> 0 | CJ12: ='1b_Kurzzeitpflege'!L45 -> 0 | CK12: ='1b_Kurzzeitpflege'!C46 -> 0 | CL12: ='1b_Kurzzeitpflege'!D46 -> 0 | CM12: ='1b_Kurzzeitpflege'!E46 -> 0 | CN12: ='1b_Kurzzeitpflege'!F46 -> 0 | CO12: ='1b_Kurzzeitpflege'!G46 -> 0 | CP12: ='1b_Kurzzeitpflege'!H46 -> 0 | CQ12: ='1b_Kurzzeitpflege'!I46 -> 0 | CR12: ='1b_Kurzzeitpflege'!J46 -> 0 | CS12: ='1b_Kurzzeitpflege'!L46 -> 0 | CT12: ='1b_Kurzzeitpflege'!C47 -> 0 | CU12: ='1b_Kurzzeitpflege'!D47 -> 0 | CV12: ='1b_Kurzzeitpflege'!E47 -> 0 | CW12: ='1b_Kurzzeitpflege'!F47 -> 0 | CX12: ='1b_Kurzzeitpflege'!G47 -> 0 | CY12: ='1b_Kurzzeitpflege'!H47 -> 0 | CZ12: ='1b_Kurzzeitpflege'!I47 -> 0 | DA12: ='1b_Kurzzeitpflege'!J47 -> 0 | DB12: ='1b_Kurzzeitpflege'!L47 -> 0 | DC12: ='1b_Kurzzeitpflege'!F49 -> 0 | DD12: ='1b_Kurzzeitpflege'!B92 -> 0 | DE12: ='1b_Kurzzeitpflege'!D92 -> 0 | DF12: ='1b_Kurzzeitpflege'!F92 -> 0 | DG12: ='1b_Kurzzeitpflege'!H92 -> 0 | DH12: ='1b_Kurzzeitpflege'!J92 -> 0 | DI12: ='1b_Kurzzeitpflege'!L92 -> 0 | DJ12: ='1b_Kurzzeitpflege'!B93 -> 0 | DK12: ='1b_Kurzzeitpflege'!D93 -> 0 | DL12: ='1b_Kurzzeitpflege'!F93 -> 0 | DM12: ='1b_Kurzzeitpflege'!H93 -> 0 | DN12: ='1b_Kurzzeitpflege'!J93 -> 0 | DO12: ='1b_Kurzzeitpflege'!L93 -> 0 | DP12: ='1b_Kurzzeitpflege'!B94 -> 0 | DQ12: ='1b_Kurzzeitpflege'!D94 -> 0 | DR12: ='1b_Kurzzeitpflege'!F94 -> 0 | DS12: ='1b_Kurzzeitpflege'!H94 -> 0 | DT12: ='1b_Kurzzeitpflege'!J94 -> 0 | DU12: ='1b_Kurzzeitpflege'!L94 -> 0 | DV12: ='1b_Kurzzeitpflege'!C95 -> 0 | DW12: ='1b_Kurzzeitpflege'!C96 -> 0 | DX12: ='1b_Kurzzeitpflege'!B98 -> 0 | DY12: ='1b_Kurzzeitpflege'!E80 -> 0 | DZ12: ='1b_Kurzzeitpflege'!E82 -> 0 | EA12: ='1b_Kurzzeitpflege'!G84 -> 0 | EB12: ='1b_Kurzzeitpflege'!J84 -> 0 | EC12: ='1b_Kurzzeitpflege'!G85 -> 0 | ED12: ='1b_Kurzzeitpflege'!J85 -> 0 | EE12: ='1b_Kurzzeitpflege'!G86 -> 0 | EF12: ='1b_Kurzzeitpflege'!J86 -> 0 | EG12: ='1b_Kurzzeitpflege'!E88 -> 0 | EH12: ='1b_Kurzzeitpflege'!E89 -> 0 | EJ12: ='1b_Kurzzeitpflege'!L16 -> 0 | EK12: ='1b_Kurzzeitpflege'!L17 -> 0 | EL12: =EJ12+EK12 -> 0 | EM12: ='1b_Kurzzeitpflege'!L18 -> 0 | EN12: ='1b_Kurzzeitpflege'!L19 -> 0 | EO12: =EM12+EN12 -> 0 | EP12: ='1b_Kurzzeitpflege'!L22 -> 0 | EQ12: ='1b_Kurzzeitpflege'!L23 -> 0 | ER12: =EQ12+EP12 -> 0 | ES12: ='1b_Kurzzeitpflege'!C16 -> 0 | ET12: ='1b_Kurzzeitpflege'!D16 -> 0 | EU12: ='1b_Kurzzeitpflege'!E16 -> 0 | EV12: ='1b_Kurzzeitpflege'!F16 -> 0 | EW12: ='1b_Kurzzeitpflege'!G16 -> 0 | EX12: ='1b_Kurzzeitpflege'!H16 -> 0 | EY12: ='1b_Kurzzeitpflege'!I16 -> 0 | EZ12: ='1b_Kurzzeitpflege'!J16 -> 0 | FA12: ='1b_Kurzzeitpflege'!L16 -> 0 | FB12: ='1b_Kurzzeitpflege'!C17 -> 0 | FC12: ='1b_Kurzzeitpflege'!D17 -> 0 | FD12: ='1b_Kurzzeitpflege'!E17 -> 0 | FE12: ='1b_Kurzzeitpflege'!F17 -> 0 | FF12: ='1b_Kurzzeitpflege'!G17 -> 0 | FG12: ='1b_Kurzzeitpflege'!H17 -> 0 | FH12: ='1b_Kurzzeitpflege'!I17 -> 0 | FI12: ='1b_Kurzzeitpflege'!J17 -> 0 | FJ12: ='1b_Kurzzeitpflege'!L17 -> 0 | FK12: ='1b_Kurzzeitpflege'!C18 -> 0 | FL12: ='1b_Kurzzeitpflege'!D18 -> 0 | FM12: ='1b_Kurzzeitpflege'!E18 -> 0 | FN12: ='1b_Kurzzeitpflege'!F18 -> 0 | FO12: ='1b_Kurzzeitpflege'!G18 -> 0 | FP12: ='1b_Kurzzeitpflege'!H18 -> 0 | FQ12: ='1b_Kurzzeitpflege'!I18 -> 0 | FR12: ='1b_Kurzzeitpflege'!J18 -> 0 | FS12: ='1b_Kurzzeitpflege'!L18 -> 0 | FT12: ='1b_Kurzzeitpflege'!C19 -> 0 | FU12: ='1b_Kurzzeitpflege'!D19 -> 0 | FV12: ='1b_Kurzzeitpflege'!E19 -> 0 | FW12: ='1b_Kurzzeitpflege'!F19 -> 0 | FX12: ='1b_Kurzzeitpflege'!G19 -> 0 | FY12: ='1b_Kurzzeitpflege'!H19 -> 0 | FZ12: ='1b_Kurzzeitpflege'!I19 -> 0 | GA12: ='1b_Kurzzeitpflege'!J19 -> 0 | GB12: ='1b_Kurzzeitpflege'!L19 -> 0 | GC12: ='1b_Kurzzeitpflege'!C20 -> 0 | GD12: ='1b_Kurzzeitpflege'!D20 -> 0 | GE12: ='1b_Kurzzeitpflege'!E20 -> 0 | GF12: ='1b_Kurzzeitpflege'!F20 -> 0 | GG12: ='1b_Kurzzeitpflege'!G20 -> 0 | GH12: ='1b_Kurzzeitpflege'!H20 -> 0 | GI12: ='1b_Kurzzeitpflege'!I20 -> 0 | GJ12: ='1b_Kurzzeitpflege'!J20 -> 0 | GK12: ='1b_Kurzzeitpflege'!L20 -> 0 | GL12: ='1b_Kurzzeitpflege'!C21 -> 0 | GM12: ='1b_Kurzzeitpflege'!D21 -> 0 | GN12: ='1b_Kurzzeitpflege'!E21 -> 0 | GO12: ='1b_Kurzzeitpflege'!F21 -> 0 | GP12: ='1b_Kurzzeitpflege'!G21 -> 0 | GQ12: ='1b_Kurzzeitpflege'!H21 -> 0 | GR12: ='1b_Kurzzeitpflege'!I21 -> 0 | GS12: ='1b_Kurzzeitpflege'!J21 -> 0 | GT12: ='1b_Kurzzeitpflege'!L21 -> 0 | GU12: ='1b_Kurzzeitpflege'!C22 -> 0 | GV12: ='1b_Kurzzeitpflege'!D22 -> 0 | GW12: ='1b_Kurzzeitpflege'!E22 -> 0 | GX12: ='1b_Kurzzeitpflege'!F22 -> 0 | GY12: ='1b_Kurzzeitpflege'!G22 -> 0 | GZ12: ='1b_Kurzzeitpflege'!H22 -> 0 | HA12: ='1b_Kurzzeitpflege'!I22 -> 0 | HB12: ='1b_Kurzzeitpflege'!J22 -> 0 | HC12: ='1b_Kurzzeitpflege'!L22 -> 0 | HD12: ='1b_Kurzzeitpflege'!C23 -> 0 | HE12: ='1b_Kurzzeitpflege'!D23 -> 0 | HF12: ='1b_Kurzzeitpflege'!E23 -> 0 | HG12: ='1b_Kurzzeitpflege'!F23 -> 0 | HH12: ='1b_Kurzzeitpflege'!G23 -> 0 | HI12: ='1b_Kurzzeitpflege'!H23 -> 0 | HJ12: ='1b_Kurzzeitpflege'!I23 -> 0 | HK12: ='1b_Kurzzeitpflege'!J23 -> 0 | HL12: ='1b_Kurzzeitpflege'!L23 -> 0 | HM12: ='1b_Kurzzeitpflege'!C24 -> 0 | HN12: ='1b_Kurzzeitpflege'!D24 -> 0 | HO12: ='1b_Kurzzeitpflege'!E24 -> 0 | HP12: ='1b_Kurzzeitpflege'!F24 -> 0 | HQ12: ='1b_Kurzzeitpflege'!G24 -> 0 | HR12: ='1b_Kurzzeitpflege'!H24 -> 0 | HS12: ='1b_Kurzzeitpflege'!I24 -> 0 | HT12: ='1b_Kurzzeitpflege'!J24 -> 0 | HU12: ='1b_Kurzzeitpflege'!L24 -> 0 | HW12: ='1b_Kurzzeitpflege'!C32 -> 0 | HX12: ='1b_Kurzzeitpflege'!D32 -> 0 | HY12: ='1b_Kurzzeitpflege'!E32 -> 0 | HZ12: ='1b_Kurzzeitpflege'!F32 -> 0 | IA12: ='1b_Kurzzeitpflege'!G32 -> 0 | IB12: ='1b_Kurzzeitpflege'!H32 -> 0 | IC12: ='1b_Kurzzeitpflege'!I32 -> 0 | ID12: ='1b_Kurzzeitpflege'!J32 -> 0 | IE12: ='1b_Kurzzeitpflege'!K32 -> 0 | IF12: ='1b_Kurzzeitpflege'!C33 -> 0 | IG12: ='1b_Kurzzeitpflege'!D33 -> 0 | IH12: ='1b_Kurzzeitpflege'!E33 -> 0 | II12: ='1b_Kurzzeitpflege'!F33 -> 0 | IJ12: ='1b_Kurzzeitpflege'!G33 -> 0 | IK12: ='1b_Kurzzeitpflege'!H33 -> 0 | IL12: ='1b_Kurzzeitpflege'!I33 -> 0 | IM12: ='1b_Kurzzeitpflege'!J33 -> 0 | IN12: ='1b_Kurzzeitpflege'!K33 -> 0 | IO12: ='1b_Kurzzeitpflege'!C34 -> 0 | IP12: ='1b_Kurzzeitpflege'!D34 -> 0 | IQ12: ='1b_Kurzzeitpflege'!E34 -> 0 | IR12: ='1b_Kurzzeitpflege'!F34 -> 0 | IS12: ='1b_Kurzzeitpflege'!G34 -> 0 | IT12: ='1b_Kurzzeitpflege'!H34 -> 0 | IU12: ='1b_Kurzzeitpflege'!I34 -> 0 | IV12: ='1b_Kurzzeitpflege'!J34 -> 0 | IW12: ='1b_Kurzzeitpflege'!K34 -> 0
A14: Hauptdaten3 (Personal; Zivildiener; zusätzlich tätiges Personal)
A15: Code | B15: Träger | C15: Bezirk | D15: Region | E15: Planungsraum | F15: Größengruppe | G15: PDL-Statistik | H15: Gemeinde Kennzahl | I15: Gemeinde | J15: Kurzbezeichnung | K15: Leitung des Betreuungs- und Pflegedienstes | L15: DGKP | M15: Pflegefachassistenz | N15: FSB-A | O15: FSB-BA | P15: DSB-A | Q15: DSB-BA | R15: DSB-F | S15: Pflegeassistenz | T15: HH & AB | U15: FSB-BB | V15: DSB-BB | W15: Stützpersonal | X15: insgesamt | Y15: davon Männer | Z15: davon Frauen | AA15: Leitung des Betreuungs- und Pflegedienstes | AB15: DGKP | AC15: Pflegefachassistenz | AD15: FSB-A | AE15: FSB-BA | AF15: DSB-A | AG15: DSB-BA | AH15: DSB-F | AI15: Pflegeassistenz | AJ15: HH & AB | AK15: FSB-BB | AL15: DSB-BB | AM15: Stützpersonal | AN15: insgesamt | AO15: davon Männer | AP15: davon Frauen | AQ15: Leitung des Betreuungs- und Pflegedienstes | AR15: DGKP | AS15: Pflegefachassistenz | AT15: FSB-A | AU15: FSB-BA | AV15: DSB-A | AW15: DSB-BA | AX15: DSB-F | AY15: Pflegeassistenz | AZ15: HH & AB | BA15: FSB-BB | BB15: DSB-BB | BC15: Stützpersonal | BD15: insgesamt | BE15: davon Männer | BF15: davon Frauen | BG15: Leitung des Betreuungs- und Pflegedienstes | BH15: DGKP | BI15: Pflegefachassistenz | BJ15: FSB-A | BK15: FSB-BA | BL15: DSB-A | BM15: DSB-BA | BN15: DSB-F | BO15: Pflegeassistenz | BP15: HH & AB | BQ15: FSB-BB | BR15: DSB-BB | BS15: Stützpersonal | BT15: insgesamt | BU15: davon Männer | BV15: davon Frauen | BW15: Leitung des Betreuungs- und Pflegedienstes | BX15: DGKP | BY15: Pflegefachassistenz | BZ15: FSB-A | CA15: FSB-BA | CB15: DSB-A | CC15: DSB-BA | CD15: DSB-F | CE15: Pflegeassistenz | CF15: HH & AB | CG15: FSB-BB | CH15: DSB-BB | CI15: Stützpersonal | CJ15: insgesamt | CK15: davon Männer | CL15: davon Frauen | CM15: Leitung des Betreuungs- und Pflegedienstes | CN15: DGKP | CO15: Pflegefachassistenz | CP15: FSB-A | CQ15: FSB-BA | CR15: DSB-A | CS15: DSB-BA | CT15: DSB-F | CU15: Pflegeassistenz | CV15: HH & AB | CW15: FSB-BB | CX15: DSB-BB | CY15: Stützpersonal | CZ15: insgesamt | DA15: davon Männer | DB15: davon Frauen | DC15: Theratpeut:innen | DD15: Hilfskräfte | DE15: Insgesamt | DF15: davon Männer | DG15: davon Frauen | DH15: Theratpeut:innen | DI15: Hilfskräfte | DJ15: Insgesamt | DK15: davon Männer | DL15: davon Frauen | DM15: Theratpeut:innen | DN15: Hilfskräfte | DO15: Insgesamt | DP15: davon Männer | DQ15: davon Frauen | DR15: Theratpeut:innen | DS15: Hilfskräfte | DT15: Insgesamt | DU15: davon Männer | DV15: davon Frauen | DW15: Theratpeut:innen | DX15: Hilfskräfte | DY15: Insgesamt | DZ15: davon Männer | EA15: davon Frauen | EB15: Theratpeut:innen | EC15: Hilfskräfte | ED15: Insgesamt | EE15: davon Männer | EF15: davon Frauen | EG15: Heimleitung | EH15: Verwaltung | EI15: Küche | EJ15: Reinigung | EK15: Wäscherei | EL15: Haustechnik | EM15: insgesamt | EN15: davon Männer | EO15: davon Frauen | EP15: Heimleitung | EQ15: Verwaltung | ER15: Küche | ES15: Reinigung | ET15: Wäscherei | EU15: Haustechnik | EV15: insgesamt | EW15: davon Männer | EX15: davon Frauen | EY15: Heimleitung | EZ15: Verwaltung | FA15: Küche | FB15: Reinigung | FC15: Wäscherei | FD15: Haustechnik | FE15: insgesamt | FF15: davon Männer | FG15: davon Frauen | FH15: Heimleitung | FI15: Verwaltung | FJ15: Küche | FK15: Reinigung | FL15: Wäscherei | FM15: Haustechnik | FN15: insgesamt | FO15: davon Männer | FP15: davon Frauen | FQ15: Heimleitung | FR15: Verwaltung | FS15: Küche | FT15: Reinigung | FU15: Wäscherei | FV15: Haustechnik | FW15: insgesamt | FX15: davon Männer | FY15: davon Frauen | FZ15: Heimleitung | GA15: Verwaltung | GB15: Küche | GC15: Reinigung | GD15: Wäscherei | GE15: Haustechnik | GF15: insgesamt | GG15: davon Männer | GH15: davon Frauen | GI15: Männer | GJ15: Frauen | GK15: Summe | GL15: Männer | GM15: Frauen | GN15: Summe | GO15: Männer | GP15: Frauen | GQ15: Summe | GR15: Zivildiener | GS15: Lehrlinge | GT15: Freiwilliges soziales Jahr | GU15: Freiwillige / Ehrenamtliche | GV15: Summe | GW15: Anzahl Pflegelehrlinge im APH | GX15: APH als Pflegelehrbetrieb zugelassen? | GZ15: Leitung des Betreuungs- und Pflegedienstes | HA15: DGKP | HB15: Pflegefachassistenz | HC15: FSB-A | HD15: FSB-BA | HE15: DSB-A | HF15: DSB-BA | HG15: DSB-F | HH15: Pflegeassistenz | HI15: HH & AB | HJ15: FSB-BB | HK15: DSB-BB | HL15: Stützpersonal | HM15: insgesamt | HN15: Leitung des Betreuungs- und Pflegedienstes | HO15: DGKP | HP15: Pflegefachassistenz | HQ15: FSB-A | HR15: FSB-BA | HS15: DSB-A | HT15: DSB-BA | HU15: DSB-F | HV15: Pflegeassistenz | HW15: HH & AB | HX15: FSB-BB | HY15: DSB-BB | HZ15: Stützpersonal | IA15: insgesamt | IB15: davon anrechenbar | IC15: DGKP inkl. LBPD und PFA | ID15: FSB-A | IE15: HH & AB, FSB BB und DSB BB | IF15: Stützpersonal | IG15: insgesamt | IH15: DGKP inkl. LBPD und PFA | II15: FSB-A, FSB-BA, DSB-A, DSB-BA, DSB-F, PA | IJ15: HH & AB, FSB BB und DSB BB | IK15: Stützpersonal | IL15: insgesamt
K16: 1 | L16: 2 | M16: 3 | N16: 4 | O16: 5 | P16: 6 | Q16: 7 | R16: 8 | S16: 9 | T16: 10 | U16: 11 | V16: 12 | W16: 13 | AA16: 1 | AB16: 2 | AC16: 3 | AD16: 4 | AE16: 5 | AF16: 6 | AG16: 7 | AH16: 8 | AI16: 9 | AJ16: 10 | AK16: 11 | AL16: 12 | AM16: 13 | AQ16: 1 | AR16: 2 | AS16: 3 | AT16: 4 | AU16: 5 | AV16: 6 | AW16: 7 | AX16: 8 | AY16: 9 | AZ16: 10 | BA16: 11 | BB16: 12 | BC16: 13 | BG16: 1 | BH16: 2 | BI16: 3 | BJ16: 4 | BK16: 5 | BL16: 6 | BM16: 7 | BN16: 8 | BO16: 9 | BP16: 10 | BQ16: 11 | BR16: 12 | BS16: 13 | BW16: 1 | BX16: 2 | BY16: 3 | BZ16: 4 | CA16: 5 | CB16: 6 | CC16: 7 | CD16: 8 | CE16: 9 | CF16: 10 | CG16: 11 | CH16: 12 | CI16: 13 | CM16: 1 | CN16: 2 | CO16: 3 | CP16: 4 | CQ16: 5 | CR16: 6 | CS16: 7 | CT16: 8 | CU16: 9 | CV16: 10 | CW16: 11 | CX16: 12 | CY16: 13 | GI16: Personen | GL16: Personen | GO16: Personen | GR16: im Jahr 2025 | GW16: zum Stichtag | GZ16: 1 | HA16: 2 | HB16: 3 | HC16: 4 | HD16: 5 | HE16: 6 | HF16: 7 | HG16: 8 | HH16: 9 | HI16: 10 | HJ16: 11 | HK16: 12 | HL16: 13 | HN16: 1 | HO16: 2 | HP16: 3 | HQ16: 4 | HR16: 5 | HS16: 6 | HT16: 7 | HU16: 8 | HV16: 9 | HW16: 10 | HX16: 11 | HY16: 12 | HZ16: 13
H17: Standortgemeinde | J17: Kurzbezeichnung | K17: Angestelltes PFLEGEPERSONAL in PERSONEN (MPPB-wirksam) | AA17: Angestelltes PFLEGEPERSONAL in PE (MPPB-wirksam) | AQ17: Nicht angestelltes (z.B. Leasing) PFLEGEPERSONAL in PERSONEN (MPPB-wirksam) | BG17: Nicht angestelltes (z.B. Leasing) PFLEGEPERSONAL in PE (MPPB-wirksam) | BW17: Pflegepersonal GESAMT in PERSONEN (MPPB-wirksam) | CM17: Pflegepersonal GESAMT in PE (MPPB-wirksam) | DC17: Angestelltes SONSTIGES PFLEGEPERSONAL in Personen (nicht MPPB-wirksam) | DH17: Angestelltes SONSTIGES PFLEGEPERSONAL in PE (nicht MPPB-wirksam) | DM17: Nicht angestelltes (z.B. Leasing) sonst. PFLEGEPERSONAL in PERSONEN (nicht MPPB-wirksam) | DR17: Nicht angestelltes (z.B. Leasing) sonst. PFLEGEPERSONAL in PE (nicht MPPB-wirksam) | DW17: SONSTIGES Pflegepersonal GESAMT in Personen (nicht MPPB-wirksam) | EB17: SONSTIGES Pflegepersonal GESAMT in PE (nicht MPPB-wirksam) | EG17: Angestelltes VERWALTUNGS- und FUNKTIONSPERSONAL in PERSONEN | EP17: Angestelltes VERWALTUNGS- und FUNKTIONSPERSONAL in PE | EY17: Nicht angestelltes (z.B. Leasing) VERWALTUNGS- und FUNKTIONSPERSONAL in PERSONEN | FH17: Nicht angestelltes (z.B. Leasing) VERWALTUNGS- und FUNKTIONSPERSONAL in PE | FQ17: Verwaltungs- und Funktionspersonal GESAMT in PERSONEN | FZ17: Verwaltungs- und Funktionspersonal GESAMT in PE | GI17: Angestelltes Personal GESAMT in PERSONEN | GL17: NICHT angestelltes Personal GESAMT in PERSONEN | GO17: PERSONAL GESAMT in PERSONEN | GR17: Zusätzlich tätiges Personal | GZ17: Pflegepersonal GESAMT in PERSONEN (MPPB-wirksam) nach Blatt 4 - Langzeitkrankenstände abgezogen | HN17: Pflegepersonal GESAMT in PE (MPPB-wirksam) nach Blatt 4 - Langzeitkrankenstände abgezogen | IC17: Pflegepersonal GESAMT in PE nach Blatt 4 - nur Überhang | IH17: Pflegepersonal GESAMT in PE (MPPB-wirksam) - Differenz Blatt 2 zu Blatt 4 abzüglich Überhang = Langzeitkrankenstände, Sabbatical, Karenz
A18: =VLOOKUP($J$6,'1_allg. Strukturdaten'!$B$74:$N$207,2,FALSE) ->  | B18: =VLOOKUP($J$6,'1_allg. Strukturdaten'!$B$74:$N$207,3,FALSE) ->  | C18: =VLOOKUP($J$6,'1_allg. Strukturdaten'!$B$74:$N$207,4,FALSE) ->  | D18: =VLOOKUP($J$6,'1_allg. Strukturdaten'!$B$74:$N$207,5,FALSE) ->  | E18: =VLOOKUP($J$6,'1_allg. Strukturdaten'!$B$74:$N$207,6,FALSE) ->  | F18: =VLOOKUP($J$6,'1_allg. Strukturdaten'!$B$74:$N$207,7,FALSE) ->  | G18: =VLOOKUP($J$6,'1_allg. Strukturdaten'!$B$74:$N$207,8,FALSE) ->  | H18: =VLOOKUP($J$6,'1_allg. Strukturdaten'!$B$74:$N$207,9,FALSE) ->  | I18: =VLOOKUP($J$6,'1_allg. Strukturdaten'!$B$74:$N$207,10,FALSE) ->  | J18: ='1_allg. Strukturdaten'!D7 -> Bitte auswählen… | K18: ='2_Personal'!C9 -> 0 | L18: ='2_Personal'!C10 -> 0 | M18: ='2_Personal'!C11 -> 0 | N18: ='2_Personal'!C12 -> 0 | O18: ='2_Personal'!C13 -> 0 | P18: ='2_Personal'!C14 -> 0 | Q18: ='2_Personal'!C15 -> 0 | R18: ='2_Personal'!C16 -> 0 | S18: ='2_Personal'!C17 -> 0 | T18: ='2_Personal'!C18 -> 0 | U18: ='2_Personal'!C19 -> 0 | V18: ='2_Personal'!C20 -> 0 | W18: ='2_Personal'!C21 -> 0 | X18: ='2_Personal'!C22 -> 0 | Y18: ='2_Personal'!C23 -> 0 | Z18: ='2_Personal'!C24 -> 0 | AA18: ='2_Personal'!$D9 -> 0 | AB18: ='2_Personal'!$D10 -> 0 | AC18: ='2_Personal'!$D11 -> 0 | AD18: ='2_Personal'!$D12 -> 0 | AE18: ='2_Personal'!$D13 -> 0 | AF18: ='2_Personal'!$D14 -> 0 | AG18: ='2_Personal'!$D15 -> 0 | AH18: ='2_Personal'!$D16 -> 0 | AI18: ='2_Personal'!$D17 -> 0 | AJ18: ='2_Personal'!$D18 -> 0 | AK18: ='2_Personal'!$D19 -> 0 | AL18: ='2_Personal'!$D20 -> 0 | AM18: ='2_Personal'!$D21 -> 0 | AN18: ='2_Personal'!D22 -> 0 | AO18: ='2_Personal'!D23 -> 0 | AP18: ='2_Personal'!D24 -> 0 | AQ18: ='2_Personal'!$E9 -> 0 | AR18: ='2_Personal'!$E10 -> 0 | AS18: ='2_Personal'!$E11 -> 0 | AT18: ='2_Personal'!$E12 -> 0 | AU18: ='2_Personal'!$E13 -> 0 | AV18: ='2_Personal'!$E14 -> 0 | AW18: ='2_Personal'!$E15 -> 0 | AX18: ='2_Personal'!$E16 -> 0 | AY18: ='2_Personal'!$E17 -> 0 | AZ18: ='2_Personal'!$E18 -> 0 | BA18: ='2_Personal'!$E19 -> 0 | BB18: ='2_Personal'!$E20 -> 0 | BC18: ='2_Personal'!$E21 -> 0 | BD18: ='2_Personal'!E22 -> 0 | BE18: ='2_Personal'!E23 -> 0 | BF18: ='2_Personal'!E24 -> 0 | BG18: ='2_Personal'!$F9 -> 0 | BH18: ='2_Personal'!$F10 -> 0 | BI18: ='2_Personal'!$F11 -> 0 | BJ18: ='2_Personal'!$F12 -> 0 | BK18: ='2_Personal'!$F13 -> 0 | BL18: ='2_Personal'!$F14 -> 0 | BM18: ='2_Personal'!$F15 -> 0 | BN18: ='2_Personal'!$F16 -> 0 | BO18: ='2_Personal'!$F17 -> 0 | BP18: ='2_Personal'!$F18 -> 0 | BQ18: ='2_Personal'!$F19 -> 0 | BR18: ='2_Personal'!$F20 -> 0 | BS18: ='2_Personal'!$F21 -> 0 | BT18: ='2_Personal'!F22 -> 0 | BU18: ='2_Personal'!F23 -> 0 | BV18: ='2_Personal'!F24 -> 0 | BW18: ='2_Personal'!$G9 -> 0 | BX18: ='2_Personal'!$G10 -> 0 | BY18: ='2_Personal'!$G11 -> 0 | BZ18: ='2_Personal'!$G12 -> 0 | CA18: ='2_Personal'!G13 -> 0 | CB18: ='2_Personal'!$G14 -> 0 | CC18: ='2_Personal'!$G15 -> 0 | CD18: ='2_Personal'!$G16 -> 0 | CE18: ='2_Personal'!$G17 -> 0 | CF18: ='2_Personal'!$G18 -> 0 | CG18: ='2_Personal'!$G19 -> 0 | CH18: ='2_Personal'!$G20 -> 0 | CI18: ='2_Personal'!$G21 -> 0 | CJ18: ='2_Personal'!$G22 -> 0 | CK18: ='2_Personal'!$G23 -> 0 | CL18: ='2_Personal'!$G24 -> 0 | CM18: ='2_Personal'!$H9 -> 0 | CN18: ='2_Personal'!$H10 -> 0 | CO18: ='2_Personal'!$H11 -> 0 | CP18: ='2_Personal'!$H12 -> 0 | CQ18: ='2_Personal'!$H13 -> 0 | CR18: ='2_Personal'!$H14 -> 0 | CS18: ='2_Personal'!$H15 -> 0 | CT18: ='2_Personal'!$H16 -> 0 | CU18: ='2_Personal'!$H17 -> 0 | CV18: ='2_Personal'!$H18 -> 0 | CW18: ='2_Personal'!$H19 -> 0 | CX18: ='2_Personal'!$H20 -> 0 | CY18: ='2_Personal'!$H21 -> 0 | CZ18: ='2_Personal'!$H22 -> 0 | DA18: ='2_Personal'!$H23 -> 0 | DB18: ='2_Personal'!$H24 -> 0 | DC18: ='2_Personal'!C26 -> 0 | DD18: ='2_Personal'!C27 -> 0 | DE18: ='2_Personal'!$C28 -> 0 | DF18: ='2_Personal'!$C29 -> 0 | DG18: ='2_Personal'!$C30 -> 0 | DH18: ='2_Personal'!D26 -> 0 | DI18: ='2_Personal'!D27 -> 0 | DJ18: ='2_Personal'!D28 -> 0 | DK18: ='2_Personal'!D29 -> 0 | DL18: ='2_Personal'!D30 -> 0 | DM18: ='2_Personal'!E26 -> 0 | DN18: ='2_Personal'!E27 -> 0 | DO18: ='2_Personal'!E28 -> 0 | DP18: ='2_Personal'!E29 -> 0 | DQ18: ='2_Personal'!E30 -> 0 | DR18: ='2_Personal'!F26 -> 0 | DS18: ='2_Personal'!F27 -> 0 | DT18: ='2_Personal'!F28 -> 0 | DU18: ='2_Personal'!F29 -> 0 | DV18: ='2_Personal'!F30 -> 0 | DW18: ='2_Personal'!G26 -> 0 | DX18: ='2_Personal'!G27 -> 0 | DY18: ='2_Personal'!G28 -> 0 | DZ18: ='2_Personal'!G29 -> 0 | EA18: ='2_Personal'!G30 -> 0 | EB18: ='2_Personal'!H26 -> 0 | EC18: ='2_Personal'!H27 -> 0 | ED18: ='2_Personal'!H28 -> 0 | EE18: ='2_Personal'!H29 -> 0 | EF18: ='2_Personal'!H30 -> 0 | EG18: ='2_Personal'!C32 -> 0 | EH18: ='2_Personal'!C33 -> 0 | EI18: ='2_Personal'!C34 -> 0 | EJ18: ='2_Personal'!C35 -> 0 | EK18: ='2_Personal'!C36 -> 0 | EL18: ='2_Personal'!C37 -> 0 | EM18: ='2_Personal'!$C38 -> 0 | EN18: ='2_Personal'!$C39 -> 0 | EO18: ='2_Personal'!$C40 -> 0 | EP18: ='2_Personal'!D32 -> 0 | EQ18: ='2_Personal'!D33 -> 0 | ER18: ='2_Personal'!D34 -> 0 | ES18: ='2_Personal'!D35 -> 0 | ET18: ='2_Personal'!D36 -> 0 | EU18: ='2_Personal'!D37 -> 0 | EV18: ='2_Personal'!$D38 -> 0 | EW18: ='2_Personal'!$D39 -> 0 | EX18: ='2_Personal'!$D40 -> 0 | EY18: ='2_Personal'!E32 -> 0 | EZ18: ='2_Personal'!E33 -> 0 | FA18: ='2_Personal'!E34 -> 0 | FB18: ='2_Personal'!E35 -> 0 | FC18: ='2_Personal'!E36 -> 0 | FD18: ='2_Personal'!E37 -> 0 | FE18: ='2_Personal'!$E38 -> 0 | FF18: ='2_Personal'!$E39 -> 0 | FG18: ='2_Personal'!$E40 -> 0 | FH18: ='2_Personal'!F32 -> 0 | FI18: ='2_Personal'!F33 -> 0 | FJ18: ='2_Personal'!F34 -> 0 | FK18: ='2_Personal'!F35 -> 0 | FL18: ='2_Personal'!F36 -> 0 | FM18: ='2_Personal'!F37 -> 0 | FN18: ='2_Personal'!$F38 -> 0 | FO18: ='2_Personal'!$F39 -> 0 | FP18: ='2_Personal'!$F40 -> 0 | FQ18: ='2_Personal'!$G32 -> 0 | FR18: ='2_Personal'!$G33 -> 0 | FS18: ='2_Personal'!$G34 -> 0 | FT18: ='2_Personal'!$G35 -> 0 | FU18: ='2_Personal'!$G36 -> 0 | FV18: ='2_Personal'!$G37 -> 0 | FW18: ='2_Personal'!$G38 -> 0 | FX18: ='2_Personal'!$G39 -> 0 | FY18: ='2_Personal'!$G40 -> 0 | FZ18: ='2_Personal'!$H32 -> 0 | GA18: ='2_Personal'!$H33 -> 0 | GB18: ='2_Personal'!$H34 -> 0 | GC18: ='2_Personal'!$H35 -> 0 | GD18: ='2_Personal'!$H36 -> 0 | GE18: ='2_Personal'!$H37 -> 0 | GF18: ='2_Personal'!$H38 -> 0 | GG18: ='2_Personal'!$H39 -> 0 | GH18: ='2_Personal'!$H40 -> 0 | GI18: ='2_Personal'!C47 -> 0 | GJ18: ='2_Personal'!D47 -> 0 | GK18: =GI18+GJ18 -> 0 | GL18: ='2_Personal'!E47 -> 0 | GM18: ='2_Personal'!F47 -> 0 | GN18: =GL18+GM18 -> 0 | GO18: =GI18+GL18 -> 0 | GP18: =GJ18+GM18 -> 0 | GQ18: =GO18+GP18 -> 0 | GR18: ='2_Personal'!B91 -> 0 | GS18: ='2_Personal'!B92 -> 0 | GT18: ='2_Personal'!B93 -> 0 | GU18: ='2_Personal'!B94 -> 0 | GV18: ='2_Personal'!B95 -> 0 | GW18: ='2_Personal'!C99 -> 0 | GX18: ='2_Personal'!C100 -> 0 | GZ18: ='4_Pflegepersonalbedarf 2025'!$N261 -> 0 | HA18: ='4_Pflegepersonalbedarf 2025'!$N262 -> 0 | HB18: ='4_Pflegepersonalbedarf 2025'!$N263 -> 0 | HC18: ='4_Pflegepersonalbedarf 2025'!$N264 -> 0 | HD18: ='4_Pflegepersonalbedarf 2025'!$N265 -> 0 | HE18: ='4_Pflegepersonalbedarf 2025'!$N266 -> 0 | HF18: ='4_Pflegepersonalbedarf 2025'!$N267 -> 0 | HG18: ='4_Pflegepersonalbedarf 2025'!$N268 -> 0 | HH18: ='4_Pflegepersonalbedarf 2025'!$N269 -> 0 | HI18: ='4_Pflegepersonalbedarf 2025'!$N270 -> 0 | HJ18: ='4_Pflegepersonalbedarf 2025'!$N271 -> 0 | HK18: ='4_Pflegepersonalbedarf 2025'!$N272 -> 0 | HL18: ='4_Pflegepersonalbedarf 2025'!$N273 -> 0 | HM18: ='4_Pflegepersonalbedarf 2025'!$N274 -> 0 | HN18: ='4_Pflegepersonalbedarf 2025'!$O261 -> 0 | HO18: ='4_Pflegepersonalbedarf 2025'!$O262 -> 0 | HP18: ='4_Pflegepersonalbedarf 2025'!$O263 -> 0 | HQ18: ='4_Pflegepersonalbedarf 2025'!$O264 -> 0 | HR18: ='4_Pflegepersonalbedarf 2025'!$O265 -> 0 | HS18: ='4_Pflegepersonalbedarf 2025'!$O266 -> 0 | HT18: ='4_Pflegepersonalbedarf 2025'!$O267 -> 0 | HU18: ='4_Pflegepersonalbedarf 2025'!$O268 -> 0 | HV18: ='4_Pflegepersonalbedarf 2025'!$O269 -> 0 | HW18: ='4_Pflegepersonalbedarf 2025'!$O270 -> 0 | HX18: ='4_Pflegepersonalbedarf 2025'!$O271 -> 0 | HY18: ='4_Pflegepersonalbedarf 2025'!$O272 -> 0 | HZ18: ='4_Pflegepersonalbedarf 2025'!$O273 -> 0 | IA18: ='4_Pflegepersonalbedarf 2025'!$O274 -> 0 | IB18: ='4_Pflegepersonalbedarf 2025'!$O275 -> 0 | IC18: ='4_Pflegepersonalbedarf 2025'!O261+'4_Pflegepersonalbedarf 2025'!O262+'4_Pflegepersonalbedarf 2025'!O263-'4_Pflegepersonalbedarf 2025'!O276 -> 0 | ID18: ='4_Pflegepersonalbedarf 2025'!O264-'4_Pflegepersonalbedarf 2025'!O277 -> 0 | IE18: ='4_Pflegepersonalbedarf 2025'!O270+'4_Pflegepersonalbedarf 2025'!O271+'4_Pflegepersonalbedarf 2025'!O272-'4_Pflegepersonalbedarf 2025'!O278 -> 0 | IF18: ='4_Pflegepersonalbedarf 2025'!O273-'4_Pflegepersonalbedarf 2025'!O279 -> 0 | IG18: =SUM(IC18:IF18) -> 0 | IH18: =SUM('4_Pflegepersonalbedarf 2025'!Q261:Q263)-SUM('4_Pflegepersonalbedarf 2025'!O261:O263) -> 0 | II18: =SUM('4_Pflegepersonalbedarf 2025'!Q264:Q269)-SUM('4_Pflegepersonalbedarf 2025'!O264:O269) -> 0 | IJ18: =SUM('4_Pflegepersonalbedarf 2025'!Q270:Q272)-SUM('4_Pflegepersonalbedarf 2025'!O270:O272) -> 0 | IK18: ='4_Pflegepersonalbedarf 2025'!Q273-'4_Pflegepersonalbedarf 2025'!O273 -> 0 | IL18: =SUM(IH18:IK18) -> 0
A20: Hauptdaten4 (Personal-Fluktuation)
A21: Code | B21: Träger | C21: Bezirk | D21: Region | E21: Planungsraum | F21: Größengruppe | G21: PDL-Statistik | H21: Gemeinde Kennzahl | I21: Gemeinde | J21: Kurzbezeichnung | K21: Anzahl der ins Jahr 2026 übertragenen Über- bzw. Mehrstunden | L21: Anzahl der im Jahr 2025 ausbezahlten Über- bzw. Mehrstunden | M21: Summe | N21: Anzahl der Krankenstände (in Tagen) | O21: durchschn. Krankenstandstage je MA der Pflege (MPPB-wirksam) | P21: Anzahl der Resturlaubstage | Q21: von Heim des selben Trägers | R21: von Heim eines anderen Trägers | S21: von Mobilen Diensten | T21: von anderer Einrichtung d Ges.bereiches | U21: von Einrichtung für Menschen mit Beeinträchtigungen | V21: von Sonstigem | W21: direkt nach Ausbildung | X21: Wiedereinsteiger:innen | Y21: Eintritte DGKP inkl. LBPD ohne Karenz | Z21: von Karenz zurück | AA21: in ein Heim des selben Trägers | AB21: in ein Heim eines anderen Trägers | AC21: zu Mobilen Diensten | AD21: in andere Einrichtung d Ges.bereiches | AE21: in Einrichtung für Menschen mit Beeinträchtigungen | AF21: zu Sonstigem | AG21: wegen Ausbildung | AH21: wegen Ende Befristung DV | AI21: weiterer Berufsweg unbekannt bzw. sonstige Gründe | AJ21: Austritte DGKP inkl. LBPD | AK21: Pensionierung | AL21: ganzjährig in Karenz | AM21: in Karenz gegangen | AN21: von Heim des selben Trägers | AO21: von Heim eines anderen Trägers | AP21: von Mobilen Diensten | AQ21: von anderer Einrichtung d Ges.bereiches | AR21: von Einrichtung für Menschen mit Beeinträchtigungen | AS21: von Sonstigem | AT21: direkt nach Ausbildung | AU21: Wiedereinsteiger:innen | AV21: Eintritte PFA ohne Karenz | AW21: von Karenz zurück | AX21: in ein Heim des selben Trägers | AY21: in ein Heim eines anderen Trägers | AZ21: zu Mobilen Diensten | BA21: in andere Einrichtung d Ges.bereiches | BB21: in Einrichtung für Menschen mit Beeinträchtigungen | BC21: zu Sonstigem | BD21: wegen Ausbildung | BE21: wegen Ende Befristung DV | BF21: weiterer Berufsweg unbekannt bzw. sonstige Gründe | BG21: Austritte PFA | BH21: Pensionierung | BI21: ganzjährig in Karenz | BJ21: in Karenz gegangen | BK21: von Heim des selben Trägers | BL21: von Heim eines anderen Trägers | BM21: von Mobilen Diensten | BN21: von anderer Einrichtung d Ges.bereiches | BO21: von Einrichtung für Menschen mit Beeinträchtigungen | BP21: von Sonstigem | BQ21: direkt nach Ausbildung | BR21: Wiedereinsteiger:innen | BS21: Eintritte FSB & DSB ohne Karenz | BT21: von Karenz zurück | BU21: in ein Heim des selben Trägers | BV21: in ein Heim eines anderen Trägers | BW21: zu Mobilen Diensten | BX21: in andere Einrichtung d Ges.bereiches | BY21: in Einrichtung für Menschen mit Beeinträchtigungen | BZ21: zu Sonstigem | CA21: wegen Ausbildung | CB21: wegen Ende Befristung DV | CC21: weiterer Berufsweg unbekannt bzw. sonstige Gründe | CD21: Austritte FSB & DSB | CE21: Pensionierung | CF21: ganzjährig in Karenz | CG21: in Karenz gegangen | CH21: von Heim des selben Trägers | CI21: von Heim eines anderen Trägers | CJ21: von Mobilen Diensten | CK21: von anderer Einrichtung d Ges.bereiches | CL21: von Einrichtung für Menschen mit Beeinträchtigungen | CM21: von Sonstigem | CN21: direkt nach Ausbildung | CO21: Wiedereinsteiger:innen | CP21: Eintritte PA ohne Karenz | CQ21: von Karenz zurück | CR21: in ein Heim des selben Trägers | CS21: in ein Heim eines anderen Trägers | CT21: zu Mobilen Diensten | CU21: in andere Einrichtung d Ges.bereiches | CV21: in Einrichtung für Menschen mit Beeinträchtigungen | CW21: zu Sonstigem | CX21: wegen Ausbildung | CY21: wegen Ende Befristung DV | CZ21: weiterer Berufsweg unbekannt bzw. sonstige Gründe | DA21: Austritte PA | DB21: Pensionierung | DC21: ganzjährig in Karenz | DD21: in Karenz gegangen | DE21: von Heim des selben Trägers | DF21: von Heim eines anderen Trägers | DG21: von Mobilen Diensten | DH21: von anderer Einrichtung d Ges.bereiches | DI21: von Einrichtung für Menschen mit Beeinträchtigungen | DJ21: von Sonstigem | DK21: direkt nach Ausbildung | DL21: Wiedereinsteiger:innen | DM21: Eintritte HH ohne Karenz | DN21: von Karenz zurück | DO21: in ein Heim des selben Trägers | DP21: in ein Heim eines anderen Trägers | DQ21: zu Mobilen Diensten | DR21: in andere Einrichtung d Ges.bereiches | DS21: in Einrichtung für Menschen mit Beeinträchtigungen | DT21: zu Sonstigem | DU21: wegen Ausbildung | DV21: wegen Ende Befristung DV | DW21: weiterer Berufsweg unbekannt bzw. sonstige Gründe | DX21: Austritte HH | DY21: Pensionierung | DZ21: ganzjährig in Karenz | EA21: in Karenz gegangen | EB21: von Heim des selben Trägers | EC21: von Heim eines anderen Trägers | ED21: von Mobilen Diensten | EE21: von anderer Einrichtung d Ges.bereiches | EF21: von Einrichtung für Menschen mit Beeinträchtigungen | EG21: von Sonstigem | EH21: direkt nach Ausbildung | EI21: Wiedereinsteiger:innen | EJ21: Eintritte Stützpersonal ohne Karenz | EK21: von Karenz zurück | EL21: in ein Heim des selben Trägers | EM21: in ein Heim eines anderen Trägers | EN21: zu Mobilen Diensten | EO21: in andere Einrichtung d Ges.bereiches | EP21: in Einrichtung für Menschen mit Beeinträchtigungen | EQ21: zu Sonstigem | ER21: wegen Ausbildung | ES21: wegen Ende Befristung DV | ET21: weiterer Berufsweg unbekannt bzw. sonstige Gründe | EU21: Austritte Stützpersonal | EV21: Pensionierung | EW21: ganzjährig in Karenz | EX21: in Karenz gegangen
Q22: Eintritte | AA22: Austritte | AN22: Eintritte | AX22: Austritte | BK22: Eintritte | BU22: Austritte | CH22: Eintritte | CR22: Austritte | DE22: Eintritte | DO22: Austritte | EB22: Eintritte | EL22: Austritte
H23: Standortgemeinde | J23: Kurzbezeichnung | K23: Überstunden, Krankenstand, Urlaub (Pflegepersonal) | Q23: Personalfluktuation DGKP inkl. LBPD | AN23: Personalfluktuation PFA | BK23: Personalfluktuation FSB & DSB | CH23: Personalfluktuation PA | DE23: Personalfluktuation HH | EB23: Personalfluktuation Stützpersonal
A24: =VLOOKUP($J$6,'1_allg. Strukturdaten'!$B$74:$N$207,2,FALSE) ->  | B24: =VLOOKUP($J$6,'1_allg. Strukturdaten'!$B$74:$N$207,3,FALSE) ->  | C24: =VLOOKUP($J$6,'1_allg. Strukturdaten'!$B$74:$N$207,4,FALSE) ->  | D24: =VLOOKUP($J$6,'1_allg. Strukturdaten'!$B$74:$N$207,5,FALSE) ->  | E24: =VLOOKUP($J$6,'1_allg. Strukturdaten'!$B$74:$N$207,6,FALSE) ->  | F24: =VLOOKUP($J$6,'1_allg. Strukturdaten'!$B$74:$N$207,7,FALSE) ->  | G24: =VLOOKUP($J$6,'1_allg. Strukturdaten'!$B$74:$N$207,8,FALSE) ->  | H24: =VLOOKUP($J$6,'1_allg. Strukturdaten'!$B$74:$N$207,9,FALSE) ->  | I24: =VLOOKUP($J$6,'1_allg. Strukturdaten'!$B$74:$N$207,10,FALSE) ->  | J24: ='1_allg. Strukturdaten'!D7 -> Bitte auswählen… | K24: ='2_Personal'!C52 -> 0 | L24: ='2_Personal'!C53 -> 0 | M24: ='2_Personal'!E53 -> 0 | N24: ='2_Personal'!C54 -> 0 | O24: ='2_Personal'!G54 ->  | P24: ='2_Personal'!C55 -> 0 | Q24: ='2_Personal'!$C62 -> 0 | R24: ='2_Personal'!$C63 -> 0 | S24: ='2_Personal'!$C64 -> 0 | T24: ='2_Personal'!$C65 -> 0 | U24: ='2_Personal'!$C66 -> 0 | V24: ='2_Personal'!$C67 -> 0 | W24: ='2_Personal'!$C68 -> 0 | X24: ='2_Personal'!$C69 -> 0 | Y24: =SUM(Q24:X24) -> 0 | Z24: ='2_Personal'!$C70 -> 0 | AA24: ='2_Personal'!$C73 -> 0 | AB24: ='2_Personal'!$C74 -> 0 | AC24: ='2_Personal'!$C75 -> 0 | AD24: ='2_Personal'!$C76 -> 0 | AE24: ='2_Personal'!$C77 -> 0 | AF24: ='2_Personal'!$C78 -> 0 | AG24: ='2_Personal'!$C79 -> 0 | AH24: ='2_Personal'!$C80 -> 0 | AI24: ='2_Personal'!$C81 -> 0 | AJ24: =SUM(AA24:AI24) -> 0 | AK24: ='2_Personal'!$C82 -> 0 | AL24: ='2_Personal'!$C83 -> 0 | AM24: ='2_Personal'!$C84 -> 0 | AN24: ='2_Personal'!D62 -> 0 | AO24: ='2_Personal'!D63 -> 0 | AP24: ='2_Personal'!D64 -> 0 | AQ24: ='2_Personal'!D65 -> 0 | AR24: ='2_Personal'!D66 -> 0 | AS24: ='2_Personal'!D67 -> 0 | AT24: ='2_Personal'!D68 -> 0 | AU24: ='2_Personal'!D69 -> 0 | AV24: =SUM(AN24:AU24) -> 0 | AW24: ='2_Personal'!D70 -> 0 | AX24: ='2_Personal'!D73 -> 0 | AY24: ='2_Personal'!D74 -> 0 | AZ24: ='2_Personal'!D75 -> 0 | BA24: ='2_Personal'!D76 -> 0 | BB24: ='2_Personal'!D77 -> 0 | BC24: ='2_Personal'!D78 -> 0 | BD24: ='2_Personal'!D79 -> 0 | BE24: ='2_Personal'!D80 -> 0 | BF24: ='2_Personal'!D81 -> 0 | BG24: =SUM(AX24:BF24) -> 0 | BH24: ='2_Personal'!D82 -> 0 | BI24: ='2_Personal'!D83 -> 0 | BJ24: ='2_Personal'!D84 -> 0 | BK24: ='2_Personal'!$E62 -> 0 | BL24: ='2_Personal'!$E63 -> 0 | BM24: ='2_Personal'!$E64 -> 0 | BN24: ='2_Personal'!$E65 -> 0 | BO24: ='2_Personal'!$E66 -> 0 | BP24: ='2_Personal'!$E67 -> 0 | BQ24: ='2_Personal'!$E68 -> 0 | BR24: ='2_Personal'!$E69 -> 0 | BS24: =SUM(BK24:BR24) -> 0 | BT24: ='2_Personal'!$E70 -> 0 | BU24: ='2_Personal'!$E73 -> 0 | BV24: ='2_Personal'!$E74 -> 0 | BW24: ='2_Personal'!$E75 -> 0 | BX24: ='2_Personal'!$E76 -> 0 | BY24: ='2_Personal'!$E77 -> 0 | BZ24: ='2_Personal'!$E78 -> 0 | CA24: ='2_Personal'!$E79 -> 0 | CB24: ='2_Personal'!$E80 -> 0 | CC24: ='2_Personal'!$E81 -> 0 | CD24: =SUM(BU24:CC24) -> 0 | CE24: ='2_Personal'!$E82 -> 0 | CF24: ='2_Personal'!$E83 -> 0 | CG24: ='2_Personal'!$E84 -> 0 | CH24: ='2_Personal'!$F62 -> 0 | CI24: ='2_Personal'!$F63 -> 0 | CJ24: ='2_Personal'!$F64 -> 0 | CK24: ='2_Personal'!$F65 -> 0 | CL24: ='2_Personal'!$F66 -> 0 | CM24: ='2_Personal'!$F67 -> 0 | CN24: ='2_Personal'!$F68 -> 0 | CO24: ='2_Personal'!$F69 -> 0 | CP24: =SUM(CH24:CO24) -> 0 | CQ24: ='2_Personal'!$F70 -> 0 | CR24: ='2_Personal'!$F73 -> 0 | CS24: ='2_Personal'!$F74 -> 0 | CT24: ='2_Personal'!$F75 -> 0 | CU24: ='2_Personal'!$F76 -> 0 | CV24: ='2_Personal'!$F77 -> 0 | CW24: ='2_Personal'!$F78 -> 0 | CX24: ='2_Personal'!$F79 -> 0 | CY24: ='2_Personal'!$F80 -> 0 | CZ24: ='2_Personal'!$F81 -> 0 | DA24: =SUM(CR24:CZ24) -> 0 | DB24: ='2_Personal'!$F82 -> 0 | DC24: ='2_Personal'!$F83 -> 0 | DD24: ='2_Personal'!$F84 -> 0 | DE24: ='2_Personal'!$G62 -> 0 | DF24: ='2_Personal'!$G63 -> 0 | DG24: ='2_Personal'!$G64 -> 0 | DH24: ='2_Personal'!$G65 -> 0 | DI24: ='2_Personal'!$G66 -> 0 | DJ24: ='2_Personal'!$G67 -> 0 | DK24: ='2_Personal'!$G68 -> 0 | DL24: ='2_Personal'!$G69 -> 0 | DM24: =SUM(DE24:DL24) -> 0 | DN24: ='2_Personal'!$G70 -> 0 | DO24: ='2_Personal'!$G73 -> 0 | DP24: ='2_Personal'!$G74 -> 0 | DQ24: ='2_Personal'!$G75 -> 0 | DR24: ='2_Personal'!$G76 -> 0 | DS24: ='2_Personal'!$G77 -> 0 | DT24: ='2_Personal'!$G78 -> 0 | DU24: ='2_Personal'!$G79 -> 0 | DV24: ='2_Personal'!$G80 -> 0 | DW24: ='2_Personal'!$G81 -> 0 | DX24: =SUM(DO24:DW24) -> 0 | DY24: ='2_Personal'!$G82 -> 0 | DZ24: ='2_Personal'!$G83 -> 0 | EA24: ='2_Personal'!$G84 -> 0 | EB24: ='2_Personal'!$H62 -> 0 | EC24: ='2_Personal'!$H63 -> 0 | ED24: ='2_Personal'!$H64 -> 0 | EE24: ='2_Personal'!$H65 -> 0 | EF24: ='2_Personal'!$H66 -> 0 | EG24: ='2_Personal'!$H67 -> 0 | EH24: ='2_Personal'!$H68 -> 0 | EI24: ='2_Personal'!$H69 -> 0 | EJ24: =SUM(EB24:EI24) -> 0 | EK24: ='2_Personal'!$H70 -> 0 | EL24: ='2_Personal'!$H73 -> 0 | EM24: ='2_Personal'!$H74 -> 0 | EN24: ='2_Personal'!$H75 -> 0 | EO24: ='2_Personal'!$H76 -> 0 | EP24: ='2_Personal'!$H77 -> 0 | EQ24: ='2_Personal'!$H78 -> 0 | ER24: ='2_Personal'!$H79 -> 0 | ES24: ='2_Personal'!$H80 -> 0 | ET24: ='2_Personal'!$H81 -> 0 | EU24: =SUM(EL24:ET24) -> 0 | EV24: ='2_Personal'!$H82 -> 0 | EW24: ='2_Personal'!$H83 -> 0 | EX24: ='2_Personal'!$H84 -> 0
A26: Hauptdaten5 (MPPB)
A27: Code | B27: Träger | C27: Bezirk | D27: Region | E27: Planungsraum | F27: Größengruppe | G27: PDL-Statistik | H27: Gemeinde Kennzahl | I27: Gemeinde | J27: Name des Heimes | K27: 0 | L27: 1 | M27: 2 | N27: 3 | O27: 4 | P27: 5 | Q27: 6 | R27: 7 | S27: insgesamt | T27: 0 | U27: 1 | V27: 2 | W27: 3 | X27: 4 | Y27: 5 | Z27: 6 | AA27: 7 | AB27: insgesamt | AC27: 0 | AD27: 1 | AE27: 2 | AF27: 3 | AG27: 4 | AH27: 5 | AI27: 6 | AJ27: 7 | AK27: insgesamt | AL27: 0 | AM27: 1 | AN27: 2 | AO27: 3 | AP27: 4 | AQ27: 5 | AR27: 6 | AS27: 7 | AT27: insgesamt | AU27: 0 | AV27: 1 | AW27: 2 | AX27: 3 | AY27: 4 | AZ27: 5 | BA27: 6 | BB27: 7 | BC27: insgesamt | BD27: 0 | BE27: 1 | BF27: 2 | BG27: 3 | BH27: 4 | BI27: 5 | BJ27: 6 | BK27: 7 | BL27: insgesamt | BM27: 0 | BN27: 1 | BO27: 2 | BP27: 3 | BQ27: 4 | BR27: 5 | BS27: 6 | BT27: 7 | BU27: insgesamt | BV27: 0 | BW27: 1 | BX27: 2 | BY27: 3 | BZ27: 4 | CA27: 5 | CB27: 6 | CC27: 7 | CD27: insgesamt | CE27: 0 | CF27: 1 | CG27: 2 | CH27: 3 | CI27: 4 | CJ27: 5 | CK27: 6 | CL27: 7 | CM27: insgesamt | CN27: 0 | CO27: 1 | CP27: 2 | CQ27: 3 | CR27: 4 | CS27: 5 | CT27: 6 | CU27: 7 | CV27: insgesamt | CW27: Wochenstunden generell | CX27: Wochenstunden FSB A | CY27: Berücksichtigung 40tel | CZ27: Berücksichtigung Bonuswoche FSB A | DA27: Bewohneranzahl | DB27: davon KZP | DC27: Anzahl der offenen PG-Verfahren | DD27: MPPB | DE27: Pflegepersonal IST tatsächlich (ohne LZKr.) in PE | DF27: Pflegepersonal IST anrechenbar in PE | DG27: Differenz | DH27: Pflegeintensität SOLL 1 : ... | DI27: Pflegeintensität IST 1 : ... | DJ27: Erfüllung MPPB | DK27: Mindestbedarf DGKP/PFA | DL27: Mindestbedarf FSB+DSB (ohne BB) | DM27: Maximalbedarf HH+AB+FSB"BB"/DSB"BB" | DN27: Maximalbedarf Stützpersonal | DO27: DGKP/PFA IST anrechenbar | DP27: FSB "A" anrechenbar | DQ27: FSB BA, DSB A, DSB BA, DSB F und PA ohne Lzkr. | DR27: HH, AB, FSB "BB", DSB "BB" anrechenbar | DS27: Stützpersonal anrechenbar | DT27: Anteil DGKP inkl. PFA | DU27: Anteil FSB "A" und "BA", DSB "A" und "BA", DSB "F" und PA | DV27: Anteil HH, AB, FSB "BB"und DSB "BB" | DW27: Anteil Stützpersonal | DX27: es fehlen insgesamt | DY27: es fehlen ... DGKP + PFA | DZ27: es fehlen FSB+DSB (ohne BB) und PA | EA27: Bewohneranzahl | EB27: davon KZP | EC27: Anzahl der offenen PG-Verfahren | ED27: MPPB | EE27: Pflegepersonal IST tatsächlich (ohne LZKr.) in PE | EF27: Pflegepersonal IST anrechenbar in PE | EG27: Differenz | EH27: Pflegeintensität SOLL 1 : ... | EI27: Pflegeintensität IST 1 : ... | EJ27: Erfüllung MPPB | EK27: Mindestbedarf DGKP/PFA | EL27: Mindestbedarf FSB+DSB (ohne BB) | EM27: Maximalbedarf HH+AB+FSB"BB"/DSB"BB" | EN27: Maximalbedarf Stützpersonal | EO27: DGKP/PFA IST anrechenbar | EP27: FSB "A" anrechenbar | EQ27: FSB BA, DSB A, DSB BA, DSB F und PA ohne Lzkr. | ER27: HH, AB, FSB "BB", DSB "BB" anrechenbar | ES27: Stützpersonal anrechenbar | ET27: Anteil DGKP inkl. PFA | EU27: Anteil FSB "A" und "BA", DSB "A" und "BA", DSB "F" und PA | EV27: Anteil HH, AB, FSB "BB"und DSB "BB" | EW27: Anteil Stützpersonal | EX27: es fehlen insgesamt | EY27: es fehlen ... DGKP + PFA | EZ27: es fehlen FSB+DSB (ohne BB) und PA | FA27: Bewohneranzahl | FB27: davon KZP | FC27: Anzahl der offenen PG-Verfahren | FD27: MPPB | FE27: Pflegepersonal IST tatsächlich (ohne LZKr.) in PE | FF27: Pflegepersonal IST anrechenbar in PE | FG27: Differenz | FH27: Pflegeintensität SOLL 1 : ... | FI27: Pflegeintensität IST 1 : ... | FJ27: Erfüllung MPPB | FK27: Mindestbedarf DGKP/PFA | FL27: Mindestbedarf FSB+DSB (ohne BB) | FM27: Maximalbedarf HH+AB+FSB"BB"/DSB"BB" | FN27: Maximalbedarf Stützpersonal | FO27: DGKP/PFA IST anrechenbar | FP27: FSB "A" anrechenbar | FQ27: FSB BA, DSB A, DSB BA, DSB F und PA ohne Lzkr. | FR27: HH, AB, FSB "BB", DSB "BB" anrechenbar | FS27: Stützpersonal anrechenbar | FT27: Anteil DGKP inkl. PFA | FU27: Anteil FSB "A" und "BA", DSB "A" und "BA", DSB "F" und PA | FV27: Anteil HH, AB, FSB "BB"und DSB "BB" | FW27: Anteil Stützpersonal | FX27: es fehlen insgesamt | FY27: es fehlen ... DGKP + PFA | FZ27: es fehlen FSB+DSB (ohne BB) und PA | GA27: Bewohneranzahl | GB27: davon KZP | GC27: Anzahl der offenen PG-Verfahren | GD27: MPPB | GE27: Pflegepersonal IST tatsächlich (ohne LZKr.) in PE | GF27: Pflegepersonal IST anrechenbar in PE | GG27: Differenz | GH27: Pflegeintensität SOLL 1 : ... | GI27: Pflegeintensität IST 1 : ... | GJ27: Erfüllung MPPB | GK27: Mindestbedarf DGKP/PFA | GL27: Mindestbedarf FSB+DSB (ohne BB) | GM27: Maximalbedarf HH+AB+FSB"BB"/DSB"BB" | GN27: Maximalbedarf Stützpersonal | GO27: DGKP/PFA IST anrechenbar | GP27: FSB "A" anrechenbar | GQ27: FSB BA, DSB A, DSB BA, DSB F und PA ohne Lzkr. | GR27: HH, AB, FSB "BB", DSB "BB" anrechenbar | GS27: Stützpersonal anrechenbar | GT27: Anteil DGKP inkl. PFA | GU27: Anteil FSB "A" und "BA", DSB "A" und "BA", DSB "F" und PA | GV27: Anteil HH, AB, FSB "BB"und DSB "BB" | GW27: Anteil Stützpersonal | GX27: es fehlen insgesamt | GY27: es fehlen ... DGKP + PFA | GZ27: es fehlen FSB+DSB (ohne BB) und PA | HA27: Bewohneranzahl | HB27: davon KZP | HC27: Anzahl der offenen PG-Verfahren | HD27: MPPB | HE27: Pflegepersonal IST tatsächlich (ohne LZKr.) in PE | HF27: Pflegepersonal IST anrechenbar in PE | HG27: Differenz | HH27: Pflegeintensität SOLL 1 : ... | HI27: Pflegeintensität IST 1 : ... | HJ27: Erfüllung MPPB | HK27: Mindestbedarf DGKP/PFA | HL27: Mindestbedarf FSB+DSB (ohne BB) | HM27: Maximalbedarf HH+AB+FSB"BB"/DSB"BB" | HN27: Maximalbedarf Stützpersonal | HO27: DGKP/PFA IST anrechenbar | HP27: FSB "A" anrechenbar | HQ27: FSB BA, DSB A, DSB BA, DSB F und PA ohne Lzkr. | HR27: HH, AB, FSB "BB", DSB "BB" anrechenbar | HS27: Stützpersonal anrechenbar | HT27: Anteil DGKP inkl. PFA | HU27: Anteil FSB "A" und "BA", DSB "A" und "BA", DSB "F" und PA | HV27: Anteil HH, AB, FSB "BB"und DSB "BB" | HW27: Anteil Stützpersonal | HX27: es fehlen insgesamt | HY27: es fehlen ... DGKP + PFA | HZ27: es fehlen FSB+DSB (ohne BB) und PA | IA27: Bewohneranzahl | IB27: davon KZP | IC27: Anzahl der offenen PG-Verfahren | ID27: MPPB | IE27: Pflegepersonal IST tatsächlich (ohne LZKr.) in PE | IF27: Pflegepersonal IST anrechenbar in PE | IG27: Differenz | IH27: Pflegeintensität SOLL 1 : ... | II27: Pflegeintensität IST 1 : ... | IJ27: Erfüllung MPPB | IK27: Mindestbedarf DGKP/PFA | IL27: Mindestbedarf FSB+DSB (ohne BB) | IM27: Maximalbedarf HH+AB+FSB"BB"/DSB"BB" | IN27: Maximalbedarf Stützpersonal | IO27: DGKP/PFA IST anrechenbar | IP27: FSB "A" anrechenbar | IQ27: FSB BA, DSB A, DSB BA, DSB F und PA ohne Lzkr. | IR27: HH, AB, FSB "BB", DSB "BB" anrechenbar | IS27: Stützpersonal anrechenbar | IT27: Anteil DGKP inkl. PFA | IU27: Anteil FSB "A" und "BA", DSB "A" und "BA", DSB "F" und PA | IV27: Anteil HH, AB, FSB "BB"und DSB "BB" | IW27: Anteil Stützpersonal | IX27: es fehlen insgesamt | IY27: es fehlen ... DGKP + PFA | IZ27: es fehlen FSB+DSB (ohne BB) und PA | JA27: Bewohneranzahl | JB27: davon KZP | JC27: Anzahl der offenen PG-Verfahren | JD27: MPPB | JE27: Pflegepersonal IST tatsächlich (ohne LZKr.) in PE | JF27: Pflegepersonal IST anrechenbar in PE | JG27: Differenz | JH27: Pflegeintensität SOLL 1 : ... | JI27: Pflegeintensität IST 1 : ... | JJ27: Erfüllung MPPB | JK27: Mindestbedarf DGKP/PFA | JL27: Mindestbedarf FSB+DSB (ohne BB) | JM27: Maximalbedarf HH+AB+FSB"BB"/DSB"BB" | JN27: Maximalbedarf Stützpersonal | JO27: DGKP/PFA IST anrechenbar | JP27: FSB "A" anrechenbar | JQ27: FSB BA, DSB A, DSB BA, DSB F und PA ohne Lzkr. | JR27: HH, AB, FSB "BB", DSB "BB" anrechenbar | JS27: Stützpersonal anrechenbar | JT27: Anteil DGKP inkl. PFA | JU27: Anteil FSB "A" und "BA", DSB "A" und "BA", DSB "F" und PA | JV27: Anteil HH, AB, FSB "BB"und DSB "BB" | JW27: Anteil Stützpersonal | JX27: es fehlen insgesamt | JY27: es fehlen ... DGKP + PFA | JZ27: es fehlen FSB+DSB (ohne BB) und PA | KA27: Bewohneranzahl | KB27: davon KZP | KC27: Anzahl der offenen PG-Verfahren | KD27: MPPB | KE27: Pflegepersonal IST tatsächlich (ohne LZKr.) in PE | KF27: Pflegepersonal IST anrechenbar in PE | KG27: Differenz | KH27: Pflegeintensität SOLL 1 : ... | KI27: Pflegeintensität IST 1 : ... | KJ27: Erfüllung MPPB | KK27: Mindestbedarf DGKP/PFA | KL27: Mindestbedarf FSB+DSB (ohne BB) | KM27: Maximalbedarf HH+AB+FSB"BB"/DSB"BB" | KN27: Maximalbedarf Stützpersonal | KO27: DGKP/PFA IST anrechenbar | KP27: FSB "A" anrechenbar | KQ27: FSB BA, DSB A, DSB BA, DSB F und PA ohne Lzkr. | KR27: HH, AB, FSB "BB", DSB "BB" anrechenbar | KS27: Stützpersonal anrechenbar | KT27: Anteil DGKP inkl. PFA | KU27: Anteil FSB "A" und "BA", DSB "A" und "BA", DSB "F" und PA | KV27: Anteil HH, AB, FSB "BB"und DSB "BB" | KW27: Anteil Stützpersonal | KX27: es fehlen insgesamt | KY27: es fehlen ... DGKP + PFA | KZ27: es fehlen FSB+DSB (ohne BB) und PA | LA27: Bewohneranzahl | LB27: davon KZP | LC27: Anzahl der offenen PG-Verfahren | LD27: MPPB | LE27: Pflegepersonal IST tatsächlich (ohne LZKr.) in PE | LF27: Pflegepersonal IST anrechenbar in PE | LG27: Differenz | LH27: Pflegeintensität SOLL 1 : ... | LI27: Pflegeintensität IST 1 : ... | LJ27: Erfüllung MPPB | LK27: Mindestbedarf DGKP/PFA | LL27: Mindestbedarf FSB+DSB (ohne BB) | LM27: Maximalbedarf HH+AB+FSB"BB"/DSB"BB" | LN27: Maximalbedarf Stützpersonal | LO27: DGKP/PFA IST anrechenbar | LP27: FSB "A" anrechenbar | LQ27: FSB BA, DSB A, DSB BA, DSB F und PA ohne Lzkr. | LR27: HH, AB, FSB "BB", DSB "BB" anrechenbar | LS27: Stützpersonal anrechenbar | LT27: Anteil DGKP inkl. PFA | LU27: Anteil FSB "A" und "BA", DSB "A" und "BA", DSB "F" und PA | LV27: Anteil HH, AB, FSB "BB"und DSB "BB" | LW27: Anteil Stützpersonal | LX27: es fehlen insgesamt | LY27: es fehlen ... DGKP + PFA | LZ27: es fehlen FSB+DSB (ohne BB) und PA | MA27: Bewohneranzahl | MB27: davon KZP | MC27: Anzahl der offenen PG-Verfahren | MD27: MPPB | ME27: Pflegepersonal IST tatsächlich (ohne LZKr.) in PE | MF27: Pflegepersonal IST anrechenbar in PE | MG27: Differenz | MH27: Pflegeintensität SOLL 1 : ... | MI27: Pflegeintensität IST 1 : ... | MJ27: Erfüllung MPPB | MK27: Mindestbedarf DGKP/PFA | ML27: Mindestbedarf FSB+DSB (ohne BB) | MM27: Maximalbedarf HH+AB+FSB"BB"/DSB"BB" | MN27: Maximalbedarf Stützpersonal | MO27: DGKP/PFA IST anrechenbar | MP27: FSB "A" anrechenbar | MQ27: FSB BA, DSB A, DSB BA, DSB F und PA ohne Lzkr. | MR27: HH, AB, FSB "BB", DSB "BB" anrechenbar | MS27: Stützpersonal anrechenbar | MT27: Anteil DGKP inkl. PFA | MU27: Anteil FSB "A" und "BA", DSB "A" und "BA", DSB "F" und PA | MV27: Anteil HH, AB, FSB "BB"und DSB "BB" | MW27: Anteil Stützpersonal | MX27: es fehlen insgesamt | MY27: es fehlen ... DGKP + PFA | MZ27: es fehlen FSB+DSB (ohne BB) und PA | NA27: Bewohneranzahl | NB27: davon KZP | NC27: Anzahl der offenen PG-Verfahren | ND27: MPPB | NE27: Pflegepersonal IST tatsächlich (ohne LZKr.) in PE | NF27: Pflegepersonal IST anrechenbar in PE | NG27: Differenz | NH27: Pflegeintensität SOLL 1 : ... | NI27: Pflegeintensität IST 1 : ... | NJ27: Erfüllung MPPB | NK27: Mindestbedarf DGKP/PFA | NL27: Mindestbedarf FSB+DSB (ohne BB) | NM27: Maximalbedarf HH+AB+FSB"BB"/DSB"BB" | NN27: Maximalbedarf Stützpersonal | NO27: DGKP/PFA IST anrechenbar | NP27: FSB "A" anrechenbar | NQ27: FSB BA, DSB A, DSB BA, DSB F und PA ohne Lzkr. | NR27: HH, AB, FSB "BB", DSB "BB" anrechenbar | NS27: Stützpersonal anrechenbar | NT27: Anteil DGKP inkl. PFA | NU27: Anteil FSB "A" und "BA", DSB "A" und "BA", DSB "F" und PA | NV27: Anteil HH, AB, FSB "BB"und DSB "BB" | NW27: Anteil Stützpersonal | NX27: es fehlen insgesamt | NY27: es fehlen ... DGKP + PFA | NZ27: es fehlen FSB+DSB (ohne BB) und PA | OA27: Bewohneranzahl | OB27: davon KZP | OC27: Anzahl der offenen PG-Verfahren | OD27: MPPB | OE27: Pflegepersonal IST tatsächlich (ohne LZKr.) in PE | OF27: Pflegepersonal IST anrechenbar in PE | OG27: Differenz | OH27: Pflegeintensität SOLL 1 : ... | OI27: Pflegeintensität IST 1 : ... | OJ27: Erfüllung MPPB | OK27: Mindestbedarf DGKP/PFA | OL27: Mindestbedarf FSB+DSB (ohne BB) | OM27: Maximalbedarf HH+AB+FSB"BB"/DSB"BB" | ON27: Maximalbedarf Stützpersonal | OO27: DGKP/PFA IST anrechenbar | OP27: FSB "A" anrechenbar | OQ27: FSB BA, DSB A, DSB BA, DSB F und PA ohne Lzkr. | OR27: HH, AB, FSB "BB", DSB "BB" anrechenbar | OS27: Stützpersonal anrechenbar | OT27: Anteil DGKP inkl. PFA | OU27: Anteil FSB "A" und "BA", DSB "A" und "BA", DSB "F" und PA | OV27: Anteil HH, AB, FSB "BB"und DSB "BB" | OW27: Anteil Stützpersonal | OX27: es fehlen insgesamt | OY27: es fehlen ... DGKP + PFA | OZ27: es fehlen FSB+DSB (ohne BB) und PA | PA27: HB LZP+KZP - monatlicher Durchschnitt 2025 | PB27: KZP-Gäste - monatlicher Durchschnitt 2025 | PC27: Anzahl der offenen PG-Verfahren - monatlicher Durchschnitt 2025 | PD27: MPPB 2025 - monatlicher Durchschnitt | PE27: Pflegepersonal IST tatsächlich (ohne LZKr.) in PE - monatlicher Durchschnitt | PF27: Pflegepersonal IST anrechenbar in PE - monatlicher Durchschnitt | PG27: Differenz | PH27: Pflegeintensität SOLL 1 : ... - monatlicher Durchschnitt | PI27: Pflegeintensität IST 1 : ... - monatlicher Durchschnitt | PJ27: Erfüllung MPPB - monatlicher Durchschnitt 1.Halbjahr | PK27: Erfüllung MPPB - monatlicher Durchschnitt 2.Halbjahr | PL27: Erfüllung MPPB - monatlicher Durchschnitt 2025 | PM27: Mindestbedarf DGKP/PFA - monatlicher Durchschnitt | PN27: DGKP/PFA IST anrechenbar - monatlicher Durchschnitt | PO27: FSB "A" anrechenbar - monatlicher Durchschnitt | PP27: FSB BA, DSB A, DSB BA, DSB F und PA ohne Lzkr. - monatlicher Durchschnitt | PQ27: HH, AB, FSB "BB", DSB "BB" anrechenbar - monatlicher Durchschnitt | PR27: Stützpersonal anrechenbar - monatlicher Durchschnitt | PS27: Anteil DGKP inkl. PFA - monatlicher Durchschnitt 1. HJ | PT27: Anteil DGKP inkl. PFA - monatlicher Durchschnitt 2. HJ | PU27: Anteil DGKP inkl. PFA monatlicher Durchschnitt 2025 | PV27: es fehlen insgesamt - monatlicher Durchschnitt 2025 | PW27: es fehlen ... DGKP + PFA - monatlicher Durchschnitt 2025 | PX27: es fehlen FSB+DSB (ohne BB) und PA - monatlicher Durchschnitt 2025
DA28: 2025-01-31 | EA28: 2025-02-28 | FA28: 2025-03-31 | GA28: 2025-04-30 | HA28: 2025-05-31 | IA28: 2025-06-30 | JA28: 2025-07-31 | KA28: 2025-08-31 | LA28: 2025-09-30 | MA28: 2025-10-31 | NA28: 2025-11-30 | OA28: 2025-12-31 | PA28: Jahres- bzw. Halbjahresdurchschnitt
H29: Standortgemeinde | J29: Name des Heimes | K29: Bewohner nach tatsächl. Pflegegeldstufenverteilung Langzeitpflege - mit SH-Bezug | T29: Bewohner nach tatsächl. Pflegegeldstufenverteilung Langzeitpflege - Selbstzahler | AC29: Bewohner nach tatsächl. Pflegegeldstufenverteilung Langzeitpflege - GESAMT | AL29: Bewohner nach tatsächl. Pflegegeldstufenverteilung Kurzzeitpflege - mit SH-Bezug | AU29: Bewohner nach tatsächl. Pflegegeldstufenverteilung Kurzzeitpflege - Selbstzahler | BD29: Bewohner nach tatsächl. Pflegegeldstufenverteilung Kurzzeitpflege - GESAMT | BM29: Bewohner nach tatsächlicher PG-Stufenverteilung SUMME (SH + SZ) (Langzeit- + Kurzzeitpflege) | BV29: Bewohner nach erwarteter Pflegegeldstufenverteilung Langzeitpflege | CE29: Bewohner nach erwarteter Pflegegeldstufenverteilung Kurzzeitpflege | CN29: Bewohner nach erwarteter PG-Stufenverteilung SUMME (SH+SZ) (Langzeit- + Kurzzeitpflege) | CW29: Pflegebedarf im Jahr 2025
A30: =VLOOKUP($J$6,'1_allg. Strukturdaten'!$B$74:$N$207,2,FALSE) ->  | B30: =VLOOKUP($J$6,'1_allg. Strukturdaten'!$B$74:$N$207,3,FALSE) ->  | C30: =VLOOKUP($J$6,'1_allg. Strukturdaten'!$B$74:$N$207,4,FALSE) ->  | D30: =VLOOKUP($J$6,'1_allg. Strukturdaten'!$B$74:$N$207,5,FALSE) ->  | E30: =VLOOKUP($J$6,'1_allg. Strukturdaten'!$B$74:$N$207,6,FALSE) ->  | F30: =VLOOKUP($J$6,'1_allg. Strukturdaten'!$B$74:$N$207,7,FALSE) ->  | G30: =VLOOKUP($J$6,'1_allg. Strukturdaten'!$B$74:$N$207,8,FALSE) ->  | H30: =VLOOKUP($J$6,'1_allg. Strukturdaten'!$B$74:$N$207,9,FALSE) ->  | I30: =VLOOKUP($J$6,'1_allg. Strukturdaten'!$B$74:$N$207,10,FALSE) ->  | J30: ='1_allg. Strukturdaten'!D7 -> Bitte auswählen… | K30: ='1a_Langzeitpflege'!C33 -> 0 | L30: ='1a_Langzeitpflege'!D33 -> 0 | M30: ='1a_Langzeitpflege'!E33 -> 0 | N30: ='1a_Langzeitpflege'!F33 -> 0 | O30: ='1a_Langzeitpflege'!G33 -> 0 | P30: ='1a_Langzeitpflege'!H33 -> 0 | Q30: ='1a_Langzeitpflege'!I33 -> 0 | R30: ='1a_Langzeitpflege'!J33 -> 0 | S30: ='1a_Langzeitpflege'!K33 -> 0 | T30: ='1a_Langzeitpflege'!C34 -> 0 | U30: ='1a_Langzeitpflege'!D34 -> 0 | V30: ='1a_Langzeitpflege'!E34 -> 0 | W30: ='1a_Langzeitpflege'!F34 -> 0 | X30: ='1a_Langzeitpflege'!G34 -> 0 | Y30: ='1a_Langzeitpflege'!H34 -> 0 | Z30: ='1a_Langzeitpflege'!I34 -> 0 | AA30: ='1a_Langzeitpflege'!J34 -> 0 | AB30: ='1a_Langzeitpflege'!K34 -> 0 | AC30: ='1a_Langzeitpflege'!C35 -> 0 | AD30: ='1a_Langzeitpflege'!D35 -> 0 | AE30: ='1a_Langzeitpflege'!E35 -> 0 | AF30: ='1a_Langzeitpflege'!F35 -> 0 | AG30: ='1a_Langzeitpflege'!G35 -> 0 | AH30: ='1a_Langzeitpflege'!H35 -> 0 | AI30: ='1a_Langzeitpflege'!I35 -> 0 | AJ30: ='1a_Langzeitpflege'!J35 -> 0 | AK30: ='1a_Langzeitpflege'!K35 -> 0 | AL30: ='1b_Kurzzeitpflege'!C57 -> 0 | AM30: ='1b_Kurzzeitpflege'!D57 -> 0 | AN30: ='1b_Kurzzeitpflege'!E57 -> 0 | AO30: ='1b_Kurzzeitpflege'!F57 -> 0 | AP30: ='1b_Kurzzeitpflege'!G57 -> 0 | AQ30: ='1b_Kurzzeitpflege'!H57 -> 0 | AR30: ='1b_Kurzzeitpflege'!I57 -> 0 | AS30: ='1b_Kurzzeitpflege'!J57 -> 0 | AT30: ='1b_Kurzzeitpflege'!K57 -> 0 | AU30: ='1b_Kurzzeitpflege'!C58 -> 0 | AV30: ='1b_Kurzzeitpflege'!D58 -> 0 | AW30: ='1b_Kurzzeitpflege'!E58 -> 0 | AX30: ='1b_Kurzzeitpflege'!F58 -> 0 | AY30: ='1b_Kurzzeitpflege'!G58 -> 0 | AZ30: ='1b_Kurzzeitpflege'!H58 -> 0 | BA30: ='1b_Kurzzeitpflege'!I58 -> 0 | BB30: ='1b_Kurzzeitpflege'!J58 -> 0 | BC30: ='1b_Kurzzeitpflege'!K58 -> 0 | BD30: ='1b_Kurzzeitpflege'!C59 -> 0 | BE30: ='1b_Kurzzeitpflege'!D59 -> 0 | BF30: ='1b_Kurzzeitpflege'!E59 -> 0 | BG30: ='1b_Kurzzeitpflege'!F59 -> 0 | BH30: ='1b_Kurzzeitpflege'!G59 -> 0 | BI30: ='1b_Kurzzeitpflege'!H59 -> 0 | BJ30: ='1b_Kurzzeitpflege'!I59 -> 0 | BK30: ='1b_Kurzzeitpflege'!J59 -> 0 | BL30: ='1b_Kurzzeitpflege'!K59 -> 0 | BM30: =AC30+BD30 -> 0 | BN30: 0 | BO30: 0 | BP30: 0 | BQ30: 0 | BR30: 0 | BS30: 0 | BT30: 0 | BU30: 0 | BV30: ='1a_Langzeitpflege'!C36 -> 0 | BW30: ='1a_Langzeitpflege'!D36 -> 0 | BX30: ='1a_Langzeitpflege'!E36 -> 0 | BY30: ='1a_Langzeitpflege'!F36 -> 0 | BZ30: ='1a_Langzeitpflege'!G36 -> 0 | CA30: ='1a_Langzeitpflege'!H36 -> 0 | CB30: ='1a_Langzeitpflege'!I36 -> 0 | CC30: ='1a_Langzeitpflege'!J36 -> 0 | CD30: ='1a_Langzeitpflege'!K36 -> 0 | CE30: ='1b_Kurzzeitpflege'!C60 -> 0 | CF30: ='1b_Kurzzeitpflege'!D60 -> 0 | CG30: ='1b_Kurzzeitpflege'!E60 -> 0 | CH30: ='1b_Kurzzeitpflege'!F60 -> 0 | CI30: ='1b_Kurzzeitpflege'!G60 -> 0 | CJ30: ='1b_Kurzzeitpflege'!H60 -> 0 | CK30: ='1b_Kurzzeitpflege'!I60 -> 0 | CL30: ='1b_Kurzzeitpflege'!J60 -> 0 | CM30: ='1b_Kurzzeitpflege'!K60 -> 0 | CN30: =BV30+CE30 -> 0 | CO30: =BW30+CF30 -> 0 | CP30: =BX30+CG30 -> 0 | CQ30: =BY30+CH30 -> 0 | CR30: 0 | CS30: 0 | CT30: 0 | CU30: 0 | CV30: 0 | CW30: ='4_Pflegepersonalbedarf 2025'!D10 -> 40 | CX30: ='4_Pflegepersonalbedarf 2025'!D11 -> 40 | CY30: ='4_Pflegepersonalbedarf 2025'!H10 -> Nein | CZ30: ='4_Pflegepersonalbedarf 2025'!H11 -> Nein | DA30: ='4_Pflegepersonalbedarf 2025'!E138 -> 0 | DB30: ='4_Pflegepersonalbedarf 2025'!E139 -> 0 | DC30: ='4_Pflegepersonalbedarf 2025'!E25 -> 0 | DD30: ='4_Pflegepersonalbedarf 2025'!E23 -> 0 | DE30: ='4_Pflegepersonalbedarf 2025'!E128 -> 0 | DF30: ='4_Pflegepersonalbedarf 2025'!E129 -> 0 | DG30: =DE30-DF30 -> 0 | DH30: =DA30/DD30 ->  | DI30: =DA30/DF30 ->  | DJ30: ='4_Pflegepersonalbedarf 2025'!E24 ->  | DK30: ='4_Pflegepersonalbedarf 2025'!$E142 -> 0 | DL30: ='4_Pflegepersonalbedarf 2025'!$E143 -> 0 | DM30: ='4_Pflegepersonalbedarf 2025'!$E144 -> 0 | DN30: ='4_Pflegepersonalbedarf 2025'!$E145 -> 0 | DO30: ='4_Pflegepersonalbedarf 2025'!E130 -> 0 | DP30: ='4_Pflegepersonalbedarf 2025'!$E131 -> 0 | DQ30: =SUM('4_Pflegepersonalbedarf 2025'!E119:E123) -> 0 | DR30: ='4_Pflegepersonalbedarf 2025'!$E132 -> 0 | DS30: ='4_Pflegepersonalbedarf 2025'!$E133 -> 0 | DT30: ='4_Pflegepersonalbedarf 2025'!E147/100 -> 0 | DU30: ='4_Pflegepersonalbedarf 2025'!$E148/100 -> 0 | DV30: ='4_Pflegepersonalbedarf 2025'!$E149/100 -> 0 | DW30: ='4_Pflegepersonalbedarf 2025'!$E150/100 -> 0 | DX30: ='4_Pflegepersonalbedarf 2025'!E151 -> 0 | DY30: ='4_Pflegepersonalbedarf 2025'!E153 -> 0 | DZ30: ='4_Pflegepersonalbedarf 2025'!E154 -> 0 | EA30: ='4_Pflegepersonalbedarf 2025'!G138 -> 0 | EB30: ='4_Pflegepersonalbedarf 2025'!G139 -> 0 | EC30: ='4_Pflegepersonalbedarf 2025'!G25 -> 0 | ED30: ='4_Pflegepersonalbedarf 2025'!G23 -> 0 | EE30: ='4_Pflegepersonalbedarf 2025'!G128 -> 0 | EF30: ='4_Pflegepersonalbedarf 2025'!G129 -> 0 | EG30: =EE30-EF30 -> 0 | EH30: =EA30/ED30 ->  | EI30: =EA30/EF30 ->  | EJ30: ='4_Pflegepersonalbedarf 2025'!G24 ->  | EK30: ='4_Pflegepersonalbedarf 2025'!$G142 -> 0 | EL30: ='4_Pflegepersonalbedarf 2025'!$G143 -> 0 | EM30: ='4_Pflegepersonalbedarf 2025'!$G144 -> 0 | EN30: ='4_Pflegepersonalbedarf 2025'!$G145 -> 0 | EO30: ='4_Pflegepersonalbedarf 2025'!$G130 -> 0 | EP30: ='4_Pflegepersonalbedarf 2025'!$G131 -> 0 | EQ30: =SUM('4_Pflegepersonalbedarf 2025'!G119:G123) -> 0 | ER30: ='4_Pflegepersonalbedarf 2025'!$G132 -> 0 | ES30: ='4_Pflegepersonalbedarf 2025'!$G133 -> 0 | ET30: ='4_Pflegepersonalbedarf 2025'!$G147/100 -> 0 | EU30: ='4_Pflegepersonalbedarf 2025'!$G148/100 -> 0 | EV30: ='4_Pflegepersonalbedarf 2025'!$G149/100 -> 0 | EW30: ='4_Pflegepersonalbedarf 2025'!$G150/100 -> 0 | EX30: ='4_Pflegepersonalbedarf 2025'!G151 -> 0 | EY30: ='4_Pflegepersonalbedarf 2025'!G153 -> 0 | EZ30: ='4_Pflegepersonalbedarf 2025'!G154 -> 0 | FA30: ='4_Pflegepersonalbedarf 2025'!I138 -> 0 | FB30: ='4_Pflegepersonalbedarf 2025'!I139 -> 0 | FC30: ='4_Pflegepersonalbedarf 2025'!I25 -> 0 | FD30: ='4_Pflegepersonalbedarf 2025'!I23 -> 0 | FE30: ='4_Pflegepersonalbedarf 2025'!I128 -> 0 | FF30: ='4_Pflegepersonalbedarf 2025'!I129 -> 0 | FG30: =FE30-FF30 -> 0 | FH30: =FA30/FD30 ->  | FI30: =FA30/FF30 ->  | FJ30: ='4_Pflegepersonalbedarf 2025'!I24 ->  | FK30: ='4_Pflegepersonalbedarf 2025'!$I142 -> 0 | FL30: ='4_Pflegepersonalbedarf 2025'!$I143 -> 0 | FM30: ='4_Pflegepersonalbedarf 2025'!$I144 -> 0 | FN30: ='4_Pflegepersonalbedarf 2025'!$I145 -> 0 | FO30: ='4_Pflegepersonalbedarf 2025'!$I130 -> 0 | FP30: ='4_Pflegepersonalbedarf 2025'!I131 -> 0 | FQ30: =SUM('4_Pflegepersonalbedarf 2025'!I119:I123) -> 0 | FR30: ='4_Pflegepersonalbedarf 2025'!I132 -> 0 | FS30: ='4_Pflegepersonalbedarf 2025'!I133 -> 0 | FT30: ='4_Pflegepersonalbedarf 2025'!$I147/100 -> 0 | FU30: ='4_Pflegepersonalbedarf 2025'!$I148/100 -> 0 | FV30: ='4_Pflegepersonalbedarf 2025'!$I149/100 -> 0 | FW30: ='4_Pflegepersonalbedarf 2025'!$I150/100 -> 0 | FX30: ='4_Pflegepersonalbedarf 2025'!$I151 -> 0 | FY30: ='4_Pflegepersonalbedarf 2025'!$I153 -> 0 | FZ30: ='4_Pflegepersonalbedarf 2025'!$I154 -> 0 | GA30: ='4_Pflegepersonalbedarf 2025'!K138 -> 0 | GB30: ='4_Pflegepersonalbedarf 2025'!K139 -> 0 | GC30: ='4_Pflegepersonalbedarf 2025'!K25 -> 0 | GD30: ='4_Pflegepersonalbedarf 2025'!K23 -> 0 | GE30: ='4_Pflegepersonalbedarf 2025'!K128 -> 0 | GF30: ='4_Pflegepersonalbedarf 2025'!K129 -> 0 | GG30: =GE30-GF30 -> 0 | GH30: =GA30/GD30 ->  | GI30: =GA30/GF30 ->  | GJ30: ='4_Pflegepersonalbedarf 2025'!K24 ->  | GK30: ='4_Pflegepersonalbedarf 2025'!$K142 -> 0 | GL30: ='4_Pflegepersonalbedarf 2025'!$K143 -> 0 | GM30: ='4_Pflegepersonalbedarf 2025'!$K144 -> 0 | GN30: ='4_Pflegepersonalbedarf 2025'!$K145 -> 0 | GO30: ='4_Pflegepersonalbedarf 2025'!$K130 -> 0 | GP30: ='4_Pflegepersonalbedarf 2025'!$K131 -> 0 | GQ30: =SUM('4_Pflegepersonalbedarf 2025'!K119:K123) -> 0 | GR30: ='4_Pflegepersonalbedarf 2025'!$K132 -> 0 | GS30: ='4_Pflegepersonalbedarf 2025'!$K133 -> 0 | GT30: ='4_Pflegepersonalbedarf 2025'!$K147/100 -> 0 | GU30: ='4_Pflegepersonalbedarf 2025'!$K148/100 -> 0 | GV30: ='4_Pflegepersonalbedarf 2025'!$K149/100 -> 0 | GW30: ='4_Pflegepersonalbedarf 2025'!$K150/100 -> 0 | GX30: ='4_Pflegepersonalbedarf 2025'!$K151 -> 0 | GY30: ='4_Pflegepersonalbedarf 2025'!$K153 -> 0 | GZ30: ='4_Pflegepersonalbedarf 2025'!$K154 -> 0 | HA30: ='4_Pflegepersonalbedarf 2025'!M138 -> 0 | HB30: ='4_Pflegepersonalbedarf 2025'!M139 -> 0 | HC30: ='4_Pflegepersonalbedarf 2025'!M25 -> 0 | HD30: ='4_Pflegepersonalbedarf 2025'!M23 -> 0 | HE30: ='4_Pflegepersonalbedarf 2025'!M128 -> 0 | HF30: ='4_Pflegepersonalbedarf 2025'!M129 -> 0 | HG30: =HE30-HF30 -> 0 | HH30: =HA30/HD30 ->  | HI30: =HA30/HF30 ->  | HJ30: ='4_Pflegepersonalbedarf 2025'!M24 ->  | HK30: ='4_Pflegepersonalbedarf 2025'!$M142 -> 0 | HL30: ='4_Pflegepersonalbedarf 2025'!$M143 -> 0 | HM30: ='4_Pflegepersonalbedarf 2025'!$M144 -> 0 | HN30: ='4_Pflegepersonalbedarf 2025'!$M145 -> 0 | HO30: ='4_Pflegepersonalbedarf 2025'!M130 -> 0 | HP30: ='4_Pflegepersonalbedarf 2025'!$M131 -> 0 | HQ30: =SUM('4_Pflegepersonalbedarf 2025'!M119:M123) -> 0 | HR30: ='4_Pflegepersonalbedarf 2025'!$M132 -> 0 | HS30: ='4_Pflegepersonalbedarf 2025'!$M133 -> 0 | HT30: ='4_Pflegepersonalbedarf 2025'!$M147/100 -> 0 | HU30: ='4_Pflegepersonalbedarf 2025'!$M148/100 -> 0 | HV30: ='4_Pflegepersonalbedarf 2025'!$M149/100 -> 0 | HW30: ='4_Pflegepersonalbedarf 2025'!$M150/100 -> 0 | HX30: ='4_Pflegepersonalbedarf 2025'!$M151 -> 0 | HY30: ='4_Pflegepersonalbedarf 2025'!$M153 -> 0 | HZ30: ='4_Pflegepersonalbedarf 2025'!$M154 -> 0 | IA30: ='4_Pflegepersonalbedarf 2025'!O138 -> 0 | IB30: ='4_Pflegepersonalbedarf 2025'!O139 -> 0 | IC30: ='4_Pflegepersonalbedarf 2025'!O25 -> 0 | ID30: ='4_Pflegepersonalbedarf 2025'!O23 -> 0 | IE30: ='4_Pflegepersonalbedarf 2025'!O128 -> 0 | IF30: ='4_Pflegepersonalbedarf 2025'!O129 -> 0 | IG30: =IE30-IF30 -> 0 | IH30: =IA30/ID30 ->  | II30: =IA30/IF30 ->  | IJ30: ='4_Pflegepersonalbedarf 2025'!O24 ->  | IK30: ='4_Pflegepersonalbedarf 2025'!$O142 -> 0 | IL30: ='4_Pflegepersonalbedarf 2025'!$O143 -> 0 | IM30: ='4_Pflegepersonalbedarf 2025'!$O144 -> 0 | IN30: ='4_Pflegepersonalbedarf 2025'!$O145 -> 0 | IO30: ='4_Pflegepersonalbedarf 2025'!$O130 -> 0 | IP30: ='4_Pflegepersonalbedarf 2025'!$O131 -> 0 | IQ30: =SUM('4_Pflegepersonalbedarf 2025'!O119:O123) -> 0 | IR30: ='4_Pflegepersonalbedarf 2025'!$O132 -> 0 | IS30: ='4_Pflegepersonalbedarf 2025'!$O133 -> 0 | IT30: ='4_Pflegepersonalbedarf 2025'!O147/100 -> 0 | IU30: ='4_Pflegepersonalbedarf 2025'!$O148/100 -> 0 | IV30: ='4_Pflegepersonalbedarf 2025'!$O149/100 -> 0 | IW30: ='4_Pflegepersonalbedarf 2025'!$O150/100 -> 0 | IX30: ='4_Pflegepersonalbedarf 2025'!$O151 -> 0 | IY30: ='4_Pflegepersonalbedarf 2025'!$O153 -> 0 | IZ30: ='4_Pflegepersonalbedarf 2025'!$O154 -> 0 | JA30: ='4_Pflegepersonalbedarf 2025'!E284 -> 0 | JB30: ='4_Pflegepersonalbedarf 2025'!E285 -> 0 | JC30: ='4_Pflegepersonalbedarf 2025'!E171 -> 0 | JD30: ='4_Pflegepersonalbedarf 2025'!E169 -> 0 | JE30: ='4_Pflegepersonalbedarf 2025'!E274 -> 0 | JF30: ='4_Pflegepersonalbedarf 2025'!E275 -> 0 | JG30: =JE30-JF30 -> 0 | JH30: =JA30/JD30 ->  | JI30: =JA30/JF30 ->  | JJ30: ='4_Pflegepersonalbedarf 2025'!E170 ->  | JK30: ='4_Pflegepersonalbedarf 2025'!$E288 -> 0 | JL30: ='4_Pflegepersonalbedarf 2025'!$E289 -> 0 | JM30: ='4_Pflegepersonalbedarf 2025'!$E290 -> 0 | JN30: ='4_Pflegepersonalbedarf 2025'!$E291 -> 0 | JO30: ='4_Pflegepersonalbedarf 2025'!$E276 -> 0 | JP30: ='4_Pflegepersonalbedarf 2025'!$E277 -> 0 | JQ30: =SUM('4_Pflegepersonalbedarf 2025'!D265:E269) -> 0 | JR30: ='4_Pflegepersonalbedarf 2025'!$E278 -> 0 | JS30: ='4_Pflegepersonalbedarf 2025'!$E279 -> 0 | JT30: ='4_Pflegepersonalbedarf 2025'!E293/100 -> 0 | JU30: ='4_Pflegepersonalbedarf 2025'!$E294/100 -> 0 | JV30: ='4_Pflegepersonalbedarf 2025'!$E295/100 -> 0 | JW30: ='4_Pflegepersonalbedarf 2025'!$E296/100 -> 0 | JX30: ='4_Pflegepersonalbedarf 2025'!$E297 -> 0 | JY30: ='4_Pflegepersonalbedarf 2025'!$E299 -> 0 | JZ30: ='4_Pflegepersonalbedarf 2025'!$E300 -> 0 | KA30: ='4_Pflegepersonalbedarf 2025'!G284 -> 0 | KB30: ='4_Pflegepersonalbedarf 2025'!G285 -> 0 | KC30: ='4_Pflegepersonalbedarf 2025'!G171 -> 0 | KD30: ='4_Pflegepersonalbedarf 2025'!G169 -> 0 | KE30: ='4_Pflegepersonalbedarf 2025'!G274 -> 0 | KF30: ='4_Pflegepersonalbedarf 2025'!G275 -> 0 | KG30: =KE30-KF30 -> 0 | KH30: =KA30/KD30 ->  | KI30: =KA30/KF30 ->  | KJ30: ='4_Pflegepersonalbedarf 2025'!G170 ->  | KK30: ='4_Pflegepersonalbedarf 2025'!$G288 -> 0 | KL30: ='4_Pflegepersonalbedarf 2025'!$G289 -> 0 | KM30: ='4_Pflegepersonalbedarf 2025'!$G290 -> 0 | KN30: ='4_Pflegepersonalbedarf 2025'!$G291 -> 0 | KO30: ='4_Pflegepersonalbedarf 2025'!$G276 -> 0 | KP30: ='4_Pflegepersonalbedarf 2025'!$G277 -> 0 | KQ30: =SUM('4_Pflegepersonalbedarf 2025'!G265:G269) -> 0 | KR30: ='4_Pflegepersonalbedarf 2025'!$G278 -> 0 | KS30: ='4_Pflegepersonalbedarf 2025'!$G279 -> 0 | KT30: ='4_Pflegepersonalbedarf 2025'!G293/100 -> 0 | KU30: ='4_Pflegepersonalbedarf 2025'!$G294/100 -> 0 | KV30: ='4_Pflegepersonalbedarf 2025'!$G295/100 -> 0 | KW30: ='4_Pflegepersonalbedarf 2025'!$G296/100 -> 0 | KX30: ='4_Pflegepersonalbedarf 2025'!$G299 -> 0 | KY30: ='4_Pflegepersonalbedarf 2025'!$G300 -> 0 | KZ30: ='4_Pflegepersonalbedarf 2025'!$G297 -> 0 | LA30: ='4_Pflegepersonalbedarf 2025'!I284 -> 0 | LB30: ='4_Pflegepersonalbedarf 2025'!I285 -> 0 | LC30: ='4_Pflegepersonalbedarf 2025'!I171 -> 0 | LD30: ='4_Pflegepersonalbedarf 2025'!I169 -> 0 | LE30: ='4_Pflegepersonalbedarf 2025'!I274 -> 0 | LF30: ='4_Pflegepersonalbedarf 2025'!I275 -> 0 | LG30: =LE30-LF30 -> 0 | LH30: =LA30/LD30 ->  | LI30: =LA30/LF30 ->  | LJ30: ='4_Pflegepersonalbedarf 2025'!I170 ->  | LK30: ='4_Pflegepersonalbedarf 2025'!$I288 -> 0 | LL30: ='4_Pflegepersonalbedarf 2025'!$I289 -> 0 | LM30: ='4_Pflegepersonalbedarf 2025'!$I290 -> 0 | LN30: ='4_Pflegepersonalbedarf 2025'!$I291 -> 0 | LO30: ='4_Pflegepersonalbedarf 2025'!$I276 -> 0 | LP30: ='4_Pflegepersonalbedarf 2025'!$I277 -> 0 | LQ30: =SUM('4_Pflegepersonalbedarf 2025'!I265:I269) -> 0 | LR30: ='4_Pflegepersonalbedarf 2025'!$I278 -> 0 | LS30: ='4_Pflegepersonalbedarf 2025'!$I279 -> 0 | LT30: ='4_Pflegepersonalbedarf 2025'!I293/100 -> 0 | LU30: ='4_Pflegepersonalbedarf 2025'!$I294/100 -> 0 | LV30: ='4_Pflegepersonalbedarf 2025'!$I295/100 -> 0 | LW30: ='4_Pflegepersonalbedarf 2025'!$I296/100 -> 0 | LX30: ='4_Pflegepersonalbedarf 2025'!$I297 -> 0 | LY30: ='4_Pflegepersonalbedarf 2025'!$I299 -> 0 | LZ30: ='4_Pflegepersonalbedarf 2025'!$I300 -> 0 | MA30: ='4_Pflegepersonalbedarf 2025'!K284 -> 0 | MB30: ='4_Pflegepersonalbedarf 2025'!K285 -> 0 | MC30: ='4_Pflegepersonalbedarf 2025'!K171 -> 0 | MD30: ='4_Pflegepersonalbedarf 2025'!K169 -> 0 | ME30: ='4_Pflegepersonalbedarf 2025'!K274 -> 0 | MF30: ='4_Pflegepersonalbedarf 2025'!K275 -> 0 | MG30: =ME30-MF30 -> 0 | MH30: =MA30/MD30 ->  | MI30: =MA30/MF30 ->  | MJ30: ='4_Pflegepersonalbedarf 2025'!K170 ->  | MK30: ='4_Pflegepersonalbedarf 2025'!$K288 -> 0 | ML30: ='4_Pflegepersonalbedarf 2025'!$K289 -> 0 | MM30: ='4_Pflegepersonalbedarf 2025'!$K290 -> 0 | MN30: ='4_Pflegepersonalbedarf 2025'!$K291 -> 0 | MO30: ='4_Pflegepersonalbedarf 2025'!$K276 -> 0 | MP30: ='4_Pflegepersonalbedarf 2025'!$K277 -> 0 | MQ30: =SUM('4_Pflegepersonalbedarf 2025'!K265:K269) -> 0 | MR30: ='4_Pflegepersonalbedarf 2025'!$K278 -> 0 | MS30: ='4_Pflegepersonalbedarf 2025'!$K279 -> 0 | MT30: ='4_Pflegepersonalbedarf 2025'!K293/100 -> 0 | MU30: ='4_Pflegepersonalbedarf 2025'!$K294/100 -> 0 | MV30: ='4_Pflegepersonalbedarf 2025'!$K295/100 -> 0 | MW30: ='4_Pflegepersonalbedarf 2025'!$K296/100 -> 0 | MX30: ='4_Pflegepersonalbedarf 2025'!$K297 -> 0 | MY30: ='4_Pflegepersonalbedarf 2025'!$K299 -> 0 | MZ30: ='4_Pflegepersonalbedarf 2025'!$K300 -> 0 | NA30: ='4_Pflegepersonalbedarf 2025'!M284 -> 0 | NB30: ='4_Pflegepersonalbedarf 2025'!M285 -> 0 | NC30: ='4_Pflegepersonalbedarf 2025'!M171 -> 0 | ND30: ='4_Pflegepersonalbedarf 2025'!M169 -> 0 | NE30: ='4_Pflegepersonalbedarf 2025'!M274 -> 0 | NF30: ='4_Pflegepersonalbedarf 2025'!M275 -> 0 | NG30: =NE30-NF30 -> 0 | NH30: =NA30/ND30 ->  | NI30: =NA30/NF30 ->  | NJ30: ='4_Pflegepersonalbedarf 2025'!M170 ->  | NK30: ='4_Pflegepersonalbedarf 2025'!$M288 -> 0 | NL30: ='4_Pflegepersonalbedarf 2025'!$M289 -> 0 | NM30: ='4_Pflegepersonalbedarf 2025'!$M290 -> 0 | NN30: ='4_Pflegepersonalbedarf 2025'!$M291 -> 0 | NO30: ='4_Pflegepersonalbedarf 2025'!$M276 -> 0 | NP30: ='4_Pflegepersonalbedarf 2025'!$M277 -> 0 | NQ30: =SUM('4_Pflegepersonalbedarf 2025'!M265:M269) -> 0 | NR30: ='4_Pflegepersonalbedarf 2025'!$M278 -> 0 | NS30: ='4_Pflegepersonalbedarf 2025'!$M279 -> 0 | NT30: ='4_Pflegepersonalbedarf 2025'!M293/100 -> 0 | NU30: ='4_Pflegepersonalbedarf 2025'!$M294/100 -> 0 | NV30: ='4_Pflegepersonalbedarf 2025'!$M295/100 -> 0 | NW30: ='4_Pflegepersonalbedarf 2025'!$M296/100 -> 0 | NX30: ='4_Pflegepersonalbedarf 2025'!$M297 -> 0 | NY30: ='4_Pflegepersonalbedarf 2025'!$M299 -> 0 | NZ30: ='4_Pflegepersonalbedarf 2025'!$M300 -> 0 | OA30: ='4_Pflegepersonalbedarf 2025'!O284 -> 0 | OB30: ='4_Pflegepersonalbedarf 2025'!O285 -> 0 | OC30: ='4_Pflegepersonalbedarf 2025'!O171 -> 0 | OD30: ='4_Pflegepersonalbedarf 2025'!O169 -> 0 | OE30: ='4_Pflegepersonalbedarf 2025'!O274 -> 0 | OF30: ='4_Pflegepersonalbedarf 2025'!O275 -> 0 | OG30: =OE30-OF30 -> 0 | OH30: =OA30/OD30 ->  | OI30: =OA30/OF30 ->  | OJ30: ='4_Pflegepersonalbedarf 2025'!O170 ->  | OK30: ='4_Pflegepersonalbedarf 2025'!$O288 -> 0 | OL30: ='4_Pflegepersonalbedarf 2025'!$O289 -> 0 | OM30: ='4_Pflegepersonalbedarf 2025'!$O290 -> 0 | ON30: ='4_Pflegepersonalbedarf 2025'!$O291 -> 0 | OO30: ='4_Pflegepersonalbedarf 2025'!$O276 -> 0 | OP30: ='4_Pflegepersonalbedarf 2025'!$O277 -> 0 | OQ30: =SUM('4_Pflegepersonalbedarf 2025'!O265:O269) -> 0 | OR30: ='4_Pflegepersonalbedarf 2025'!$O278 -> 0 | OS30: ='4_Pflegepersonalbedarf 2025'!$O279 -> 0 | OT30: ='4_Pflegepersonalbedarf 2025'!O293/100 -> 0 | OU30: ='4_Pflegepersonalbedarf 2025'!$O294/100 -> 0 | OV30: ='4_Pflegepersonalbedarf 2025'!$O295/100 -> 0 | OW30: ='4_Pflegepersonalbedarf 2025'!$O296/100 -> 0 | OX30: ='4_Pflegepersonalbedarf 2025'!$O297 -> 0 | OY30: ='4_Pflegepersonalbedarf 2025'!$O299 -> 0 | OZ30: ='4_Pflegepersonalbedarf 2025'!$O300 -> 0 | PA30: =(DA30+EA30+FA30+GA30+HA30+IA30+JA30+KA30+LA30+MA30+NA30+OA30)/12 -> 0 | PB30: 0 | PC30: 0 | PD30: 0 | PE30: 0 | PF30: 0 | PG30: =PE30-PF30 -> 0 | PH30: =PA30/PD30 ->  | PI30: =PA30/PF30 ->  | PJ30: =(DF30+EF30+FF30+GF30+HF30+IF30)/(DD30+ED30+FD30+GD30+HD30+ID30) ->  | PK30: =(JF30+KF30+LF30+MF30+NF30+OF30)/(JD30+KD30+LD30+MD30+ND30+OD30) ->  | PL30: =(DF30+EF30+FF30+GF30+HF30+IF30+JF30+KF30+LF30+MF30+NF30+OF30)/(DD30+ED30+FD30+GD30+HD30+ID30+JD30+KD30+LD30+MD30+ND30+OD30) ->  | PM30: =(DK30+EK30+FK30+GK30+HK30+IK30+JK30+KK30+LK30+MK30+NK30+OK30)/12 -> 0 | PN30: =(DO30+EO30+FO30+GO30+HO30+IO30+JO30+KO30+LO30+MO30+NO30+OO30)/12 -> 0 | PO30: =(DP30+EP30+FP30+GP30+HP30+IP30+JP30+KP30+LP30+MP30+NP30+OP30)/12 -> 0 | PP30: =(DQ30+EQ30+FQ30+GQ30+HQ30+IQ30+JQ30+KQ30+LQ30+MQ30+NQ30+OQ30)/12 -> 0 | PQ30: =(DR30+ER30+FR30+GR30+HR30+IR30+JR30+KR30+LR30+MR30+NR30+OR30)/12 -> 0 | PR30: =(DS30+ES30+FS30+GS30+HS30+IS30+JS30+KS30+LS30+MS30+NS30+OS30)/12 -> 0 | PS30: =(DT30+ET30+FT30+GT30+HT30+IT30)/6 -> 0 | PT30: =(JT30+KT30+LT30+MT30+NT30+OT30)/6 -> 0 | PU30: =(DT30+ET30+FT30+GT30+HT30+IT30+JT30+KT30+LT30+MT30+NT30+OT30)/12 -> 0 | PV30: =(DX30+EX30+FX30+GX30+HX30+IX30+JX30+KX30+LX30+MX30+NX30+OX30)/12 -> 0 | PW30: =(DY30+EY30+FY30+GY30+HY30+IY30+JY30+KY30+LY30+MY30+NY30+OY30)/12 -> 0 | PX30: =(DZ30+EZ30+FZ30+GZ30+HZ30+IZ30+JZ30+KZ30+LZ30+MZ30+NZ30+OZ30)/12 -> 0
A32: Hauptdaten6 (Kennzahlen)
A33: Code | B33: Träger | C33: Bezirk | D33: Region | E33: Planungsraum | F33: Größengruppe | G33: PDL-Statistik | H33: Gemeinde Kennzahl | I33: Gemeinde | J33: Name des Heimes | K33: NP in 1-P-WE / Gesamt-NP | L33: Durchschnittsalter | M33: Neueintritte aus KZP in % der Gesamt-Neueintritte | N33: PG 0-2 | O33: PG 3 | P33: PG 4+5 | Q33: PG 6+7 | R33: jünger als 75 | S33: aus Standortgemeinde | T33: Selbstzahler:innen | U33: Neueintritte 2025 / NP 31.12.2025 | V33: Verweildauer < 4 Monate | W33: im Heim Verstorbene / Gesamt-Verstorbene | X33: Leitung des Betreuungs- und Pflegedienstes | Y33: DGKP | Z33: Pflegefachassistent:innen | AA33: FSB"A" und FSB "BA" | AB33: DSB "A" und DSB "BA" | AC33: DSB "F" | AD33: Pflegeassistent:innen | AE33: HH und AB | AF33: FSB "BB" und DSB "BB" | AG33: Stützpersonal | AH33: Leasingpersonal | AI33: Personen Nachtdienst in % an Gesamt-Plätzen | AJ33: LBPD+DGKP+PFA | AK33: FSB "A"/"BA", DSB "A"/"BA", DSB "F" und PA | AL33: HH, AB, FSB "BB"und DSB "BB" | AM33: Stützpersonal | AN33: nur DGKP | AO33: Erfüllung 31.12.2025 | AP33: es fehlen ..... PE | AQ33: es fehlen .... PE DGKP/PFA auf 20 % | AR33: es fehlen .... PE DGKP/PFA auf 25 % | AS33: es fehlen .... PE FSB/DSB/PA | AT33: Pflegeintensität IST Verhältnis Pflegepersonal IST zu HB | AU33: Pflegeintensität SOLL Verhältnis Pflegepersonal SOLL zu HB | AV33: Hilfskräfte | AW33: Heimleitung | AX33: Verwaltung | AY33: Küche | AZ33: Reinigung | BA33: Wäscherei | BB33: Haustechnik | BC33: Heimleitung | BD33: Verwaltung | BE33: Küche | BF33: Reinigung | BG33: Wäscherei | BH33: Haustechnik | BI33: männlich | BJ33: weiblich | BK33: vom Vorj. übertrag. Über-/Mehrstd. | BL33: im Vorj. ausbezahlte Über-/Mehrstd. | BM33: in ein Heim des selben Trägers | BN33: in ein Heim eines anderen Trägers | BO33: zu den Mobilen Diensten | BP33: in eine andere Einrichtung des Gesundheitsbereiches | BQ33: in eine Einrichtung für Menschen mit Beeinträchtigungen | BR33: zu Sonstigem | BS33: weiterer Berufsweg unbekannt bzw. sonstige Gründe | BT33: Dekubitus Grad III | BU33: Dekubitus Grad IV | BV33: Summe Dekubitus III und IV | BW33: davon im Heim entstanden | BX33: im KH entstanden | BY33: woanders entstanden | BZ33: gestürzte Bewohner:innen | CA33: durchschn. Sturzanzahl pro gestürztem HB | CB33: davon Stürze mit ambulanter oder stat. Behandlung in einem KH | CC33: in der Freiheit beschränkt | CD33: in der Freiheit eingeschränkt | CE33: Qualitätsstandard (SOP) Ernährung inkl. Exsikkose | CF33: Risikoeinschätzung Ernährung | CG33: HB mit Dauerkatheter zum Stichtag | CH33: Qualitätsstandard (SOP) Schmerzen | CI33: Schmerzeinschätzung wird durchgeführt | CJ33: HB mit Suchtmittel-Dauermedikation | CK33: davon: HB, die Suchtmittel subcutan vom Nachtdienst erhalten | CL33: HB mit med. diagn. Demenz | CM33: Wird der überwiegende Teil der Medikamente verblistert?
X34: Anteile an Gesamt-PE | AJ34: Anteile am MPPB | AT34: 1 : | AU34: 1 : | AW34: in % an Gesamt-Funktionspersonal (PE) | BC34: in % an Normplätzen | BT34: Dekubitus | BZ34: Stürze | CC34: Freiheitsbeschr. | CE34: Ernährung | CG34: Ausscheidung | CH34: Schmerzen | CL34: Verh.auff. | CM34: Medikamente
H35: Standortgemeinde | J35: Name des Heimes | K35: NP | L35: Bewohner:innen | X35: Pflegepersonal | AO35: MPPB nach Blatt 4_ | AW35: Funktionspersonal | BI35: Beschäftigte | BK35: Überstunden, Mehrstunden | BM35: Fluktuation Pflegepersonal (Austritte) | BT35: Betreuung und Pflege
A36: =VLOOKUP($J$6,'1_allg. Strukturdaten'!$B$74:$N$207,2,FALSE) ->  | B36: =VLOOKUP($J$6,'1_allg. Strukturdaten'!$B$74:$N$207,3,FALSE) ->  | C36: =VLOOKUP($J$6,'1_allg. Strukturdaten'!$B$74:$N$207,4,FALSE) ->  | D36: =VLOOKUP($J$6,'1_allg. Strukturdaten'!$B$74:$N$207,5,FALSE) ->  | E36: =VLOOKUP($J$6,'1_allg. Strukturdaten'!$B$74:$N$207,6,FALSE) ->  | F36: =VLOOKUP($J$6,'1_allg. Strukturdaten'!$B$74:$N$207,7,FALSE) ->  | G36: =VLOOKUP($J$6,'1_allg. Strukturdaten'!$B$74:$N$207,8,FALSE) ->  | H36: =VLOOKUP($J$6,'1_allg. Strukturdaten'!$B$74:$N$207,9,FALSE) ->  | I36: =VLOOKUP($J$6,'1_allg. Strukturdaten'!$B$74:$N$207,10,FALSE) ->  | J36: ='1_allg. Strukturdaten'!D7 -> Bitte auswählen… | K36: ='6_Kennzahlen'!D13 ->  | L36: ='6_Kennzahlen'!C17 -> 0 | M36: ='6_Kennzahlen'!D19 -> 0,00% | N36: ='6_Kennzahlen'!C22 ->  | O36: ='6_Kennzahlen'!C23 ->  | P36: ='6_Kennzahlen'!C24 ->  | Q36: ='6_Kennzahlen'!C25 ->  | R36: ='6_Kennzahlen'!D27 ->  | S36: ='6_Kennzahlen'!D28 ->  | T36: ='6_Kennzahlen'!C29 ->  | U36: ='6_Kennzahlen'!E31 ->  | V36: ='6_Kennzahlen'!E32 ->  | W36: ='6_Kennzahlen'!E33 ->  | X36: ='6_Kennzahlen'!D45 ->  | Y36: ='6_Kennzahlen'!D46 ->  | Z36: ='6_Kennzahlen'!D47 ->  | AA36: ='6_Kennzahlen'!D48 ->  | AB36: ='6_Kennzahlen'!D49 ->  | AC36: ='6_Kennzahlen'!D50 ->  | AD36: ='6_Kennzahlen'!D51 ->  | AE36: ='6_Kennzahlen'!D54 ->  | AF36: ='6_Kennzahlen'!D55 ->  | AG36: ='6_Kennzahlen'!D56 ->  | AH36: ='6_Kennzahlen'!D60 ->  | AI36: ='6_Kennzahlen'!D64 ->  | AJ36: ='6_Kennzahlen'!$D68 -> 0 | AK36: ='6_Kennzahlen'!$D69 -> 0 | AL36: ='6_Kennzahlen'!$D70 -> 0 | AM36: ='6_Kennzahlen'!$D71 -> 0 | AN36: ='6_Kennzahlen'!$C73 ->  | AO36: ='6_Kennzahlen'!C81 -> 0 | AP36: ='6_Kennzahlen'!C82 -> 0 | AQ36: ='6_Kennzahlen'!C83 -> 0 | AR36: ='6_Kennzahlen'!C84 -> 0 | AS36: ='6_Kennzahlen'!C85 -> 0 | AT36: ='6_Kennzahlen'!C86 ->  | AU36: ='6_Kennzahlen'!C87 ->  | AV36: ='6_Kennzahlen'!C92 ->  | AW36: ='6_Kennzahlen'!C97 ->  | AX36: ='6_Kennzahlen'!C98 ->  | AY36: ='6_Kennzahlen'!C99 ->  | AZ36: ='6_Kennzahlen'!C100 ->  | BA36: ='6_Kennzahlen'!C101 ->  | BB36: ='6_Kennzahlen'!C104 ->  | BC36: ='6_Kennzahlen'!C107 ->  | BD36: ='6_Kennzahlen'!C108 ->  | BE36: ='6_Kennzahlen'!C109 ->  | BF36: ='6_Kennzahlen'!C110 ->  | BG36: ='6_Kennzahlen'!C111 ->  | BH36: ='6_Kennzahlen'!C114 ->  | BI36: ='6_Kennzahlen'!C118 ->  | BJ36: ='6_Kennzahlen'!C119 ->  | BK36: ='6_Kennzahlen'!D124 ->  | BL36: ='6_Kennzahlen'!D125 ->  | BM36: ='6_Kennzahlen'!$D130 ->  | BN36: ='6_Kennzahlen'!$D131 ->  | BO36: ='6_Kennzahlen'!$D132 ->  | BP36: ='6_Kennzahlen'!$D133 ->  | BQ36: ='6_Kennzahlen'!$D134 ->  | BR36: ='6_Kennzahlen'!$D135 ->  | BS36: ='6_Kennzahlen'!$D136 ->  | BT36: ='6_Kennzahlen'!D155 -> 0,00% | BU36: ='6_Kennzahlen'!D156 -> 0,00% | BV36: ='6_Kennzahlen'!D157 -> 0,00% | BW36: ='6_Kennzahlen'!D158 -> 0,00% | BX36: ='6_Kennzahlen'!D159 -> 0,00% | BY36: ='6_Kennzahlen'!E160 -> 0,00% | BZ36: ='6_Kennzahlen'!D166 -> 0,00% | CA36: ='6_Kennzahlen'!D167 -> 0 | CB36: ='6_Kennzahlen'!D169 -> 0,00% | CC36: ='6_Kennzahlen'!D172 -> 0,00% | CD36: ='6_Kennzahlen'!D173 -> 0,00% | CE36: ='6_Kennzahlen'!E180 -> 0 | CF36: ='6_Kennzahlen'!E181 -> 0 | CG36: ='6_Kennzahlen'!D188 -> 0,00% | CH36: ='6_Kennzahlen'!C191 -> 0 | CI36: ='6_Kennzahlen'!C192 -> 0 | CJ36: ='6_Kennzahlen'!D194 -> 0,00% | CK36: ='6_Kennzahlen'!D195 -> 0,00% | CL36: ='6_Kennzahlen'!D205 -> 0,00% | CM36: ='6_Kennzahlen'!D210 -> 0
A38: Hauptdaten7 (Betreuung und Pflege; Strukturdaten)
A39: Code | B39: Träger | C39: Bezirk | D39: Region | E39: Planungsraum | F39: Größengruppe | G39: PDL-Statistik | H39: Gemeinde Kennzahl | I39: Gemeinde | J39: Name des Heimes | K39: interne/r Wundmanager/in | L39: externe/r Wundmanager/in | M39: Dekubitus Grad III | N39: Dekubitus Grad IV | O39: Summe Dekubitus III und IV | P39: Anteil Dekubitus III und IV an allen HB zum Stichtag | Q39: im Heim entstanden | R39: im Krankenhaus entstanden | S39: wo anders entstanden | T39: gestürzte Bewohner:innen | U39: Anteil gestürzter HB an allen HB 2025 | V39: alle Stürze | W39: durchschnittl. Sturzanzahl pro gestürztem HB | X39: Stürze mit ambulanter oder stationärer Behandlung in einem Krankenhaus | Y39: Anteil an der Summe aller Stürze 2025 | Z39: in der Freiheit beschränkt | AA39: Anteil FBM an HB | AB39: in der Freiheit eingeschränkt | AC39: Anteil FEM an HB | AD39: Summe HB FBEM | AE39: Anteil FBEM an allen HB zum Stichtag | AF39: Qualitätsstandard (SOP) Ernährung inkl. Exsikkose | AG39: Risikoeinschätzung Ernährung | AH39: HB mit Dauerkatheter zum Stichtag | AI39: Anteil HB mit Dauerkatheter zum Stichtag | AJ39: davon transurethrale Dauerkatheter | AK39: Anteil transurethral an allen HB mit Dauerkatheter | AL39: davon Wechsel transurethral im Krankenhaus | AM39: Anteil Wechsel transurethral im KH an HB mit transurethralem Dauerkatheter | AN39: davon suprapubische Katheter | AO39: Anteil suprapubisch an allen HB mit Dauerkatheter | AP39: davon Wechsel suprapubisch im Krankenhaus | AQ39: Anteil Wechsel suprapubisch im KH an HB mit suprapubischem Dauerkatheter | AR39: Qualitätsstandard (SOP) Schmerzen | AS39: Schmerzeinschätzung erfolgt | AT39: Wenn ja: Instrument zur Risikoeinschätzung chron. Schmerzen | AU39: HB mit Suchtmittel-Dauermedikation | AV39: Anteil HB mit Suchtmittel-Dauermed. an allen HB zum Stichtag | AW39: davon: HB, wo die Suchtmittel der Nachtdienst verabreicht | AX39: Anteil HB mit Suchtmittel durch ND an HB mit Suchtmittel-Dauermed. | AY39: HB mit med. diagn. Demenz | AZ39: Antei HB mit med. diagn. Demenz | BA39: Wird der überwiegende Teil der Medikamente verblistert? | BB39: E-Qalin | BC39: QAP-C | BD39: EFQM | BE39: anderes QM-System | BF39: Welches andere QM-System? | BG39: Datum der letzten Selbstbewertung | BH39: Anzahl der im Heim maximal zur Verfügung stehenden Plätze | BI39: davon maximale Plätze in 2-Personen-WE | BJ39: Oase | BK39: davon maximale Plätze in 1-Personen-WE | BL39: Anzahl der Wohnbereiche | BM39: geschoßübergreifende Wohnbereiche | BN39: Anzahl der Wohngruppen | BO39: Anzahl Wohngruppen ausschl. für Menschen mit Demenz | BP39: HB (LZP und KZP) zum Stichtag | BQ39: freie Plätze zum Stichtag | BR39: davon bereits verplant | BS39: noch nie vergeben (Neueröffnung) | BT39: freie LZP aufgrund Personalmangel | BU39: restliche freie Plätze | BV39: Grund | BW39: heiminterner Aufnahmestopp | BX39: Personen gleichzeitig im ND | BY39: Nächte ohne DGKP/PFA aber Rufbereitschaft mit DGKP/PFA (im Bezirk)? | BZ39: Spätdienst (Tagdienst bis mind. 20 Uhr) | CA39: wenn ja, Spätdienst bis ... | CB39: wenn ja, Qualifikation Spätdienst
M40: Dekubitus | T40: Stürze | Z40: Freiheitsbe-/-einschränkung | AF40: Ernährung | AH40: Ausscheidung | AR40: Schmerzen | AY40: Demenz | BA40: Medikamente
